Workbook

Sheet AER only (hidden)
C1: Data in these columns used for data validation and database purposes.
C2: Date last modified:
C3: 14 April 2015 | D3: merged cell C46/47
C4: 17 April 2015 | D4: adjusted dms_RYE to automate based on dms_Model (NB: EB & CA refer to CRCP_y5)
C5: 14 May 2015 | D5: adapted this cover for use in CA & EB RINs
C6: 22 July 2015 | D6: added CPI table for ARRs
C11: dms_Model_List | D11: dms_Worksheet_List | F11: dms_RYE_List1 | G11: dms_RYE_List2
C12: ARR | D12: ANNUAL REPORTING STATEMENT | F12: dms_RYE | G12: =(LEFT(CRCP_y5, 2)&RIGHT(CRCP_y5,2)) -> 2017
C13: CA | D13: CATEGORY ANALYSIS | F13: dms_RYE | G13: =(LEFT(CRY, 2)&RIGHT(CRY,2)) -> 2015
C14: CAM/Service change Backcast | D14: REGULATORY REPORTING STATEMENT | F14: dms_RYE | G14: =(LEFT(CRCP_y5, 2)&RIGHT(CRCP_y5,2)) -> 2017
C15: CPI | D15: CPI | F15: dms_RYE | G15: =(LEFT(CRCP_y5, 2)&RIGHT(CRCP_y5,2)) -> 2017
C16: EB | D16: ECONOMIC BENCHMARKING | F16: dms_RYE | G16: =(LEFT(CRY, 2)&RIGHT(CRY,2)) -> 2015
C17: PTRM | D17: POST TAX REVENUE MODEL | F17: FRCP | G17: =(LEFT(FRCP_y5, 2)&RIGHT(FRCP_y5,2)) -> 2022
C18: Reset | D18: REGULATORY REPORTING STATEMENT | F18: FRCP | G18: =(LEFT(FRCP_y5, 2)&RIGHT(FRCP_y5,2)) -> 2022
C19: RFM | D19: ROLL FORWARD MODEL | F19: CRCP | G19: =(LEFT(CRCP_y5, 2)&RIGHT(CRCP_y5,2)) -> 2017
C20: WACC | D20: WEIGHTED AVERAGE COST OF CAPITAL | F20: dms_RYE | G20: =(LEFT(CRCP_y5, 2)&RIGHT(CRCP_y5,2)) -> 2017
C23: dms_TradingName_List | D23: dms_TradingNameFull_List | E23: dms_ABN_List | F23: dms_State_List | G23: dms_Sector_List | H23: dms_Segment_List | I23: dms_FormControl_List | J23: dms_CRCPlength_List | K23: dms_FRCPlength_List | L23: dms_JurisdictionList | M23: dms_663_List | N23: dms_DeterminationRef_List
C24: ActewAGL Distribution | D24: ActewAGL Distribution | E24: 76670568688 | F24: ACT | G24: Electricity | H24: Distribution | I24: Revenue cap | J24: 5 | K24: 6 | L24: ACT | M24: 5 | N24: 2014-19 Distribution Determination
C25: ActewAGL Distribution (Tx Assets) | D25: ActewAGL Distribution (Tx Assets) | E25: 76670568688 | F25: ACT | G25: Electricity | H25: Distribution | I25: Revenue cap | J25: 5 | K25: 5 | L25: ACT | M25: 5 | N25: distribution determination
C26: AGN | D26: AGN | E26: 78551685 | F26: SA | G26: Gas | H26: Distribution | I26: Revenue cap | J26: 5 | K26: 5 | L26: SA | M26: 5 | N26: distribution determination
C27: Ausgrid | D27: Ausgrid | E27: 67505337385 | F27: NSW | G27: Electricity | H27: Distribution | I27: Revenue cap | J27: 5 | K27: 5 | L27: NSW | M27: 5 | N27: 2014-19 Distribution Determination
C28: Ausgrid (Tx Assets) | D28: Ausgrid (Tx Assets) | E28: 67505337385 | F28: NSW | G28: Electricity | H28: Distribution | I28: Revenue cap | J28: 5 | K28: 5 | L28: NSW | M28: 5 | N28: distribution determination
C29: AusNet (D) | D29: AusNet Services (D) | E29: 91064651118 | F29: Vic | G29: Electricity | H29: Distribution | I29: Revenue cap | J29: 5 | K29: 5 | L29: Vic | M29: 2 | N29: 2016-20 Distribution Determination
C30: AusNet (T) | D30: AusNet (T) | E30: 48116124362 | F30: Vic | G30: Electricity | H30: Transmission | I30: Revenue cap | J30: 5 | K30: 5 | L30: Vic | M30: 2 | N30: transmission determination
C31: Australian Distribution Co. | D31: Australian Distribution Co. | E31: 11222333444 | F31: - | G31: Electricity | H31: Distribution | I31: Revenue cap | J31: 5 | K31: 5 | L31: - | M31: 2 | N31: distribution determination
C32: Australian Transmission Co. | D32: Australian Transmission Co. | E32: 11222333444 | F32: - | G32: Electricity | H32: Transmission | I32: Revenue cap | J32: 5 | K32: 5 | L32: - | M32: 5 | N32: distribution determination
C33: CitiPower | D33: CitiPower | E33: 76064651056 | F33: Vic | G33: Electricity | H33: Distribution | I33: Revenue cap | J33: 5 | K33: 5 | L33: Vic | M33: 2 | N33: 2016-20 Distribution Determination
C34: Directlink | D34: Directlink | E34: 16779340889 | F34: NSW | G34: Electricity | H34: Transmission | I34: Revenue cap | J34: 10 | K34: 5 | L34: Qld | M34: 5 | N34: transmission determination
C35: ElectraNet | D35: ElectraNet | E35: 41094482416 | F35: SA | G35: Electricity | H35: Transmission | I35: Revenue cap | J35: 5 | K35: 5 | L35: SA | M35: 5 | N35: transmission determination
C36: Endeavour Energy | D36: Endeavour Energy | E36: 59253130878 | F36: NSW | G36: Electricity | H36: Distribution | I36: Revenue cap | J36: 5 | K36: 5 | L36: NSW | M36: 5 | N36: 2014-19 Distribution Determination
C37: Energex | D37: Energex | E37: 40078849055 | F37: Qld | G37: Electricity | H37: Distribution | I37: Revenue cap | J37: 5 | K37: 5 | L37: Qld | M37: 5 | N37: 2015-20 Distribution Determination
C38: Ergon Energy | D38: Ergon Energy | E38: 50087646062 | F38: Qld | G38: Electricity | H38: Distribution | I38: Revenue cap | J38: 5 | K38: 5 | L38: Qld | M38: 5 | N38: 2015-20 Distribution Determination
C39: Essential Energy | D39: Essential Energy | E39: 37428185226 | F39: NSW | G39: Electricity | H39: Distribution | I39: Revenue cap | J39: 5 | K39: 5 | L39: NSW | M39: 5 | N39: 2014-19 Distribution Determination
C40: Jemena Electricity | D40: Jemena Electricity | E40: 82064651083 | F40: Vic | G40: Electricity | H40: Distribution | I40: Revenue cap | J40: 5 | K40: 5 | L40: Vic | M40: 2 | N40: 2016-20 Distribution Determination
C41: Murraylink | D41: Murraylink | E41: 79181207909 | F41: NSW | G41: Electricity | H41: Transmission | I41: Revenue cap | J41: 5 | K41: 5 | L41: SA | M41: 5 | N41: transmission determination
C42: Powercor Australia | D42: Powercor Australia | E42: 89064651109 | F42: Vic | G42: Electricity | H42: Distribution | I42: Revenue cap | J42: 5 | K42: 5 | L42: Vic | M42: 2 | N42: 2016-20 Distribution Determination
C43: Powerlink | D43: Powerlink | E43: 82078849233 | F43: Qld | G43: Electricity | H43: Transmission | I43: Revenue cap | J43: 5 | K43: 5 | L43: Qld | M43: 5 | N43: transmission determination
C44: Qld,SA &ACT Gas Reset | D44: Qld,SA &ACT Gas Reset | E44: 22222222222 | F44: - | G44: Gas | H44: Distribution | I44: ? | J44: 5 | K44: 2 | L44: - | M44: x | N44: n/a
C45: SA Power Networks | D45: SA Power Networks | E45: 13332330749 | F45: SA | G45: Electricity | H45: Distribution | I45: Revenue cap | J45: 5 | K45: 5 | L45: SA | M45: 5 | N45: 2015-20 Distribution Determination
C46: TasNetworks (D) | D46: TasNetworks (D) | E46: 24167357299 | F46: Tas | G46: Electricity | H46: Distribution | I46: Revenue cap | J46: 5 | K46: 2 | L46: Tas | M46: 5 | N46: distribution determination
C47: TasNetworks (T) | D47: TasNetworks (T) | E47: 24167357299 | F47: Tas | G47: Electricity | H47: Transmission | I47: Revenue cap | J47: 5 | K47: 5 | L47: Tas | M47: 5 | N47: transmission determination
C48: TransGrid | D48: TransGrid | E48: 19622755774 | F48: NSW | G48: Electricity | H48: Transmission | I48: Revenue cap | J48: 5 | K48: 5 | L48: NSW | M48: 5 | N48: transmission determination
C49: United Energy | D49: United Energy | E49: 70064651029 | F49: Vic | G49: Electricity | H49: Distribution | I49: Revenue cap | J49: 5 | K49: 5 | L49: Vic | M49: 2 | N49: 2016-20 Distribution Determination
C50: Victorian DNSP Backcasting | D50: Victorian DNSP Backcasting | E50: 33333333666 | F50: Vic | G50: Electricity | H50: Distribution | I50: ? | J50: 5 | K50: 5 | L50: Vic | M50: x | N50: distribution determination
C51: Victorian DNSP Reset | D51: Victorian DNSP Reset | E51: 33333333333 | F51: Vic | G51: Electricity | H51: Distribution | I51: ? | J51: 5 | K51: 5 | L51: Vic | M51: x | N51: distribution determination
C56: dms_SourceList | D56: dms_FormControl_Choices | F56: dms_FRCPlength_Num_List | G56: dms_FinalYear_List
C57: After appeal | D57: Revenue cap | F57: 1 | G57: FRCP_y1
C58: Draft decision | D58: Revenue yield | F58: 2 | G58: FRCP_y2
C59: Final decision | D59: Weighted average price cap | F59: 3 | G59: FRCP_y3
C60: Pass through decision | F60: 4 | G60: FRCP_y4
C61: PTRM annual update | F61: 5 | G61: FRCP_y5
C62: PTRM interim update 1 | F62: 6 | G62: FRCP_y6
C63: PTRM interim update 2 | F63: 7 | G63: FRCP_y7
C64: PTRM interim update 3 | F64: 8 | G64: FRCP_y8
C65: PTRM interim update 4 | F65: 9 | G65: FRCP_y9
C66: Regulatory proposal | F66: 10 | G66: FRCP_y10
C67: Reporting
C68: Revised regulatory proposal
C69: RFM annual update
C70: WACC annual update
C73: PROJECT TYPE FOR TBL 2.3.2 (dms_232_ProjectType)
C74: New line on new route - single circuit
C75: New line on new route - dual circuit
C76: New line on new route - other
C77: Line rebuild over existing route - single circuit
C78: Line rebuild over existing route - dual circuit
C79: Reconductor - Single circuit
C80: Reconductor - Dual circuit
C81: Reconductor - Other
C82: Line upgrade - raising/retensoring
C83: Line upgrade - voltage upgrade
C84: Line upgrade - capacity
C85: String spare circuit
C86: Other - specify
C89: Notes
C90: RFM - Base year is usually CRCP_y1 | D90: EG. Victorian 2016-20 - base year = 2011
C91: RFM - Form of Control Field is not relevant
C92: PTRM - capture base year input by NSP | D92: ='[Published version - PTRM - TNSP - version 3 - January 2015 - Appendix A.xlsm]PTRM input'!Q7

Sheet Contents
B1: =SheetHeader -> REGULATORY REPORTING STATEMENT
B2: =dms_TradingName -> TasNetworks (D)
B3: =CONCATENATE(FRCP_y1," to ",FRCP_y5) -> 2017-18 to 2021-22
B4: CONTENTS
E7: 1. Business details | L7: 2. Expenditure | S7: 3. Economic benchmarking
E27: 4. Alternative control services | L27: 5. Network information | S27: 6. Service & quality
E34: 7. Other templates

Sheet Business & other details
A1: HIDE THIS COLUMN | C1: REGULATORY REPORTING STATEMENT
C2: =INDEX(dms_TradingNameFull_List,MATCH(dms_TradingName,dms_TradingName_List)) -> TasNetworks (D)
C3: =CONCATENATE(FRCP_y1," to ",dms_FRCP_FinalYear_Num) -> 2017-18 to 2018-19
C4: BUSINESS & OTHER DETAILS
C7: Instructions
C8: Complete the following business details regulatory template before entering data or values in any other regulatory template. This regulatory template is linked to other cells within the spreadsheet and automatically generates column headings.
C10: SUBMISSION PARTICULARS INPUT SHEETS
C12: ENTITY DETAILS
C14: Short name | D14: TasNetworks (D)
C15: ACN / ABN | D15: 24167357299
C18: Business address | D18: Address 1 | F18: 1-7 Maria St
E19: Address 2
D20: Suburb | F20: Lenah Valley
E21: State | F21: Tas | G21: p/code | H21: 7008
C23: Postal address | D23: Address 1 | F23: PO Box 606
E24: Address 2
D25: Suburb | F25: Moonah
E26: State | F26: Tas | G26: p/code | H26: 7009
C29: Contact name/s | D29: John Sayers | G29: Bess Clark
C30: Contact phone/s | D30: 362716469 | G30: 362716009
C31: Contact email address/s | D31: John.Sayers@tasnetworks.com.au | G31: Bess.Clark@tasnetworks.com.au
A33: KEEP VISIBLE FOR RESET | C33: REGULATORY CONTROL PERIODS
C35: Forthcoming regulatory control period | D35: 2017-18 | E35: =IF(dms_RPT="financial",VALUE(LEFT(D35,4)+1)&"-"&VALUE(MID(D35,3,2)+2),VALUE(LEFT(D35,4)+1)) -> 2018-19 | F35: =IF(dms_RPT="financial",VALUE(LEFT(E35,4)+1)&"-"&VALUE(MID(E35,3,2)+2),VALUE(LEFT(E35,4)+1)) -> 2019-20 | G35: =IF(dms_RPT="financial",VALUE(LEFT(F35,4)+1)&"-"&VALUE(MID(F35,3,2)+2),VALUE(LEFT(F35,4)+1)) -> 2020-21 | H35: =IF(dms_RPT="financial",VALUE(LEFT(G35,4)+1)&"-"&VALUE(MID(G35,3,2)+2),VALUE(LEFT(G35,4)+1)) -> 2021-22
A37: HIDE THIS
C38: Current regulatory control period | D38: =IF(dms_RPT="financial",VALUE(LEFT(E38,4)-1)&"-"&TEXT(VALUE(RIGHT(E38,2)-1),"0#"),VALUE(LEFT(E38,4)-1)) -> 2012-13 | E38: =IF(dms_RPT="financial",VALUE(LEFT(F38,4)-1)&"-"&TEXT(VALUE(RIGHT(F38,2)-1),"0#"),VALUE(LEFT(F38,4)-1)) -> 2013-14 | F38: =IF(dms_RPT="financial",VALUE(LEFT(G38,4)-1)&"-"&TEXT(VALUE(RIGHT(G38,2)-1),"0#"),VALUE(LEFT(G38,4)-1)) -> 2014-15 | G38: =IF(dms_RPT="financial",VALUE(LEFT(H38,4)-1)&"-"&TEXT(VALUE(RIGHT(H38,2)-1),"0#"),VALUE(LEFT(H38,4)-1)) -> 2015-16 | H38: =IF(dms_RPT="financial",VALUE(LEFT(D35,4)-1)&"-"&TEXT(VALUE(RIGHT(D35,2)-1),"0#"),VALUE(LEFT(D35,4)-1)) -> 2016-17
C41: Previous regulatory control period | D41: =IF(dms_RPT="financial",VALUE(LEFT(E41,4)-1)&"-"&TEXT(VALUE(MID(E41,3,2)),"0#"),VALUE(LEFT(E41,4)-1)) -> 2007-08 | E41: =IF(dms_RPT="financial",VALUE(LEFT(F41,4)-1)&"-"&TEXT(VALUE(MID(F41,3,2)),"0#"),VALUE(LEFT(F41,4)-1)) -> 2008-09 | F41: =IF(dms_RPT="financial",VALUE(LEFT(G41,4)-1)&"-"&TEXT(VALUE(MID(G41,3,2)),"0#"),VALUE(LEFT(G41,4)-1)) -> 2009-10 | G41: =IF(dms_RPT="financial",VALUE(LEFT(H41,4)-1)&"-"&TEXT(VALUE(RIGHT(H41,2)-1),"0#"),VALUE(LEFT(H41,4)-1)) -> 2010-11 | H41: =IF(dms_RPT="financial",VALUE(LEFT(D38,4)-1)&"-"&TEXT(VALUE(RIGHT(D38,2)-1),"0#"),VALUE(LEFT(D38,4)-1)) -> 2011-12
A43: KEEP VISIBLE FOR CA & EB ONLY
C44: Current regulatory year | D44: 2014-15
A49: HIDE THIS | C49: Sector | D49: =INDEX(dms_Sector_List,MATCH(dms_TradingName,dms_TradingName_List)) -> Electricity
C50: Segment | D50: =INDEX(dms_Segment_List,MATCH(dms_TradingName,dms_TradingName_List)) -> Distribution
C51: Source | D51: Regulatory proposal
A52: HIDE THIS | C52: Regulatory Year Ending | D52: =LEFT(dms_FRCP_FinalYear_Num,2)&RIGHT(dms_FRCP_FinalYear_Num,2) -> 2019
C53: Reporting Period Type | D53: =IF(LEN(FRCP_y1)>4,"Financial","Calendar") -> Financial
C54: Model or RIN Type | D54: Reset
C55: Security Classification | D55: Public
C56: Data quality (actual, estimate, public, consolidated) | D56: Consolidated
A57: Hide for EB, CA & ARRs | C57: EBSS - First application of scheme in forthcoming period? | D57: No
C58: Amended RIN submission - amendment reason
A59: HIDE THIS | C59: Template - version no. | D59: 3
C60: Dollar $ real (the last month before the FRCP_y1) | D60: =CONCATENATE(IF(dms_RPT="Financial","June ","December "),VALUE((LEFT(FRCP_y1,2))&RIGHT(FRCP_y1,2))-1) -> June 2017
C61: Form of control | D61: =INDEX(dms_FormControl_List,MATCH(dms_TradingName,dms_TradingName_List)) -> Revenue cap
C62: Length of current reg control period | D62: =INDEX(dms_CRCPlength_List,MATCH(dms_TradingName,dms_TradingName_List)) -> 5
C63: Length of forthcoming reg control period | D63: =INDEX(dms_FRCPlength_List,MATCH(dms_TradingName,dms_TradingName_List)) -> 2
C64: RIN response - version no. | D64: 1
C65: Jurisdiction | D65: =INDEX(dms_JurisdictionList,MATCH(dms_TradingName,dms_TradingName_List)) -> Tas
C66: FRCP length in years | D66: =INDEX(dms_FRCPlength_List,MATCH(dms_TradingName,dms_TradingName_List)) -> 2
C67: FRCP Final Year Reference | D67: =INDEX(dms_FinalYear_List,MATCH(dms_FRCPlength_Num,dms_FRCPlength_Num_List)) -> FRCP_y2
C68: FRCP Final Year | D68: =INDIRECT(dms_FRCP_FinalYear) -> 2018-19

Sheet Instructions
B8: =CONCATENATE(dms_Segment," Network Service Provider") -> Distribution Network Service Provider
B9: Regulatory Proposal RIN Template
C11: =CONCATENATE(dms_TradingName," must fill out and submit the regulatory templates in this workbook as part of its revenue proposal") -> TasNetworks (D) must fill out and submit the regulatory templates in this workbook as part of its revenue proposal
C14: INSTRUCTIONS
C15: Complete the Business & other details worksheet before entering data or values in any other worksheets. The Business & other details worksheet is linked to other cells within the workbook and automatically generates certain column headings. Please identify whether this is a regulatory proposal or revised regulatory proposal on the Business & other details worksheet.
C16: =CONCATENATE("If ",dms_TradingName," needs to amend any data please resubmit this completed workbook in its entirety after making any necessary amendments and provide a brief description of those amendments and the reason for any amendments on the Business and other details worksheet.") -> If TasNetworks (D) needs to amend any data please resubmit this completed workbook in its entirety after making any necessary amendments and provide a brief description of those amendments and the reason for any amendments on the Business and other details worksheet.
C18: Identifying CONFIDENTIAL INFORMATION: Please use the macro at the top of each worksheet to identify confidential information.
C19: -Do this by selecting the cell or cells that contain confidential information and then run the Mark selected cells as CONFIDENTIAL macro. This will format the cells a specific colour that is identified by the AER's database which in turn marks that information as confidential. -To reverse this, select the cell or cells and run the Return cells to NON-CONFIDENTIAL macro
C21: All amounts are to be reported on a one for one basis: that is 1000 is to be entered as '1000' not '1' as in previous templates. Colour coding of input sheets:
D22: Yellow = input cells
D23: Orange = optional Input cells
D24: Grey = Not applicable/No inputs required
D25: Leave coloured cells blank if no information exists. PLEASE DO NOT ENTER TEXT unless specifically requested to do so.
C28: Returning completed responses Please return two (2) files to the AER: 1. A confidential (consolidated) version which must contain a complete set of all responses with confidential information marked using the Mark selected cells CONFIDENTIAL macro and which has been completed using the locked template file provided by the AER. 2. A public version with confidential information either removed completely or aggregated in some form together with writtten consent to disclose the public version of the response. Use the drop down box on the Business & other details worksheet to identify the file as either confidential ('consolidated') or public

Sheet 2.1 Expenditure summary
B1: =SheetHeader -> REGULATORY REPORTING STATEMENT
B2: =dms_TradingName -> TasNetworks (D)
B3: =dms_Reg_Year_Span -> 2017-18 to 2018-19
B4: 2.1 EXPENDITURE SUMMARY & RECONCILIATION
B8: TABLE 2.1.1 - STANDARD CONTROL SERVICES CAPEX
C9: =CONCATENATE("Forecast ($0's, real ", dms_DollarReal, ")") -> Forecast ($0's, real June 2017)
C10: =CRCP_y4 -> 2015-16 | D10: =CRCP_y5 -> 2016-17 | E10: =FRCP_y1 -> 2017-18 | F10: =FRCP_y2 -> 2018-19 | G10: =FRCP_y3 -> 2019-20 | H10: =FRCP_y4 -> 2020-21 | I10: =FRCP_y5 -> 2021-22
B11: Replacement expenditure | C11: 48076699.02 | D11: 49426569.73 | E11: 52688815.72 | F11: 45692795.76 | G11: 43449469.84 | H11: 37067555.44 | I11: 34735323.9
B12: Connections | C12: 18613098.16 | D12: 21489098.81 | E12: 19069208.38 | F12: 19051233.79 | G12: 19033299.69 | H12: 19186446.16 | I12: 19116921.45
B13: Augmentation Expenditure | C13: 12972274.51 | D13: 14602513.16 | E13: 10057043.19 | F13: 8651082.617 | G13: 7312214.779 | H13: 7335325.604 | I13: 5568825.108
B14: Non-network | C14: 22578020.09 | D14: 23991505.89 | E14: 18561866.45 | F14: 16845445.37 | G14: 20633490.19 | H14: 21206015.51 | I14: 21338924.72
B15: Capitalised network overheads | C15: 21732675.3 | D15: 21981602.18 | E15: 21069433.1 | F15: 20582063.26 | G15: 20115680.13 | H15: 20180161.95 | I15: 19458348.26
B16: Capitalised corporate overheads | C16: 1747908.215 | D16: 1767928.822 | E16: 1694565.197 | F16: 1655367.181 | G16: 1617857.078 | H16: 1623043.2 | I16: 1564989.414
B17: TOTAL GROSS CAPEX (includes capcons) | C17: =SUM(C11:C16) -> 125720675.3 | D17: =SUM(D11:D16) -> 133259218.6 | E17: 123140932 | F17: 112477988 | G17: 112162011.7 | H17: 106598547.9 | I17: 101783332.9
B18: capcons | C18: 10322753.64 | D18: 10192073.65 | E18: 11166859.38 | F18: 11048781.02 | G18: 10917071.54 | H18: 11328985.66 | I18: 11252338.59
B20: TABLE 2.1.2 - STANDARD CONTROL SERVICES OPEX BY CATEGORY
C21: =CONCATENATE("Forecast ($0's, real ", dms_DollarReal, ")") -> Forecast ($0's, real June 2017)
C22: =CRCP_y4 -> 2015-16 | D22: =CRCP_y5 -> 2016-17
B23: Vegetation management | C23: 10830630.45 | D23: 10118329.28
B24: Maintenance | C24: 12880318.17 | D24: 12558310.21
B25: Emergency response | C25: 11193442.05 | D25: 10457279.75
B26: Non-network | C26: 18594863.05 | D26: 18141872.61
B27: Network overheads | C27: 22953624.46 | D27: 22379783.85
B28: Corporate overheads | C28: 10098054.98 | D28: 9845603.605
B29: TOTAL OPEX | C29: =SUM(C23:C28) -> 86550933.17 | D29: =SUM(D23:D28) -> 83501179.31
B31: TABLE 2.1.3 - ALTERNATIVE CONTROL SERVICES CAPEX
C32: =CONCATENATE("Forecast ($0's, real ", dms_DollarReal, ")") -> Forecast ($0's, real June 2017)
C33: =CRCP_y4 -> 2015-16 | D33: =CRCP_y5 -> 2016-17 | E33: =FRCP_y1 -> 2017-18 | F33: =FRCP_y2 -> 2018-19 | G33: =FRCP_y3 -> 2019-20 | H33: =FRCP_y4 -> 2020-21 | I33: =FRCP_y5 -> 2021-22
B34: Connections
B35: Metering | C35: 1958089.714 | D35: 1807467.429 | E35: 527178 | F35: 0
B36: Public lighting | C36: 1566531.632 | D36: 3712024.528 | E36: 3353499.714 | F36: 3347654.319
B37: Fee and quoted
B38: TOTAL CAPEX | C38: =SUM(C34:C37) -> 3524621.346 | D38: 5519491.956 | E38: 3880677.714 | F38: 3347654.319 | G38: 0 | H38: 0 | I38: 0
B40: TABLE 2.1.4 - ALTERNATIVE CONTROL SERVICES OPEX
C41: =CONCATENATE("Forecast ($0's, real ", dms_DollarReal, ")") -> Forecast ($0's, real June 2017)
C42: =CRCP_y4 -> 2015-16 | D42: =CRCP_y5 -> 2016-17 | E42: =FRCP_y1 -> 2017-18 | F42: =FRCP_y2 -> 2018-19 | G42: =FRCP_y3 -> 2019-20 | H42: =FRCP_y4 -> 2020-21 | I42: =FRCP_y5 -> 2021-22
B43: Connections
B44: Metering | C44: 2718012.36 | D44: 2523884.349 | E44: 2383084 | F44: 2348497.767
B45: Public lighting | C45: 2551136.667 | D45: 2107485.622 | E45: 2047491.413 | F45: 2117205.672
B46: Fee and quoted | C46: 3739653.906 | D46: 3739653.906 | E46: 6310725.07 | F46: 6299968.507
B47: TOTAL OPEX | C47: =SUM(C43:C46) -> 9008802.933 | D47: 8371023.877 | E47: 10741300.48 | F47: 10765671.95 | G47: 0 | H47: 0 | I47: 0
B49: TABLE 2.1.5 - DUAL FUNCTION ASSETS CAPEX
C50: =CONCATENATE("Forecast ($0's, real ", dms_DollarReal, ")") -> Forecast ($0's, real June 2017)
C51: =CRCP_y4 -> 2015-16 | D51: =CRCP_y5 -> 2016-17 | E51: =FRCP_y1 -> 2017-18 | F51: =FRCP_y2 -> 2018-19 | G51: =FRCP_y3 -> 2019-20 | H51: =FRCP_y4 -> 2020-21 | I51: =FRCP_y5 -> 2021-22
B52: Replacement expenditure
B53: Connections
B54: Augmentation Expenditure
B55: Non-network
B56: Capitalised network overheads
B57: Capitalised corporate overheads
B58: TOTAL GROSS CAPEX (includes capcons) | C58: =SUM(C52:C57) -> 0 | D58: 0 | E58: 0 | F58: 0 | G58: 0 | H58: 0 | I58: 0
B59: capcons
B61: TABLE 2.1.6 - DUAL FUNCTION ASSETS OPEX BY CATEGORY
C63: Forecast ($0's real June 2015)
C65: =CRCP_y5 -> 2016-17
B66: Vegetation management
B67: Maintenance
B68: Emergency response
B69: Non-network
B70: network overheads
B71: corporate overheads
B87: balancing item
B88: TOTAL OPEX | C88: =SUM(C66:C87) -> 0

Sheet 2.2 Repex
B1: =SheetHeader -> REGULATORY REPORTING STATEMENT
B2: =dms_TradingName -> TasNetworks (D)
B3: =dms_Reg_Year_Span -> 2017-18 to 2018-19
B4: 2.2 REPEX
B6: TABLE 2.2.1 - REPLACEMENT EXPENDITURE, VOLUMES AND ASSET FAILURES BY ASSET CATEGORY
D7: =CONCATENATE("EXPENDITURE ($0's, real ", dms_DollarReal,")") -> EXPENDITURE ($0's, real June 2017) | K7: ASSET REPLACEMENTS (0's) | R7: ASSET FAILURES (0's)
B8: ASSET GROUP | C8: ASSET CATEGORY | D8: =CRCP_y4 -> 2015-16 | E8: =CRCP_y5 -> 2016-17 | F8: =FRCP_y1 -> 2017-18 | G8: =FRCP_y2 -> 2018-19 | H8: =FRCP_y3 -> 2019-20 | I8: =FRCP_y4 -> 2020-21 | J8: =FRCP_y5 -> 2021-22 | K8: =CRCP_y4 -> 2015-16 | L8: =CRCP_y5 -> 2016-17 | M8: =FRCP_y1 -> 2017-18 | N8: =FRCP_y2 -> 2018-19 | O8: =FRCP_y3 -> 2019-20 | P8: =FRCP_y4 -> 2020-21 | Q8: =FRCP_y5 -> 2021-22 | R8: =CRCP_y4 -> 2015-16 | S8: =CRCP_y5 -> 2016-17 | T8: =FRCP_y1 -> 2017-18 | U8: =FRCP_y2 -> 2018-19 | V8: =FRCP_y3 -> 2019-20 | W8: =FRCP_y4 -> 2020-21 | X8: =FRCP_y5 -> 2021-22
B9: POLES BY: Highest operating voltage; Material type; Staking (if wood) | C9: Staking of a wooden pole | D9: 1862867.404 | E9: 2069609.903 | F9: 1123879.21 | G9: 1419379.953 | H9: 1480028.955 | I9: 1686399.605 | J9: 1545556.895 | K9: 2052 | L9: 2280 | M9: 1330 | N9: 1680 | O9: 1750 | P9: 1810 | Q9: 1820 | R9: 2 | S9: 2 | T9: 2 | U9: 2 | V9: 2 | W9: 2 | X9: 2
C10: ˂ = 1 kV; Wood | D10: 2245533.237 | E10: 2010052.429 | F10: 1408386.199 | G10: 1407961.338 | H10: 1410355.367 | I10: 1424985.866 | J10: 1420012.064 | K10: 293 | L10: 262 | M10: 185 | N10: 185 | O10: 185 | P10: 185 | Q10: 185 | R10: 3 | S10: 3 | T10: 3 | U10: 3 | V10: 3 | W10: 3 | X10: 3
C11: > 1 kV & < = 11 kV; Wood | D11: 932108.1359 | E11: 834361.3854 | F11: 584330.4441 | G11: 584154.1721 | H11: 585147.4393 | I11: 591217.5402 | J11: 589153.9413 | K11: 122 | L11: 109 | M11: 77 | N11: 77 | O11: 77 | P11: 77 | Q11: 77 | R11: 1 | S11: 1 | T11: 1 | U11: 1 | V11: 1 | W11: 1 | X11: 1
C12: ˃ 11 kV & < = 22 kV; Wood | D12: 3974170.143 | E12: 3557413.543 | F12: 2487150.095 | G12: 2486399.809 | H12: 2490627.562 | I12: 2516464.402 | J12: 2507680.878 | K12: 517 | L12: 463 | M12: 326 | N12: 326 | O12: 326 | P12: 326 | Q12: 326 | R12: 6 | S12: 6 | T12: 6 | U12: 6 | V12: 6 | W12: 6 | X12: 6
C13: > 22 kV & < = 66 kV; Wood | D13: 33894.84131 | E13: 30340.41402 | F13: 22474.24785 | G13: 22467.46816 | H13: 22505.67074 | I13: 22739.13616 | J13: 22659.76697 | K13: 4 | L13: 4 | M13: 3 | N13: 3 | O13: 3 | P13: 3 | Q13: 3 | R13: 0 | S13: 0 | T13: 0 | U13: 0 | V13: 0 | W13: 0 | X13: 0
C14: > 66 kV & < = 132 kV; Wood | D14: 0 | E14: 0 | F14: 0 | G14: 0 | H14: 0 | I14: 0 | J14: 0 | K14: 0 | L14: 0 | M14: 0 | N14: 0 | O14: 0 | P14: 0 | Q14: 0 | R14: 0 | S14: 0 | T14: 0 | U14: 0 | V14: 0 | W14: 0 | X14: 0
C15: > 132 kV; Wood | D15: 0 | E15: 0 | F15: 0 | G15: 0 | H15: 0 | I15: 0 | J15: 0 | K15: 0 | L15: 0 | M15: 0 | N15: 0 | O15: 0 | P15: 0 | Q15: 0 | R15: 0 | S15: 0 | T15: 0 | U15: 0 | V15: 0 | W15: 0 | X15: 0
C16: ˂ = 1 kV; Concrete | D16: 25421.13098 | E16: 22755.31051 | F16: 14982.8319 | G16: 14978.31211 | H16: 15003.78049 | I16: 15159.42411 | J16: 15106.51132 | K16: 3 | L16: 3 | M16: 2 | N16: 2 | O16: 2 | P16: 2 | Q16: 2 | R16: 0 | S16: 0 | T16: 0 | U16: 0 | V16: 0 | W16: 0 | X16: 0
C17: > 1 kV & < = 11 kV; Concrete | D17: 0 | E17: 0 | F17: 0 | G17: 0 | H17: 0 | I17: 0 | J17: 0 | K17: 0 | L17: 0 | M17: 0 | N17: 0 | O17: 0 | P17: 0 | Q17: 0 | R17: 0 | S17: 0 | T17: 0 | U17: 0 | V17: 0 | W17: 0 | X17: 0
C18: ˃ 11 kV & < = 22 kV; Concrete | D18: 0 | E18: 0 | F18: 0 | G18: 0 | H18: 0 | I18: 0 | J18: 0 | K18: 0 | L18: 0 | M18: 0 | N18: 0 | O18: 0 | P18: 0 | Q18: 0 | R18: 0 | S18: 0 | T18: 0 | U18: 0 | V18: 0 | W18: 0 | X18: 0
C19: > 22 kV & < = 66 kV; Concrete | D19: 0 | E19: 0 | F19: 0 | G19: 0 | H19: 0 | I19: 0 | J19: 0 | K19: 0 | L19: 0 | M19: 0 | N19: 0 | O19: 0 | P19: 0 | Q19: 0 | R19: 0 | S19: 0 | T19: 0 | U19: 0 | V19: 0 | W19: 0 | X19: 0
C20: > 66 kV & < = 132 kV; Concrete | D20: 0 | E20: 0 | F20: 0 | G20: 0 | H20: 0 | I20: 0 | J20: 0 | K20: 0 | L20: 0 | M20: 0 | N20: 0 | O20: 0 | P20: 0 | Q20: 0 | R20: 0 | S20: 0 | T20: 0 | U20: 0 | V20: 0 | W20: 0 | X20: 0
C21: > 132 kV; Concrete | D21: 0 | E21: 0 | F21: 0 | G21: 0 | H21: 0 | I21: 0 | J21: 0 | K21: 0 | L21: 0 | M21: 0 | N21: 0 | O21: 0 | P21: 0 | Q21: 0 | R21: 0 | S21: 0 | T21: 0 | U21: 0 | V21: 0 | W21: 0 | X21: 0
C22: ˂ = 1 kV; Steel | D22: 2609902.781 | E22: 2336211.879 | F22: 1633128.677 | G22: 1632636.019 | H22: 1635412.074 | I22: 1652377.228 | J22: 1646609.733 | K22: 343 | L22: 307 | M22: 217 | N22: 217 | O22: 217 | P22: 217 | Q22: 217 | R22: 1 | S22: 1 | T22: 1 | U22: 1 | V22: 1 | W22: 1 | X22: 1
C23: > 1 kV & < = 11 kV; Steel | D23: 0 | E23: 0 | F23: 0 | G23: 0 | H23: 0 | I23: 0 | J23: 0 | K23: 0 | L23: 0 | M23: 0 | N23: 0 | O23: 0 | P23: 0 | Q23: 0 | R23: 0 | S23: 0 | T23: 0 | U23: 0 | V23: 0 | W23: 0 | X23: 0
C24: ˃ 11 kV & < = 22 kV; Steel | D24: 0 | E24: 0 | F24: 0 | G24: 0 | H24: 0 | I24: 0 | J24: 0 | K24: 0 | L24: 0 | M24: 0 | N24: 0 | O24: 0 | P24: 0 | Q24: 0 | R24: 0 | S24: 0 | T24: 0 | U24: 0 | V24: 0 | W24: 0 | X24: 0
C25: > 22 kV & < = 66 kV; Steel | D25: 0 | E25: 0 | F25: 0 | G25: 0 | H25: 0 | I25: 0 | J25: 0 | K25: 0 | L25: 0 | M25: 0 | N25: 0 | O25: 0 | P25: 0 | Q25: 0 | R25: 0 | S25: 0 | T25: 0 | U25: 0 | V25: 0 | W25: 0 | X25: 0
C26: > 66 kV & < = 132 kV; Steel | D26: 0 | E26: 0 | F26: 0 | G26: 0 | H26: 0 | I26: 0 | J26: 0 | K26: 0 | L26: 0 | M26: 0 | N26: 0 | O26: 0 | P26: 0 | Q26: 0 | R26: 0 | S26: 0 | T26: 0 | U26: 0 | V26: 0 | W26: 0 | X26: 0
C27: > 132 kV; Steel | D27: 0 | E27: 0 | F27: 0 | G27: 0 | H27: 0 | I27: 0 | J27: 0 | K27: 0 | L27: 0 | M27: 0 | N27: 0 | O27: 0 | P27: 0 | Q27: 0 | R27: 0 | S27: 0 | T27: 0 | U27: 0 | V27: 0 | W27: 0 | X27: 0
C28: Other | D28: 0 | E28: 0 | F28: 0 | G28: 0 | H28: 0 | I28: 0 | J28: 0 | K28: 0 | L28: 0 | M28: 0 | N28: 0 | O28: 0 | P28: 0 | Q28: 0 | R28: 0 | S28: 0 | T28: 0 | U28: 0 | V28: 0 | W28: 0 | X28: 0
B29: POLE TOP STRUCTURES BY: Highest operating voltage | C29: ˂ = 1 kV | D29: 238922.9455 | E29: 322359.5216 | F29: 498303.8169 | G29: 498159.1097 | H29: 498896.8329 | I29: 257718.6096 | J29: 256852.2783 | K29: 795 | L29: 1072 | M29: 1172 | N29: 1172 | O29: 1172 | P29: 801 | Q29: 801 | R29: 38.5 | S29: 38.5 | T29: 38.5 | U29: 38.5 | V29: 38.5 | W29: 38.5 | X29: 38.5
C30: > 1 kV & < = 11 kV | D30: 48193.37217 | E30: 65023.44245 | F30: 100031.2495 | G30: 100002.2005 | H30: 100150.2936 | I30: 53109.37398 | J30: 52930.84471 | K30: 150 | L30: 203 | M30: 222 | N30: 222 | O30: 222 | P30: 152 | Q30: 152 | R30: 21 | S30: 21 | T30: 21 | U30: 21 | V30: 21 | W30: 21 | X30: 21
C31: ˃ 11 kV & < = 22 kV | D31: 203853.6613 | E31: 275043.3559 | F31: 423383.2926 | G31: 423260.3422 | H31: 423887.148 | I31: 223949.6435 | J31: 223196.8279 | K31: 642 | L31: 866 | M31: 947 | N31: 947 | O31: 947 | P31: 648 | Q31: 648 | R31: 81.5 | S31: 81.5 | T31: 81.5 | U31: 81.5 | V31: 81.5 | W31: 81.5 | X31: 81.5
C32: > 22 kV & < = 66 kV | D32: 1936.340846 | E32: 2612.549027 | F32: 4116.512325 | G32: 4115.316891 | H32: 4121.411259 | I32: 2148.934207 | J32: 2141.71048 | K32: 6 | L32: 8 | M32: 9 | N32: 9 | O32: 9 | P32: 6 | Q32: 6 | R32: 1 | S32: 1 | T32: 1 | U32: 1 | V32: 1 | W32: 1 | X32: 1
C33: > 66 kV & < = 132 kV | D33: 0 | E33: 0 | F33: 0 | G33: 0 | H33: 0 | I33: 0 | J33: 0 | K33: 0 | L33: 0 | M33: 0 | N33: 0 | O33: 0 | P33: 0 | Q33: 0 | R33: 0 | S33: 0 | T33: 0 | U33: 0 | V33: 0 | W33: 0 | X33: 0
C34: > 132 kV | D34: 0 | E34: 0 | F34: 0 | G34: 0 | H34: 0 | I34: 0 | J34: 0 | K34: 0 | L34: 0 | M34: 0 | N34: 0 | O34: 0 | P34: 0 | Q34: 0 | R34: 0 | S34: 0 | T34: 0 | U34: 0 | V34: 0 | W34: 0 | X34: 0
C35: Other | D35: 0 | E35: 0 | F35: 0 | G35: 0 | H35: 0 | I35: 0 | J35: 0 | K35: 0 | L35: 0 | M35: 0 | N35: 0 | O35: 0 | P35: 0 | Q35: 0 | R35: 0 | S35: 0 | T35: 0 | U35: 0 | V35: 0 | W35: 0 | X35: 0
B36: OVERHEAD CONDUCTORS BY: Highest operating voltage; Number of phases (at HV) | C36: ˂ = 1 kV | D36: 3096395.795 | E36: 3368257.17 | F36: 5129587.056 | G36: 5128042.66 | H36: 5136505.257 | I36: 2585743.987 | J36: 2576792.434 | K36: 20 | L36: 22 | M36: 20.04938651 | N36: 20.04938651 | O36: 20.04938651 | P36: 20.04938651 | Q36: 20.04938651 | R36: 0 | S36: 0 | T36: 0 | U36: 0 | V36: 0 | W36: 0 | X36: 0
C37: > 1 kV & < = 11 kV | D37: 208415.8923 | E37: 0 | F37: 329382.5089 | G37: 329271.0589 | H37: 329899.0635 | I37: 333736.9541 | J37: 332432.2201 | K37: 0 | L37: 0 | M37: 2.928114257 | N37: 2.928114257 | O37: 2.928114257 | P37: 2.928114257 | Q37: 2.928114257 | R37: 9 | S37: 9 | T37: 9 | U37: 9 | V37: 9 | W37: 9 | X37: 9
C38: ˃ 11 kV & < = 22 kV ; SWER | D38: 11408.67518 | E38: 0 | F38: 13171.41054 | G38: 13166.95385 | H38: 13192.06662 | I38: 13345.53692 | J38: 13293.36297 | K38: 0 | L38: 0 | M38: 0.476983706 | N38: 0.476983706 | O38: 0.476983706 | P38: 0.476983706 | Q38: 0.476983706 | R38: 0 | S38: 0 | T38: 0 | U38: 0 | V38: 0 | W38: 0 | X38: 0
C39: ˃ 11 kV & < = 22 kV ; Single-Phase | D39: 79430.21023 | E39: 0 | F39: 111428.3116 | G39: 111390.6087 | H39: 111603.0592 | I39: 112901.3967 | J39: 112460.0123 | K39: 0 | L39: 0 | M39: 2.035216188 | N39: 2.035216188 | O39: 2.035216188 | P39: 2.035216188 | Q39: 2.035216188 | R39: 2 | S39: 2 | T39: 2 | U39: 2 | V39: 2 | W39: 2 | X39: 2
C40: ˃ 11 kV & < = 22 kV ; Multiple-Phase | D40: 2296045.974 | E40: 2852091.696 | F40: 4512687.076 | G40: 4511866.2 | H40: 4516491.717 | I40: 4209447.331 | J40: 4201124.837 | K40: 18 | L40: 22 | M40: 20.51029934 | N40: 20.51029934 | O40: 20.51029934 | P40: 20.51029934 | Q40: 20.51029934 | R40: 19 | S40: 19 | T40: 19 | U40: 19 | V40: 19 | W40: 19 | X40: 19
C41: > 22 kV & < = 66 kV | D41: 0 | E41: 0 | F41: 0 | G41: 0 | H41: 0 | I41: 0 | J41: 0 | K41: 0 | L41: 0 | M41: 0 | N41: 0 | O41: 0 | P41: 0 | Q41: 0 | R41: 0 | S41: 0 | T41: 0 | U41: 0 | V41: 0 | W41: 0 | X41: 0
C42: > 66 kV & < = 132 kV | D42: 0 | E42: 0 | F42: 0 | G42: 0 | H42: 0 | I42: 0 | J42: 0 | K42: 0 | L42: 0 | M42: 0 | N42: 0 | O42: 0 | P42: 0 | Q42: 0 | R42: 0 | S42: 0 | T42: 0 | U42: 0 | V42: 0 | W42: 0 | X42: 0
C43: > 132 kV | D43: 0 | E43: 0 | F43: 0 | G43: 0 | H43: 0 | I43: 0 | J43: 0 | K43: 0 | L43: 0 | M43: 0 | N43: 0 | O43: 0 | P43: 0 | Q43: 0 | R43: 0 | S43: 0 | T43: 0 | U43: 0 | V43: 0 | W43: 0 | X43: 0
C44: Other | D44: 0 | E44: 0 | F44: 0 | G44: 0 | H44: 0 | I44: 0 | J44: 0 | K44: 0 | L44: 0 | M44: 0 | N44: 0 | O44: 0 | P44: 0 | Q44: 0 | R44: 0 | S44: 0 | T44: 0 | U44: 0 | V44: 0 | W44: 0 | X44: 0
B45: UNDERGROUND CABLES BY: Highest operating voltage | C45: ˂ = 1 kV | D45: 1897622.988 | E45: 2405644.763 | F45: 2406787.003 | G45: 2406583.855 | H45: 2407728.566 | I45: 2414724.175 | J45: 2412345.939 | K45: 4575 | L45: 5800 | M45: 5800 | N45: 5800 | O45: 5800 | P45: 5800 | Q45: 5800 | R45: 29.46428571 | S45: 30.07142857 | T45: 30.67857143 | U45: 31.28571429 | V45: 31.89285714 | W45: 32.5 | X45: 33.10714286
C46: > 1 kV & < = 11 kV | D46: 428102.5065 | E46: 1026636.4 | F46: 1027296.236 | G46: 970339.2595 | H46: 122649.1913 | I46: 546459.9716 | J46: 123326.2189 | K46: 63 | L46: 150 | M46: 150 | N46: 150 | O46: 150 | P46: 663 | Q46: 150 | R46: 9 | S46: 9 | T46: 10 | U46: 10 | V46: 10 | W46: 11 | X46: 11
C47: > 11 kV & < = 22 kV | D47: 171318.1536 | E47: 621430.2978 | F47: 621785.8808 | G47: 622038.3845 | H47: 622779.6143 | I47: 1049283.722 | J47: 625769.4833 | K47: 41 | L47: 150 | M47: 150 | N47: 150 | O47: 150 | P47: 663 | Q47: 150 | R47: 8 | S47: 9 | T47: 9 | U47: 10 | V47: 10 | W47: 10 | X47: 11
C48: > 22 kV & < = 33 kV | D48: 0 | E48: 0 | F48: 0 | G48: 0 | H48: 0 | I48: 0 | J48: 0 | K48: 0 | L48: 0 | M48: 0 | N48: 0 | O48: 0 | P48: 0 | Q48: 0 | R48: 0 | S48: 0 | T48: 0 | U48: 0 | V48: 0 | W48: 0 | X48: 0
C49: > 33 kV & < = 66 kV | D49: 0 | E49: 0 | F49: 0 | G49: 0 | H49: 0 | I49: 0 | J49: 0 | K49: 0 | L49: 0 | M49: 0 | N49: 0 | O49: 0 | P49: 0 | Q49: 0 | R49: 0 | S49: 0 | T49: 0 | U49: 0 | V49: 0 | W49: 0 | X49: 0
C50: > 66 kV & < = 132 kV | D50: 0 | E50: 0 | F50: 0 | G50: 0 | H50: 0 | I50: 0 | J50: 0 | K50: 0 | L50: 0 | M50: 0 | N50: 0 | O50: 0 | P50: 0 | Q50: 0 | R50: 0 | S50: 0 | T50: 0 | U50: 0 | V50: 0 | W50: 0 | X50: 0
C51: > 132 kV | D51: 0 | E51: 0 | F51: 0 | G51: 0 | H51: 0 | I51: 0 | J51: 0 | K51: 0 | L51: 0 | M51: 0 | N51: 0 | O51: 0 | P51: 0 | Q51: 0 | R51: 0 | S51: 0 | T51: 0 | U51: 0 | V51: 0 | W51: 0 | X51: 0
C52: Other | D52: 0 | E52: 0 | F52: 0 | G52: 0 | H52: 0 | I52: 0 | J52: 0 | K52: 0 | L52: 0 | M52: 0 | N52: 0 | O52: 0 | P52: 0 | Q52: 0 | R52: 0 | S52: 0 | T52: 0 | U52: 0 | V52: 0 | W52: 0 | X52: 0
B53: SERVICE LINES BY: Connection voltage; Customer type; Connection complexity | C53: ˂ = 11 kV ; Residential ; Simple Type | D53: 1928706.567 | E53: 2443577.441 | F53: 2445391.294 | G53: 2362443.698 | H53: 2298010.261 | I53: 2308175.692 | J53: 2304719.84 | K53: 1743 | L53: 1743 | M53: 1743 | N53: 1743 | O53: 1743 | P53: 1743 | Q53: 1743 | R53: 2210 | S53: 2210 | T53: 2210 | U53: 2210 | V53: 2210 | W53: 2210 | X53: 2210
C54: ˂ = 11 kV ; Commercial & Industrial ; Simple Type | D54: 387466.9031 | E54: 583370.381 | F54: 584051.4102 | G54: 569362.3994 | H54: 558359.4358 | I54: 562339.983 | J54: 560986.7513 | K54: 307 | L54: 307 | M54: 307 | N54: 307 | O54: 307 | P54: 307 | Q54: 307 | R54: 390 | S54: 390 | T54: 390 | U54: 390 | V54: 390 | W54: 390 | X54: 390
C55: ˂ = 11 kV ; Residential ; Complex Type | D55: 0 | E55: 0 | F55: 0 | G55: 0 | H55: 0 | I55: 0 | J55: 0 | K55: 0 | L55: 0 | M55: 0 | N55: 0 | O55: 0 | P55: 0 | Q55: 0 | R55: 0 | S55: 0 | T55: 0 | U55: 0 | V55: 0 | W55: 0 | X55: 0
C56: ˂ = 11 kV ; Commercial & Industrial ; Complex Type | D56: 0 | E56: 0 | F56: 0 | G56: 0 | H56: 0 | I56: 0 | J56: 0 | K56: 0 | L56: 0 | M56: 0 | N56: 0 | O56: 0 | P56: 0 | Q56: 0 | R56: 0 | S56: 0 | T56: 0 | U56: 0 | V56: 0 | W56: 0 | X56: 0
C57: ˂ = 11 kV ; Subdivision ; Complex Type | D57: 0 | E57: 0 | F57: 0 | G57: 0 | H57: 0 | I57: 0 | J57: 0 | K57: 0 | L57: 0 | M57: 0 | N57: 0 | O57: 0 | P57: 0 | Q57: 0 | R57: 0 | S57: 0 | T57: 0 | U57: 0 | V57: 0 | W57: 0 | X57: 0
C58: > 11 kV & < = 22 kV ; Commercial & Industrial | D58: 0 | E58: 0 | F58: 0 | G58: 0 | H58: 0 | I58: 0 | J58: 0 | K58: 0 | L58: 0 | M58: 0 | N58: 0 | O58: 0 | P58: 0 | Q58: 0 | R58: 0 | S58: 0 | T58: 0 | U58: 0 | V58: 0 | W58: 0 | X58: 0
C59: > 11 kV & < = 22 kV ; Subdivision | D59: 0 | E59: 0 | F59: 0 | G59: 0 | H59: 0 | I59: 0 | J59: 0 | K59: 0 | L59: 0 | M59: 0 | N59: 0 | O59: 0 | P59: 0 | Q59: 0 | R59: 0 | S59: 0 | T59: 0 | U59: 0 | V59: 0 | W59: 0 | X59: 0
C60: > 22 kV & < = 33 kV ; Commercial & Industrial | D60: 0 | E60: 0 | F60: 0 | G60: 0 | H60: 0 | I60: 0 | J60: 0 | K60: 0 | L60: 0 | M60: 0 | N60: 0 | O60: 0 | P60: 0 | Q60: 0 | R60: 0 | S60: 0 | T60: 0 | U60: 0 | V60: 0 | W60: 0 | X60: 0
C61: > 22 kV & < = 33 kV ; Subdivision | D61: 0 | E61: 0 | F61: 0 | G61: 0 | H61: 0 | I61: 0 | J61: 0 | K61: 0 | L61: 0 | M61: 0 | N61: 0 | O61: 0 | P61: 0 | Q61: 0 | R61: 0 | S61: 0 | T61: 0 | U61: 0 | V61: 0 | W61: 0 | X61: 0
C62: > 33 kV & < = 66 kV ; Commercial & Industrial | D62: 0 | E62: 0 | F62: 0 | G62: 0 | H62: 0 | I62: 0 | J62: 0 | K62: 0 | L62: 0 | M62: 0 | N62: 0 | O62: 0 | P62: 0 | Q62: 0 | R62: 0 | S62: 0 | T62: 0 | U62: 0 | V62: 0 | W62: 0 | X62: 0
C63: > 33 kV & < = 66 kV ; Subdivision | D63: 0 | E63: 0 | F63: 0 | G63: 0 | H63: 0 | I63: 0 | J63: 0 | K63: 0 | L63: 0 | M63: 0 | N63: 0 | O63: 0 | P63: 0 | Q63: 0 | R63: 0 | S63: 0 | T63: 0 | U63: 0 | V63: 0 | W63: 0 | X63: 0
C64: > 66 kV & < = 132 kV ; Commercial & Industrial | D64: 0 | E64: 0 | F64: 0 | G64: 0 | H64: 0 | I64: 0 | J64: 0 | K64: 0 | L64: 0 | M64: 0 | N64: 0 | O64: 0 | P64: 0 | Q64: 0 | R64: 0 | S64: 0 | T64: 0 | U64: 0 | V64: 0 | W64: 0 | X64: 0
C65: > 66 kV & < = 132 kV ; Subdivision | D65: 0 | E65: 0 | F65: 0 | G65: 0 | H65: 0 | I65: 0 | J65: 0 | K65: 0 | L65: 0 | M65: 0 | N65: 0 | O65: 0 | P65: 0 | Q65: 0 | R65: 0 | S65: 0 | T65: 0 | U65: 0 | V65: 0 | W65: 0 | X65: 0
C66: > 132 kV ; Commercial & Industrial | D66: 0 | E66: 0 | F66: 0 | G66: 0 | H66: 0 | I66: 0 | J66: 0 | K66: 0 | L66: 0 | M66: 0 | N66: 0 | O66: 0 | P66: 0 | Q66: 0 | R66: 0 | S66: 0 | T66: 0 | U66: 0 | V66: 0 | W66: 0 | X66: 0
C67: > 132 kV ; Subdivision | D67: 0 | E67: 0 | F67: 0 | G67: 0 | H67: 0 | I67: 0 | J67: 0 | K67: 0 | L67: 0 | M67: 0 | N67: 0 | O67: 0 | P67: 0 | Q67: 0 | R67: 0 | S67: 0 | T67: 0 | U67: 0 | V67: 0 | W67: 0 | X67: 0
C68: Other | D68: 0 | E68: 0 | F68: 0 | G68: 0 | H68: 0 | I68: 0 | J68: 0 | K68: 0 | L68: 0 | M68: 0 | N68: 0 | O68: 0 | P68: 0 | Q68: 0 | R68: 0 | S68: 0 | T68: 0 | U68: 0 | V68: 0 | W68: 0 | X68: 0
B69: TRANSFORMERS BY: Mounting type; Highest operating voltage; Ampere rating; Number of phases (at LV) | C69: Pole Mounted ; < = 22kV ; < = 60 kVA ; Single Phase | D69: 756322.0223 | E69: 877715.7093 | F69: 1025170.733 | G69: 1019245.543 | H69: 1047501.075 | I69: 1276512.098 | J69: 1605061.418 | K69: 36 | L69: 42 | M69: 41 | N69: 41 | O69: 42 | P69: 52 | Q69: 69 | R69: 29.22982864 | S69: 29.22982864 | T69: 29.22982864 | U69: 29.22982864 | V69: 29.22982864 | W69: 29.22982864 | X69: 29.22982864
C70: Pole Mounted ; < = 22kV ; > 60 kVA and < = 600 kVA ; Single Phase | D70: 10045.51358 | E70: 11561.39388 | F70: 13112.42305 | G70: 13031.91386 | H70: 13182.86582 | I70: 13926.61051 | J70: 31479.30391 | K70: 0 | L70: 0 | M70: 0 | N70: 0 | O70: 0 | P70: 0 | Q70: 1 | R70: 0.8309721379 | S70: 0.8309721379 | T70: 0.8309721379 | U70: 0.8309721379 | V70: 0.8309721379 | W70: 0.8309721379 | X70: 0.8309721379
C71: Pole Mounted ; < = 22kV ; > 600 kVA ; Single Phase | D71: 0 | E71: 0 | F71: 0 | G71: 0 | H71: 0 | I71: 0 | J71: 0 | K71: 0 | L71: 0 | M71: 0 | N71: 0 | O71: 0 | P71: 0 | Q71: 0 | R71: 0 | S71: 0 | T71: 0 | U71: 0 | V71: 0 | W71: 0 | X71: 0
C72: Pole Mounted ; < = 22kV ; < = 60 kVA ; Multiple Phase | D72: 108046.0032 | E72: 125387.9585 | F72: 148538.3003 | G72: 147679.792 | H72: 149643.0107 | I72: 175623.9485 | J72: 231628.7537 | K72: 5 | L72: 6 | M72: 6 | N72: 6 | O72: 6 | P72: 7 | Q72: 10 | R72: 4.175689806 | S72: 4.175689806 | T72: 4.175689806 | U72: 4.175689806 | V72: 4.175689806 | W72: 4.175689806 | X72: 4.175689806
C73: Pole Mounted ; < = 22kV ; > 60 kVA and < = 600 kVA ; Multiple Phase | D73: 1048872.726 | E73: 1207148.905 | F73: 1353315.432 | G73: 1345006.187 | H73: 1376450.124 | I73: 1688737.908 | J73: 2110632.785 | K73: 49 | L73: 56 | M73: 55 | N73: 55 | O73: 56 | P73: 70 | Q73: 92 | R73: 30.76350941 | S73: 30.76350941 | T73: 30.76350941 | U73: 30.76350941 | V73: 30.76350941 | W73: 30.76350941 | X73: 30.76350941
C74: Pole Mounted ; < = 22kV ; > 600 kVA ; Multiple Phase | D74: 0 | E74: 0 | F74: 0 | G74: 0 | H74: 0 | I74: 0 | J74: 0 | K74: 0 | L74: 0 | M74: 0 | N74: 0 | O74: 0 | P74: 0 | Q74: 0 | R74: 0 | S74: 0 | T74: 0 | U74: 0 | V74: 0 | W74: 0 | X74: 0
C75: Kiosk Mounted ; < = 22kV ; < = 60 kVA ; Single Phase | D75: 0 | E75: 0 | F75: 0 | G75: 0 | H75: 0 | I75: 0 | J75: 0 | K75: 0 | L75: 0 | M75: 0 | N75: 0 | O75: 0 | P75: 0 | Q75: 0 | R75: 0 | S75: 0 | T75: 0 | U75: 0 | V75: 0 | W75: 0 | X75: 0
C76: Kiosk Mounted ; < = 22kV ; > 60 kVA and < = 600 kVA ; Single Phase | D76: 0 | E76: 0 | F76: 0 | G76: 0 | H76: 0 | I76: 0 | J76: 0 | K76: 0 | L76: 0 | M76: 0 | N76: 0 | O76: 0 | P76: 0 | Q76: 0 | R76: 0 | S76: 0 | T76: 0 | U76: 0 | V76: 0 | W76: 0 | X76: 0
C77: Kiosk Mounted ; < = 22kV ; > 600 kVA ; Single Phase | D77: 0 | E77: 0 | F77: 0 | G77: 0 | H77: 0 | I77: 0 | J77: 0 | K77: 0 | L77: 0 | M77: 0 | N77: 0 | O77: 0 | P77: 0 | Q77: 0 | R77: 0 | S77: 0 | T77: 0 | U77: 0 | V77: 0 | W77: 0 | X77: 0
C78: Kiosk Mounted ; < = 22kV ; < = 60 kVA ; Multiple Phase | D78: 0 | E78: 0 | F78: 0 | G78: 0 | H78: 0 | I78: 0 | J78: 0 | K78: 0 | L78: 0 | M78: 0 | N78: 0 | O78: 0 | P78: 0 | Q78: 0 | R78: 0 | S78: 0 | T78: 0 | U78: 0 | V78: 0 | W78: 0 | X78: 0
C79: Kiosk Mounted ; < = 22kV ; > 60 kVA and < = 600 kVA ; Multiple Phase | D79: 60444.34656 | E79: 55652.37797 | F79: 63118.4727 | G79: 78413.66315 | H79: 63457.55876 | I79: 50278.258 | J79: 68770.6891 | K79: 4 | L79: 4 | M79: 4 | N79: 4 | O79: 4 | P79: 3 | Q79: 3 | R79: 1 | S79: 0 | T79: 0 | U79: 1 | V79: 0 | W79: 0 | X79: 1
C80: Kiosk Mounted ; < = 22kV ; > 600 kVA ; Multiple Phase | D80: 48355.47724 | E80: 69565.47246 | F80: 63118.4727 | G80: 62730.93052 | H80: 79321.94845 | I80: 50278.258 | J80: 51578.01682 | K80: 3 | L80: 4 | M80: 4 | N80: 4 | O80: 4 | P80: 3 | Q80: 3 | R80: 0 | S80: 1 | T80: 0 | U80: 0 | V80: 1 | W80: 0 | X80: 0
C81: Ground Outdoor / Indoor Chamber Mounted; ˂ 22 kV ; < = 60 kVA ; Single Phase | D81: 0 | E81: 0 | F81: 0 | G81: 0 | H81: 0 | I81: 0 | J81: 0 | K81: 0 | L81: 0 | M81: 0 | N81: 0 | O81: 0 | P81: 0 | Q81: 0 | R81: 0 | S81: 0 | T81: 0 | U81: 0 | V81: 0 | W81: 0 | X81: 0
C82: Ground Outdoor / Indoor Chamber Mounted; ˂ 22 kV ; > 60 kVA and < = 600 kVA ; Single Phase | D82: 0 | E82: 0 | F82: 0 | G82: 0 | H82: 0 | I82: 0 | J82: 0 | K82: 0 | L82: 0 | M82: 0 | N82: 0 | O82: 0 | P82: 0 | Q82: 0 | R82: 0 | S82: 0 | T82: 0 | U82: 0 | V82: 0 | W82: 0 | X82: 0
C83: Ground Outdoor / Indoor Chamber Mounted; ˂ 22 kV ; > 600 kVA ; Single Phase | D83: 0 | E83: 0 | F83: 0 | G83: 0 | H83: 0 | I83: 0 | J83: 0 | K83: 0 | L83: 0 | M83: 0 | N83: 0 | O83: 0 | P83: 0 | Q83: 0 | R83: 0 | S83: 0 | T83: 0 | U83: 0 | V83: 0 | W83: 0 | X83: 0
C84: Ground Outdoor / Indoor Chamber Mounted; ˂ 22 kV ; < = 60 kVA ; Multiple Phase | D84: 0 | E84: 0 | F84: 0 | G84: 0 | H84: 0 | I84: 0 | J84: 0 | K84: 0 | L84: 0 | M84: 0 | N84: 0 | O84: 0 | P84: 0 | Q84: 0 | R84: 0 | S84: 0 | T84: 0 | U84: 0 | V84: 0 | W84: 0 | X84: 0
C85: Ground Outdoor / Indoor Chamber Mounted; ˂ 22 kV ; > 60 kVA and < = 600 kVA ; Multiple Phase | D85: 1004509.298 | E85: 2384445.786 | F85: 2267062.45 | G85: 2386036.231 | H85: 2387981.921 | I85: 1503590.702 | J85: 1616524.06 | K85: 4 | L85: 10 | M85: 10 | N85: 10 | O85: 10 | P85: 7 | Q85: 7 | R85: 0 | S85: 0 | T85: 0 | U85: 0 | V85: 0 | W85: 0 | X85: 0
C86: Ground Outdoor / Indoor Chamber Mounted; ˂ 22 kV ; > 600 kVA ; Multiple Phase | D86: 1195693.389 | E86: 2423770.688 | F86: 3607839.49 | G86: 6577712.181 | H86: 3473364.17 | I86: 3564235.215 | J86: 1968599.305 | K86: 4 | L86: 9 | M86: 9 | N86: 10 | O86: 9 | P86: 6 | Q86: 6 | R86: 0 | S86: 0 | T86: 1 | U86: 0 | V86: 0 | W86: 1 | X86: 0
C87: Ground Outdoor / Indoor Chamber Mounted; > = 22 kV & < = 33 kV ; < = 15 MVA | D87: 0 | E87: 0 | F87: 0 | G87: 0 | H87: 0 | I87: 0 | J87: 0 | K87: 0 | L87: 0 | M87: 0 | N87: 0 | O87: 0 | P87: 0 | Q87: 0 | R87: 0 | S87: 0 | T87: 0 | U87: 0 | V87: 0 | W87: 0 | X87: 0
C88: Ground Outdoor / Indoor Chamber Mounted; > = 22 kV & < = 33 kV ; > 15 MVA and < = 40 MVA | D88: 0 | E88: 0 | F88: 0 | G88: 0 | H88: 0 | I88: 0 | J88: 0 | K88: 0 | L88: 0 | M88: 0 | N88: 0 | O88: 0 | P88: 0 | Q88: 0 | R88: 0 | S88: 0 | T88: 0 | U88: 0 | V88: 0 | W88: 0 | X88: 0
C89: Ground Outdoor / Indoor Chamber Mounted; > = 22 kV & < = 33 kV ; > 40 MVA | D89: 0 | E89: 0 | F89: 0 | G89: 0 | H89: 0 | I89: 0 | J89: 0 | K89: 0 | L89: 0 | M89: 0 | N89: 0 | O89: 0 | P89: 0 | Q89: 0 | R89: 0 | S89: 0 | T89: 0 | U89: 0 | V89: 0 | W89: 0 | X89: 0
C90: Ground Outdoor / Indoor Chamber Mounted; > 33 kV & < = 66 kV ; < = 15 MVA | D90: 0 | E90: 0 | F90: 0 | G90: 0 | H90: 0 | I90: 0 | J90: 0 | K90: 0 | L90: 0 | M90: 0 | N90: 0 | O90: 0 | P90: 0 | Q90: 0 | R90: 0 | S90: 0 | T90: 0 | U90: 0 | V90: 0 | W90: 0 | X90: 0
C91: Ground Outdoor / Indoor Chamber Mounted; > 33 kV & < = 66 kV ; > 15 MVA and < = 40 MVA | D91: 0 | E91: 0 | F91: 0 | G91: 0 | H91: 0 | I91: 0 | J91: 0 | K91: 0 | L91: 0 | M91: 0 | N91: 0 | O91: 0 | P91: 0 | Q91: 0 | R91: 0 | S91: 0 | T91: 0 | U91: 0 | V91: 0 | W91: 0 | X91: 0
C92: Ground Outdoor / Indoor Chamber Mounted; > 33 kV & < = 66 kV ; > 40 MVA | D92: 0 | E92: 0 | F92: 0 | G92: 0 | H92: 0 | I92: 0 | J92: 0 | K92: 0 | L92: 0 | M92: 0 | N92: 0 | O92: 0 | P92: 0 | Q92: 0 | R92: 0 | S92: 0 | T92: 0 | U92: 0 | V92: 0 | W92: 0 | X92: 0
C93: Ground Outdoor / Indoor Chamber Mounted; > 66 kV & < = 132 kV ; < = 100 MVA | D93: 0 | E93: 0 | F93: 0 | G93: 0 | H93: 0 | I93: 0 | J93: 0 | K93: 0 | L93: 0 | M93: 0 | N93: 0 | O93: 0 | P93: 0 | Q93: 0 | R93: 0 | S93: 0 | T93: 0 | U93: 0 | V93: 0 | W93: 0 | X93: 0
C94: Ground Outdoor / Indoor Chamber Mounted; > 66 kV & < = 132 kV ; > 100 MVA | D94: 0 | E94: 0 | F94: 0 | G94: 0 | H94: 0 | I94: 0 | J94: 0 | K94: 0 | L94: 0 | M94: 0 | N94: 0 | O94: 0 | P94: 0 | Q94: 0 | R94: 0 | S94: 0 | T94: 0 | U94: 0 | V94: 0 | W94: 0 | X94: 0
C95: Ground Outdoor / Indoor Chamber Mounted; > 132 kV ; < = 100 MVA | D95: 0 | E95: 0 | F95: 0 | G95: 0 | H95: 0 | I95: 0 | J95: 0 | K95: 0 | L95: 0 | M95: 0 | N95: 0 | O95: 0 | P95: 0 | Q95: 0 | R95: 0 | S95: 0 | T95: 0 | U95: 0 | V95: 0 | W95: 0 | X95: 0
C96: Ground Outdoor / Indoor Chamber Mounted; > 132 kV ; > 100 MVA | D96: 0 | E96: 0 | F96: 0 | G96: 0 | H96: 0 | I96: 0 | J96: 0 | K96: 0 | L96: 0 | M96: 0 | N96: 0 | O96: 0 | P96: 0 | Q96: 0 | R96: 0 | S96: 0 | T96: 0 | U96: 0 | V96: 0 | W96: 0 | X96: 0
C97: Other | D97: 0 | E97: 0 | F97: 0 | G97: 0 | H97: 0 | I97: 0 | J97: 0 | K97: 0 | L97: 0 | M97: 0 | N97: 0 | O97: 0 | P97: 0 | Q97: 0 | R97: 0 | S97: 0 | T97: 0 | U97: 0 | V97: 0 | W97: 0 | X97: 0
B98: SWITCHGEAR BY: Highest operating voltage; Switch function | C98: ˂ = 11 kV ; Fuse | D98: 12846.93774 | E98: 16754.2952 | F98: 16804.93845 | G98: 16795.93152 | H98: 16846.68428 | I98: 17156.84693 | J98: 17051.40366 | K98: 63 | L98: 82 | M98: 82 | N98: 82 | O98: 82 | P98: 82 | Q98: 82 | R98: 100 | S98: 100 | T98: 100 | U98: 100 | V98: 100 | W98: 100 | X98: 100
C99: ˂ = 11 kV ; Switch | D99: 429669.1956 | E99: 192232.0239 | F99: 346127.3432 | G99: 346028.7884 | H99: 346584.13 | I99: 138756.4229 | J99: 138252.9168 | K99: 36 | L99: 16 | M99: 16 | N99: 16 | O99: 16 | P99: 1 | Q99: 1 | R99: 0 | S99: 0 | T99: 0 | U99: 0 | V99: 0 | W99: 0 | X99: 0
C100: ˂ = 11 kV ; Circuit Breaker | D100: 884361.8548 | E100: 901523.2639 | F100: 861161.4262 | G100: 861088.209 | H100: 861500.7774 | I100: 1235850.896 | J100: 1234591.159 | K100: 73 | L100: 74 | M100: 74 | N100: 74 | O100: 74 | P100: 50 | Q100: 50 | R100: 2 | S100: 2 | T100: 2 | U100: 2 | V100: 2 | W100: 2 | X100: 2
C101: > 11 kV & < = 22 kV ; Switch | D101: 3312033.383 | E101: 1477783.684 | F101: 2660853.95 | G101: 2660096.311 | H101: 2664365.499 | I101: 555025.6916 | J101: 553011.6673 | K101: 276 | L101: 123 | M101: 123 | N101: 123 | O101: 123 | P101: 4 | Q101: 4 | R101: 0 | S101: 0 | T101: 0 | U101: 0 | V101: 0 | W101: 0 | X101: 0
C102: > 11 kV & < = 22 kV ; Circuit Breaker | D102: 221090.4637 | E102: 225380.816 | F102: 215290.3565 | G102: 215272.0522 | H102: 215375.1943 | I102: 308962.724 | J102: 308647.7897 | K102: 19 | L102: 19 | M102: 19 | N102: 19 | O102: 19 | P102: 13 | Q102: 13 | R102: 0 | S102: 0 | T102: 0 | U102: 0 | V102: 0 | W102: 0 | X102: 0
C103: > 22 kV & < = 33 kV ; Switch | D103: 0 | E103: 0 | F103: 0 | G103: 0 | H103: 0 | I103: 0 | J103: 0 | K103: 0 | L103: 0 | M103: 0 | N103: 0 | O103: 0 | P103: 0 | Q103: 0 | R103: 0 | S103: 0 | T103: 0 | U103: 0 | V103: 0 | W103: 0 | X103: 0
C104: > 22 kV & < = 33 kV ; Circuit Breaker | D104: 0 | E104: 0 | F104: 0 | G104: 0 | H104: 0 | I104: 0 | J104: 0 | K104: 0 | L104: 0 | M104: 0 | N104: 0 | O104: 0 | P104: 0 | Q104: 0 | R104: 0 | S104: 0 | T104: 0 | U104: 0 | V104: 0 | W104: 0 | X104: 0
C105: > 33 kV & < = 66 kV ; Switch | D105: 0 | E105: 0 | F105: 0 | G105: 0 | H105: 0 | I105: 0 | J105: 0 | K105: 0 | L105: 0 | M105: 0 | N105: 0 | O105: 0 | P105: 0 | Q105: 0 | R105: 0 | S105: 0 | T105: 0 | U105: 0 | V105: 0 | W105: 0 | X105: 0
C106: > 33 kV & < = 66 kV ; Circuit Breaker | D106: 0 | E106: 0 | F106: 0 | G106: 0 | H106: 0 | I106: 0 | J106: 0 | K106: 0 | L106: 0 | M106: 0 | N106: 0 | O106: 0 | P106: 0 | Q106: 0 | R106: 0 | S106: 0 | T106: 0 | U106: 0 | V106: 0 | W106: 0 | X106: 0
C107: > 66 kV & < = 132 kV ; Switch | D107: 0 | E107: 0 | F107: 0 | G107: 0 | H107: 0 | I107: 0 | J107: 0 | K107: 0 | L107: 0 | M107: 0 | N107: 0 | O107: 0 | P107: 0 | Q107: 0 | R107: 0 | S107: 0 | T107: 0 | U107: 0 | V107: 0 | W107: 0 | X107: 0
C108: > 66 kV & < = 132 kV ; Circuit Breaker | D108: 0 | E108: 0 | F108: 0 | G108: 0 | H108: 0 | I108: 0 | J108: 0 | K108: 0 | L108: 0 | M108: 0 | N108: 0 | O108: 0 | P108: 0 | Q108: 0 | R108: 0 | S108: 0 | T108: 0 | U108: 0 | V108: 0 | W108: 0 | X108: 0
C109: > 132 kV ; Switch | D109: 0 | E109: 0 | F109: 0 | G109: 0 | H109: 0 | I109: 0 | J109: 0 | K109: 0 | L109: 0 | M109: 0 | N109: 0 | O109: 0 | P109: 0 | Q109: 0 | R109: 0 | S109: 0 | T109: 0 | U109: 0 | V109: 0 | W109: 0 | X109: 0
C110: > 132 kV ; Circuit Breaker | D110: 0 | E110: 0 | F110: 0 | G110: 0 | H110: 0 | I110: 0 | J110: 0 | K110: 0 | L110: 0 | M110: 0 | N110: 0 | O110: 0 | P110: 0 | Q110: 0 | R110: 0 | S110: 0 | T110: 0 | U110: 0 | V110: 0 | W110: 0 | X110: 0
C111: Other | D111: 0 | E111: 0 | F111: 0 | G111: 0 | H111: 0 | I111: 0 | J111: 0 | K111: 0 | L111: 0 | M111: 0 | N111: 0 | O111: 0 | P111: 0 | Q111: 0 | R111: 0 | S111: 0 | T111: 0 | U111: 0 | V111: 0 | W111: 0 | X111: 0
B112: PUBLIC LIGHTING BY: Asset type ; Lighting obligation | C112: Luminaires | D112: 291673.863 | E112: 1249726.061 | F112: 1150526.643 | G112: 1150123.012 | H112: 480785.5307 | I112: 187469.5433 | J112: 184254.5405 | K112: 2450 | L112: 4450 | M112: 4450 | N112: 4450 | O112: 2450 | P112: 1450 | Q112: 1450 | R112: 100 | S112: 160 | T112: 160 | U112: 150 | V112: 140 | W112: 130 | X112: 130
C113: Brackets | D113: 0 | E113: 0 | F113: 0 | G113: 0 | H113: 0 | I113: 0 | J113: 0 | K113: 0 | L113: 1076 | M113: 0 | N113: 0 | O113: 0 | P113: 0 | Q113: 0 | R113: 0 | S113: 0 | T113: 0 | U113: 0 | V113: 0 | W113: 0 | X113: 0
C114: Lamps | D114: 1165929.046 | E114: 2205319.199 | F114: 1909225.34 | G114: 1903453.585 | H114: 1424721.602 | I114: 918126.1557 | J114: 920106.5343 | K114: 8755 | L114: 6360 | M114: 6010 | N114: 6113 | O114: 6215 | P114: 6318 | Q114: 6510 | R114: 2000 | S114: 1775 | T114: 1640 | U114: 1500 | V114: 1460 | W114: 1420 | X114: 1380
C115: Poles / Columns | D115: 162935.5329 | E115: 262868.6212 | F115: 292956.9608 | G115: 293021.0106 | H115: 322059.5589 | I115: 325761.4421 | J115: 354075.8366 | K115: 35 | L115: 45 | M115: 50 | N115: 50 | O115: 55 | P115: 55 | Q115: 60 | R115: 0 | S115: 0 | T115: 0 | U115: 0 | V115: 0 | W115: 0 | X115: 0
C116: Other | D116: 0 | E116: 0 | F116: 0 | G116: 0 | H116: 0 | I116: 0 | J116: 0 | K116: 0 | L116: 0 | M116: 0 | N116: 0 | O116: 0 | P116: 0 | Q116: 0 | R116: 0 | S116: 0 | T116: 0 | U116: 0 | V116: 0 | W116: 0 | X116: 0
B117: SCADA, NETWORK CONTROL AND PROTECTION SYSTEMS BY: Function | C117: Field Devices | D117: 904197 | E117: 939197 | F117: 722670 | G117: 722670 | H117: 722670 | I117: 722670 | J117: 722670 | K117: 142 | L117: 143 | M117: 107 | N117: 107 | O117: 107 | P117: 107 | Q117: 107 | R117: 23 | S117: 23 | T117: 21 | U117: 21 | V117: 21 | W117: 21 | X117: 21
C118: Local Network Wiring Assets | D118: 0 | E118: 0 | F118: 0 | G118: 0 | H118: 0 | I118: 0 | J118: 0 | K118: 0 | L118: 0 | M118: 0 | N118: 0 | O118: 0 | P118: 0 | Q118: 0 | R118: 0 | S118: 0 | T118: 0 | U118: 0 | V118: 0 | W118: 0 | X118: 0
C119: Communications Network Assets | D119: 9000 | E119: 9000 | F119: 1117073.556 | G119: 9000 | H119: 325592.4444 | I119: 9000 | J119: 715333 | K119: 3 | L119: 3 | M119: 17 | N119: 3 | O119: 7 | P119: 3 | Q119: 10 | R119: 2 | S119: 2 | T119: 4 | U119: 2 | V119: 2 | W119: 2 | X119: 2
C120: Master Station Assets | D120: 0 | E120: 0 | F120: 0 | G120: 0 | H120: 0 | I120: 0 | J120: 0 | K120: 0 | L120: 0 | M120: 0 | N120: 0 | O120: 0 | P120: 0 | Q120: 0 | R120: 0 | S120: 0 | T120: 0 | U120: 0 | V120: 0 | W120: 0 | X120: 0
C121: Communications Site Infrastructure | D121: 0 | E121: 0 | F121: 0 | G121: 0 | H121: 0 | I121: 0 | J121: 0 | K121: 0 | L121: 0 | M121: 0 | N121: 0 | O121: 0 | P121: 0 | Q121: 0 | R121: 0 | S121: 0 | T121: 0 | U121: 0 | V121: 0 | W121: 0 | X121: 0
C122: Communications Linear Assets | D122: 0 | E122: 0 | F122: 0 | G122: 10000 | H122: 0 | I122: 0 | J122: 0 | K122: 0 | L122: 0 | M122: 0 | N122: 1 | O122: 0 | P122: 0 | Q122: 0 | R122: 0 | S122: 0 | T122: 0 | U122: 0 | V122: 0 | W122: 0 | X122: 0
C123: AFLC | D123: 0 | E123: 0 | F123: 0 | G123: 0 | H123: 0 | I123: 0 | J123: 0 | K123: 0 | L123: 0 | M123: 0 | N123: 0 | O123: 0 | P123: 0 | Q123: 0 | R123: 0 | S123: 0 | T123: 0 | U123: 0 | V123: 0 | W123: 0 | X123: 0
C124: Other | D124: 0 | E124: 0 | F124: 0 | G124: 0 | H124: 0 | I124: 0 | J124: 0 | K124: 0 | L124: 0 | M124: 0 | N124: 0 | O124: 0 | P124: 0 | Q124: 0 | R124: 0 | S124: 0 | T124: 0 | U124: 0 | V124: 0 | W124: 0 | X124: 0
B125: OTHER BY: enter DNSP defined asset group here | C125: Replace Zone Equipment - Batteries at Zone Substation | D125: 24320.57158 | E125: 18173.80961 | F125: 18189.1391 | G125: 18186.41274 | H125: 582461.3186 | I125: 142364.0705 | J125: 142364.0705 | K125: 0 | L125: 0 | M125: 0 | N125: 0 | O125: 0 | P125: 0 | Q125: 0 | R125: 0 | S125: 0 | T125: 0 | U125: 0 | V125: 0 | W125: 0 | X125: 0
C126: CablePI Purchase new and replacement units | D126: 564237.2606 | E126: 315187.5 | F126: 315187.5 | G126: 315187.5 | H126: 315187.5 | I126: 315187.5 | J126: 315187.5 | K126: 20000 | L126: 12000 | M126: 12000 | N126: 12000 | O126: 12000 | P126: 12000 | Q126: 12000 | R126: 0 | S126: 0 | T126: 0 | U126: 0 | V126: 0 | W126: 0 | X126: 0
C128: Ajilis (system related expenditure) | D128: 10775203.47 | E128: 10785844.52 | F128: 7029436.643 | G128: 0 | H128: 0 | I128: 0 | J128: 0
C130: Asset Management Information System (AMIS), SCADA and communications | D130: 4938929.45 | E130: 3511649.641 | F130: 7202753.884 | G130: 4012264.989 | H130: 5072891.294 | I130: 3448639.782 | J130: 2796790.513

Sheet 2.3 Augex
B1: =SheetHeader -> REGULATORY REPORTING STATEMENT | F1: Worksheet navigation
B2: =dms_TradingName -> TasNetworks (D)
B3: =dms_Reg_Year_Span -> 2017-18 to 2018-19
B4: 2.3 AUGEX PROJECT DATA
B7: TABLE 2.3.1 - AUGEX ASSET DATA - SUBTRANSMISSION SUBSTATIONS, SWITCHING STATIONS AND ZONE SUBSTATIONS
B8: NOTE: DNSP must provide expenditure information on an 'as incurred' basis.
B9: AUG231_1 | C9: AUG231_2 | D9: AUG231_3 | E9: AUG231_4 | F9: AUG231_5 | G9: AUG231_6 | H9: ED_AUG231_00001 | I9: ED_AUG231_00002 | J9: ED_AUG231_00003 | K9: ED_AUG231_00004 | L9: ED_AUG231_00005 | M9: ED_AUG231_00006 | N9: ED_AUG231_00007 | O9: ED_AUG231_00008 | P9: ED_AUG231_00009 | Q9: ED_AUG231_00010 | R9: ED_AUG231_00011 | S9: ED_AUG231_00012 | T9: ED_AUG231_00013 | U9: ED_AUG231_00014 | V9: ED_AUG231_00015 | W9: ED_AUG231_00016 | X9: ED_AUG231_00017 | Y9: ED_AUG231_00018 | Z9: ED_AUG231_00019 | AA9: ED_AUG231_00020 | AB9: ED_AUG231_00021 | AC9: ED_AUG231_00022 | AD9: ED_AUG231_00023
B10: PROJECT DESCRIPTION AND CHANGES | L10: PLANT AND EQUIPMENT EXPENDITURE AND VOLUME | V10: OTHER EXPENDITURE | X10: TOTAL DIRECT EXPENDITURE ($0's) | Y10: YEARS INCURRED | Z10: ALL RELATED PARTY CONTRACTS | AB10: ALL NON-RELATED PARTYCONTRACTS | AC10: LAND AND EASEMENTS
B11: SUBSTATION ID | C11: SUBSTATION TYPE | D11: PROJECT ID | E11: PROJECT TYPE | F11: PROJECT TRIGGER | G11: VOLTAGE (KV) | H11: SUBSTATION RATING NORMAL CYCLIC (MVA) | J11: SUBSTATION RATING N-1 EMERGENCY (MVA) | L11: TRANSFORMERS | O11: SWITCHGEAR | Q11: CAPACITORS | S11: OTHER PLANT ITEM | T11: INSTALLATION (LABOUR) | V11: CIVIL WORKS | W11: OTHER DIRECT | Z11: RELATED PARTY MARGINS | AA11: TOTAL | AC11: LAND PURCHASE | AD11: EASEMENTS
H12: PRE | I12: POST | J12: PRE | K12: POST | L12: UNITS ADDED | M12: MVA ADDED | N12: =CONCATENATE("EXPENDITURE ($0's, real ", dms_DollarReal,")") -> EXPENDITURE ($0's, real June 2017) | O12: UNITS ADDED | P12: =CONCATENATE("EXPENDITURE ($0's, real ", dms_DollarReal,")") -> EXPENDITURE ($0's, real June 2017) | Q12: MVAR ADDED | R12: =CONCATENATE("EXPENDITURE ($0's, real ", dms_DollarReal,")") -> EXPENDITURE ($0's, real June 2017) | S12: =CONCATENATE("EXPENDITURE ($0's, real ", dms_DollarReal,")") -> EXPENDITURE ($0's, real June 2017) | T12: VOLUME | U12: =CONCATENATE("EXPENDITURE ($0's, real ", dms_DollarReal,")") -> EXPENDITURE ($0's, real June 2017) | V12: =CONCATENATE("EXPENDITURE ($0's, real ", dms_DollarReal,")") -> EXPENDITURE ($0's, real June 2017) | Z12: =CONCATENATE("EXPENDITURE ($0's, real ", dms_DollarReal,")") -> EXPENDITURE ($0's, real June 2017) | AC12: =CONCATENATE("EXPENDITURE ($0's, real ", dms_DollarReal,")") -> EXPENDITURE ($0's, real June 2017)
B13: Rosny Zone | C13: Zone substation | G13: 33/11 | H13: 0 | I13: 32.5 | J13: 0 | K13: 0 | L13: 1 | M13: 25 | S13: 8481410 | X13: =SUM(N13,P13,R13,S13,U13,V13,W13) -> 8481410 | Y13: 2014,2015,2016 | AC13: 569190
X14: 0
X15: 0
X16: 0
X17: 0
X18: 0
X19: 0
X20: 0
X21: 0
X22: 0
X23: 0
X24: 0
X25: 0
X26: 0
X27: 0
X28: 0
X29: 0
X30: 0
X31: 0
X32: 0
X33: 0
X34: 0
X35: 0
X36: 0
X37: 0
X38: 0
X39: 0
X40: 0
X41: 0
X42: 0
X43: 0
X44: 0
X45: =SUM(N45,P45,R45,S45,U45,V45,W45) -> 0
X46: 0
X47: 0
X48: 0
X49: 0
X50: 0
X51: 0
X52: 0
X53: 0
X54: 0
X55: 0
X56: 0
X57: 0
X58: 0
X59: 0
X60: 0
X61: 0
X62: 0
X63: 0
X64: 0
D65: Non material projects - [actual]
D66: Non material projects - [forecast]
B68: AUG232_1 | C68: AUG232_2 | D68: AUG232_3 | E68: AUG232_4 | F68: AUG232_5 | G68: AUG232_6 | H68: ED_AUG232_00001 | I68: ED_AUG232_00002 | J68: ED_AUG232_00003 | K68: ED_AUG232_00004 | L68: ED_AUG232_00005 | M68: ED_AUG232_00006 | N68: ED_AUG232_00007 | O68: ED_AUG232_00008 | P68: ED_AUG232_00009 | Q68: ED_AUG232_00010 | R68: ED_AUG232_00011 | S68: ED_AUG232_00012 | T68: ED_AUG232_00013 | U68: ED_AUG232_00014 | V68: ED_AUG232_00015 | W68: ED_AUG232_00016 | X68: ED_AUG232_00017 | Y68: ED_AUG232_00018 | Z68: ED_AUG232_00019 | AA68: ED_AUG232_00020 | AB68: ED_AUG232_00021
B69: TABLE 2.3.2 - AUGEX ASSET DATA - SUBTRANSMISSION LINES
B70: NOTE: DNSP must provide expenditure information on an 'as incurred' basis.
B71: PROJECT DESCRIPTION AND CHANGES | H71: PLANT AND EQUIPMENT EXPENDITURE AND VOLUME | T71: OTHER EXPENDITURE | V71: TOTAL DIRECT EXPENDITURE ($0's) | W71: YEARS INCURRED | X71: ALL RELATED PARTY CONTRACTS | Z71: ALL NON RELATED PARTY CONTRACTS | AA71: LAND AND EASEMENTS
B72: LINE ID | C72: PROJECT ID | D72: PROJECT TYPE | E72: PROJECT TRIGGER | F72: VOLTAGE (KV) | G72: ROUTE LINE LENGTH ADDED | H72: POLES/TOWERS (INCLUDING STRUCTURES, AND CIVIL WORKS) | K72: OVERHEAD LINES | N72: UNDERGROUND CABLES | Q72: OTHER PLANT ITEM | R72: INSTALLATION (LABOUR) | T72: CIVIL WORKS | U72: OTHER DIRECT | X72: RELATED PARTY MARGINS | Y72: TOTAL | AA72: LAND PURCHASE | AB72: EASEMENTS
G73: KM ADDED | H73: POLES/TOWERS ADDED | I73: POLES/TOWERS UPGRADED | J73: =CONCATENATE("EXPENDITURE ($0's, real ", dms_DollarReal,")") -> EXPENDITURE ($0's, real June 2017) | K73: CIRCUIT KM ADDED | L73: CIRCUIT KM UPGRADED | M73: =CONCATENATE("EXPENDITURE ($0's, real ", dms_DollarReal,")") -> EXPENDITURE ($0's, real June 2017) | N73: CIRCUIT KM ADDED | O73: CIRCUIT KM UPGRADED | P73: =CONCATENATE("EXPENDITURE ($0's, real ", dms_DollarReal,")") -> EXPENDITURE ($0's, real June 2017) | Q73: =CONCATENATE("EXPENDITURE ($0's, real ", dms_DollarReal,")") -> EXPENDITURE ($0's, real June 2017) | R73: VOLUME | S73: =CONCATENATE("EXPENDITURE ($0's, real ", dms_DollarReal,")") -> EXPENDITURE ($0's, real June 2017) | T73: EXPENDITURE ($0's, real December 2015) | X73: EXPENDITURE ($0's, real December 2015) | AA73: EXPENDITURE ($0's, real December 2015)
V74: =SUM(J74,M74,P74,Q74,S74,T74,U74) -> 0
V75: 0
V76: 0
V77: 0
V78: 0
V79: 0
V80: 0
V81: 0
V82: 0
V83: 0
V84: 0
V85: 0
V86: 0
V87: 0
V88: 0
V89: 0
V90: 0
V91: 0
V92: 0
V93: 0
V94: 0
V95: 0
V96: 0
V97: 0
V98: 0
V99: 0
V100: 0
V101: 0
V102: 0
V103: 0
V104: 0
V105: 0
V106: =SUM(J106,M106,P106,Q106,S106,T106,U106) -> 0
V107: 0
V108: 0
V109: 0
V110: 0
V111: 0
V112: 0
V113: 0
V114: 0
V115: 0
V116: 0
V117: 0
V118: 0
V119: 0
V120: 0
V121: 0
V122: 0
V123: 0
V124: 0
V125: 0
V126: 0
V127: 0
C128: Non material projects - [actual]
C129: Non material projects - [forecast]
B132: TABLE 2.3.3 - AUGEX DATA - HV/LV FEEDERS AND DISTRIBUTION SUBSTATIONS
B133: NOTE: DNSP must provide expenditure information on an 'as incurred' basis.
B134: Table 2.3.3.1 - Descriptor metrics
B137: PROJECT TYPE | C137: Unit of Measure | D137: UNITS ADDED (0's) | K137: UNITS UPGRADED (0's)
D138: =CRCP_y4 -> 2015-16 | E138: =CRCP_y5 -> 2016-17 | F138: =FRCP_y1 -> 2017-18 | G138: =FRCP_y2 -> 2018-19 | H138: =FRCP_y3 -> 2019-20 | I138: =FRCP_y4 -> 2020-21 | J138: =FRCP_y5 -> 2021-22 | K138: =CRCP_y4 -> 2015-16 | L138: =CRCP_y5 -> 2016-17 | M138: =FRCP_y1 -> 2017-18 | N138: =FRCP_y2 -> 2018-19 | O138: =FRCP_y3 -> 2019-20 | P138: =FRCP_y4 -> 2020-21 | Q138: =FRCP_y5 -> 2021-22
B139: HV Feeder Augmentations - Overhead Lines | C139: Circuit Line Length in KM | D139: 12 | E139: 0 | F139: 0 | G139: 0 | H139: 0 | I139: 0 | J139: 0 | K139: 9.338 | L139: 53 | M139: 33.73 | N139: 22.76 | O139: 16.24 | P139: 16.24 | Q139: 16.24
B140: HV Feeder Augmentations - Underground Cables | C140: Circuit Line Length in KM | D140: 0 | E140: 2 | F140: 0 | G140: 0 | H140: 0 | I140: 0 | J140: 0 | K140: 0 | L140: 0 | M140: 0 | N140: 0 | O140: 0 | P140: 0 | Q140: 0
B141: LV Feeder Augmentations - Overhead Lines | C141: Circuit Line Length in KM | D141: 0 | E141: 0 | F141: 0 | G141: 0 | H141: 0 | I141: 0 | J141: 0 | K141: 3 | L141: 3 | M141: 3 | N141: 3 | O141: 3 | P141: 3 | Q141: 3
B142: LV Feeder Augmentations - Underground Cables | C142: Circuit Line Length in KM | D142: 0 | E142: 0 | F142: 0 | G142: 0 | H142: 0 | I142: 0 | J142: 0 | K142: 0 | L142: 0 | M142: 0 | N142: 0 | O142: 0 | P142: 0 | Q142: 0
B143: Distribution Substation Augmentations - Pole Mounted | C143: Number | D143: 0 | E143: 0 | F143: 0 | G143: 0 | H143: 0 | I143: 0 | J143: 0 | K143: 10 | L143: 10 | M143: 10 | N143: 10 | O143: 10 | P143: 10 | Q143: 10
B144: Distribution Substation Augmentations - Ground Mounted | C144: Number | D144: 0 | E144: 0 | F144: 0 | G144: 0 | H144: 0 | I144: 0 | J144: 0 | K144: 3 | L144: 3 | M144: 3 | N144: 3 | O144: 3 | P144: 3 | Q144: 3
B145: Distribution Substation Augmentations - Indoor | C145: Number | D145: 0 | E145: 0 | F145: 0 | G145: 0 | H145: 0 | I145: 0 | J145: 0 | K145: 0 | L145: 0 | M145: 0 | N145: 0 | O145: 0 | P145: 0 | Q145: 0
B147: Table 2.3.3.2 - Cost metrics
B150: PROJECT TYPE | D150: =CONCATENATE("TOTAL DIRECT EXPENDITURE ($0's, real ", dms_DollarReal,")") -> TOTAL DIRECT EXPENDITURE ($0's, real June 2017)
D151: =CRCP_y4 -> 2015-16 | E151: =CRCP_y5 -> 2016-17 | F151: =FRCP_y1 -> 2017-18 | G151: =FRCP_y2 -> 2018-19 | H151: =FRCP_y3 -> 2019-20 | I151: =FRCP_y4 -> 2020-21 | J151: =FRCP_y5 -> 2021-22
B152: HV Feeder Augmentations - Overhead Lines | D152: 0 | E152: 0 | F152: 0 | G152: 0 | H152: 0 | I152: 0 | J152: 0
B153: HV Feeder Augmentations - Underground Cables | D153: 0 | E153: 0 | F153: 0 | G153: 0 | H153: 0 | I153: 0 | J153: 0
B154: HV Feeder Non-Material Projects | D154: 4523549.63 | E154: 10998659.81 | F154: 5962812.19 | G154: 4980302.18 | H154: 4295262.64 | I154: 4430570.19 | J154: 2530599.14
B155: LV Feeder Augmentations - Overhead Lines | D155: 0 | E155: 0 | F155: 0 | G155: 0 | H155: 0 | I155: 0 | J155: 0
B156: LV Feeder Augmentations - Underground Cables | D156: 0 | E156: 0 | F156: 0 | G156: 0 | H156: 0 | I156: 0 | J156: 0
B157: LV Feeder Non-Material Projects | D157: 2162555.8 | E157: 1213068.16 | F157: 1213068.16 | G157: 1276349.56 | H157: 1345310.06 | I157: 1419138.36 | J157: 1498645.76
B158: Distribution Substation Augmentations - Pole Mounted | D158: 62101.14 | E158: 452332.52 | F158: 452332.52 | G158: 452332.52 | H158: 452332.52 | I158: 452332.52 | J158: 452332.52
B159: Distribution Substation Augmentations - Ground Mounted | D159: 18673 | E159: 136010.44 | F159: 136010.44 | G159: 136010.44 | H159: 136010.44 | I159: 136010.44 | J159: 136010.44
B160: Distribution Substation Augmentations - Indoor | D160: 0 | E160: 0 | F160: 0 | G160: 0 | H160: 0 | I160: 0 | J160: 0
B165: TABLE 2.3.4 - AUGEX DATA - TOTAL AUGMENTATION EXPENDITURE
D166: =CONCATENATE("TOTAL DIRECT EXPENDITURE ($0's, real ", dms_DollarReal,")") -> TOTAL DIRECT EXPENDITURE ($0's, real June 2017)
D167: =CRCP_y5 -> 2016-17 | E167: =FRCP_y1 -> 2017-18 | F167: =FRCP_y1 -> 2017-18 | G167: =FRCP_y2 -> 2018-19 | H167: =FRCP_y3 -> 2019-20 | I167: =FRCP_y4 -> 2020-21 | J167: =FRCP_y5 -> 2021-22
B168: Subtransmission Substations, Switching Stations, Zone Substations | D168: 5461549.512 | E168: 512993.1765 | F168: 1243238.411 | G168: 1095979.544 | H168: 164196.6191 | I168: 159223.4339 | J168: 166885.6709
B169: Subtransmission Lines | D169: 0 | E169: 0 | F169: 0 | G169: 0 | H169: 0 | I169: 0 | J169: 0
B170: HV Feeders | D170: 5024542.755 | E170: 12106314.91 | F170: 6774655.083 | G170: 5500124.018 | H170: 4934330.515 | I170: 4944425.692 | J170: 2971278.382
B171: HV Feeders - Land Purchases and Easements | D171: 0 | E171: 0 | F171: 0 | G171: 0 | H171: 0 | I171: 0 | J171: 0
B172: Distribution Substations | D172: 88091.42829 | E172: 639720.5918 | F172: 657557.4547 | G172: 640194.3483 | H172: 664814.229 | I172: 644301.0045 | J172: 675440.3241
B173: Distribution Substations - Land Purchases and Easements | D173: 0 | E173: 0 | F173: 0 | G173: 0 | H173: 0 | I173: 0 | J173: 0
B174: LV Feeders | D174: 2398090.811 | E174: 1343484.479 | F174: 1381592.24 | G174: 1414784.707 | H174: 1548873.415 | I174: 1587375.474 | J174: 1755220.731
B175: LV Feeders - Land Purchases and Easements | D175: 0 | E175: 0 | F175: 0 | G175: 0 | H175: 0 | I175: 0 | J175: 0
B176: Other Assets | D176: 0 | E176: 0 | F176: 0 | G176: 0 | H176: 0 | I176: 0 | J176: 0

Sheet 2.4 Augex model
C1: =SheetHeader -> REGULATORY REPORTING STATEMENT | J1: Worksheet navigation
C2: =dms_TradingName -> TasNetworks (D)
C3: =dms_Reg_Year_Span -> 2017-18 to 2018-19
C4: 2.4 AUGEX MODEL
C6: TABLE 2.4.1 - AUGEX MODEL INPUTS - ASSET STATUS - SUBTRANSMISSION LINES
C8: Line ID | D8: Primary type of area supplied by line | E8: Line voltage | F8: Originating substation | G8: Terminating substation | H8: =CRCP_y4 -> 2015-16 | M8: =PRCP_y5 -> 2011-12 | R8: =CONCATENATE("Average per annum growth rate in annual line maximum demand (50% PoE) from ", CRCP_y4, " to ", dms_FRCP_FinalYear_Num) -> Average per annum growth rate in annual line maximum demand (50% PoE) from 2015-16 to 2018-19 | S8: Network Segment ID
H9: =CONCATENATE(IF(dms_RPT="Financial","Route line length as at 30 June ","Route line length as at 31 December ")) -> Route line length as at 30 June | I9: Maximum demand (weather corrected at 50% PoE) | K9: Line rating | M9: =CONCATENATE(IF(dms_RPT="Financial","Route line length as at 30 June ","Route line length as at 31 December ")) -> Route line length as at 30 June | N9: Maximum demand (weather corrected at 50% PoE) | P9: Line rating
K10: Thermal | L10: N-1 emergency | P10: Thermal | Q10: N-1 emergency
D11: CBD, urban, long rural, or short rural | E11: kV | F11: name | G11: name | H11: km | I11: MVA | J11: MW | K11: MVA | L11: MVA | M11: km | N11: MVA | O11: MW | P11: MVA | Q11: MVA | R11: %
A12: AUG241_1 | C12: 11004 | D12: Urban | E12: 33 | F12: Risdon | G12: East Hobart | H12: 6.495 | I12: 12.507 | J12: 12.00672 | K12: 23.663 | L12: 23.663 | M12: 6.491 | N12: 10.295 | O12: 9.8832 | P12: 23.663 | Q12: 23.663 | R12: 0.0858
A13: AUG241_2 | C13: 11005 | D13: Urban | E13: 33 | F13: Risdon | G13: East Hobart | H13: 7.112 | I13: 10.195 | J13: 9.7872 | K13: 23.663 | L13: 23.663 | M13: 7.112 | N13: 9.853 | O13: 9.45888 | P13: 23.663 | Q13: 23.663 | R13: 0.0858
A14: AUG241_3 | C14: 11006 | D14: Urban | E14: 33 | F14: Risdon | G14: East Hobart | H14: 6.083 | I14: 11.059 | J14: 10.61664 | K14: 23.663 | L14: 23.663 | M14: 6.083 | N14: 9.773 | O14: 9.38208 | P14: 23.663 | Q14: 23.663 | R14: 0.0858
A15: AUG241_4 | C15: 11021 | D15: Urban | E15: 33 | F15: Risdon | G15: Derwent Park | H15: 3.193 | I15: 10.374 | J15: 9.95904 | K15: 21.434 | L15: 21.434 | M15: 3.193 | N15: 10.376 | O15: 9.96096 | P15: 21.434 | Q15: 21.434 | R15: 0.0194
A16: AUG241_5 | C16: 11023 | D16: Urban | E16: 33 | F16: Risdon | G16: New Town | H16: 2.151 | I16: 11.824 | J16: 11.35104 | K16: 21.434 | L16: 21.434 | M16: 2.151 | N16: 12.608 | O16: 12.10368 | P16: 21.434 | Q16: 21.434 | R16: 0.0194
A17: AUG241_6 | C17: 11025 | D17: Urban | E17: 33 | F17: Risdon | G17: Derwent Park | H17: 2.74 | I17: 10.454 | J17: 10.03584 | K17: 23.663 | L17: 23.663 | M17: 2.74 | N17: 10.537 | O17: 10.11552 | P17: 23.663 | Q17: 23.663 | R17: 0.0194
A18: AUG241_7 | C18: 11027 | D18: Urban | E18: 33 | F18: Risdon | G18: New Town | H18: 3.192 | I18: 10.798 | J18: 10.36608 | K18: 21.434 | L18: 21.434 | M18: 3.192 | N18: 8.827 | O18: 8.47392 | P18: 21.434 | Q18: 21.434 | R18: 0.0194
A19: AUG241_8 | C19: 10001 | D19: Urban | E19: 33 | F19: Creek Rd | G19: West Hobart | H19: 6.019 | I19: 12.575 | J19: 12.285775 | K19: 22.634 | L19: 22.634 | M19: 6.019 | N19: 13.146 | O19: 12.843642 | P19: 22.634 | Q19: 22.634 | R19: 0.0177
A20: AUG241_9 | C20: 10002 | D20: Urban | E20: 33 | F20: Creek Rd | G20: West Hobart | H20: 5.92 | I20: 14.899 | J20: 14.556323 | K20: 22.634 | L20: 22.634 | M20: 5.964 | N20: 13.165 | O20: 12.862205 | P20: 22.634 | Q20: 22.634 | R20: 0.0177
A21: AUG241_10 | C21: 10003 | D21: Urban | E21: 33 | F21: Creek Rd | G21: West Hobart | H21: 5.522 | I21: 15.128 | J21: 14.780056 | K21: 22.634 | L21: 22.634 | M21: 5.522 | N21: 13.527 | O21: 13.215879 | P21: 22.634 | Q21: 22.634 | R21: 0.0177
A22: AUG241_11 | C22: 10007 | D22: Urban | E22: 33 | F22: Creek Rd | G22: Claremont | H22: 9.853 | I22: 9.85 | J22: 9.62345 | K22: 22.634 | L22: 22.634 | M22: 9.859 | N22: 14.937 | O22: 14.593449 | P22: 22.634 | Q22: 22.634 | R22: 0.0177
A23: AUG241_12 | C23: 10008 | D23: Urban | E23: 33 | F23: Creek Rd | G23: Sandy Bay | H23: 7.657 | I23: 12.46 | J23: 12.17342 | K23: 23.663 | L23: 23.663 | M23: 7.657 | N23: 14.213 | O23: 13.886101 | P23: 23.663 | Q23: 23.663 | R23: 0.0177
A24: AUG241_13 | C24: 10022 | D24: Urban | E24: 33 | F24: Creek Rd | G24: Sandy Bay | H24: 8.279 | I24: 12.06 | J24: 11.78262 | K24: 23.663 | L24: 23.663 | M24: 8.279 | N24: 13.07 | O24: 12.76939 | P24: 23.663 | Q24: 23.663 | R24: 0.0177
A25: AUG241_14 | C25: 10024 | D25: Urban | E25: 33 | F25: Creek Rd | G25: Sandy Bay | H25: 8.691 | I25: 14.061 | J25: 13.737597 | K25: 23.663 | L25: 23.663 | M25: 8.647 | N25: 13.699 | O25: 13.383923 | P25: 23.663 | Q25: 23.663 | R25: 0.0177
A26: AUG241_15 | C26: 10026 | D26: Urban | E26: 33 | F26: Creek Rd | G26: Claremont | H26: 12.859 | I26: 9.469 | J26: 9.251213 | K26: 22.463 | L26: 22.463 | M26: 12.859 | N26: 10.841 | O26: 10.591657 | P26: 22.463 | Q26: 22.463 | R26: 0.0177
A27: AUG241_16 | C27: 25305 | D27: Urban | E27: 33 | F27: Lindisfarne | G27: Bellerive | H27: 5.853 | I27: 8.059 | J27: 7.962292 | K27: 20.005 | L27: 20.005 | M27: 5.852 | N27: 8.861 | O27: 8.754668 | P27: 20.005 | Q27: 20.005 | R27: 0.0076
A28: AUG241_17 | C28: 25306 | D28: Urban | E28: 33 | F28: Lindisfarne | G28: N/A | H28: 0 | I28: 0 | J28: 0 | K28: 19.491 | L28: 19.491 | M28: 12.655 | N28: 6.515 | O28: 6.43682 | P28: 19.491 | Q28: 19.491 | R28: 0
A29: AUG241_18 | C29: 25307 | D29: Urban | E29: 33 | F29: Lindisfarne | G29: Geilston Bay | H29: 2.007 | I29: 11.855 | J29: 11.71274 | K29: 22.634 | L29: 22.634 | M29: 2.006 | N29: 12.199 | O29: 12.052612 | P29: 22.634 | Q29: 22.634 | R29: 0.0076
A30: AUG241_19 | C30: 25308 | D30: Urban | E30: 33 | F30: Lindisfarne | G30: Geilston Bay | H30: 2.409 | I30: 13.58 | J30: 13.41704 | K30: 23.663 | L30: 23.663 | M30: 2.409 | N30: 14.089 | O30: 13.919932 | P30: 23.663 | Q30: 23.663 | R30: 0.0076
A31: AUG241_20 | C31: 25309 | D31: Urban | E31: 33 | F31: Lindisfarne | G31: Cambridge | H31: 12.673 | I31: 7.482 | J31: 7.392216 | K31: 19.491 | L31: 19.491 | M31: 12.677 | N31: 6.428 | O31: 6.350864 | P31: 19.491 | Q31: 19.491 | R31: 0.0076
A32: AUG241_21 | C32: 25310 | D32: Urban | E32: 33 | F32: Lindisfarne | G32: Bellerive | H32: 5.547 | I32: 8.654 | J32: 8.550152 | K32: 19.434 | L32: 19.434 | M32: 5.546 | N32: 9.404 | O32: 9.291152 | P32: 19.434 | Q32: 19.434 | R32: 0.0076
A33: AUG241_22 | C33: 24401 | D33: Urban | E33: 33 | F33: Mornington | G33: Howrah | H33: 4.577 | I33: 8.322 | J33: 8.297034 | K33: 18.348 | L33: 18.348 | M33: 0 | N33: 0 | O33: 0 | P33: 0 | Q33: 0 | R33: 0.0076
A34: AUG241_23 | C34: 24402 | D34: Urban | E34: 33 | F34: Mornington | G34: Cambridge | H34: 8.812 | I34: 6.282 | J34: 6.263154 | K34: 23.663 | L34: 23.663 | M34: 0 | N34: 0 | O34: 0 | P34: 0 | Q34: 0 | R34: 0.0076
A35: AUG241_24 | C35: 24406 | D35: Urban | E35: 33 | F35: Mornington | G35: Howrah | H35: 4.566 | I35: 8.294 | J35: 8.269118 | K35: 18.348 | L35: 18.348 | M35: 0 | N35: 0 | O35: 0 | P35: 0 | Q35: 0 | R35: 0.0076
A36: AUG241_25 | C36: 36240 | D36: Urban | E36: 33 | F36: Kingston 33 | G36: Summerleas | H36: 3.068 | I36: 12.152 | J36: 12.006176 | K36: 21.263 | L36: 0 | M36: 0 | N36: 0 | O36: 0 | P36: 0 | Q36: 0 | R36: 0.0076
A37: AUG241_26 | C37: 97013 | D37: Long rural | E37: 44 | F37: Rosebery | G37: Trial Harbour | H37: 36.958 | I37: 1.783 | J37: 1.681369 | K37: 18.138 | L37: 18.138 | M37: 37.044 | N37: 2.22 | O37: 2.09346 | P37: 18.138 | Q37: 18.138 | R37: 0
A38: AUG241_27
A39: AUG241_28
A40: AUG241_29
A41: AUG241_30
A42: AUG241_31
A43: AUG241_32
A44: AUG241_33
A45: AUG241_34
A46: AUG241_35
A47: AUG241_36
A48: AUG241_37
A49: AUG241_38
A50: AUG241_39
A51: AUG241_40
A52: AUG241_41
A53: AUG241_42
A54: AUG241_43
A55: AUG241_44
A56: AUG241_45
A57: AUG241_46
A58: AUG241_47
A59: AUG241_48
A60: AUG241_49
A61: AUG241_50
A62: AUG241_51
A63: AUG241_52
A64: AUG241_53
A65: AUG241_54
A66: AUG241_55
A67: AUG241_56
A68: AUG241_57
A69: AUG241_58
A70: AUG241_59
A71: AUG241_60
A72: AUG241_61
A73: AUG241_62
A74: AUG241_63
A75: AUG241_64
A76: AUG241_65
A77: AUG241_66
A78: AUG241_67
A79: AUG241_68
A80: AUG241_69
A81: AUG241_70
A82: AUG241_71
A83: AUG241_72
A84: AUG241_73
A85: AUG241_74
A86: AUG241_75
A87: AUG241_76
A88: AUG241_77
A89: AUG241_78
A90: AUG241_79
A91: AUG241_80
A92: AUG241_81
A93: AUG241_82
A94: AUG241_83
A95: AUG241_84
A96: AUG241_85
A97: AUG241_86
A98: AUG241_87
A99: AUG241_88
A100: AUG241_89
A101: AUG241_90
A102: AUG241_91
A103: AUG241_92
A104: AUG241_93
A105: AUG241_94
A106: AUG241_95
A107: AUG241_96
A108: AUG241_97
A109: AUG241_98
A110: AUG241_99
A111: AUG241_100
A112: AUG241_101
A113: AUG241_102
A114: AUG241_103
A115: AUG241_104
A116: AUG241_105
A117: AUG241_106
A118: AUG241_107
A119: AUG241_108
A120: AUG241_109
A121: AUG241_110
A122: AUG241_111
A123: AUG241_112
A124: AUG241_113
A125: AUG241_114
A126: AUG241_115
A127: AUG241_116
A128: AUG241_117
A129: AUG241_118
A130: AUG241_119
A131: AUG241_120
A132: AUG241_121
A133: AUG241_122
A134: AUG241_123
A135: AUG241_124
A136: AUG241_125
A137: AUG241_126
A138: AUG241_127
A139: AUG241_128
A140: AUG241_129
A141: AUG241_130
A142: AUG241_131
A143: AUG241_132
A144: AUG241_133
A145: AUG241_134
A146: AUG241_135
A147: AUG241_136
A148: AUG241_137
A149: AUG241_138
A150: AUG241_139
A151: AUG241_140
A152: AUG241_141
A153: AUG241_142
A154: AUG241_143
A155: AUG241_144
A156: AUG241_145
A157: AUG241_146
A158: AUG241_147
A159: AUG241_148
A160: AUG241_149
A161: AUG241_150
A162: AUG241_151
A163: AUG241_152
A164: AUG241_153
A165: AUG241_154
A166: AUG241_155
A167: AUG241_156
A168: AUG241_157
A169: AUG241_158
A170: AUG241_159
A171: AUG241_160
A172: AUG241_161
A173: AUG241_162
A174: AUG241_163
A175: AUG241_164
A176: AUG241_165
A177: AUG241_166
A178: AUG241_167
A179: AUG241_168
A180: AUG241_169
A181: AUG241_170
A182: AUG241_171
A183: AUG241_172
A184: AUG241_173
A185: AUG241_174
A186: AUG241_175
A187: AUG241_176
A188: AUG241_177
A189: AUG241_178
A190: AUG241_179
A191: AUG241_180
A192: AUG241_181
A193: AUG241_182
A194: AUG241_183
A195: AUG241_184
A196: AUG241_185
A197: AUG241_186
A198: AUG241_187
A199: AUG241_188
A200: AUG241_189
A201: AUG241_190
A202: AUG241_191
... 7641 more rows

Sheet 2.5 Connections
B1: =SheetHeader -> REGULATORY REPORTING STATEMENT
B2: =dms_TradingName -> TasNetworks (D)
B3: =dms_Reg_Year_Span -> 2017-18 to 2018-19
B4: 2.5 CONNECTIONS
B9: 2.5.1 - DESCRIPTOR METRICS
B10: CONNECTION SUBCATEGORY | C10: DESCRIPTOR METRIC | D10: Unit of Measure | E10: =CONCATENATE("VOLUMES and EXPENDITURE (0's, real ", dms_DollarReal, ")") -> VOLUMES and EXPENDITURE (0's, real June 2017)
E11: =CRCP_y4 -> 2015-16 | F11: =CRCP_y5 -> 2016-17 | G11: =FRCP_y1 -> 2017-18 | H11: =FRCP_y2 -> 2018-19 | I11: =FRCP_y3 -> 2019-20 | J11: =FRCP_y4 -> 2020-21 | K11: =FRCP_y5 -> 2021-22
B12: RESIDENTIAL | C12: Underground connections | D12: 0's | E12: 1215 | F12: 1213 | G12: 1279 | H12: 1253 | I12: 1191 | J12: 1181 | K12: 1167
C13: Overhead connections | D13: 0's | E13: 810 | F13: 809 | G13: 853 | H13: 835 | I13: 794 | J13: 787 | K13: 778
C14: Distribution substations installed | D14: MVA added | E14: 6.768 | F14: 6.758 | G14: 7.125 | H14: 6.978 | I14: 6.634 | J14: 6.577 | K14: 6.5
C15: Distribution substations installed | D15: 0's | E15: 102 | F15: 102 | G15: 107 | H15: 105 | I15: 100 | J15: 99 | K15: 98
C16: Distribution substations installed | D16: total spend $0's | E16: 20411.96584 | F16: 160589.1114 | G16: 155144.1125 | H16: 146418.0307 | I16: 164007.0699 | J16: 168321.6345 | K16: 173293.5333
C17: Augmentation HV | D17: net circuit KM added | E17: 6.06 | F17: 6.05 | G17: 6.38 | H17: 6.25 | I17: 5.94 | J17: 5.89 | K17: 5.82
C18: Augmentation HV | D18: total spend $0's | E18: 103030.4511 | F18: 135666.0159 | G18: 133815.9332 | H18: 133946.8741 | I18: 130351.2814 | J18: 130035.362 | K18: 126492.2773
C19: Augmentation LV | D19: net circuit KM added | E19: 1.64 | F19: 1.64 | G19: 1.73 | H19: 1.69 | I19: 1.61 | J19: 1.6 | K19: 1.58
C20: Augmentation LV | D20: total spend $0's | E20: 27882.82835 | F20: 36775.58118 | G20: 36285.51168 | H20: 36219.23476 | I20: 35330.90288 | J20: 35323.69766 | K20: 34339.82787
C21: Mean days to connect residential customer with LV single phase connection | D21: 0's | E21: 9 | F21: 9 | G21: 9 | H21: 9
C22: Volume of GSL breaches for residential customers | D22: 0's | E22: 0 | F22: 0 | G22: 0 | H22: 0
C23: Volume of customer complaints relating to connection services | D23: 0's | E23: 130 | F23: 130 | G23: 130 | H23: 130
C24: GSL payments | D24: $0's | E24: 0 | F24: 0 | G24: 0 | H24: 0
B25: COMMERCIAL/INDUSTRIAL | C25: Underground connections | D25: 0's | E25: 130 | F25: 129 | G25: 148 | H25: 141 | I25: 123 | J25: 120 | K25: 116
C26: Overhead connections | D26: 0's | E26: 303 | F26: 302 | G26: 345 | H26: 328 | I26: 287 | J26: 280 | K26: 271
C27: Distribution substations installed | D27: MVA added | E27: 35.72 | F27: 35.56 | G27: 35.56 | H27: 38.69 | I27: 33.82 | J27: 33 | K27: 31.93
C28: Distribution substations installed | D28: 0's | E28: 178 | F28: 177 | G28: 202 | H28: 193 | I28: 168 | J28: 164 | K28: 159
C29: Distribution substations installed | D29: total spend $0's | E29: 107729.8197 | F29: 845005.7414 | G29: 774305.2125 | H29: 811824.8222 | I29: 836104.7788 | J29: 844551.3058 | K29: 851271.1567
C30: Augmentation HV | D30: net circuit KM added | E30: 62.65 | F30: 62.36 | G30: 71.33 | H30: 67.85 | I30: 59.32 | J30: 57.87 | K30: 55.99
C31: Augmentation HV | D31: total spend $0's | E31: 1065158.046 | F31: 1398369.05 | G31: 1496095.692 | H31: 1454127.265 | I31: 1301757.242 | J31: 1277613.99 | K31: 1216890.482
C32: Augmentation LV | D32: net circuit KM added | E32: 7.25 | F32: 7.21 | G32: 8.25 | H32: 7.85 | I32: 6.86 | J32: 6.69 | K32: 6.48
C33: Augmentation LV | D33: total spend $0's | E33: 123262.5034 | F33: 161678.0124 | G33: 173037.8447 | H33: 168237.2739 | I33: 150540.3688 | J33: 147697.2109 | K33: 140836.7624
B34: SUBDIVISION | C34: Underground connections | D34: 0's | E34: 729 | F34: 722 | G34: 974 | H34: 874 | I34: 635 | J34: 598 | K34: 544
C35: Overhead connections | D35: 0's | E35: 111 | F35: 110 | G35: 148 | H35: 133 | I35: 97 | J35: 91 | K35: 83
C36: Distribution substations installed | D36: MVA added | E36: 5.16 | F36: 5.11 | G36: 6.9 | H36: 6.19 | I36: 4.5 | J36: 4.24 | K36: 3.85
C37: Distribution substations installed | D37: 0's | E37: 23 | F37: 22 | G37: 30 | H37: 27 | I37: 20 | J37: 19 | K37: 17
C38: Distribution substations installed | D38: total spend $0's | E38: 15562.31438 | F38: 121427.9904 | G38: 150244.8247 | H38: 129883.5784 | I38: 111249.8966 | J38: 108512.0466 | K38: 102643.0928
C39: Augmentation HV | D39: net circuit KM added | E39: 5.12 | F39: 5.07 | G39: 6.84 | H39: 6.14 | I39: 4.46 | J39: 4.2 | K39: 3.82
C40: Augmentation HV | D40: total spend $0's | E40: 87048.82997 | F40: 113690.3638 | G40: 143464.104 | H40: 131589.4091 | I40: 97873.18438 | J40: 92724.70637 | K40: 83024.1408
C41: Augmentation LV | D41: net circuit KM added | E41: 16.42 | F41: 16.27 | G41: 21.94 | H41: 19.69 | I41: 14.31 | J41: 13.47 | K41: 12.26
C42: Augmentation LV | D42: total spend $0's | E42: 279168.318 | F42: 364840.6742 | G42: 460175.7955 | H42: 421986.2322 | I42: 314028.0871 | J42: 297381.3797 | K42: 266459.677
C43: Cost per lot | D43: $0's | E43: 5320.42 | F43: 5320.42 | G43: 5320.42 | H43: 5320.42 | I43: 5320.42 | J43: 5320.42 | K43: 5320.42
B44: EMBEDDED GENERATION | C44: Underground connections | D44: 0's | E44: 709 | F44: 709 | G44: 709 | H44: 709 | I44: 709 | J44: 709 | K44: 709
C45: Overhead connections | D45: 0's | E45: 1654 | F45: 1654 | G45: 1654 | H45: 1654 | I45: 1654 | J45: 1654 | K45: 1654
C46: Distribution substations installed | D46: MVA added | E46: 0.98 | F46: 0.98 | G46: 0.98 | H46: 0.98 | I46: 0.98 | J46: 0.98 | K46: 0.98
C47: Distribution substations installed | D47: 0's | E47: 8.32 | F47: 8.32 | G47: 8.32 | H47: 8.32 | I47: 8.32 | J47: 8.32 | K47: 8.32
C48: Distribution substations installed | D48: total spend $0's | E48: 2955.633351 | F48: 23287.5598 | G48: 21339.12003 | H48: 20563.15135 | I48: 24227.75527 | J48: 25080.61454 | K48: 26127.33271
C49: Augmentation HV | D49: net circuit KM added | E49: 0.71 | F49: 0.71 | G49: 0.71 | H49: 0.71 | I49: 0.71 | J49: 0.71 | K49: 0.71
C50: Augmentation HV | D50: total spend $0's | E50: 12071.22447 | F50: 15921.13575 | G50: 14891.74179 | H50: 15216.3649 | I50: 15580.70872 | J50: 15674.89084 | K50: 15431.18847
C51: Augmentation LV | D51: net circuit KM added | E51: 0.36 | F51: 0.36 | G51: 0.36 | H51: 0.36 | I51: 0.36 | J51: 0.36 | K51: 0.36
C52: Augmentation LV | D52: total spend $0's | E52: 6120.620857 | F52: 8072.688551 | G52: 7550.742314 | H52: 7715.339948 | I52: 7900.077663 | J52: 7947.831974 | K52: 7824.264578
B60: 2.5.2 COST METRICS BY CONNECTION CLASSIFICATION
B61: CONNECTION SUBCATEGORY | C61: CONNECTION CLASSICIATION | E61: =CONCATENATE("EXPENDITURE ($'0s, real ", dms_DollarReal,")") -> EXPENDITURE ($'0s, real June 2017) | M61: VOLUMES (0's)
E62: =CRCP_y4 -> 2015-16 | F62: =CRCP_y5 -> 2016-17 | G62: =FRCP_y1 -> 2017-18 | H62: =FRCP_y2 -> 2018-19 | I62: =FRCP_y3 -> 2019-20 | J62: =FRCP_y4 -> 2020-21 | K62: =FRCP_y5 -> 2021-22 | M62: =CRCP_y5 -> 2016-17 | N62: =FRCP_y1 -> 2017-18 | O62: =FRCP_y1 -> 2017-18 | P62: =FRCP_y2 -> 2018-19 | Q62: =FRCP_y3 -> 2019-20 | R62: =FRCP_y4 -> 2020-21 | S62: =FRCP_y5 -> 2021-22
B63: RESIDENTIAL | C63: Simple connection LV | E63: 682555.3556 | F63: 871660.5441 | G63: 760522.3535 | H63: 773903.0065 | L63: ED_CON252_00001 | M63: 2025.171446 | N63: 2022.316544 | O63: 2131.368465 | P63: 2088.293652
C64: Complex connection LV | E64: 707389.2236 | F64: 28425.60549 | G64: 18529.11343 | H64: 19074.50355 | L64: ED_CON252_00002 | M64: 178.5835923 | N64: 177.8336622 | O64: 206.4795935 | P64: 195.1646333
C65: Complex connection HV | E65: 2052584.676 | F65: 1251951.254 | G65: 816079.2498 | H65: 840099.9108 | L65: ED_CON252_00003 | M65: 234.5037071 | N65: 233.5189503 | O65: 271.1348197 | P65: 256.2767912
B66: COMMERCIAL/INDUSTRIAL | C66: Simple connection LV | E66: 145795.1363 | F66: 185753.2617 | G66: 175848.0214 | H66: 173578.6505 | L66: ED_CON252_00004 | M66: 432.5805148 | N66: 430.9612232 | O66: 492.8151366 | P66: 468.3832353
C67: Complex connection HV (customer connected at LV, minor HV works) | E67: 0 | F67: 0 | G67: 0 | H67: 0 | L67: ED_CON252_00005 | M67: 0 | N67: 0 | O67: 0 | P67: 0
C68: Complex connection HV (customer connected at LV, upstream asset works) | E68: 10869107.82 | F68: 15268192.29 | G68: 13238340.98 | H68: 13276534.39 | L68: ED_CON252_00006 | M68: 253.9867257 | N68: 252.0739354 | O68: 325.13895 | P68: 296.2787353
C69: Complex connection HV (customer connected at HV) | E69: 11349.28493 | F69: 15942.71282 | G69: 13823.18643 | H69: 13863.06716 | L69: ED_CON252_00007 | M69: 2.430494983 | N69: 2.41219077 | O69: 3.111377512 | P69: 2.835203209
C70: Complex connection sub-transmission | E70: 0 | F70: 0 | G70: 0 | H70: 0 | L70: ED_CON252_00008 | M70: 0 | N70: 0 | O70: 0 | P70: 0
B71: SUBDIVISION | C71: Complex connection LV | E71: 1157880.618 | F71: 1090554.618 | G71: 1141002.804 | H71: 1115090.891 | L71: ED_CON252_00009 | M71: 378.5798619 | N71: 375.1541437 | O71: 506.0101792 | P71: 454.3228799
C72: Complex connection HV (no upstream asset works) | E72: 0 | F72: 0 | G72: 0 | H72: 0 | L72: ED_CON252_00010 | M72: 0 | N72: 0 | O72: 0 | P72: 0
C73: Complex connection HV (with upstream asset works) | E73: 2948034.62 | F73: 2776618.522 | G73: 2905062.678 | H73: 2839089.368 | L73: ED_CON252_00011 | M73: 460.9521835 | N73: 456.7810892 | O73: 616.1090973 | P73: 553.1755504
B74: EMBEDDED GENERATION | C74: Simple connection LV | E74: 37221.59715 | F74: 0 | G74: 0 | H74: 0 | L74: ED_CON252_00012 | M74: 2362 | N74: 2362 | O74: 2362 | P74: 2362
C75: Complex connection HV (small capacity) | E75: 1179.826762 | F75: 0 | G75: 0 | H75: 0 | L75: ED_CON252_00013 | M75: 1 | N75: 1 | O75: 1 | P75: 1
C76: Complex connection HV (large capacity) | E76: 0 | F76: 0 | G76: 0 | H76: 0 | L76: ED_CON252_00014 | M76: 0 | N76: 0 | O76: 0 | P76: 0

Sheet 2.6 Non-network
B1: =SheetHeader -> REGULATORY REPORTING STATEMENT
B2: =dms_TradingName -> TasNetworks (D)
B3: =dms_Reg_Year_Span -> 2017-18 to 2018-19
B4: 2.6 NON NETWORK EXPENDITURE
B7: TABLE 2.6.1 NON-NETWORK EXPENDITURE | M7: TABLE 2.6.2 ANNUAL DESCRIPTOR METRICS - IT & COMMUNICATIONS EXPENDITURE
E8: =CONCATENATE("EXPENDITURE ($'0s, real ", dms_DollarReal,")") -> EXPENDITURE ($'0s, real June 2017) | M8: DESCRIPTOR METRIC | P8: VOLUMES (0's)
B9: SERVICE SUBCATEGORY | C9: ASSET CATEGORY | D9: ASSET REPORTING CATEGORY | E9: =CRCP_y4 -> 2015-16 | F9: =CRCP_y5 -> 2016-17 | G9: =FRCP_y1 -> 2017-18 | H9: =FRCP_y2 -> 2018-19 | I9: =FRCP_y3 -> 2019-20 | J9: =FRCP_y4 -> 2020-21 | K9: =FRCP_y5 -> 2021-22 | P9: =CRCP_y4 -> 2015-16 | Q9: =CRCP_y5 -> 2016-17 | R9: =FRCP_y1 -> 2017-18 | S9: =FRCP_y2 -> 2018-19 | T9: =FRCP_y3 -> 2019-20 | U9: =FRCP_y4 -> 2020-21 | V9: =FRCP_y5 -> 2021-22
B10: IT & COMMUNICATIONS | C10: Client device expenditure | D10: Opex | E10: 4481396.172 | F10: 4372224.643 | G10: 4260352.893 | H10: 4156441.867 | M10: Employee numbers | P10: 530.981479 | Q10: 530.981479 | R10: 530.981479 | S10: 530.981479 | T10: 530.981479 | U10: 530.981479 | V10: 530.981479
D11: Capex | E11: 1705105.797 | F11: 943066.3451 | G11: 1077572.064 | H11: 2165124.687 | I11: 2829049.725 | J11: 3139696.063 | K11: 3055044.431 | M11: User numbers | P11: 610.6212 | Q11: 610.6212 | R11: 610.6212 | S11: 610.6212 | T11: 610.6212 | U11: 610.6212 | V11: 610.6212
C12: Recurrent expenditure | D12: Opex | E12: 7482142.22 | F12: 7299869.359 | G12: 7113088.204 | H12: 6939598.283 | M12: Number of devices | P12: 1451.0232 | Q12: 1451.0232 | R12: 1451.0232 | S12: 1451.0232 | T12: 1451.0232 | U12: 1451.0232 | V12: 1451.0232
D13: Capex | E13: 7511273.647 | F13: 4154363.558 | G13: 4746883.545 | H13: 9537733.104 | I13: 12462432.94 | J13: 13830881.55 | K13: 13457977.08
C14: Non-recurrent expenditure | D14: Opex
D15: Capex | E15: 6604156.965 | F15: 14145204.12 | G15: 8419104.64 | H15: 0 | I15: 0 | J15: 0 | K15: 0
B16: MOTOR VEHICLES | C16: Car | D16: Opex | E16: 939766.5125 | F16: 916872.811 | G16: 893412.8621 | H16: 871622.3088
D17: Capex | E17: 385502.9317 | F17: 447965.2127 | G17: 350513.4552 | H17: 347154.9043 | I17: 376575.2832 | J17: 359126.6752 | K17: 343755.0009
C18: Light commercial vehicle | D18: Opex | E18: 2621453.956 | F18: 2557592.579 | G18: 2492151.668 | H18: 2431367.493
D19: Capex | E19: 1075350.284 | F19: 1249587.173 | G19: 977748.0596 | H19: 968379.4704 | I19: 1050446.843 | J19: 1001774.41 | K19: 958895.5292
C20: Elevated work platform (LCV) | D20: Opex | E20: 0 | F20: 0 | G20: 0 | H20: 0 | M20: TABLE 2.6.3 ANNUAL DESCRIPTOR METRICS - MOTOR VEHICLES
D21: Capex | E21: 0 | F21: 0 | G21: 0 | H21: 0 | I21: 0 | J21: 0 | K21: 0 | M21: DESCRIPTOR METRIC | O21: Unit of Measure | P21: VOLUMES (0's or %)
C22: Elevated work platform (HCV) | D22: Opex | E22: 49461.39575 | F22: 48256.46409 | G22: 47021.72992 | H22: 45874.85869 | P22: =CRCP_y4 -> 2015-16 | Q22: =CRCP_y5 -> 2016-17 | R22: =FRCP_y1 -> 2017-18 | S22: =FRCP_y2 -> 2018-19 | T22: =FRCP_y3 -> 2019-20 | U22: =FRCP_y4 -> 2020-21 | V22: =FRCP_y5 -> 2021-22
D23: Capex | E23: 633117.4823 | F23: 509458.2807 | G23: 971619.3909 | H23: 1001961.571 | I23: 808541.2794 | J23: 774079.8833 | K23: 740946.9955 | M23: CAR | N23: Average kilometres travelled | O23: 0's | P23: 20511 | Q23: 20511 | R23: 20511 | S23: 20511 | T23: 20511 | U23: 20511 | V23: 20511
C24: Heavy commercial vehicle | D24: Opex | E24: 0 | F24: 0 | G24: 0 | H24: 0 | N24: Number purchased | O24: 0's | P24: 15.90998413 | Q24: 25.94890233 | R24: 12.24295526 | S24: 18.17709308 | T24: 18.17709308 | U24: 18.17709308 | V24: 18.17709308
D25: Capex | E25: 415575.919 | F25: 219274.335 | G25: 156294.1066 | H25: 142820.7277 | I25: 162479.0914 | J25: 151948.2786 | K25: 145444.4469 | N25: Number leased | O25: 0's
B26: BUILDINGS AND PROPERTY | C26: Total buildings and property expenditure | D26: Opex | E26: 3020642.797 | F26: 2947056.758 | G26: 2871650.66 | H26: 2801610.414 | N26: Number in fleet | O26: 0's | P26: 87.0977201 | Q26: 87.0977201 | R26: 87.0977201 | S26: 87.0977201 | T26: 87.0977201 | U26: 87.0977201 | V26: 87.0977201
D27: Capex | E27: 552198.0158 | F27: 229471.8681 | G27: 205951.6479 | H27: 191798.0666 | I27: 235940.6367 | J27: 225008.3322 | K27: 215377.3161 | N27: Proportion of total fleet expenditure allocated as regulatory expenditure | O27: % | P27: 78.38 | Q27: 78.38 | R27: 78.38 | S27: 78.38 | T27: 78.38 | U27: 78.38 | V27: 78.38
B28: OTHER | C28: Other expenditure | D28: Opex | M28: LIGHT COMMERCIAL VEHICLE | N28: Average kilometres travelled | O28: 0's | P28: 21128 | Q28: 21128 | R28: 21128 | S28: 21128 | T28: 21128 | U28: 21128 | V28: 21128
D29: Capex | E29: 3695739.05 | F29: 2093115.002 | G29: 1656179.544 | H29: 2490472.835 | I29: 2708024.395 | J29: 1723500.322 | K29: 2421483.922 | N29: Number purchased | O29: 0's | P29: 29.92781367 | Q29: 47.72995238 | R29: 24.88976346 | S29: 36.03564844 | T29: 35.0217268 | U29: 35.0217268 | V29: 35.0217268
B30: OTHER - DNSP nominated | C30: Office furniture and equipment | D30: Opex | N30: Number leased | O30: 0's
D31: Capex | N31: Number in fleet | O31: 0's | P31: 191.9278137 | Q31: 191.9278137 | R31: 191.9278137 | S31: 191.9278137 | T31: 191.9278137 | U31: 191.9278137 | V31: 191.9278137
C32: Plant and equipment | D32: Opex | N32: Proportion of total fleet expenditure allocated as regulatory expenditure | O32: % | P32: 78.38 | Q32: 78.38 | R32: 78.38 | S32: 78.38 | T32: 78.38 | U32: 78.38 | V32: 78.38
D33: Capex | M33: ELEVATED WORK PLATFORM (LCV) | N33: Average kilometres travelled | O33: 0's
C34: Crane borer plant HCV | D34: Opex | N34: Number purchased | O34: 0's
D35: Capex | N35: Number leased | O35: 0's
C36: Other fleet assets | D36: Opex | N36: Number in fleet | O36: 0's
D37: Capex | N37: Proportion of total fleet expenditure allocated as regulatory expenditure | O37: %
C38: EWP Hired | D38: Opex | M38: ELEVATED WORK PLATFORM (HCV) | N38: Average kilometres travelled | O38: 0's | P38: 16843 | Q38: 16843 | R38: 16843 | S38: 16843 | T38: 16843 | U38: 16843 | V38: 16843
D39: Capex | N39: Number purchased | O39: 0's | P39: 8 | Q39: 2 | R39: 16 | S39: 10 | T39: 6.791550916 | U39: 6.952714132 | V39: 7.117701745
C40: Car Hired | D40: Opex | N40: Number leased | O40: 0's
D41: Capex | N41: Number in fleet | O41: 0's | P41: 40 | Q41: 40 | R41: 40 | S41: 40 | T41: 40 | U41: 40 | V41: 40
C42: LCV Hired | D42: Opex | N42: Proportion of total fleet expenditure allocated as regulatory expenditure | O42: % | P42: 78.38 | Q42: 78.38 | R42: 78.38 | S42: 78.38 | T42: 78.38 | U42: 78.38 | V42: 78.38
D43: Capex | M43: HEAVY COMMERCIAL VEHICLE | N43: Average kilometres travelled | O43: 0's | P43: 11638 | Q43: 11638 | R43: 11638 | S43: 11638 | T43: 11638 | U43: 11638 | V43: 11638
C44: Other Hire | D44: Opex | N44: Number purchased | O44: 0's | P44: 5 | Q44: 0 | R44: 5 | S44: 1 | T44: 2.75 | U44: 2.75 | V44: 2.75
D45: Capex | N45: Number leased | O45: 0's
D46: Opex | N46: Number in fleet | O46: 0's | P46: 28 | Q46: 28 | R46: 28 | S46: 28 | T46: 28 | U46: 28 | V46: 28
D47: Capex | N47: Proportion of total fleet expenditure allocated as regulatory expenditure | O47: % | P47: 78.38 | Q47: 78.38 | R47: 78.38 | S47: 78.38 | T47: 78.38 | U47: 78.38 | V47: 78.38
D48: Opex
D49: Capex
D50: Opex
D51: Capex

Sheet 2.10 Overheads
B1: =SheetHeader -> REGULATORY REPORTING STATEMENT | D1: Worksheet navigation
B2: =dms_TradingName -> TasNetworks (D)
B3: =dms_Reg_Year_Span -> 2017-18 to 2018-19
B4: 2.10 OVERHEADS
B7: TABLE 2.10.1 - NETWORK OVERHEADS EXPENDITURE
C8: Expenditure categories currently reported under annual RIN | D8: =CONCATENATE("EXPENDITURE ($0's, real ", dms_DollarReal,")") -> EXPENDITURE ($0's, real June 2017)
D9: =CRCP_y4 -> 2015-16 | E9: =CRCP_y5 -> 2016-17 | F9: =FRCP_y1 -> 2017-18 | G9: =FRCP_y2 -> 2018-19 | H9: =FRCP_y3 -> 2019-20 | I9: =FRCP_y4 -> 2020-21 | J9: =FRCP_y5 -> 2021-22
B10: Total Overhead Expenditure - Standard Control Services | C10: Network management | D10: 10205819.95 | E10: 10131613.52 | F10: 9795503.019 | G10: 9559606.166
C11: Network planning | D11: 4787528.922 | E11: 4752718.837 | F11: 4595050.101 | G11: 4484391.378
C12: Network control and operational switching | D12: 2826437.767 | E12: 2805886.761 | F12: 2712803.068 | G12: 2647472.916
C13: Quality and standard functions | D13: 3434385.606 | E13: 3409414.216 | F13: 3296308.844 | G13: 3216926.614
C14: Project governance and related functions | D14: 4360678.804 | E14: 4328972.343 | F14: 4185361.155 | G14: 4084568.626
C15: Other - DNSP to nominate | D15: 19071448.7 | E15: 18932780.35 | F15: 18304696.16 | G15: 17863879.58
C16: other expenditure categories currently reported under annual rin :
C17: Other - Customer Support | D17: 1438539.142 | E17: 1419843.02 | F17: 1335160.839 | G17: 1275727.23
C18: Other - Meter services | D18: 0 | E18: 0 | F18: 0 | G18: 0
C19: Other - Safety | D19: 668138.3187 | E19: 659454.7905 | F19: 620123.6327 | G19: 592519.3289
C20: Other - Business Support | D20: 637238.4657 | E20: 628956.5305 | F20: 591444.3479 | G20: 565116.6794
C21: Other - Operating Costs | D21: 0 | E21: 0 | F21: 0 | G21: 0
C22: Other - Business Costs | D22: 1059961.475 | E22: 1046185.577 | F22: 983789.0481 | G22: 939996.4714
C23: Other - Field Services | D23: 4932385.811 | E23: 4868281.553 | F23: 4577927.835 | G23: 4374145.067
C24: Other - Training | D24: 340945.4898 | E24: 336514.3567 | F24: 316443.9903 | G24: 302357.7411
C25: Other - Non network IT & Expenditure | D25: 341081.2869 | E25: 336648.389 | F25: 316570.0286 | G25: 302478.1689
C26: Other - NEM and contestability related costs | D26: 541288.9795 | E26: 541288.9795 | F26: 541288.9795 | G26: 541288.9795
C27: Other - Electrical Safety | D27: 0 | E27: 0 | F27: 0 | G27: 0
C28: Other - Trunk Mobile Radio | D28: 1251294.568 | E28: 1235031.989 | F28: 1161372.295 | G28: 1109674.744
C29: Other - GSL | D29: 3654250.101 | E29: 3654250.101 | F29: 3654250.101 | G29: 3654250.101
C30: Other - Electricial Safety Levy | D30: 0 | E30: 0 | F30: 0 | G30: 0
C31: Other - National Electricity Market Levy | D31: 415052.1709 | E31: 415052.1709 | F31: 415052.1709 | G31: 415052.1709
C32: Other - Electrical Inspectors Charges | D32: 3791272.894 | E32: 3791272.894 | F32: 3791272.894 | G32: 3791272.894
B37: Total Overhead Expenditure - Alternative Control Services | C37: Network management | D37: 2393175.674 | E37: 2375774.913 | F37: 2296959.935 | G37: 2241644.183
C38: Network planning | D38: 690735.4795 | E38: 685713.1474 | F38: 662965.0049 | G38: 646999.3768
C39: Network control and operational switching | D39: 372952.0759 | E39: 370240.3444 | F39: 357957.8321 | G39: 349337.435
C40: Quality and standard functions | D40: 604788.2199 | E40: 600390.8095 | F40: 580473.1869 | G40: 566494.1399
C41: Project governance and related functions | D41: 924572.1314 | E41: 917849.5748 | F41: 887400.4388 | G41: 866029.9211
C42: Other - DNSP to nominate | D42: 4349442.727 | E42: 4317817.964 | F42: 4174576.816 | G42: 4074043.997
C43: other expenditure categories currently reported under annual rin : | D43: 0 | E43: 0 | F43: 0 | G43: 0
C44: Other - Non network IT & Expenditure | D44: 122031.3614 | E44: 122031.3614 | F44: 122031.3614 | G44: 122031.3614
C45: Other - Customer Support | D45: 1605451.492 | E45: 1605451.492 | F45: 1605451.492 | G45: 1605451.492
C46: Other - Meter services | D46: 0 | E46: 0 | F46: 0 | G46: 0
C47: Other - Safety | D47: 213272.2016 | E47: 213272.2016 | F47: 213272.2016 | G47: 213272.2016
C48: Other - Business Support | D48: 203408.8551 | E48: 203408.8551 | F48: 203408.8551 | G48: 203408.8551
C49: Other - Electricial Safety Levy | D49: 0 | E49: 0 | F49: 0 | G49: 0
C50: Other - Operating Costs | D50: 0 | E50: 0 | F50: 0 | G50: 0
C51: Other - Business Costs | D51: 338343.59 | E51: 338343.59 | F51: 338343.59 | G51: 338343.59
C52: Other - Field Services | D52: 1574435.639 | E52: 1574435.639 | F52: 1574435.639 | G52: 1574435.639
C53: Other - Training | D53: 194238.5554 | E53: 194238.5554 | F53: 194238.5554 | G53: 194238.5554
C54: Other - GSL | D54: 0 | E54: 0 | F54: 0 | G54: 0
C55: Other - National Electricity Market Levy | D55: 98261.03239 | E55: 98261.03239 | F55: 98261.03239 | G55: 98261.03239
C56: Other - NEM and contestability related costs | D56: 0 | E56: 0 | F56: 0 | G56: 0
C57: Other - Electrical Safety | D57: 0 | E57: 0 | F57: 0 | G57: 0
C58: Other - Trunk Mobile Radio | D58: 0 | E58: 0 | F58: 0 | G58: 0
C59: Other - Electrical Inspectors Charges | D59: 0 | E59: 0 | F59: 0 | G59: 0
B64: Total Overhead Expenditure - Negotiated Services | C64: Total
B65: Total Overhead Expenditure - Unregulated Services | C65: Total | D65: 759904.7882 | E65: 740907.1685 | F65: 722384.4893 | G65: 704324.8771
B66: Capitalised Overheads - Standard Control Services | C66: Network management | D66: 6396767.512 | E66: 6470036.328 | F66: 6201549.662 | G66: 6058097.853 | H66: 5920823.247 | I66: 5939802.743 | J66: 5727345.036
C67: Network planning | D67: 3606988.685 | E67: 3648303.269 | F67: 3496909.872 | G67: 3416020.727 | H67: 3338614.764 | I67: 3349316.861 | J67: 3229516.893
C68: Network control and operational switching | D68: 2357260.751 | E68: 2384260.904 | F68: 2285321.389 | G68: 2232458.233 | H68: 2181871.426 | I68: 2188865.524 | J68: 2110573.135
C69: Quality and standard functions | D69: 2596604.656 | E69: 2626346.263 | F69: 2517360.948 | G69: 2459130.344 | H69: 2403407.218 | I69: 2411111.46 | J69: 2324869.672
C70: Project governance and related functions | D70: 2524395.873 | E70: 2553310.398 | F70: 2447355.847 | G70: 2390744.574 | H70: 2336571.048 | I70: 2344061.043 | J70: 2260217.546
C71: Other | D71: 4250657.821 | E71: 4299345.016 | F71: 4120935.382 | G71: 4025611.525 | H71: 3934392.425 | I71: 3947004.317 | J71: 3805825.978
C72: other expenditure categories currently reported under annual rin : | D72: 0 | E72: 0 | F72: 0 | G72: 0 | H72: 0 | I72: 0 | J72: 0
C73: Other - Business Costs | D73: 617388.8586 | E73: 624460.4539 | F73: 598547.2601 | G73: 584701.9001 | H73: 571452.7376 | I73: 573284.558 | J73: 552779.0416
C74: Other - Business Support | D74: 371168.1397 | E74: 375419.5136 | F74: 359840.7551 | G74: 351517.0602 | H74: 343551.7934 | I74: 344653.0659 | J74: 332325.3501
C75: Other - Field Services | D75: 2872934.646 | E75: 2905841.348 | F75: 2785257.844 | G75: 2720830.354 | H75: 2659177.188 | I75: 2667701.313 | J75: 2572281.696
C76: Other - Meter services | D76: 0 | E76: 0 | F76: 0 | G76: 0 | H76: 0 | I76: 0 | J76: 0
C77: Other - Safety | D77: 389166.176 | E77: 393623.7 | F77: 377289.5236 | G77: 368562.2107 | H77: 360210.706 | I77: 361365.3795 | J77: 348439.8897
C78: Other - Training | D78: 0 | E78: 0 | F78: 0 | G78: 0 | H78: 0 | I78: 0 | J78: 0
B95: TABLE 2.10.2 - CORPORATE OVERHEADS EXPENDITURE
C96: Expenditure categories currently reported under annual RIN | D96: =CONCATENATE("EXPENDITURE ($0's, real ", dms_DollarReal,")") -> EXPENDITURE ($0's, real June 2017)
D97: =CRCP_y4 -> 2015-16 | E97: =CRCP_y5 -> 2016-17 | F97: =FRCP_y1 -> 2017-18 | G97: =FRCP_y2 -> 2018-19 | H97: =FRCP_y3 -> 2019-20 | I97: =FRCP_y4 -> 2020-21 | J97: =FRCP_y5 -> 2021-22
B98: Total Overhead Expenditure - Standard Control Services | C98: Accounts Payable | D98: 161786.8031 | E98: 158612.3689 | F98: 154248.7318 | G98: 150435.7548
C99: Audit and Risk | D99: 178110.4671 | E99: 174615.7448 | F99: 169811.8335 | G99: 165614.1419
C100: Facilities | D100: 904757.8271 | E100: 887005.4879 | F100: 862602.7879 | G100: 841279.5361
C101: Finance & Regulatory Services | D101: 1077298.353 | E101: 1056160.58 | F101: 1027104.199 | G101: 1001714.527
C102: Human Resources Services | D102: 1678827.1 | E102: 1645886.674 | F102: 1600606.144 | G102: 1561039.697
C103: Non-Network IT Support | D103: 5282954.098 | E103: 5179296.754 | F103: 5036807.416 | G103: 4912299.225
C104: Legal | D104: 411993.2911 | E104: 403909.5316 | F104: 392797.4435 | G104: 383087.6224
C105: Office of the CEO | D105: 383844.1536 | E105: 376312.7111 | F105: 365959.8482 | G105: 356913.4434
C106: Strategy and Stakeholder Relations | D106: 1898386.517 | E106: 1861138.095 | F106: 1809935.712 | G106: 1765194.708
C107: Other Corporate Costs | D107: -748979.1481 | E107: -734283.3572 | F107: -714082.246 | G107: -696430.3722
C108: Treasury | D108: 146062.3039 | E108: 143196.4016 | F108: 139256.8782 | G108: 135814.4949
C109: Treasury insurance | D109: 470921.4277 | E109: 461681.4337 | F109: 448979.9637 | G109: 437881.3295
B118: Total Overhead Expenditure - Alternative Control Services | C118: Accounts Payable | D118: 49185.08009 | E118: 48220.01497 | F118: 46893.41826 | G118: 45734.22868
C119: Audit and Risk | D119: 27559.2135 | E119: 27018.47156 | F119: 26275.15749 | G119: 25625.64441
C120: Facilities | D120: 267649.9587 | E120: 262398.3735 | F120: 255179.4454 | G120: 248871.4951
C121: Finance & Regulatory Services | D121: 166691.4685 | E121: 163420.7994 | F121: 158924.876 | G121: 154996.3063
C122: Human Resources Services | D122: 259766.6225 | E122: 254669.717 | F122: 247663.4146 | G122: 241541.258
C123: Non-Network IT Support | D123: 817436.854 | E123: 801397.8479 | F123: 779350.3279 | G123: 760085.049
C124: Legal | D124: 63748.14043 | E124: 62497.33212 | F124: 60777.94744 | G124: 59275.53695
C125: Office of the CEO | D125: 59392.5958 | E125: 58227.24804 | F125: 56625.33905 | G125: 55225.57965
C126: Strategy and Stakeholder Relations | D126: 459544.0578 | E126: 450527.3003 | F126: 438132.6954 | G126: 427302.202
C127: Other Corporate Costs | D127: -107112.895 | E127: -105011.2227 | F127: -102122.2244 | G127: -99597.79726
C128: Treasury | D128: 38305.70958 | E128: 37554.10962 | F128: 36520.94614 | G128: 35618.1606
C129: Treasury Insurance | D129: 72866.15087 | E129: 71436.43721 | F129: 69471.12586 | G129: 67753.82292
B138: Total Overhead Expenditure - Negotiated Services | C138: Total
B139: Total Overhead Expenditure - Unregulated Services | C139: Total | D139: 592624.6516 | E139: 577809.0353 | F139: 563363.8094 | G139: 549279.7142
B140: Capitalised Overheads - Standard Control Services | C140: Accounts Payable | D140: 0 | E140: 0 | F140: 0 | G140: 0 | H140: 0 | I140: 0 | J140: 0
C141: Audit and Risk | D141: 0 | E141: 0 | F141: 0 | G141: 0 | H141: 0 | I141: 0 | J141: 0
C142: Facilities | D142: 832883.4002 | E142: 842423.2781 | F142: 807465.2955 | G142: 788787.3257 | H142: 770913.6511 | I142: 773384.8535 | J142: 745722.054
C143: Finance & Regulatory Services | D143: 0 | E143: 0 | F143: 0 | G143: 0 | H143: 0 | I143: 0 | J143: 0
C144: Human Resources Services | D144: 1233529.736 | E144: 1247658.632 | F144: 1195884.625 | G144: 1168221.892 | H144: 1141750.349 | I144: 1145410.287 | J144: 1104440.704
C145: Non-Network IT Support | D145: 0 | E145: 0 | F145: 0 | G145: 0 | H145: 0 | I145: 0 | J145: 0
C146: Legal | D146: 0 | E146: 0 | F146: 0 | G146: 0 | H146: 0 | I146: 0 | J146: 0
C147: Office of the CEO | D147: 0 | E147: 0 | F147: 0 | G147: 0 | H147: 0 | I147: 0 | J147: 0
C148: Strategy and Stakeholder Relations | D148: 1564572.55 | E148: 1582493.223 | F148: 1516824.607 | G148: 1481738.016 | H148: 1448162.295 | I148: 1452804.452 | J148: 1400839.847
C149: Other Corporate Costs | D149: -1883077.471 | E149: -1904646.311 | F149: -1825609.33 | G149: -1783380.053 | H149: -1742969.218 | I149: -1748556.393 | J149: -1686013.191

Sheet 2.11 Labour
B1: =SheetHeader -> REGULATORY REPORTING STATEMENT
B2: =dms_TradingName -> TasNetworks (D)
B3: =dms_Reg_Year_Span -> 2017-18 to 2018-19
B4: 2.11 LABOUR
B6: Table numbering in this template starts at 2.11.3. Tables 2.11.1 & 2.11.2 appear in the Category Analysis RIN and are not required for this RIN.
B8: 2.11.3 - LABOUR / NON-LABOUR EXPENDITURE SPLIT - STANDARD CONTROL SERVICES
B10: 2.11.3.1 - Labour Opex
C11: EXPENDITURE
C12: ($0's, nominal) | H12: =CONCATENATE("($0's, real ", dms_DollarReal,")") -> ($0's, real June 2017)
C13: =PRCP_y4 -> 2010-11 | D13: =PRCP_y5 -> 2011-12 | E13: =CRCP_y1 -> 2012-13 | F13: =CRCP_y2 -> 2013-14 | G13: =CRCP_y3 -> 2014-15 | H13: =CRCP_y4 -> 2015-16 | I13: =CRCP_y5 -> 2016-17 | J13: =FRCP_y1 -> 2017-18 | K13: =FRCP_y2 -> 2018-19 | L13: =FRCP_y3 -> 2019-20 | M13: =FRCP_y4 -> 2020-21 | N13: =FRCP_y5 -> 2021-22
B14: In-house labour expenditure | C14: 28020317.5 | D14: 21903161.5 | E14: 21173825.31 | F14: 21868326.94 | G14: 14968295.91 | H14: 15069674.51 | I14: 14709324.93 | J14: 14062422.65 | K14: 13719436.73
B15: Labour expenditure outsourced to related parties
B16: Labour expenditure outsourced to unrelated parties | C16: 233373.73 | D16: 374746.39 | E16: 427565.63 | F16: 843672.97 | G16: 380637.81 | H16: 383215.8274 | I16: 374052.2809 | J16: 357601.8133 | K16: 348879.8179
B17: Controllable non-labour expenditure | C17: 53901058.18 | D17: 70257271.95 | E17: 42639940.98 | F17: 45339364.95 | G17: 41589065.25 | H17: 41870743.35 | I17: 40869520.34 | J17: 39072117.27 | K17: 38119138.8
B18: Uncontrollable non-labour expenditure | C18: 3943161.351 | D18: 5323512.453 | E18: 7816396.636 | F18: 6943602.664 | G18: 7287891.647 | H18: 7337251.724 | I18: 7161801.645 | J18: 6846832.343 | K18: 6679836.432
B19: Total | C19: =SUM(C14:C18) -> 86097910.76 | D19: =SUM(D14:D18) -> 97858692.29 | E19: 72057728.56 | F19: 74994967.52 | G19: 64225890.62 | H19: 64660885.4 | I19: =SUM(I14:I18) -> 63114699.19 | J19: 60338974.07 | K19: 58867291.77 | L19: 0 | M19: 0 | N19: 0
B21: 2.11.3.2 - Labour Capex
C22: EXPENDITURE
C23: ($0's, nominal) | H23: =CONCATENATE("($0's, real ", dms_DollarReal,")") -> ($0's, real June 2017)
C24: =PRCP_y4 -> 2010-11 | D24: =PRCP_y5 -> 2011-12 | E24: =CRCP_y1 -> 2012-13 | F24: =CRCP_y2 -> 2013-14 | G24: =CRCP_y3 -> 2014-15 | H24: =CRCP_y4 -> 2015-16 | I24: =CRCP_y5 -> 2016-17 | J24: =FRCP_y1 -> 2017-18 | K24: =FRCP_y2 -> 2018-19 | L24: =FRCP_y3 -> 2019-20 | M24: =FRCP_y4 -> 2020-21 | N24: =FRCP_y5 -> 2021-22
B25: In-house labour expenditure | C25: 22842735.42 | D25: 19146633.16 | E25: 19324967.85 | F25: 21162171.06 | G25: 17564581.32 | H25: 21894435.31 | I25: 23207283.41 | J25: 21445169.34 | K25: 19588202.39 | L25: 19533174.67 | M25: 18564289.49 | N25: 17725712.91
B26: Labour expenditure outsourced to related parties
B27: Labour expenditure outsourced to unrelated parties | C27: 478041.54 | D27: 262744.11 | E27: 1112022.6 | F27: 2715629.95 | G27: 183365.55 | H27: 228567.0862 | I27: 242272.5716 | J27: 223876.9715 | K27: 204491.154 | L27: 203916.6918 | M27: 193802.0093 | N27: 185047.6842
B28: Controllable non-labour expenditure | C28: 119202291.7 | D28: 88155896.39 | E28: 75943411.4 | F28: 89564504.4 | G28: 82043710.02 | H28: 102268347.3 | I28: 108400627.1 | J28: 100169837.4 | K28: 91495992.26 | L28: 91238959.2 | M28: 86713321.3 | N28: 82796351.56
B29: Uncontrollable non-labour expenditure | C29: 795697.9593 | D29: 1069303.707 | E29: 4095853.424 | F29: 1130227.506 | G29: 1066437.553 | H29: 1329325.623 | I29: 1409035.494 | J29: 1302048.337 | K29: 1189302.166 | L29: 1185961.146 | M29: 1127135.062 | N29: 1076220.694
B30: Total | C30: =SUM(C25:C29) -> 143318766.6 | D30: =SUM(D25:D29) -> 108634577.4 | E30: 100476255.3 | F30: 114572532.9 | G30: 100858094.4 | H30: 125720675.3 | I30: =SUM(I25:I29) -> 133259218.6 | J30: =SUM(J25:J29) -> 123140932 | K30: =SUM(K25:K29) -> 112477988 | L30: =SUM(L25:L29) -> 112162011.7 | M30: =SUM(M25:M29) -> 106598547.9 | N30: =SUM(N25:N29) -> 101783332.9

Sheet 2.12 Input tables
B1: =SheetHeader -> REGULATORY REPORTING STATEMENT
B2: =dms_TradingName -> TasNetworks (D)
B3: =dms_Reg_Year_Span -> 2017-18 to 2018-19
B4: 2.12 INPUT TABLES
D7: =CONCATENATE("CONTRACT EXPENDITURE ($0's, real ", dms_DollarReal,")") -> CONTRACT EXPENDITURE ($0's, real June 2017) | K7: =CONCATENATE("OTHER EXPENDITURE ($0's, real ", dms_DollarReal,")") -> OTHER EXPENDITURE ($0's, real June 2017) | R7: =CONCATENATE("RELATED PARTY CONTRACT EXPENDITURE ($0's, real ", dms_DollarReal,")") -> RELATED PARTY CONTRACT EXPENDITURE ($0's, real June 2017) | Y7: =CONCATENATE("RELATED PARTY CONTRACT MARGIN EXPENDITURE ($0's, real ", dms_DollarReal,")") -> RELATED PARTY CONTRACT MARGIN EXPENDITURE ($0's, real June 2017)
D8: =CRCP_y4 -> 2015-16 | E8: =CRCP_y5 -> 2016-17 | F8: =FRCP_y1 -> 2017-18 | G8: =FRCP_y2 -> 2018-19 | H8: =FRCP_y3 -> 2019-20 | I8: =FRCP_y4 -> 2020-21 | J8: =FRCP_y5 -> 2021-22 | K8: =CRCP_y4 -> 2015-16 | L8: =CRCP_y5 -> 2016-17 | M8: =FRCP_y1 -> 2017-18 | N8: =FRCP_y2 -> 2018-19 | O8: =FRCP_y3 -> 2019-20 | P8: =FRCP_y4 -> 2020-21 | Q8: =FRCP_y5 -> 2021-22 | R8: =CRCP_y4 -> 2015-16 | S8: =CRCP_y5 -> 2016-17 | T8: =FRCP_y1 -> 2017-18 | U8: =FRCP_y2 -> 2018-19 | V8: =FRCP_y3 -> 2019-20 | W8: =FRCP_y4 -> 2020-21 | X8: =FRCP_y5 -> 2021-22 | Y8: =CRCP_y4 -> 2015-16 | Z8: =CRCP_y5 -> 2016-17 | AA8: =FRCP_y1 -> 2017-18 | AB8: =FRCP_y2 -> 2018-19 | AC8: =FRCP_y3 -> 2019-20 | AD8: =FRCP_y4 -> 2020-21 | AE8: =FRCP_y5 -> 2021-22
B9: VEGETATION MANAGEMENT | C9: ZONE 1 | D9: 10422326.18 | E9: 9736878.069 | F9: 9786665.027 | G9: 9480975.435 | K9: 317702.4798 | L9: 296808.0499 | M9: 298325.6996 | N9: 289007.4016 | R9: 0 | S9: 0 | T9: 0 | U9: 0 | Y9: 0 | Z9: 0 | AA9: 0 | AB9: 0
C10: ZONE 2 | D10: 87921.69049 | E10: 82139.31952 | F10: 82559.31727 | G10: 79980.55076 | K10: 2680.106017 | L10: 2503.842718 | M10: 2516.645457 | N10: 2438.037237 | R10: 0 | S10: 0 | T10: 0 | U10: 0 | Y10: 0 | Z10: 0 | AA10: 0 | AB10: 0
B31: ROUTINE MAINTENANCE | C31: Pole top, overhead line & service line maintenance | D31: 1086683.956 | E31: 1059516.857 | F31: 1033028.935 | G31: 1007203.212 | K31: 701129.8135 | L31: 683601.5682 | M31: 666511.529 | N31: 649848.7408 | R31: 0 | S31: 0 | T31: 0 | U31: 0 | Y31: 0 | Z31: 0 | AA31: 0 | AB31: 0
C32: Pole inspection and treatment | D32: 754343.452 | E32: 735484.8657 | F32: 717097.7441 | G32: 699170.3005 | K32: 1646263.49 | L32: 1605106.903 | M32: 1564979.231 | N32: 1525854.75 | R32: 0 | S32: 0 | T32: 0 | U32: 0 | Y32: 0 | Z32: 0 | AA32: 0 | AB32: 0
C33: Overhead asset inspection | D33: 11059.91707 | E33: 10783.41914 | F33: 10513.83366 | G33: 10250.98782 | K33: 251460.5193 | L33: 245174.0063 | M33: 239044.6561 | N33: 233068.5397 | R33: 0 | S33: 0 | T33: 0 | U33: 0 | Y33: 0 | Z33: 0 | AA33: 0 | AB33: 0
C34: Network underground cable maintenance | D34: 54050.03869 | E34: 52698.78772 | F34: 51381.31803 | G34: 50096.78508 | K34: 60081.49065 | L34: 58579.45338 | M34: 57114.96705 | N34: 55687.09287 | R34: 0 | S34: 0 | T34: 0 | U34: 0 | Y34: 0 | Z34: 0 | AA34: 0 | AB34: 0
C35: Distribution substation equipment & property maintenance | D35: 105341.2164 | E35: 102707.686 | F35: 100139.9938 | G35: 97636.49398 | K35: 926541.7374 | L35: 903378.194 | M35: 880793.7392 | N35: 858773.8957 | R35: 0 | S35: 0 | T35: 0 | U35: 0 | Y35: 0 | Z35: 0 | AA35: 0 | AB35: 0
C36: Zone substation equipment maintenance | D36: 5565.641558 | E36: 5426.500519 | F36: 5290.838006 | G36: 5158.567056 | K36: 129943.9628 | L36: 126695.3637 | M36: 123527.9796 | N36: 120439.7802 | R36: 0 | S36: 0 | T36: 0 | U36: 0 | Y36: 0 | Z36: 0 | AA36: 0 | AB36: 0
C37: Zone substation property maintenance | D37: 391574.2145 | E37: 381784.8592 | F37: 372240.2377 | G37: 362934.2317 | K37: 17070.86747 | L37: 16644.09578 | M37: 16227.99339 | N37: 15822.29355 | R37: 0 | S37: 0 | T37: 0 | U37: 0 | Y37: 0 | Z37: 0 | AA37: 0 | AB37: 0
C38: Scada & network control maintenance | D38: 131231.189 | E38: 127950.4093 | F38: 124751.6491 | G38: 121632.8578 | K38: 585707.7218 | L38: 571065.0287 | M38: 556788.403 | N38: 542868.693 | R38: 0 | S38: 0 | T38: 0 | U38: 0 | Y38: 0 | Z38: 0 | AA38: 0 | AB38: 0
C39: Protection systems maintenance | D39: 0 | E39: 0 | F39: 0 | G39: 0 | K39: 0 | L39: 0 | M39: 0 | N39: 0 | R39: 0 | S39: 0 | T39: 0 | U39: 0 | Y39: 0 | Z39: 0 | AA39: 0 | AB39: 0
C40: Subtransmission asset maintenance - for DNSP with dual function assets | D40: 0 | E40: 0 | F40: 0 | G40: 0 | K40: 0 | L40: 0 | M40: 0 | N40: 0 | R40: 0 | S40: 0 | T40: 0 | U40: 0 | Y40: 0 | Z40: 0 | AA40: 0 | AB40: 0
C41: Other | D41: 0 | E41: 0 | F41: 0 | G41: 0 | K41: 0 | L41: 0 | M41: 0 | N41: 0 | R41: 0 | S41: 0 | T41: 0 | U41: 0 | Y41: 0 | Z41: 0 | AA41: 0 | AB41: 0
B42: NON-ROUTINE MAINTENANCE | C42: Pole top, overhead line & service line maintenance | D42: 1994107.163 | E42: 1944254.483 | F42: 1895648.121 | G42: 1848256.918 | K42: 3061119.347 | L42: 2984591.364 | M42: 2909976.58 | N42: 2837227.165 | R42: 0 | S42: 0 | T42: 0 | U42: 0 | Y42: 0 | Z42: 0 | AA42: 0 | AB42: 0
C43: Pole inspection and treatment | D43: 0 | E43: 0 | F43: 0 | G43: 0 | K43: 0 | L43: 0 | M43: 0 | N43: 0 | R43: 0 | S43: 0 | T43: 0 | U43: 0 | Y43: 0 | Z43: 0 | AA43: 0 | AB43: 0
C44: Overhead asset inspection | D44: 0 | E44: 0 | F44: 0 | G44: 0 | K44: 0 | L44: 0 | M44: 0 | N44: 0 | R44: 0 | S44: 0 | T44: 0 | U44: 0 | Y44: 0 | Z44: 0 | AA44: 0 | AB44: 0
C45: Network underground cable maintenance | D45: 135172.0196 | E45: 131792.7191 | F45: 128497.9011 | G45: 125285.4536 | K45: 219290.3343 | L45: 213808.076 | M45: 208462.8741 | N45: 203251.3022 | R45: 0 | S45: 0 | T45: 0 | U45: 0 | Y45: 0 | Z45: 0 | AA45: 0 | AB45: 0
C46: Distribution substation equipment & property maintenance | D46: 166297.9599 | E46: 162140.5109 | F46: 158086.9981 | G46: 154134.8231 | K46: 323950.5729 | L46: 315851.8086 | M46: 307955.5134 | N46: 300256.6256 | R46: 0 | S46: 0 | T46: 0 | U46: 0 | Y46: 0 | Z46: 0 | AA46: 0 | AB46: 0
C47: Zone substation equipment maintenance | D47: 13381.03106 | E47: 13046.50529 | F47: 12720.34265 | G47: 12402.33409 | K47: 23668.01757 | L47: 23076.31713 | M47: 22499.4092 | N47: 21936.92397 | R47: 0 | S47: 0 | T47: 0 | U47: 0 | Y47: 0 | Z47: 0 | AA47: 0 | AB47: 0
C48: Zone substation property maintenance | D48: 0 | E48: 0 | F48: 0 | G48: 0 | K48: 0 | L48: 0 | M48: 0 | N48: 0 | R48: 0 | S48: 0 | T48: 0 | U48: 0 | Y48: 0 | Z48: 0 | AA48: 0 | AB48: 0
C49: SCADA & network control maintenance | D49: 817.4667814 | E49: 797.0301119 | F49: 777.1043591 | G49: 757.6767501 | K49: 19756.14775 | L49: 19262.24406 | M49: 18780.68796 | N49: 18311.17076 | R49: 0 | S49: 0 | T49: 0 | U49: 0 | Y49: 0 | Z49: 0 | AA49: 0 | AB49: 0
C50: Protection systems maintenance | D50: 0 | E50: 0 | F50: 0 | G50: 0 | K50: 0 | L50: 0 | M50: 0 | N50: 0 | R50: 0 | S50: 0 | T50: 0 | U50: 0 | Y50: 0 | Z50: 0 | AA50: 0 | AB50: 0
C51: Subtransmission asset maintenance - for DNSP with dual function assets | D51: 0 | E51: 0 | F51: 0 | G51: 0 | K51: 0 | L51: 0 | M51: 0 | N51: 0 | R51: 0 | S51: 0 | T51: 0 | U51: 0 | Y51: 0 | Z51: 0 | AA51: 0 | AB51: 0
C52: Other | D52: 64708.88063 | E52: 63091.15861 | F52: 61513.87965 | G52: 59976.03266 | K52: 0 | L52: 0 | M52: 0 | N52: 0 | R52: 0 | S52: 0 | T52: 0 | U52: 0 | Y52: 0 | Z52: 0 | AA52: 0 | AB52: 0
B53: OVERHEADS | C53: Network overheads | D53: 2096887.923 | E53: 2081641.467 | F53: 2012584.199 | G53: 1964116.828 | K53: 42589411.83 | L53: 42279744.56 | M53: 40877138.15 | N53: 39892728.45 | R53: 0 | S53: 0 | T53: 0 | U53: 0 | Y53: 0 | Z53: 0 | AA53: 0 | AB53: 0
C54: Corporate overheads | D54: 1635930.289 | E54: 1603831.546 | F54: 1559708.008 | G54: 1521152.549 | K54: 10210032.91 | L54: 10009700.88 | M54: 9734320.704 | N54: 9493691.559 | R54: 0 | S54: 0 | T54: 0 | U54: 0 | Y54: 0 | Z54: 0 | AA54: 0 | AB54: 0
B55: AUGMENTATION | C55: Subtransmission substations, switching stations, zone substations | D55: 2744760.962 | E55: 192403.8481 | F55: 455610.162 | G55: 432287.8412 | H55: 53781.06221 | I55: 53137.86058 | J55: 48333.41232 | K55: 2716788.55 | L55: 320589.3285 | M55: 787628.2493 | N55: 663691.7023 | O55: 110415.5569 | P55: 106085.5733 | Q55: 118552.2585 | R55: 0 | S55: 0 | T55: 0 | U55: 0 | Y55: 0 | Z55: 0 | AA55: 0 | AB55: 0
C56: Subtransmission lines | D56: 0 | E56: 0 | F56: 0 | G56: 0 | H56: 0 | I56: 0 | J56: 0 | K56: 0 | L56: 0 | M56: 0 | N56: 0 | O56: 0 | P56: 0 | Q56: 0 | R56: 0 | S56: 0 | T56: 0 | U56: 0 | Y56: 0 | Z56: 0 | AA56: 0 | AB56: 0
C57: HV feeders | D57: 2525138.475 | E57: 4540609.274 | F57: 2482711.016 | G57: 2169417.077 | H57: 1616193.67 | I57: 1650110.142 | J57: 860541.366 | K57: 2499404.281 | L57: 7565705.638 | M57: 4291944.066 | N57: 3330706.941 | O57: 3318136.845 | P57: 3294315.55 | Q57: 2110737.016 | R57: 0 | S57: 0 | T57: 0 | U57: 0 | Y57: 0 | Z57: 0 | AA57: 0 | AB57: 0
C58: Distribution substations | D58: 44271.30302 | E58: 239934.3874 | F58: 240975.3879 | G58: 252512.2247 | H58: 217753.6639 | I58: 215023.4806 | J58: 195620.9632 | K58: 43820.12526 | L58: 399786.2044 | M58: 416582.0668 | N58: 387682.1236 | O58: 447060.5651 | P58: 429277.5239 | Q58: 479819.3609 | R58: 0 | S58: 0 | T58: 0 | U58: 0 | Y58: 0 | Z58: 0 | AA58: 0 | AB58: 0
C59: LV feeders | D59: 1205186.555 | E59: 503888.9315 | F59: 506312.7543 | G59: 558034.3449 | H59: 507318.9568 | I59: 529757.0499 | J59: 508346.8632 | K59: 1192904.256 | L59: 839595.5477 | M59: 875279.4856 | N59: 856750.3617 | O59: 1041554.459 | P59: 1057618.424 | Q59: 1246873.868 | R59: 0 | S59: 0 | T59: 0 | U59: 0 | Y59: 0 | Z59: 0 | AA59: 0 | AB59: 0
C60: Other assets | D60: 0 | E60: 0 | F60: 0 | G60: 0 | H60: 0 | I60: 0 | J60: 0 | K60: 0 | L60: 0 | M60: 0 | N60: 0 | O60: 0 | P60: 0 | Q60: 0 | R60: 0 | S60: 0 | T60: 0 | U60: 0 | Y60: 0 | Z60: 0 | AA60: 0 | AB60: 0
B61: CONNECTIONS | C61: Simple and complex customer connections | D61: 4697473.896 | E61: 4533197.015 | F61: 4394777.329 | G61: 4391376.32 | H61: 4380058.808 | I61: 4377742.201 | J61: 4373945.158 | K61: 13915624.26 | L61: 16955901.79 | M61: 14674431.05 | N61: 14659857.47 | O61: 14653240.88 | P61: 14808703.96 | Q61: 14742976.29
B62: EMERGENCY RESPONSE | C62: Major storms
C63: Major event days | D63: 0 | E63: 0 | F63: 0 | G63: 0 | K63: 0 | L63: 0 | M63: 0 | N63: 0
B64: REPLACEMENT | C64: Poles | D64: 4228340.854 | E64: 4066925.959 | F64: 2487846.667 | G64: 2555702.952 | H64: 2508761.51 | I64: 2707831.508 | J64: 2523775.269 | K64: 7455556.818 | L64: 6793818.905 | M64: 4786485.038 | N64: 5012274.12 | O64: 5130319.339 | P64: 5201511.693 | Q64: 5223004.522 | R64: 0 | S64: 0 | T64: 0 | U64: 0 | Y64: 0 | Z64: 0 | AA64: 0 | AB64: 0
C65: Pole top structures | D65: 178380.1937 | E65: 249031.1552 | F65: 350839.0831 | G65: 346323.4408 | H65: 337296.8324 | I65: 183821.4151 | J65: 174333.9621 | K65: 314526.1262 | L65: 416007.7138 | M65: 674995.7882 | N65: 679213.5284 | O65: 689758.8534 | P65: 353105.1461 | Q65: 360787.6992 | R65: 0 | S65: 0 | T65: 0 | U65: 0 | Y65: 0 | Z65: 0 | AA65: 0 | AB65: 0
C66: Overhead conductors | D66: 2059794.917 | E66: 2329278.387 | F66: 3452954.686 | G66: 3408651.273 | H66: 3319481.367 | I66: 2483871.482 | J66: 2357405.006 | K66: 3631901.629 | L66: 3891070.479 | M66: 6643301.677 | N66: 6685086.209 | O66: 6788209.796 | P66: 4771303.724 | Q66: 4878697.86 | R66: 0 | S66: 0 | T66: 0 | U66: 0 | Y66: 0 | Z66: 0 | AA66: 0 | AB66: 0
C67: Underground cables | D67: 903666.9071 | E67: 1517957.063 | F67: 1387121.303 | G67: 1350447.763 | H67: 1035532.94 | I67: 1373018.085 | J67: 1029946.435 | K67: 1593376.741 | L67: 2535754.398 | M67: 2668747.817 | N67: 2648513.736 | O67: 2117624.432 | P67: 2637449.784 | Q67: 2131495.206 | R67: 0 | S67: 0 | T67: 0 | U67: 0 | Y67: 0 | Z67: 0 | AA67: 0 | AB67: 0
C68: Service lines | D68: 838210.9452 | E68: 1133474.069 | F68: 1036079.91 | G68: 990069.7936 | H68: 938064.4733 | I68: 982745.6707 | J68: 933600.7499 | K68: 1477962.525 | L68: 1893473.753 | M68: 1993362.795 | N68: 1941736.304 | O68: 1918305.224 | P68: 1887770.004 | Q68: 1932105.841 | R68: 0 | S68: 0 | T68: 0 | U68: 0 | Y68: 0 | Z68: 0 | AA68: 0 | AB68: 0
C69: Transformers | D69: 1531642.953 | E69: 2679361.81 | F69: 2921145.932 | G69: 3927398.056 | H69: 2821350.682 | I69: 2849513.113 | J69: 2503412.003 | K69: 2700645.822 | L69: 4475886.481 | M69: 5620129.842 | N69: 7702458.387 | O69: 5769551.993 | P69: 5473669.885 | Q69: 5180862.327 | R69: 0 | S69: 0 | T69: 0 | U69: 0 | Y69: 0 | Z69: 0 | AA69: 0 | AB69: 0
C70: Switchgear | D70: 1758808.994 | E70: 1053611.36 | F70: 1402295.619 | G70: 1384325.719 | H70: 1348021.319 | I70: 772276.2509 | J70: 733520.0971 | K70: 3101192.841 | L70: 1760062.723 | M70: 2697942.396 | N70: 2714955.574 | O70: 2756650.967 | P70: 1483476.331 | Q70: 1518034.839 | R70: 0 | S70: 0 | T70: 0 | U70: 0 | Y70: 0 | Z70: 0 | AA70: 0 | AB70: 0
C71: SCADA network control and protections systems | D71: 4742029.9 | E71: 2040454.723 | F71: 5144976.205 | G71: 2458168.682 | H71: 3202554.797 | I71: 2071975.805 | J71: 1789126.784 | K71: 196899.5497 | L71: 1471194.918 | M71: 2057777.679 | N71: 1554096.307 | O71: 1870336.497 | P71: 1376663.976 | Q71: 1007663.728 | R71: 0 | S71: 0 | T71: 0 | U71: 0 | Y71: 0 | Z71: 0 | AA71: 0 | AB71: 0
C72: Other | D72: 5374283.28 | E72: 5291215.166 | F72: 3481093.186 | G72: 112580.2424 | H72: 294798.1374 | I72: 156646.706 | J72: 149062.8841 | K72: 5989478.022 | L72: 5827990.667 | M72: 3881720.096 | N72: 220793.6704 | O72: 602850.6813 | P72: 300904.8645 | Q72: 308488.6864 | R72: 0 | S72: 0 | T72: 0 | U72: 0 | Y72: 0 | Z72: 0 | AA72: 0 | AB72: 0
B73: NON-NETWORK EXPENDITURE | C73: IT and communications | D73: 13308481.19 | E73: 14808053.87 | F73: 12270460.07 | G73: 10920597.73 | H73: 7324570.309 | I73: 8128851.31 | J73: 7909683.43 | K73: 14475593.61 | L73: 16106674.16 | M73: 13346541.27 | N73: 11878300.21 | O73: 7966912.355 | P73: 8841726.299 | Q73: 8603338.077 | R73: 0 | S73: 0 | T73: 0 | U73: 0 | Y73: 0 | Z73: 0 | AA73: 0 | AB73: 0
C74: Motor vehicles | D74: 6120228.481 | E74: 5949006.855 | F74: 5888761.273 | G74: 5809181.335 | H74: 2398042.497 | I74: 2286929.247 | J74: 2189041.972 | K74: 0 | L74: 0 | M74: 0 | N74: 0 | O74: 0 | P74: 0 | Q74: 0 | R74: 0 | S74: 0 | T74: 0 | U74: 0 | Y74: 0 | Z74: 0 | AA74: 0 | AB74: 0
C75: Buildings and property | D75: 3572840.812 | E75: 3176528.627 | F75: 3077602.308 | G75: 2993408.481 | H75: 235940.6367 | I75: 225008.3322 | J75: 215377.3161 | K75: 0 | L75: 0 | M75: 0 | N75: 0 | O75: 0 | P75: 0 | Q75: 0 | R75: 0 | S75: 0 | T75: 0 | U75: 0 | Y75: 0 | Z75: 0 | AA75: 0 | AB75: 0
C76: Other | D76: 3695739.05 | E76: 2093115.002 | F76: 1656179.544 | G76: 2490472.835 | H76: 2708024.395 | I76: 1723500.322 | J76: 2421483.922 | K76: 0 | L76: 0 | M76: 0 | N76: 0 | O76: 0 | P76: 0 | Q76: 0 | R76: 0 | S76: 0 | T76: 0 | U76: 0 | Y76: 0 | Z76: 0 | AA76: 0 | AB76: 0

Sheet 2.14 Forecast price changes
B1: =SheetHeader -> REGULATORY REPORTING STATEMENT
B2: =dms_TradingName -> TasNetworks (D)
B3: =dms_Reg_Year_Span -> 2017-18 to 2018-19
B4: 2.14 FORECAST PRICE CHANGES
B6: Instructions
B7: =CONCATENATE(dms_TradingName, " must provide all forecast price changes used to forecast opex and capex, including forecast changes in CPI. Forecast price changes must be expressed in real terms, except for CPI. "&"If the same escalators are not used for capex and opex, report capex and opex escalators separately. Add additional rows as required. If price changes for a given year were not used to forecast either opex or capex enter '0' for that year.") -> TasNetworks (D) must provide all forecast price changes used to forecast opex and capex, including forecast changes in CPI. Forecast price changes must be expressed in real terms, except for CPI. If the same escalators are not used for capex and opex, report capex and opex escalators separately. Add additional rows as required. If price changes for a given year were not used to forecast either opex or capex enter '0' for that year.
B9: TABLE 2.14.1 - FORECAST LABOUR AND MATERIALS PRICE CHANGES
C10: Price changes (% YoY real) Current regulatory period | H10: Price changes (%YoY real) Forthcoming regulatory period
C11: Actual | F11: Forecast
C12: =CRCP_y1 -> 2012-13 | D12: =CRCP_y2 -> 2013-14 | E12: =CRCP_y3 -> 2014-15 | F12: =CRCP_y4 -> 2015-16 | G12: =CRCP_y5 -> 2016-17 | H12: =FRCP_y1 -> 2017-18 | I12: =FRCP_y2 -> 2018-19 | J12: =FRCP_y3 -> 2019-20 | K12: =FRCP_y4 -> 2020-21 | L12: =FRCP_y5 -> 2021-22
B13: Materials price changes
B14: NSP to insert description for material | F14: 0 | G14: 0 | H14: 0 | I14: 0
B64: Labour and Other price changes
B65: NSP to insert description for other changes | F65: 0 | G65: 0 | H65: 0 | I65: 0
B90: CPI

Sheet 2.15 Insurance & Self-insurance
B1: =SheetHeader -> REGULATORY REPORTING STATEMENT
B2: =dms_TradingName -> TasNetworks (D)
B3: =dms_Reg_Year_Span -> 2017-18 to 2018-19
B4: 2.15 COMMERCIAL INSURANCE AND SELF-INSURANCE
B6: Instructions
B7: Previous tables 2.15.1, 2.15.2 & 2.15.3 have been remvoed from the RIN.
B8: =CONCATENATE(dms_TradingName," is required to provide a list of proposed self insurance allowances by risk category including a description of the risk and the proposed self-insurance allowance in table 2.15.4 below.") -> TasNetworks (D) is required to provide a list of proposed self insurance allowances by risk category including a description of the risk and the proposed self-insurance allowance in table 2.15.4 below.
B10: TABLE 2.15.4 - PROPOSED SELF-INSURANCE ALLOWANCES BY RISK CATEGORY
B11: Risk class [drop down] | C11: Risk category | D11: Commercially insured (Yes/No) | E11: Commercial insurance deductable ($0's) | F11: Commercial insurance limit ($0's) | G11: Self insurance limit ($0's) | H11: =CONCATENATE("Proposed self insurance allowance ($0's, real ", dms_DollarReal, ")") -> Proposed self insurance allowance ($0's, real June 2017)
H12: =FRCP_y1 -> 2017-18 | I12: =FRCP_y2 -> 2018-19 | J12: =FRCP_y3 -> 2019-20 | K12: =FRCP_y4 -> 2020-21 | L12: =FRCP_y5 -> 2021-22 | M12: Total
B13: Other insurnace | D13: No | E13: n/a | F13: n/a | G13: n/a | H13: 851006 | I13: 851006 | M13: =+SUM(H13:L13) -> 1702012
M14: =+SUM(H14:L14) -> 0
M15: 0
M16: 0
M17: 0
M18: 0
M19: 0
M20: 0
M21: =+SUM(H21:L21) -> 0
M22: =+SUM(H22:L22) -> 0
M23: =+SUM(H23:L23) -> 0
M24: 0
M25: 0
M26: 0
M27: 0
B28: Total | H28: =+SUM(H13:H27) -> 851006 | I28: 851006 | J28: 0 | K28: 0 | L28: 0 | M28: 1702012

Sheet 2.16 Opex Summary
B1: =SheetHeader -> REGULATORY REPORTING STATEMENT
B2: =dms_TradingName -> TasNetworks (D)
B3: =dms_Reg_Year_Span -> 2017-18 to 2018-19
B4: 2.16 OPEX SUMMARY
B6: Instructions
B7: =CONCATENATE("Complete the tables below in accordance with the regulatory information notice. ",dms_TradingName," must input forecast opex by category in Table 2.16.2 and Table 2.16.4 if it did not forecast its total opex using a Base Year approach. Otherwise input '0'.") -> Complete the tables below in accordance with the regulatory information notice. TasNetworks (D) must input forecast opex by category in Table 2.16.2 and Table 2.16.4 if it did not forecast its total opex using a Base Year approach. Otherwise input '0'.
B8: =CONCATENATE(dms_TradingName,"'s total forecast opex must reconcile to Table 2.16.1 (and if ",dms_TradingName," owns any dual function assets) Table 2.16.3. If ",dms_TradingName," did not forecast its total opex using a Base Year approach, total forecast opex must, in addition, reconcile to Table 2.16.2 (and if ",dms_TradingName," owns any dual function assets) Table 2.16.4.") -> TasNetworks (D)'s total forecast opex must reconcile to Table 2.16.1 (and if TasNetworks (D) owns any dual function assets) Table 2.16.3. If TasNetworks (D) did not forecast its total opex using a Base Year approach, total forecast opex must, in addition, reconcile to Table 2.16.2 (and if TasNetworks (D) owns any dual function assets) Table 2.16.4.
B9: =CONCATENATE("If ",dms_TradingName," does not own any dual function assets,Table 2.16.3 and 2.16.4 may be left blank. The total step changes in Table 2.16.1 and Table 2.16.3 must "&"reconcile (in each year) to the total step changes for each year in Table 2.17.1 and Table 2.17.3 of worksheet '2.17 Step Changes', respectively.") -> If TasNetworks (D) does not own any dual function assets,Table 2.16.3 and 2.16.4 may be left blank. The total step changes in Table 2.16.1 and Table 2.16.3 must reconcile (in each year) to the total step changes for each year in Table 2.17.1 and Table 2.17.3 of worksheet '2.17 Step Changes', respectively.
B11: TABLE 2.16.1 - STANDARD CONTROL SERVICES - OPEX BY DRIVER | K11: TABLE 2.16.2 - STANDARD CONTROL SERVICES - OPEX BY CATEGORY
C12: Current regulatory period | E12: Forthcoming regulatory period | L12: Current regulatory period | N12: Forthcoming regulatory period
C13: =CONCATENATE("Forecast ($0's, real ", dms_DollarReal,")") -> Forecast ($0's, real June 2017) | L13: =CONCATENATE("Forecast ($0's, real ", dms_DollarReal,")") -> Forecast ($0's, real June 2017)
C14: =CRCP_y4 -> 2015-16 | D14: =CRCP_y5 -> 2016-17 | E14: =FRCP_y1 -> 2017-18 | F14: =FRCP_y2 -> 2018-19 | G14: =FRCP_y3 -> 2019-20 | H14: =FRCP_y4 -> 2020-21 | I14: =FRCP_y5 -> 2021-22 | L14: =CRCP_y4 -> 2015-16 | M14: =CRCP_y5 -> 2016-17 | N14: =FRCP_y1 -> 2017-18 | O14: =FRCP_y2 -> 2018-19 | P14: =FRCP_y3 -> 2019-20 | Q14: =FRCP_y4 -> 2020-21 | R14: =FRCP_y5 -> 2021-22
K15: Vegetation management | L15: 0 | M15: 0 | N15: 0 | O15: 0
B16: Efficient historic opex | C16: 66245726.27 | D16: 66245726.27 | E16: 66245726.27 | F16: 66245726.27 | K16: Maintenance | L16: 0 | M16: 0 | N16: 0 | O16: 0
B17: Real price changes | C17: 0 | D17: 0 | E17: 0 | F17: 0 | K17: Emergency response | L17: 0 | M17: 0 | N17: 0 | O17: 0
B18: Output growth | C18: 424704.9571 | D18: 883837.2747 | E18: 1267830.426 | F18: 1700005.639 | K18: Non-network | L18: 0 | M18: 0 | N18: 0 | O18: 0
B19: Productivity growth | C19: -3718240.849 | D19: -8765930.124 | E19: -8955182.017 | F19: -11339669.77 | K19: Network overheads | L19: 0 | M19: 0 | N19: 0 | O19: 0
B20: Step changes | C20: 1708695.027 | D20: 4751065.773 | E20: 1780599.389 | F20: 2261229.635 | K20: Corporate overheads | L20: 0 | M20: 0 | N20: 0 | O20: 0
B21: Total opex | C21: =SUM(C16:C20) -> 64660885.4 | D21: 63114699.19 | E21: =SUM(E16:E20) -> 60338974.07 | F21: 58867291.77 | G21: 0 | H21: 0 | I21: 0 | K21: Total opex | L21: =SUM(L15:L20) -> 0 | M21: 0 | N21: =SUM(N15:N20) -> 0 | O21: 0 | P21: 0 | Q21: 0 | R21: 0
B24: TABLE 2.16.3 - DUAL FUNCTION ASSETS - OPEX BY DRIVER | K24: TABLE 2.16.4 - DUAL FUNCTION ASSETS - OPEX BY CATEGORY
C25: Current regulatory period | E25: Forthcoming regulatory period | L25: Current regulatory period | N25: Forthcoming regulatory period
C26: =CONCATENATE("Forecast ($0's, real ", dms_DollarReal,")") -> Forecast ($0's, real June 2017) | L26: =CONCATENATE("Forecast ($0's, real ", dms_DollarReal,")") -> Forecast ($0's, real June 2017)
C27: =CRCP_y4 -> 2015-16 | D27: =CRCP_y5 -> 2016-17 | E27: =FRCP_y1 -> 2017-18 | F27: =FRCP_y2 -> 2018-19 | G27: =FRCP_y3 -> 2019-20 | H27: =FRCP_y4 -> 2020-21 | I27: =FRCP_y5 -> 2021-22 | L27: =CRCP_y4 -> 2015-16 | M27: =CRCP_y5 -> 2016-17 | N27: =FRCP_y1 -> 2017-18 | O27: =FRCP_y2 -> 2018-19 | P27: =FRCP_y3 -> 2019-20 | Q27: =FRCP_y4 -> 2020-21 | R27: =FRCP_y5 -> 2021-22
K28: Vegetation management | L28: 0 | M28: 0 | N28: 0 | O28: 0
B29: Efficent recurrent opex | K29: Maintenance | L29: 0 | M29: 0 | N29: 0 | O29: 0
B30: Real price changes | K30: Emergency response | L30: 0 | M30: 0 | N30: 0 | O30: 0
B31: Output growth | K31: Non-network | L31: 0 | M31: 0 | N31: 0 | O31: 0
B32: Productivity growth | K32: Network overheads | L32: 0 | M32: 0 | N32: 0 | O32: 0
B33: Step changes | K33: Corporate overheads | L33: 0 | M33: 0 | N33: 0 | O33: 0
B34: Total opex | C34: =SUM(C29:C33) -> 0 | D34: 0 | E34: =SUM(E29:E33) -> 0 | F34: 0 | G34: 0 | H34: 0 | I34: 0 | K34: Total opex | L34: =SUM(L28:L33) -> 0 | M34: 0 | N34: =SUM(N28:N33) -> 0 | O34: 0 | P34: 0 | Q34: 0 | R34: 0

Sheet 2.17 Step Changes
B1: =SheetHeader -> REGULATORY REPORTING STATEMENT
B2: =dms_TradingName -> TasNetworks (D)
B3: =dms_Reg_Year_Span -> 2017-18 to 2018-19
B4: 2.17 STEP CHANGES
B7: Instructions
B8: =CONCATENATE("Complete the Tables below in accordance with the regulatory information notice. If ",dms_TradingName," does not own any dual function assets,Table 2.17.3 and 2.17.4 may be left blank."&" The total step changes in Table 2.17.1 and Table 2.17.3 must reconcile (in each year) to the total step changes for each year in Table 2.16.1 and Table 2.16.3 of worksheet '2.16 Opex Summary', respectively.") -> Complete the Tables below in accordance with the regulatory information notice. If TasNetworks (D) does not own any dual function assets,Table 2.17.3 and 2.17.4 may be left blank. The total step changes in Table 2.17.1 and Table 2.17.3 must reconcile (in each year) to the total step changes for each year in Table 2.16.1 and Table 2.16.3 of worksheet '2.16 Opex Summary', respectively.
B12: TABLE 2.17.1 - FORECAST OPEX STEP CHANGES FOR STANDARD CONTROL SERVICES
D13: Actual ($0's, nominal) | G13: =CONCATENATE("Forecast ($0's, real ", dms_DollarReal, ")") -> Forecast ($0's, real June 2017)
B14: Step change | C14: Description | D14: =CRCP_y1 -> 2012-13 | E14: =CRCP_y2 -> 2013-14 | F14: =CRCP_y3 -> 2014-15 | G14: =CRCP_y4 -> 2015-16 | H14: =CRCP_y5 -> 2016-17 | I14: =FRCP_y1 -> 2017-18 | J14: =FRCP_y2 -> 2018-19 | K14: =FRCP_y3 -> 2019-20 | L14: =FRCP_y4 -> 2020-21 | M14: =FRCP_y5 -> 2021-22
D15: 0 | E15: 0 | F15: 0
B16: Damage to assets moving to unregulated | C16: Asset damage costs recoverable from third parties are to be classified as unregulated from 1 July 2017, so the associated costs are removed from the efficient base year by applying a negative step change from 2017-18. | D16: 0 | E16: 0 | F16: 0 | I16: -848401.3285 | J16: -848401.3285
B17: Self insured expenses | C17: The actual costs incurred in 2014-15 in relation to self-insured risks are deducted from the efficient base year because a self-insurance allowance is to be included for the forthcoming regulatory period. | D17: 0 | E17: 0 | F17: 0 | I17: -418849.4452 | J17: -418849.4452
B18: Metering Rule change | C18: Additional operating expenditure will be required to administer new processes and systems associated with metering contestability, which is expected to commence in December 2017. | D18: 0 | E18: 0 | F18: 0 | I18: 300566.8974 | J18: 515257.6904
B19: OH switchgear and OH system asset repair | C19: Additional operating expenditure is programmed to address recent failures associated with air break switches and to maintain the efficacy of the current asset repair program. | D19: 0 | E19: 0 | F19: 0 | G19: 622051.5285 | H19: 1781547.544
B20: Increasing access track and corridor maintenance | C20: We plan to increase track and corridor maintenance to ensure the continuation of prudent vegetation management practices. | D20: 0 | E20: 0 | F20: 0 | G20: 1086643.498 | H20: 1086643.498 | I20: 1086643.498 | J20: 1086643.498
B21: Inspection of OH and structures | C21: We expect to increase the ratio of the planned component of the work program and to reduce the reactive component to achieve efficiency improvements and improved safety outcomes. | D21: 0 | E21: 0 | F21: 0 | H21: 1127273.728 | I21: 861334.2746 | J21: 1127273.728
B22: Increase in low conductor span rectification | C22: We plan to increase expenditure on low conductor span rectification. | D22: 0 | E22: 0 | F22: 0 | H22: 755601.0031 | I22: 799305.4928 | J22: 799305.4928
B49: Total | D49: =SUM(D15:D48) -> 0 | E49: 0 | F49: 0 | G49: 1708695.027 | H49: 4751065.773 | I49: 1780599.389 | J49: 2261229.635 | K49: 0 | L49: 0 | M49: 0
B50: Check | I50: =IF(I$49-'2.16 Opex Summary'!E$20=0,"OK","Error") -> Error | J50: =IF(J$49-'2.16 Opex Summary'!F$20=0,"OK","Error") -> Error | K50: =IF(K$49-'2.16 Opex Summary'!G$20=0,"OK","Error") -> OK | L50: =IF(L$49-'2.16 Opex Summary'!H$20=0,"OK","Error") -> OK | M50: =IF(M$49-'2.16 Opex Summary'!I$20=0,"OK","Error") -> OK
B52: TABLE 2.17.2 - FORECAST CAPEX STEP CHANGES FOR STANDARD CONTROL SERVICES
D53: Actual ($0's, nominal) | G53: =CONCATENATE("Forecast ($0's, real ", dms_DollarReal, ")") -> Forecast ($0's, real June 2017)
B54: Step change | C54: Description | D54: =CRCP_y1 -> 2012-13 | E54: =CRCP_y2 -> 2013-14 | F54: =CRCP_y3 -> 2014-15 | G54: =CRCP_y4 -> 2015-16 | H54: =CRCP_y5 -> 2016-17 | I54: =FRCP_y1 -> 2017-18 | J54: =FRCP_y2 -> 2018-19 | K54: =FRCP_y3 -> 2019-20 | L54: =FRCP_y4 -> 2020-21 | M54: =FRCP_y5 -> 2021-22
B71: Total | D71: =SUM(D55:D70) -> 0 | E71: 0 | F71: 0 | G71: 0 | H71: 0 | I71: 0 | J71: 0 | K71: 0 | L71: 0 | M71: 0
B73: TABLE 2.17.3 - FORECAST OPEX STEP CHANGES FOR DUAL FUNCTION ASSETS
D74: Actual ($0's, nominal) | G74: =CONCATENATE("Forecast ($0's, real ", dms_DollarReal, ")") -> Forecast ($0's, real June 2017)
B75: Step change | C75: Description | D75: =CRCP_y1 -> 2012-13 | E75: =CRCP_y2 -> 2013-14 | F75: =CRCP_y3 -> 2014-15 | G75: =CRCP_y4 -> 2015-16 | H75: =CRCP_y5 -> 2016-17 | I75: =FRCP_y1 -> 2017-18 | J75: =FRCP_y2 -> 2018-19 | K75: =FRCP_y3 -> 2019-20 | L75: =FRCP_y4 -> 2020-21 | M75: =FRCP_y5 -> 2021-22
B88: Total | D88: =SUM(D76:D87) -> 0 | E88: 0 | F88: 0 | G88: 0 | H88: 0 | I88: 0 | J88: 0 | K88: 0 | L88: 0 | M88: 0
B89: Check | I89: =IF(I$49-'2.16 Opex Summary'!E$33=0,"OK","Error") -> Error | J89: =IF(J$49-'2.16 Opex Summary'!F$33=0,"OK","Error") -> Error | K89: =IF(K$49-'2.16 Opex Summary'!G$33=0,"OK","Error") -> OK | L89: =IF(L$49-'2.16 Opex Summary'!H$33=0,"OK","Error") -> OK | M89: =IF(M$49-'2.16 Opex Summary'!I$33=0,"OK","Error") -> OK
B91: TABLE 2.17.4 - FORECAST CAPEX STEP CHANGES FOR DUAL FUNCTION ASSETS
D92: Actual ($0's, nominal) | G92: =CONCATENATE("Forecast ($0's, real ", dms_DollarReal, ")") -> Forecast ($0's, real June 2017)
B93: Step change | C93: Description | D93: =CRCP_y1 -> 2012-13 | E93: =CRCP_y2 -> 2013-14 | F93: =CRCP_y3 -> 2014-15 | G93: =CRCP_y4 -> 2015-16 | H93: =CRCP_y5 -> 2016-17 | I93: =FRCP_y1 -> 2017-18 | J93: =FRCP_y2 -> 2018-19 | K93: =FRCP_y3 -> 2019-20 | L93: =FRCP_y4 -> 2020-21 | M93: =FRCP_y5 -> 2021-22
B106: Total | D106: =SUM(D94:D105) -> 0 | E106: 0 | F106: 0 | G106: 0 | H106: 0 | I106: 0 | J106: 0 | K106: 0 | L106: 0 | M106: 0

Sheet 3.1 Revenue
B1: =SheetHeader -> REGULATORY REPORTING STATEMENT
B2: =dms_TradingName -> TasNetworks (D)
B3: =dms_Reg_Year_Span -> 2017-18 to 2018-19
B4: 3.1 REVENUE
C6: Standard control services | K6: Alternative control services
C7: =CONCATENATE("Forecast ($0's, real ", dms_DollarReal,")") -> Forecast ($0's, real June 2017) | K7: =CONCATENATE("Forecast ($0's, real ", dms_DollarReal,")") -> Forecast ($0's, real June 2017)
C8: =CRCP_y4 -> 2015-16 | D8: =CRCP_y5 -> 2016-17 | E8: =FRCP_y1 -> 2017-18 | F8: =FRCP_y2 -> 2018-19 | G8: =FRCP_y3 -> 2019-20 | H8: =FRCP_y4 -> 2020-21 | I8: =FRCP_y5 -> 2021-22 | K8: =CRCP_y4 -> 2015-16 | L8: =CRCP_y5 -> 2016-17 | M8: =FRCP_y1 -> 2017-18 | N8: =FRCP_y2 -> 2018-19 | O8: =FRCP_y3 -> 2019-20 | P8: =FRCP_y4 -> 2020-21 | Q8: =FRCP_y5 -> 2021-22
B10: TABLE 3.1.1 - REVENUE GROUPING BY CHARGEABLE QUANTITY
A11: DREV0101 | B11: Revenue from Fixed Customer Charges | C11: 55222149.68 | D11: 55185716.11 | E11: 54482054.19 | F11: 55400103.13
A12: DREV0102 | B12: Revenue from Energy Delivery charges where time of use is not a determinant | C12: 253271165 | D12: 250340863.8 | E12: 208416542.5 | F12: 200137501.7
A13: DREV0103 | B13: Revenue from On–Peak Energy Delivery charges | C13: 40150631.74 | D13: 40323526.58 | E13: 31635677.55 | F13: 30994070.73
A14: DREV0104 | B14: Revenue from Shoulder period Energy Delivery Charges | C14: 12527084.61 | D14: 9560696.33 | E14: 6992913.571 | F14: 6827315.074
A15: DREV0105 | B15: Revenue from Off–Peak Energy Delivery charges | C15: 3979639.477 | D15: 4012371.79 | E15: 4446510.205 | F15: 4533840.39
A16: DREV0106 | B16: Revenue from controlled load customer charges | C16: 961099.4397 | D16: 987456.72 | E16: 1017858.312 | F16: 986644.4545
A17: DREV0107 | B17: Revenue from unmetered supplies | C17: 4501522.83 | D17: 4204276.65 | E17: 3329571.727 | F17: 3245514.946
A18: DREV0108 | B18: Revenue from Contracted Maximum Demand charges | C18: 650776.6512 | D18: 344930.81 | E18: 270207.6293 | F18: 268343.4622
A19: DREV0109 | B19: Revenue from Measured Maximum Demand charges | C19: 41065562.15 | D19: 37613005.38 | E19: 31448702.59 | F19: 32701645.84
A20: DREV0110 | B20: Revenue from metering charges | C20: 0 | D20: 0 | E20: 0 | F20: 0 | K20: 14790327.8 | L20: 15697725.67 | M20: 12433975.62 | N20: 12648317.55
A21: DREV0111 | B21: Revenue from connection charges | C21: 0 | D21: 0 | E21: 0 | F21: 0 | K21: 3867671.327 | L21: 3866666.283 | M21: 4466430.979 | N21: 6781341.58
A22: DREV0112 | B22: Revenue from public lighting charges | C22: 0 | D22: 0 | E22: 0 | F22: 0 | K22: 5329982.895 | L22: 4900847.718 | M22: 6200295.213 | N22: 6478792.674
A23: DREV0113 | B23: Revenue from other Sources | C23: 0 | D23: 0 | E23: 0 | F23: 0 | K23: 1757940.575 | L23: 1757940.575 | M23: 1864120.186 | N23: 1864120.186
A24: DREV01 | B24: Total revenue by chargeable quantity | C24: =SUM(C11:C23) -> 412329631.6 | D24: =SUM(D11:D23) -> 402572844.2 | E24: 342040038.2 | F24: 335094979.7 | G24: 0 | H24: 0 | I24: 0 | K24: =SUM(K11:K23) -> 25745922.6 | L24: =SUM(L11:L23) -> 26223180.25 | M24: 24964822 | N24: 27772571.99 | O24: 0 | P24: 0 | Q24: 0
B26: TABLE 3.1.2 REVENUE GROUPING BY CUSTOMER TYPE OR CLASS
A27: DREV0201 | B27: Revenue from residential Customers | C27: 224885359.4 | D27: 222875049.4 | E27: 199784514.7 | F27: 195435675
A28: DREV0202 | B28: Revenue from Non residential customers not on demand tariffs | C28: 118005233.5 | D28: 115487062.4 | E28: 88410685.86 | F28: 85652784.44
A29: DREV0203 | B29: Revenue from Non-residential low voltage demand tariff customers | C29: 42716814.91 | D29: 39523829.36 | E29: 32814979.05 | F29: 33292882.84
A30: DREV0204 | B30: Revenue from Non-residential high voltage demand tariff customers | C30: 21992233.78 | D30: 20095622.01 | E30: 17333257.73 | F30: 17016681.1
A31: DREV0205 | B31: Revenue from unmetered supplies | C31: 4729990.02 | D31: 4591280.899 | E31: 3703844.779 | F31: 3613647.465
A32: DREV0206 | B32: Revenue from Other Customers | C32: 0 | D32: 0 | E32: 0 | F32: 0
A33: DREV02 | B33: Total revenue by customer class | C33: =SUM(C27:C32) -> 412329631.6 | D33: =SUM(D27:D32) -> 402572844.2 | E33: 342047282.1 | F33: 335011670.9 | G33: 0 | H33: 0 | I33: 0 | K33: =SUM(K27:K32) -> 0 | L33: =SUM(L27:L32) -> 0 | M33: 0 | N33: 0 | O33: 0 | P33: 0 | Q33: 0
B35: TABLE 3.1.3 REVENUE (penalties) ALLOWED (deducted) THROUGH INCENTIVE SCHEMES
A36: DREV0301 | B36: EBSS | E36: 20568748.64 | F36: 20568748.64
A37: DREV0302 | B37: STPIS
A38: DREV0303 | B38: F-Factor
A39: DREV0304 | B39: S-Factor True up
A40: DREV0305 | B40: Other | E40: 400000 | F40: 400000
A41: DREV03 | B41: Total revenue of incentive schemes | C41: =SUM(C36:C40) -> 0 | D41: =SUM(D36:D40) -> 0 | E41: 20968748.64 | F41: 20968748.64 | G41: 0 | H41: 0 | I41: 0 | K41: =SUM(K36:K40) -> 0 | L41: =SUM(L36:L40) -> 0 | M41: 0 | N41: 0 | O41: 0 | P41: 0 | Q41: 0

Sheet 3.2 Operating expenditure
B1: =SheetHeader -> REGULATORY REPORTING STATEMENT
B2: =dms_TradingName -> TasNetworks (D)
B3: =dms_Reg_Year_Span -> 2017-18 to 2018-19
B4: 3.2 OPERATING EXPENDITURE
B6: Instructions
B7: =CONCATENATE("Forecasts for opex in table 3.2.1 are to be for the opex categories that ",dms_TradingName," has reported in its response to its annual reporting RIN.") -> Forecasts for opex in table 3.2.1 are to be for the opex categories that TasNetworks (D) has reported in its response to its annual reporting RIN.
B9: TABLE 3.2.1 - OPEX CATEGORIES
B10: Table 3.2.1.1 - Current opex categories and cost allocations
D11: Standard control services | L11: Alternative control services
D12: =CONCATENATE("Forecast ($0's, real ",dms_DollarReal,")") -> Forecast ($0's, real June 2017) | L12: =CONCATENATE("Forecast ($0's, real ",dms_DollarReal,")") -> Forecast ($0's, real June 2017)
D13: =CRCP_y4 -> 2015-16 | E13: =CRCP_y5 -> 2016-17 | F13: =FRCP_y1 -> 2017-18 | G13: =FRCP_y2 -> 2018-19 | H13: =FRCP_y3 -> 2019-20 | I13: =FRCP_y4 -> 2020-21 | J13: =FRCP_y5 -> 2021-22 | L13: =CRCP_y4 -> 2015-16 | M13: =CRCP_y5 -> 2016-17 | N13: =FRCP_y1 -> 2017-18 | O13: =FRCP_y2 -> 2018-19 | P13: =FRCP_y3 -> 2019-20 | Q13: =FRCP_y4 -> 2020-21 | R13: =FRCP_y5 -> 2021-22
A14: DOPEX0101 | B14: Overhead network & structures | D14: 3095299.024 | E14: 3888901.383 | F14: 3672336.779 | G14: 3786694.074
A15: DOPEX0102 | B15: Underground network | D15: 130455.1203 | E15: 121875.441 | F15: 122498.619 | G15: 118672.3357
A16: DOPEX0103 | B16: Ground mounted substations | D16: 553525.0127 | E16: 517121.1748 | F16: 519765.3375 | G16: 503530.3021
A17: DOPEX0104 | B17: Zone substations | D17: 986779.281 | E17: 921881.4857 | F17: 926595.2836 | G17: 897652.7855
A18: DOPEX0105 | B18: Decommissioned assets | D18: 0 | E18: 0 | F18: 0 | G18: 0
A19: DOPEX0106 | B19: Connection assets | D19: 0 | E19: 0 | F19: 0 | G19: 0
A20: DOPEX0107 | B20: Other Network asset maintenance - routine costs | D20: 1783195.406 | E20: 1665919.484 | F20: 1674437.724 | G20: 1622136.129
A21: DOPEX0108 | B21: Emergency & unscheduled power system response & repair | D21: 0 | E21: 0 | F21: 0 | G21: 0
A22: DOPEX0109 | B22: Vegetation management | D22: 11050897.62 | E22: 10324110.07 | F22: 10376899.69 | G22: 10052773.93
A23: DOPEX0110 | B23: Connection asset repair | D23: 614896.9147 | E23: 574456.8134 | F23: 577394.1468 | G23: 559359.0572
A24: DOPEX0111 | B24: Other Non-network asset maintenance - routine costs | D24: 0 | E24: 0 | F24: 0 | G24: 0
A25: DOPEX0112 | B25: Overhead network & structures | D25: 4018912.75 | E25: 5448669.846 | F25: 3931396.226 | G25: 3808597.815
A26: DOPEX0113 | B26: Underground network | D26: 339617.5634 | E26: 317281.8379 | F26: 318904.1749 | G26: 308943.1017
A27: DOPEX0114 | B27: Ground mounted substations | D27: 486914.4413 | E27: 454891.3999 | F27: 457217.3671 | G27: 442936.0374
A28: DOPEX0115 | B28: Zone substations | D28: 37339.50532 | E28: 34883.78739 | F28: 35062.15644 | G28: 33966.97884
A29: DOPEX0116 | B29: Decommissioned assets | D29: 913224.1366 | E29: 853163.8636 | F29: 857526.292 | G29: 830741.1858
A30: DOPEX0117 | B30: Connection assets | D30: 0 | E30: 0 | F30: 0 | G30: 0
A31: DOPEX0118 | B31: Other Network asset maintenance - non-routine costs | D31: 872680.6153 | E31: 815286.7796 | F31: 819455.5335 | G31: 793859.5796
A32: DOPEX0119 | B32: Emergency & unscheduled power system response & repair | D32: 16081802.89 | E32: 15024146.36 | F32: 14346646.11 | G32: 13898524.06
A33: DOPEX0120 | B33: Vegetation management | D33: 1079749.704 | E33: 1008737.496 | F33: 1013895.409 | G33: 982226.0641
A34: DOPEX0121 | B34: Connection asset repair | D34: 60671.88789 | E34: 56681.66248 | F34: 56971.48921 | G34: 55191.96664
A35: DOPEX0122 | B35: Other Non-network asset maintenance - non-routine costs | D35: 315884.777 | E35: 295109.8925 | F35: 296618.8591 | G35: 287353.8748
A36: DOPEX0123 | B36: Public Lighting | D36: 0 | E36: 0 | F36: 0 | G36: 0 | L36: 2551136.667 | M36: 2107485.622 | N36: 2047491.413 | O36: 2117205.672
A37: DOPEX0124 | B37: Metering | D37: 0 | E37: 0 | F37: 0 | G37: 0 | L37: 2718012.36 | M37: 2523884.349 | N37: 2383084 | O37: 2348497.767
A38: DOPEX0125 | B38: Fee Based | D38: 0 | E38: 0 | F38: 0 | G38: 0 | L38: 1981713.33 | M38: 1981713.33 | N38: 4277341.033 | O38: 4267235.241
A39: DOPEX0126 | B39: Quoted Services | D39: 0 | E39: 0 | F39: 0 | G39: 0 | L39: 1757940.575 | M39: 1757940.575 | N39: 1757940.575 | O39: 1757940.575
A40: DOPEX0127 | B40: Negotiated Services | D40: 0 | E40: 0 | F40: 0 | G40: 0
A41: DOPEX0128 | B41: Network management | D41: 5775715.851 | E41: 5395862.695 | F41: 5537711.975 | G41: 5385636.808 | L41: 1899770.991 | M41: 1774828.209 | N41: 1821485.828 | O41: 1771464.67
A42: DOPEX0129 | B42: GSL payments | D42: 1622844.995 | E42: 1622844.995 | F42: 1622844.995 | G42: 1622844.995 | L42: 0 | M42: 0 | N42: 0 | O42: 0
A43: DOPEX0130 | B43: Customer service | D43: 1108690.216 | E43: 1035774.67 | F43: 1063003.66 | G43: 1033811.737 | L43: 1906637.943 | M43: 1781243.54 | N43: 1828069.808 | O43: 1777867.843
A44: DOPEX0131 | B44: Regulatory compliance expenditure | D44: 525337.0355 | E44: 525337.0355 | F44: 525337.0355 | G44: 525337.0355 | L44: 159708.6022 | M44: 159708.6022 | N44: 159708.6022 | O44: 159708.6022
A45: DOPEX0132 | B45: Electrical safety levy | D45: 2034013.306 | E45: 2034013.306 | F45: 2034013.306 | G45: 2034013.306 | L45: 618638.7311 | M45: 618638.7311 | N45: 618638.7311 | O45: 618638.7311
A46: DOPEX0133 | B46: NEM levy | D46: 415052.1709 | E46: 415052.1709 | F46: 415052.1709 | G46: 415052.1709 | L46: 126236.8086 | M46: 126236.8086 | N46: 126236.8086 | O46: 126236.8086
A47: DOPEX0134 | B47: Other Network Division Management Costs (itemise in table 3) | D47: 877482.5097 | E47: 819772.8664 | F47: 1114190.612 | G47: 1273145.798 | L47: 0 | M47: 0 | N47: 0 | O47: 0
A48: DOPEX0135 | B48: System operations | D48: 133078.6601 | E48: 124326.4378 | F48: 127594.7967 | G48: 124090.8224 | L48: 0 | M48: 0 | N48: 0 | O48: 0
A49: DOPEX0136 | B49: Corporate and shared services costs | D49: 8012107.606 | E49: 7108780.426 | F49: 6165289.075 | G49: 5744995.159 | L49: 1532315.937 | M49: 1359554.573 | N49: 1179111.81 | O49: 1098730.58
A50: DOPEX0137 | B50: NEM & contestability related costs * | D50: 1233042.517 | E50: 1241135.655 | F50: 1249314.182 | G50: 1257412.72 | L50: 374859.3446 | M50: 377319.7532 | N50: 379806.1211 | O50: 382268.1713
A51: DOPEX0138 | B51: Other Non-Network Division Management Costs | D51: 501673.8831 | E51: 468680.1533 | F51: 481001.064 | G51: 467791.9412 | L51: 0 | M51: 0 | N51: 0 | O51: 0
A52: DOPEX0139 | B52: Other Operating Costs ( Not allocated to the Distribution) | D52: 0 | E52: 0 | F52: 1927960.604 | G52: 1944137.088
A53: DOPEX0140
A54: DOPEX0141
A55: DOPEX0142
A56: DOPEX0143
A57: DOPEX0144
A58: DOPEX0145
A59: DOPEX0146
A60: DOPEX0147
A61: DOPEX0148
A62: DOPEX0149
A63: DOPEX01 | B63: Total opex | D63: =SUM(D14:D62) -> 64660885.4 | E63: =SUM(E14:E62) -> 63114699.19 | F63: 62266934.67 | G63: 60811428.86 | H63: 0 | I63: 0 | J63: 0 | L63: =SUM(L14:L62) -> 15626971.29 | M63: =SUM(M14:M62) -> 14568554.09 | N63: 16578914.73 | O63: 16425794.66 | P63: 0 | Q63: 0 | R63: 0
B66: TABLE 3.2.2 - OPEX CONSISTENCY
B67: Table 3.2.2.1 - Opex consistency - current cost allocation approach
D68: Standard control services | L68: Alternative control services
D69: =CONCATENATE("Forecast ($0's, real ",dms_DollarReal,")") -> Forecast ($0's, real June 2017) | L69: =CONCATENATE("Forecast ($0's, real ",dms_DollarReal,")") -> Forecast ($0's, real June 2017)
D70: =CRCP_y4 -> 2015-16 | E70: =CRCP_y5 -> 2016-17 | F70: =FRCP_y1 -> 2017-18 | G70: =FRCP_y2 -> 2018-19 | H70: =FRCP_y3 -> 2019-20 | I70: =FRCP_y4 -> 2020-21 | J70: =FRCP_y5 -> 2021-22 | L70: =CRCP_y4 -> 2015-16 | M70: =CRCP_y5 -> 2016-17 | N70: =FRCP_y1 -> 2017-18 | O70: =FRCP_y2 -> 2018-19 | P70: =FRCP_y3 -> 2019-20 | Q70: =FRCP_y4 -> 2020-21 | R70: =FRCP_y5 -> 2021-22
A71: DOPEX0201 | B71: Opex for network services | D71: 64045988.49 | E71: 62540242.38 | F71: 61689540.53 | G71: 60252069.81 | L71: 4407831.144 | M71: 4239409.161 | N71: 5216968.761 | O71: 5133083.473
A72: DOPEX0202 | B72: Opex for metering | D72: 0 | E72: 0 | F72: 0 | G72: 0 | L72: 4361182.93 | M72: 4062618.136 | N72: 3900844.803 | O72: 3822029.083
A73: DOPEX0203 | B73: Opex for connection services | D73: 614896.9147 | E73: 574456.8134 | F73: 577394.1468 | G73: 559359.0572 | L73: 3397462.033 | M73: 3307479.749 | N73: 4573655.133 | O73: 4537999.164
A74: DOPEX0204 | B74: Opex for public lighting | D74: 0 | E74: 0 | F74: 0 | G74: 0 | L74: 3460495.183 | M74: 2959047.047 | N74: 2887446.033 | O74: 2932682.942
A75: DOPEX0205 | B75: Opex for amounts payable for easement levy or similar direct charges on DNSP
A76: DOPEX0207 | B76: Opex for transmission connection point planning
B77: Total opex | D77: =SUM(D71:D76) -> 64660885.4 | E77: =SUM(E71:E76) -> 63114699.19 | F77: 62266934.67 | G77: 60811428.86 | H77: 0 | I77: 0 | J77: 0 | L77: =SUM(L71:L76) -> 15626971.29 | M77: =SUM(M71:M76) -> 14568554.09 | N77: 16578914.73 | O77: 16425794.66 | P77: 0 | Q77: 0 | R77: 0
B80: TABLE 3.2.4 - OPEX FOR HIGH VOLTAGE CUSTOMERS | E80: End user costs (not standard control services) | F80: End user costs (not standard control services)
A81: DOPEX0401 | B81: Opex for high voltage customers | D81: 262072.1025 | E81: 255520.2999 | F81: 249132.2924 | G81: 242903.9851

Sheet 3.3 Assets (RAB)
B1: =SheetHeader -> REGULATORY REPORTING STATEMENT
B2: =dms_TradingName -> TasNetworks (D)
B3: =dms_Reg_Year_Span -> 2017-18 to 2018-19
B4: 3.3 ASSETS
C6: Network services | K6: Standard control services | S6: Alternative control services
C7: =CONCATENATE("Forecast ($0's, real ", dms_DollarReal,")") -> Forecast ($0's, real June 2017) | K7: =CONCATENATE("Forecast ($0's, real ", dms_DollarReal,")") -> Forecast ($0's, real June 2017) | S7: =CONCATENATE("Forecast ($0's, real ", dms_DollarReal,")") -> Forecast ($0's, real June 2017)
C8: =CRCP_y4 -> 2015-16 | D8: =CRCP_y5 -> 2016-17 | E8: =FRCP_y1 -> 2017-18 | F8: =FRCP_y2 -> 2018-19 | G8: =FRCP_y3 -> 2019-20 | H8: =FRCP_y4 -> 2020-21 | I8: =FRCP_y5 -> 2021-22 | K8: =CRCP_y4 -> 2015-16 | L8: =CRCP_y5 -> 2016-17 | M8: =FRCP_y1 -> 2017-18 | N8: =FRCP_y2 -> 2018-19 | O8: =FRCP_y3 -> 2019-20 | P8: =FRCP_y4 -> 2020-21 | Q8: =FRCP_y5 -> 2021-22 | S8: =CRCP_y4 -> 2015-16 | T8: =CRCP_y5 -> 2016-17 | U8: =FRCP_y1 -> 2017-18 | V8: =FRCP_y2 -> 2018-19 | W8: =FRCP_y3 -> 2019-20 | X8: =FRCP_y4 -> 2020-21 | Y8: =FRCP_y5 -> 2021-22
B10: TABLE 3.3.1 REGULATORY ASSET BASE VALUES
B11: For total asset base:
A12: DRAB0101 | B12: Opening value | C12: 1545342662 | D12: =C18 -> 1576453397 | E12: 1557683375 | F12: 1582116859 | G12: 1589127726 | H12: 1589127726 | I12: 1589127726 | K12: 1635860263 | L12: =K18 -> 1665378640 | M12: 1646719196 | N12: 1672211395 | O12: 1679771339 | P12: 1679771339 | Q12: 1679771339 | S12: 50433589.69 | T12: =S18 -> 48368691.35 | U12: 46459508.51 | V12: 43417202.03 | W12: 38606607.36 | X12: 38606607.36 | Y12: 38606607.36
A13: DRAB0102 | B13: Inflation addition | C13: 0 | D13: 0 | K13: 0 | L13: 0 | S13: 0 | T13: 0 | U13: 0 | V13: 0
A14: DRAB0103 | B14: Straight line depreciation | C14: -80727739.15 | D14: -84656945.56 | E14: -82977484.75 | F14: -89824087.25 | K14: -89725544.93 | L14: -90847142.03 | M14: -88581408.76 | N14: -95592985.52 | S14: -5079166.011 | T14: -5027217.164 | U14: -4591171.109 | V14: -4744713.659
A15: DRAB0104 | B15: Regulatory depreciation | C15: =SUM(C14+C13) -> -80727739.15 | D15: =SUM(D14+D13) -> -84656945.56 | E15: =SUM(E14+E13) -> -82977484.75 | F15: -89824087.25 | G15: 0 | H15: 0 | I15: 0 | K15: =SUM(K14+K13) -> -89725544.93 | L15: =SUM(L14+L13) -> -90847142.03 | M15: =SUM(M14+M13) -> -88581408.76 | N15: -95592985.52 | O15: 0 | P15: 0 | Q15: 0 | S15: =SUM(S14+S13) -> -5079166.011 | T15: =SUM(T14+T13) -> -5027217.164 | U15: =SUM(U14+U13) -> -4591171.109 | V15: -4744713.659 | W15: 0 | X15: 0 | Y15: 0
A16: DRAB0105 | B16: Actual additions (recognised in RAB) | C16: 112623346.2 | D16: 120052716.8 | E16: 108165559.1 | F16: 97589544.18 | K16: 120028793.4 | L16: 128005779.5 | M16: 113319017.7 | N16: 102398338.9 | S16: 3014267.667 | T16: 3118034.319 | U16: 1548864.628 | V16: -65881.00564
A17: DRAB0106 | B17: Disposals | C17: -784871.6262 | D17: -54165793.25 | E17: -754590.2267 | F17: -754590.2267 | K17: -784871.6262 | L17: -55818081.02 | M17: 754590.2267 | N17: 754590.2267 | S17: 0 | T17: 0 | U17: 0 | V17: 0
A18: DRAB0107 | B18: Closing value for overhead distribution asset value | C18: =SUM(C12+C13+C14+C16+C17) -> 1576453397 | D18: =SUM(D12+D13+D14+D16+D17) -> 1557683375 | E18: =SUM(E12+E13+E14+E16+E17) -> 1582116859 | F18: 1589127726 | G18: 1589127726 | H18: 1589127726 | I18: 1589127726 | K18: =SUM(K12+K13+K14+K16+K17) -> 1665378640 | L18: =SUM(L12+L13+L14+L16+L17) -> 1646719196 | M18: =SUM(M12+M13+M14+M16+M17) -> 1672211395 | N18: 1679771339 | O18: 1679771339 | P18: 1679771339 | Q18: 1679771339 | S18: =SUM(S12+S13+S14+S16+S17) -> 48368691.35 | T18: =SUM(T12+T13+T14+T16+T17) -> 46459508.51 | U18: =SUM(U12+U13+U14+U16+U17) -> 43417202.03 | V18: 38606607.36 | W18: 38606607.36 | X18: 38606607.36 | Y18: 38606607.36
B20: TABLE 3.3.2 ASSET VALUE ROLL FORWARD
B21: For overhead network assets less than 33kV:
A22: DRAB0201 | B22: Opening value | C22: 693826702.9 | D22: =C28 -> 699028691.1 | E22: =D28 -> 690702045.5 | F22: =E28 -> 696473552.1 | G22: =F28 -> 700566472 | H22: =G28 -> 700566472 | I22: =H28 -> 700566472 | K22: 693826702.9 | L22: =K28 -> 699028691.1 | M22: =L28 -> 690702045.5 | N22: =M28 -> 696473552.1 | O22: =N28 -> 700566472 | P22: =O28 -> 700566472 | Q22: =P28 -> 700566472 | T22: =S28 -> 0 | U22: =T28 -> 0 | V22: =U28 -> 0 | W22: =V28 -> 0 | X22: =W28 -> 0 | Y22: =X28 -> 0
A23: DRAB0202 | B23: Inflation addition | C23: 0 | D23: 0 | K23: 0 | L23: 0
A24: DRAB0203 | B24: Straight line depreciation | C24: -36276807.8 | D24: -37476547.22 | E24: -36694626.51 | F24: -37907944.6 | K24: -36276807.8 | L24: -37476547.22 | M24: -36694626.51 | N24: -37907944.6
A25: DRAB0204 | B25: Regulatory depreciation | C25: =SUM(C24+C23) -> -36276807.8 | D25: =SUM(D24+D23) -> -37476547.22 | E25: =SUM(E24+E23) -> -36694626.51 | F25: =SUM(F24+F23) -> -37907944.6 | G25: 0 | H25: 0 | I25: 0 | K25: =SUM(K24+K23) -> -36276807.8 | L25: =SUM(L24+L23) -> -37476547.22 | M25: =SUM(M24+M23) -> -36694626.51 | N25: -37907944.6 | O25: 0 | P25: 0 | Q25: 0 | S25: =SUM(S24+S23) -> 0 | T25: =SUM(T24+T23) -> 0 | U25: =SUM(U24+U23) -> 0 | V25: 0 | W25: 0 | X25: 0 | Y25: 0
A26: DRAB0205 | B26: Actual additions (recognised in RAB) | C26: 41478795.98 | D26: 47737954.9 | E26: 42466133.12 | F26: 42000864.52 | K26: 41478795.98 | L26: 47737954.9 | M26: 42466133.12 | N26: 42000864.52
A27: DRAB0206 | B27: Disposals | C27: 0 | D27: -18588053.3 | K27: 0 | L27: -18588053.3 | M27: 0 | N27: 0
A28: DRAB0207 | B28: Closing value for overhead distribution asset value | C28: =SUM(C22+C23+C24+C26+C27) -> 699028691.1 | D28: =SUM(D22+D23+D24+D26+D27) -> 690702045.5 | E28: =SUM(E22+E23+E24+E26+E27) -> 696473552.1 | F28: =SUM(F22+F23+F24+F26+F27) -> 700566472 | G28: 700566472 | H28: 700566472 | I28: 700566472 | K28: =SUM(K22+K23+K24+K26+K27) -> 699028691.1 | L28: =SUM(L22+L23+L24+L26+L27) -> 690702045.5 | M28: =SUM(M22+M23+M24+M26+M27) -> 696473552.1 | N28: 700566472 | O28: 700566472 | P28: 700566472 | Q28: 700566472 | S28: =SUM(S22+S23+S24+S26+S27) -> 0 | T28: =SUM(T22+T23+T24+T26+T27) -> 0 | U28: =SUM(U22+U23+U24+U26+U27) -> 0 | V28: 0 | W28: 0 | X28: 0 | Y28: 0
B29: For underground network assets less than 33kV:
A30: DRAB0301 | B30: Opening value | C30: 404126580.3 | D30: =C36 -> 403781934.7 | E30: =D36 -> 392113248.6 | F30: =E36 -> 393548383.6 | G30: =F36 -> 394141756.8 | H30: =G36 -> 394141756.8 | I30: =H36 -> 394141756.8 | K30: 404126580.3 | L30: =K36 -> 403781934.7 | M30: =L36 -> 392113248.6 | N30: =M36 -> 393548383.6 | O30: =N36 -> 394141756.8 | P30: =O36 -> 394141756.8 | Q30: =P36 -> 394141756.8 | T30: =S36 -> 0 | U30: =T36 -> 0 | V30: =U36 -> 0 | W30: =V36 -> 0 | X30: =W36 -> 0 | Y30: =X36 -> 0
A31: DRAB0302 | B31: Inflation addition | C31: 0 | D31: 0 | K31: 0 | L31: 0
A32: DRAB0303 | B32: Straight line depreciation | C32: -10638028.74 | D32: -10811703.11 | E32: -10323418.55 | F32: -10519394.44 | K32: -10638028.74 | L32: -10811703.11 | M32: -10323418.55 | N32: -10519394.44
A33: DRAB0304 | B33: Regulatory depreciation | C33: =SUM(C32+C31) -> -10638028.74 | D33: =SUM(D32+D31) -> -10811703.11 | E33: =SUM(E32+E31) -> -10323418.55 | F33: =SUM(F32+F31) -> -10519394.44 | G33: 0 | H33: 0 | I33: 0 | K33: =SUM(K32+K31) -> -10638028.74 | L33: =SUM(L32+L31) -> -10811703.11 | M33: =SUM(M32+M31) -> -10323418.55 | N33: -10519394.44 | O33: 0 | P33: 0 | Q33: 0 | S33: =SUM(S32+S31) -> 0 | T33: =SUM(T32+T31) -> 0 | U33: =SUM(U32+U31) -> 0 | V33: 0 | W33: 0 | X33: 0 | Y33: 0
A34: DRAB0305 | B34: Actual additions (recognised in RAB) | C34: 10293383.12 | D34: 13906195.44 | E34: 11758553.55 | F34: 11112767.68 | K34: 10293383.12 | L34: 13906195.44 | M34: 11758553.55 | N34: 11112767.68
A35: DRAB0306 | B35: Disposals | C35: 0 | D35: -14763178.45 | K35: 0 | L35: -14763178.45 | M35: 0 | N35: 0
A36: DRAB0307 | B36: Closing value for underground asset value | C36: =SUM(C30+C31+C32+C34+C35) -> 403781934.7 | D36: =SUM(D30+D31+D32+D34+D35) -> 392113248.6 | E36: =SUM(E30+E31+E32+E34+E35) -> 393548383.6 | F36: =SUM(F30+F31+F32+F34+F35) -> 394141756.8 | G36: 394141756.8 | H36: 394141756.8 | I36: 394141756.8 | K36: =SUM(K30+K31+K32+K34+K35) -> 403781934.7 | L36: =SUM(L30+L31+L32+L34+L35) -> 392113248.6 | M36: =SUM(M30+M31+M32+M34+M35) -> 393548383.6 | N36: 394141756.8 | O36: 394141756.8 | P36: 394141756.8 | Q36: 394141756.8 | S36: =SUM(S30+S31+S32+S34+S35) -> 0 | T36: =SUM(T30+T31+T32+T34+T35) -> 0 | U36: =SUM(U30+U31+U32+U34+U35) -> 0 | V36: 0 | W36: 0 | X36: 0 | Y36: 0
B37: For distribution substations and transformers:
A38: DRAB0401 | B38: Opening value | C38: 249837644.6 | D38: =C44 -> 251528123.5 | E38: =D44 -> 247250446.1 | F38: =E44 -> 251458960.2 | G38: =F44 -> 255032208.8 | H38: =G44 -> 255032208.8 | I38: =H44 -> 255032208.8 | K38: 249837644.6 | L38: =K44 -> 251528123.5 | M38: =L44 -> 247250446.1 | N38: =M44 -> 251458960.2 | O38: =N44 -> 255032208.8 | P38: =O44 -> 255032208.8 | Q38: =P44 -> 255032208.8 | T38: =S44 -> 0 | U38: =T44 -> 0 | V38: =U44 -> 0 | W38: =V44 -> 0 | X38: =W44 -> 0 | Y38: =X44 -> 0
A39: DRAB0402 | B39: Inflation addition | C39: 0 | D39: 0 | K39: 0 | L39: 0
A40: DRAB0403 | B40: Straight line depreciation | C40: -12212097.88 | D40: -12563953.22 | E40: -12177271.81 | F40: -12586916.45 | K40: -12212097.88 | L40: -12563953.22 | M40: -12177271.81 | N40: -12586916.45
A41: DRAB0404 | B41: Regulatory depreciation | C41: =SUM(C40+C39) -> -12212097.88 | D41: =SUM(D40+D39) -> -12563953.22 | E41: =SUM(E40+E39) -> -12177271.81 | F41: =SUM(F40+F39) -> -12586916.45 | G41: 0 | H41: 0 | I41: 0 | K41: =SUM(K40+K39) -> -12212097.88 | L41: =SUM(L40+L39) -> -12563953.22 | M41: =SUM(M40+M39) -> -12177271.81 | N41: -12586916.45 | O41: 0 | P41: 0 | Q41: 0 | S41: =SUM(S40+S39) -> 0 | T41: =SUM(T40+T39) -> 0 | U41: =SUM(U40+U39) -> 0 | V41: 0 | W41: 0 | X41: 0 | Y41: 0
A42: DRAB0405 | B42: Actual additions (recognised in RAB) | C42: 13902576.8 | D42: 16855824.69 | E42: 16385785.93 | F42: 16160164.99 | K42: 13902576.8 | L42: 16855824.69 | M42: 16385785.93 | N42: 16160164.99
A43: DRAB0406 | B43: Disposals | C43: 0 | D43: -8569548.846 | K43: 0 | L43: -8569548.846 | M43: 0 | N43: 0
A44: DRAB0407 | B44: Closing value for distribution substations and transformers asset value | C44: =SUM(C38+C39+C40+C42+C43) -> 251528123.5 | D44: =SUM(D38+D39+D40+D42+D43) -> 247250446.1 | E44: =SUM(E38+E39+E40+E42+E43) -> 251458960.2 | F44: =SUM(F38+F39+F40+F42+F43) -> 255032208.8 | G44: 255032208.8 | H44: 255032208.8 | I44: 255032208.8 | K44: =SUM(K38+K39+K40+K42+K43) -> 251528123.5 | L44: =SUM(L38+L39+L40+L42+L43) -> 247250446.1 | M44: =SUM(M38+M39+M40+M42+M43) -> 251458960.2 | N44: 255032208.8 | O44: 255032208.8 | P44: 255032208.8 | Q44: 255032208.8 | S44: =SUM(S38+S39+S40+S42+S43) -> 0 | T44: =SUM(T38+T39+T40+T42+T43) -> 0 | U44: =SUM(U38+U39+U40+U42+U43) -> 0 | V44: 0 | W44: 0 | X44: 0 | Y44: 0
B45: For overhead network assets 33kV and above:
A46: DRAB0501 | B46: Opening value | C46: 13628710.11 | D46: =C52 -> 13360006.44 | E46: =D52 -> 12190274.32 | F46: =E52 -> 11917704.09 | G46: =F52 -> 11646348.78 | H46: =G52 -> 11646348.78 | I46: =H52 -> 11646348.78 | K46: 13628710.11 | L46: =K52 -> 13360006.44 | M46: =L52 -> 12190274.32 | N46: =M52 -> 11917704.09 | O46: =N52 -> 11646348.78 | P46: =O52 -> 11646348.78 | Q46: =P52 -> 11646348.78 | T46: =S52 -> 0 | U46: =T52 -> 0 | V46: =U52 -> 0 | W46: =V52 -> 0 | X46: =W52 -> 0 | Y46: =X52 -> 0
A47: DRAB0502 | B47: Inflation addition | C47: 0 | D47: 0 | K47: 0 | L47: 0
A48: DRAB0503 | B48: Straight line depreciation | C48: -487752.1161 | D48: -492187.1711 | E48: -447729.1264 | F48: -451232.3044 | K48: -487752.1161 | L48: -492187.1711 | M48: -447729.1264 | N48: -451232.3044
A49: DRAB0504 | B49: Regulatory depreciation | C49: =SUM(C48+C47) -> -487752.1161 | D49: =SUM(D48+D47) -> -492187.1711 | E49: =SUM(E48+E47) -> -447729.1264 | F49: =SUM(F48+F47) -> -451232.3044 | G49: 0 | H49: 0 | I49: 0 | K49: =SUM(K48+K47) -> -487752.1161 | L49: =SUM(L48+L47) -> -492187.1711 | M49: =SUM(M48+M47) -> -447729.1264 | N49: -451232.3044 | O49: 0 | P49: 0 | Q49: 0 | S49: =SUM(S48+S47) -> 0 | T49: =SUM(T48+T47) -> 0 | U49: =SUM(U48+U47) -> 0 | V49: 0 | W49: 0 | X49: 0 | Y49: 0
A50: DRAB0505 | B50: Actual additions (recognised in RAB) | C50: 219048.4456 | D50: 245102.6069 | E50: 175158.8985 | F50: 179876.9992 | K50: 219048.4456 | L50: 245102.6069 | M50: 175158.8985 | N50: 179876.9992
A51: DRAB0506 | B51: Disposals | C51: 0 | D51: -922647.5642 | K51: 0 | L51: -922647.5642
A52: DRAB0507 | B52: Closing value for overhead asset 33kV and above value | C52: =SUM(C46+C47+C48+C50+C51) -> 13360006.44 | D52: =SUM(D46+D47+D48+D50+D51) -> 12190274.32 | E52: =SUM(E46+E47+E48+E50+E51) -> 11917704.09 | F52: =SUM(F46+F47+F48+F50+F51) -> 11646348.78 | G52: 11646348.78 | H52: 11646348.78 | I52: 11646348.78 | K52: =SUM(K46+K47+K48+K50+K51) -> 13360006.44 | L52: =SUM(L46+L47+L48+L50+L51) -> 12190274.32 | M52: =SUM(M46+M47+M48+M50+M51) -> 11917704.09 | N52: 11646348.78 | O52: 11646348.78 | P52: 11646348.78 | Q52: 11646348.78 | S52: =SUM(S46+S47+S48+S50+S51) -> 0 | T52: =SUM(T46+T47+T48+T50+T51) -> 0 | U52: =SUM(U46+U47+U48+U50+U51) -> 0 | V52: 0 | W52: 0 | X52: 0 | Y52: 0
B53: For underground network assets 33kV and above:
A54: DRAB0601 | B54: Opening value | C54: 11227215.55 | D54: =C60 -> 10908034.99 | E54: =D60 -> 10012626.29 | F54: =E60 -> 9712271.614 | G54: =F60 -> 9411916.934 | H54: =G60 -> 9411916.934 | I54: =H60 -> 9411916.934 | K54: 11227215.55 | L54: =K60 -> 10908034.99 | M54: =L60 -> 10012626.29 | N54: =M60 -> 9712271.614 | O54: =N60 -> 9411916.934 | P54: =O60 -> 9411916.934 | Q54: =P60 -> 9411916.934 | T54: =S60 -> 0 | U54: =T60 -> 0 | V54: =U60 -> 0 | W54: =V60 -> 0 | X54: =W60 -> 0 | Y54: =X60 -> 0
A55: DRAB0602 | B55: Inflation addition | C55: 0 | D55: 0 | K55: 0 | L55: 0
A56: DRAB0603 | B56: Straight line depreciation | C56: -327881.3358 | D56: -328028.1391 | E56: -300354.6799 | F56: -300354.6799 | K56: -327881.3358 | L56: -328028.1391 | M56: -300354.6799 | N56: -300354.6799
A57: DRAB0604 | B57: Regulatory depreciation | C57: =SUM(C56+C55) -> -327881.3358 | D57: =SUM(D56+D55) -> -328028.1391 | E57: =SUM(E56+E55) -> -300354.6799 | F57: =SUM(F56+F55) -> -300354.6799 | G57: 0 | H57: 0 | I57: 0 | K57: =SUM(K56+K55) -> -327881.3358 | L57: =SUM(L56+L55) -> -328028.1391 | M57: =SUM(M56+M55) -> -300354.6799 | N57: -300354.6799 | O57: 0 | P57: 0 | Q57: 0 | S57: =SUM(S56+S55) -> 0 | T57: =SUM(T56+T55) -> 0 | U57: =SUM(U56+U55) -> 0 | V57: 0 | W57: 0 | X57: 0 | Y57: 0
A58: DRAB0605 | B58: Actual additions (recognised in RAB) | C58: 8700.781902 | D58: 0 | E58: 0 | F58: 0 | K58: 8700.781902 | L58: 0 | M58: 0 | N58: 0
A59: DRAB0606 | B59: Disposals | C59: 0 | D59: -567380.5607 | K59: 0 | L59: -567380.5607
A60: DRAB0607 | B60: Closing value for underground asset 33kV and above value | C60: =SUM(C54+C55+C56+C58+C59) -> 10908034.99 | D60: =SUM(D54+D55+D56+D58+D59) -> 10012626.29 | E60: =SUM(E54+E55+E56+E58+E59) -> 9712271.614 | F60: =SUM(F54+F55+F56+F58+F59) -> 9411916.934 | G60: 9411916.934 | H60: 9411916.934 | I60: 9411916.934 | K60: =SUM(K54+K55+K56+K58+K59) -> 10908034.99 | L60: =SUM(L54+L55+L56+L58+L59) -> 10012626.29 | M60: =SUM(M54+M55+M56+M58+M59) -> 9712271.614 | N60: 9411916.934 | O60: 9411916.934 | P60: 9411916.934 | Q60: 9411916.934 | S60: =SUM(S54+S55+S56+S58+S59) -> 0 | T60: =SUM(T54+T55+T56+T58+T59) -> 0 | U60: =SUM(U54+U55+U56+U58+U59) -> 0 | V60: 0 | W60: 0 | X60: 0 | Y60: 0
B61: Zone substations and transformers
A62: DRAB0701 | B62: Opening value | C62: 54223604 | D62: =C68 -> 57044622.22 | E62: =D68 -> 47571706.74 | F62: =E68 -> 47843960.96 | G62: =F68 -> 52516386.93 | H62: =G68 -> 52516386.93 | I62: =H68 -> 52516386.93 | K62: 54223604 | L62: =K68 -> 57044622.22 | M62: =L68 -> 47571706.74 | N62: =M68 -> 47843960.96 | O62: =N68 -> 52516386.93 | P62: =O68 -> 52516386.93 | Q62: =P68 -> 52516386.93 | T62: =S68 -> 0 | U62: =T68 -> 0 | V62: =U68 -> 0 | W62: =V68 -> 0 | X62: =W68 -> 0 | Y62: =X68 -> 0
A63: DRAB0702 | B63: Inflation addition | C63: 0 | D63: 0 | K63: 0 | L63: 0
A64: DRAB0703 | B64: Straight line depreciation | C64: -1902035.174 | D64: -2021569.241 | E64: -1693221.611 | F64: -1742358.507 | K64: -1902035.174 | L64: -2021569.241 | M64: -1693221.611 | N64: -1742358.507
A65: DRAB0704 | B65: Regulatory depreciation | C65: =SUM(C64+C63) -> -1902035.174 | D65: =SUM(D64+D63) -> -2021569.241 | E65: =SUM(E64+E63) -> -1693221.611 | F65: =SUM(F64+F63) -> -1742358.507 | G65: 0 | H65: 0 | I65: 0 | K65: =SUM(K64+K63) -> -1902035.174 | L65: =SUM(L64+L63) -> -2021569.241 | M65: =SUM(M64+M63) -> -1693221.611 | N65: -1742358.507 | O65: 0 | P65: 0 | Q65: 0 | S65: =SUM(S64+S63) -> 0 | T65: =SUM(T64+T63) -> 0 | U65: =SUM(U64+U63) -> 0 | V65: 0 | W65: 0 | X65: 0 | Y65: 0
A66: DRAB0705 | B66: Actual additions (recognised in RAB) | C66: 4723053.395 | D66: 328824.8379 | E66: 1965475.827 | F66: 6414784.475 | K66: 4723053.395 | L66: 328824.8379 | M66: 1965475.827 | N66: 6414784.475
A67: DRAB0706 | B67: Disposals | C67: 0 | D67: -7780171.071 | K67: 0 | L67: -7780171.071
A68: DRAB0707 | B68: Closing value for zone substations and transformers | C68: =SUM(C62+C63+C64+C66+C67) -> 57044622.22 | D68: =SUM(D62+D63+D64+D66+D67) -> 47571706.74 | E68: =SUM(E62+E63+E64+E66+E67) -> 47843960.96 | F68: =SUM(F62+F63+F64+F66+F67) -> 52516386.93 | G68: 52516386.93 | H68: 52516386.93 | I68: 52516386.93 | K68: =SUM(K62+K63+K64+K66+K67) -> 57044622.22 | L68: =SUM(L62+L63+L64+L66+L67) -> 47571706.74 | M68: =SUM(M62+M63+M64+M66+M67) -> 47843960.96 | N68: 52516386.93 | O68: 52516386.93 | P68: 52516386.93 | Q68: 52516386.93 | S68: =SUM(S62+S63+S64+S66+S67) -> 0 | T68: =SUM(T62+T63+T64+T66+T67) -> 0 | U68: =SUM(U62+U63+U64+U66+U67) -> 0 | V68: 0 | W68: 0 | X68: 0 | Y68: 0
B69: For easements:
A70: DRAB0801 | B70: Opening value | C70: 823364.401 | D70: =C74 -> 1170462.213 | E70: =D74 -> 1166177.055 | F70: 1166177.055 | G70: 2055941.843 | H70: 2055941.843 | I70: 2055941.843 | K70: 823364.401 | L70: =K74 -> 1170462.213 | M70: =L74 -> 1166177.055 | N70: 1166177.055 | O70: 2055941.843 | P70: 2055941.843 | Q70: 2055941.843 | T70: =S74 -> 0 | U70: =T74 -> 0 | V70: 0 | W70: 0 | X70: 0 | Y70: 0
A71: DRAB0802 | B71: Inflation addition | C71: 0 | D71: 0 | K71: 0 | L71: 0
A72: DRAB0803 | B72: Actual additions (recognised in RAB) | C72: 347097.8117 | D72: 0 | E72: 0 | F72: 889764.788 | K72: 347097.8117 | L72: 0 | M72: 0 | N72: 889764.788
A73: DRAB0804 | B73: Disposals | C73: 0 | D73: -4285.158169 | K73: 0 | L73: -4285.158169
A74: DRAB0805 | B74: Closing value for easements asset value | C74: =SUM(C70+C71+C72+C73) -> 1170462.213 | D74: =SUM(D70+D71+D72+D73) -> 1166177.055 | E74: =SUM(E70+E71+E72+E73) -> 1166177.055 | F74: 2055941.843 | G74: 2055941.843 | H74: 2055941.843 | I74: 2055941.843 | K74: =SUM(K70+K71+K72+K73) -> 1170462.213 | L74: =SUM(L70+L71+L72+L73) -> 1166177.055 | M74: =SUM(M70+M71+M72+M73) -> 1166177.055 | N74: 2055941.843 | O74: 2055941.843 | P74: 2055941.843 | Q74: 2055941.843 | S74: =SUM(S70+S71+S72+S73) -> 0 | T74: =SUM(T70+T71+T72+T73) -> 0 | U74: =SUM(U70+U71+U72+U73) -> 0 | V74: 0 | W74: 0 | X74: 0 | Y74: 0
B75: For meters:
A76: DRAB0901 | B76: Opening value | D76: =C82 -> 0 | E76: =D82 -> 0 | F76: =E82 -> 0 | G76: =F82 -> 0 | H76: =G82 -> 0 | I76: =H82 -> 0 | L76: =K82 -> 0 | M76: =L82 -> 0 | N76: =M82 -> 0 | O76: =N82 -> 0 | P76: =O82 -> 0 | Q76: =P82 -> 0 | S76: 46064058.47 | T76: =S82 -> 44560012.45 | U76: =T82 -> 42796359.68 | V76: =U82 -> 39600591.83 | W76: =V82 -> 35678942.72 | X76: =W82 -> 35678942.72 | Y76: =X82 -> 35678942.72
A77: DRAB0902 | B77: Inflation addition | S77: 0 | T77: 0 | U77: 0 | V77: 0
A78: DRAB0903 | B78: Straight line depreciation | S78: -4098194.146 | T78: -4273272.456 | U78: -3879121.442 | V78: -3921649.115
A79: DRAB0904 | B79: Regulatory depreciation | C79: =SUM(C78+C77) -> 0 | D79: =SUM(D78+D77) -> 0 | E79: =SUM(E78+E77) -> 0 | F79: =SUM(F78+F77) -> 0 | G79: 0 | H79: 0 | I79: 0 | K79: =SUM(K78+K77) -> 0 | L79: =SUM(L78+L77) -> 0 | M79: =SUM(M78+M77) -> 0 | N79: 0 | O79: 0 | P79: 0 | Q79: 0 | S79: =SUM(S78+S77) -> -4098194.146 | T79: =SUM(T78+T77) -> -4273272.456 | U79: =SUM(U78+U77) -> -3879121.442 | V79: -3921649.115 | W79: 0 | X79: 0 | Y79: 0
A80: DRAB0905 | B80: Actual additions (recognised in RAB) | S80: 2594148.135 | T80: 2509619.682 | U80: 683353.5938 | V80: 0
A81: DRAB0906 | B81: Disposals | S81: 0 | T81: 0 | U81: 0 | V81: 0
A82: DRAB0907 | B82: Closing value for meters asset value | C82: =SUM(C76+C77+C78+C80+C81) -> 0 | D82: =SUM(D76+D77+D78+D80+D81) -> 0 | E82: =SUM(E76+E77+E78+E80+E81) -> 0 | F82: =SUM(F76+F77+F78+F80+F81) -> 0 | G82: 0 | H82: 0 | I82: 0 | K82: =SUM(K76+K77+K78+K80+K81) -> 0 | L82: =SUM(L76+L77+L78+L80+L81) -> 0 | M82: =SUM(M76+M77+M78+M80+M81) -> 0 | N82: 0 | O82: 0 | P82: 0 | Q82: 0 | S82: =SUM(S76+S77+S78+S80+S81) -> 44560012.45 | T82: =SUM(T76+T77+T78+T80+T81) -> 42796359.68 | U82: =SUM(U76+U77+U78+U80+U81) -> 39600591.83 | V82: 35678942.72 | W82: 35678942.72 | X82: 35678942.72 | Y82: 35678942.72
B83: For “other” asset items with long lives:
A84: DRAB1001 | B84: Opening value | C84: 45049491.77 | D84: =C90 -> 47470156.28 | E84: =D90 -> 60586010.14 | F84: =E90 -> 72869108.99 | G84: =F90 -> 71570596.11 | H84: =G90 -> 71570596.11 | I84: =H90 -> 71570596.11 | K84: 135567092.9 | L84: =K90 -> 136395398.9 | M84: =L90 -> 149621831.2 | N84: =M90 -> 161259197.7 | O84: =N90 -> 159005380.6 | P84: =O90 -> 159005380.6 | Q84: =P90 -> 159005380.6 | T84: =S90 -> 0 | U84: =T90 -> 0 | V84: =U90 -> 0 | W84: =V90 -> 0 | X84: =W90 -> 0 | Y84: =X90 -> 0
A85: DRAB1002 | B85: Inflation addition | C85: 0 | D85: 0 | K85: 0 | L85: 0
A86: DRAB1003 | B86: Straight line depreciation | C86: -2377975.679 | D86: -2496486.304 | E86: -1110296.476 | F86: -2310025.632 | K86: -11375781.47 | L86: -8686682.778 | M86: -6714220.489 | N86: -8074124.63
A87: DRAB1004 | B87: Regulatory depreciation | C87: =SUM(C86+C85) -> -2377975.679 | D87: =SUM(D86+D85) -> -2496486.304 | E87: =SUM(E86+E85) -> -1110296.476 | F87: =SUM(F86+F85) -> -2310025.632 | G87: 0 | H87: 0 | I87: 0 | K87: =SUM(K86+K85) -> -11375781.47 | L87: =SUM(L86+L85) -> -8686682.778 | M87: =SUM(M86+M85) -> -6714220.489 | N87: -8074124.63 | O87: 0 | P87: 0 | Q87: 0 | S87: =SUM(S86+S85) -> 0 | T87: =SUM(T86+T85) -> 0 | U87: =SUM(U86+U85) -> 0 | V87: 0 | W87: 0 | X87: 0 | Y87: 0
A88: DRAB1005 | B88: Actual additions (recognised in RAB) | C88: 4798640.185 | D88: 2800768.616 | E88: 13393395.32 | F88: 1011512.756 | K88: 12204087.42 | L88: 10753831.29 | M88: 18351587.06 | N88: 5820307.498
A89: DRAB1006 | B89: Disposals | C89: 0 | D89: 12811571.55 | K89: 0 | L89: 11159283.78
A90: DRAB1007 | B90: Closing value for “other” asset (long life) value | C90: =SUM(C84+C85+C86+C88+C89) -> 47470156.28 | D90: =SUM(D84+D85+D86+D88+D89) -> 60586010.14 | E90: =SUM(E84+E85+E86+E88+E89) -> 72869108.99 | F90: =SUM(F84+F85+F86+F88+F89) -> 71570596.11 | G90: 71570596.11 | H90: 71570596.11 | I90: 71570596.11 | K90: =SUM(K84+K85+K86+K88+K89) -> 136395398.9 | L90: =SUM(L84+L85+L86+L88+L89) -> 149621831.2 | M90: =SUM(M84+M85+M86+M88+M89) -> 161259197.7 | N90: 159005380.6 | O90: 159005380.6 | P90: 159005380.6 | Q90: 159005380.6 | S90: =SUM(S84+S85+S86+S88+S89) -> 0 | T90: =SUM(T84+T85+T86+T88+T89) -> 0 | U90: =SUM(U84+U85+U86+U88+U89) -> 0 | V90: 0 | W90: 0 | X90: 0 | Y90: 0
B91: For “other” asset items with short lives:
A92: DRAB1101 | B92: Opening value | C92: 72599348.16 | D92: =C98 -> 92161365.75 | E92: =D98 -> 96090840.49 | F92: =E98 -> 97126740.73 | G92: =F98 -> 92186097.85 | H92: =G98 -> 92186097.85 | I92: =H98 -> 92186097.85 | K92: 72599348.16 | L92: =K98 -> 92161365.75 | M92: =L98 -> 96090840.49 | N92: =M98 -> 97126740.73 | O92: =N98 -> 92186097.85 | P92: =O98 -> 92186097.85 | Q92: =P98 -> 92186097.85 | S92: 4369531.229 | T92: =S98 -> 3808678.896 | U92: =T98 -> 3663148.825 | V92: =U98 -> 3816610.193 | W92: =V98 -> 2927664.643 | X92: =W98 -> 2927664.643 | Y92: =X98 -> 2927664.643
A93: DRAB1102 | B93: Inflation addition | C93: 0 | D93: 0 | K93: 0 | L93: 0 | S93: 0 | T93: 0 | U93: 0 | V93: 0
A94: DRAB1103 | B94: Straight line depreciation | C94: -16505160.43 | D94: -18466471.16 | E94: -20230565.99 | F94: -24005860.63 | K94: -16505160.43 | L94: -18466471.16 | M94: -20230565.99 | N94: -24005860.63 | S94: -980971.8654 | T94: -753944.7085 | U94: -712049.6668 | V94: -823064.5437
A95: DRAB1104 | B95: Regulatory depreciation | C95: =SUM(C94+C93) -> -16505160.43 | D95: =SUM(D94+D93) -> -18466471.16 | E95: =SUM(E94+E93) -> -20230565.99 | F95: =SUM(F94+F93) -> -24005860.63 | G95: 0 | H95: 0 | I95: 0 | K95: =SUM(K94+K93) -> -16505160.43 | L95: =SUM(L94+L93) -> -18466471.16 | M95: =SUM(M94+M93) -> -20230565.99 | N95: -24005860.63 | O95: 0 | P95: 0 | Q95: 0 | S95: =SUM(S94+S93) -> -980971.8654 | T95: =SUM(T94+T93) -> -753944.7085 | U95: =SUM(U94+U93) -> -712049.6668 | V95: -823064.5437 | W95: 0 | X95: 0 | Y95: 0
A96: DRAB1105 | B96: Actual additions (recognised in RAB) | C96: 36852049.64 | D96: 38178045.74 | E96: 22021056.46 | F96: 19819807.98 | K96: 36852049.64 | L96: 38178045.74 | M96: 22021056.46 | N96: 19819807.98 | S96: 420119.5327 | T96: 608414.6372 | U96: 865511.0345 | V96: -65881.00564
A97: DRAB1106 | B97: Disposals | C97: -784871.6262 | D97: -15782099.85 | E97: -754590.2267 | F97: -754590.2267 | K97: -784871.6262 | L97: -15782099.85 | M97: -754590.2267 | N97: -754590.2267 | S97: 0 | T97: 0 | U97: 0 | V97: 0
A98: DRAB1107 | B98: Closing value for “other” asset (short life) value | C98: =SUM(C92+C93+C94+C96+C97) -> 92161365.75 | D98: =SUM(D92+D93+D94+D96+D97) -> 96090840.49 | E98: =SUM(E92+E93+E94+E96+E97) -> 97126740.73 | F98: =SUM(F92+F93+F94+F96+F97) -> 92186097.85 | G98: 92186097.85 | H98: 92186097.85 | I98: 92186097.85 | K98: =SUM(K92+K93+K94+K96+K97) -> 92161365.75 | L98: =SUM(L92+L93+L94+L96+L97) -> 96090840.49 | M98: =SUM(M92+M93+M94+M96+M97) -> 97126740.73 | N98: 92186097.85 | O98: 92186097.85 | P98: 92186097.85 | Q98: 92186097.85 | S98: =SUM(S92+S93+S94+S96+S97) -> 3808678.896 | T98: =SUM(T92+T93+T94+T96+T97) -> 3663148.825 | U98: =SUM(U92+U93+U94+U96+U97) -> 3816610.193 | V98: 2927664.643 | W98: 2927664.643 | X98: 2927664.643 | Y98: 2927664.643
B100: TABE 3.3.3 TOTAL DISAGGREGATED RAB ASSET VALUES
A101: DRAB1201 | B101: Distribution substations including transformers | C101: 696427697 | D101: 694865368.3 | E101: 693444402.2 | F101: 698376615.5 | K101: 696427697 | L101: 694865368.3 | M101: 693475439.8 | N101: 698407653.1 | S101: 0 | T101: 0 | U101: 0 | V101: 0
A102: DRAB1202 | B102: Underground distribution assets (cables, ducts etc) | C102: 403954257.5 | D102: 397947591.6 | E102: 392705490.7 | F102: 393719744.8 | K102: 403954257.5 | L102: 397947591.6 | M102: 392719682.1 | N102: 393733936.3 | S102: 0 | T102: 0 | U102: 0 | V102: 0
A103: DRAB1203 | B103: Distribution substations including transformers | C103: 250682884 | D103: 249389284.8 | E103: 249300866 | F103: 253191747.3 | K103: 250682884 | L103: 249389284.8 | M103: 249312565.4 | N103: 253203446.7 | S103: 0 | T103: 0 | U103: 0 | V103: 0
A104: DRAB1204 | B104: Overhead assets 33kV and above (wires and towers / poles etc) | C104: 13494358.28 | D104: 12775140.38 | E104: 12038662.23 | F104: 11766699.47 | K104: 13494358.28 | L104: 12775140.38 | M104: 12039451.96 | N104: 11767489.19 | S104: 0 | T104: 0 | U104: 0 | V104: 0
A105: DRAB1205 | B105: Underground assets 33kV and above (cables, ducts etc) | C105: 11067625.27 | D105: 10460330.64 | E105: 9848735.928 | F105: 9548381.248 | K105: 11067625.27 | L105: 10460330.64 | M105: 9849237.937 | N105: 9548883.258 | S105: 0 | T105: 0 | U105: 0 | V105: 0
A106: DRAB1206 | B106: Zone substations | C106: 55634113.11 | D106: 52308164.48 | E106: 47660725.27 | F106: 50133065.36 | K106: 55634113.11 | L106: 52308164.48 | M106: 47666163.72 | N106: 50138503.81 | S106: 0 | T106: 0 | U106: 0 | V106: 0
A107: DRAB1207 | B107: Easements | C107: 996913.3069 | D107: 1168319.634 | E107: 1170462.213 | F107: 1615344.607 | K107: 996913.3069 | L107: 1168319.634 | M107: 1170462.213 | N107: 1615344.607 | S107: 0 | T107: 0 | U107: 0 | V107: 0
A108: DRAB1208 | B108: Meters | C108: 0 | D108: 0 | E108: 0 | F108: 0 | K108: 0 | L108: 0 | M108: 0 | N108: 0 | S108: 45312035.46 | T108: 43678186.07 | U108: 42962128.53 | V108: 40835535.12
A109: DRAB1209 | B109: Other assets with long lives (please specify) | C109: 46259824.03 | D109: 54028083.21 | E109: 66830109.7 | F109: 72322402.69 | K109: 135981245.9 | L109: 143008615 | M109: 155461088.7 | N109: 160152863.4 | S109: 0 | T109: 0 | U109: 0 | V109: 0
A110: DRAB1210 | B110: Other assets with short lives (please specify) | C110: 82380356.96 | D110: 94126103.12 | E110: 96900663.04 | F110: 94948291.72 | K110: 82380356.96 | L110: 94126103.12 | M110: 96918980.24 | N110: 93930708.67 | S110: 4089105.063 | T110: 3735913.861 | U110: 3885409.58 | V110: 3218676.05
B112: Capital Contributions
A113: DRAB13 | B113: Value of Capital Contributions or Contributed Assets | C113: 10737001.55 | D113: 10601077.43 | E113: 11166859.38 | F113: 11048781.02 | K113: 10737001.55 | L113: 10601077.43 | M113: 11166859.38 | N113: 11048781.02 | S113: 0 | T113: 0 | U113: 0 | V113: 0
B115: TABLE 3.3.4 - ASSET LIVES | C115: Forecast ( years ) | K115: Forecast ( years ) | S115: Forecast ( years )
B116: Table 3.3.4.1 - Asset Lives – estimated service life of new assets | C116: =CRCP_y4 -> 2015-16 | D116: =CRCP_y5 -> 2016-17 | E116: =FRCP_y1 -> 2017-18 | F116: =FRCP_y2 -> 2018-19 | G116: =FRCP_y3 -> 2019-20 | H116: =FRCP_y4 -> 2020-21 | I116: =FRCP_y5 -> 2021-22 | K116: =CRCP_y4 -> 2015-16 | L116: =CRCP_y5 -> 2016-17 | M116: =FRCP_y1 -> 2017-18 | N116: =FRCP_y2 -> 2018-19 | O116: =FRCP_y3 -> 2019-20 | P116: =FRCP_y4 -> 2020-21 | Q116: =FRCP_y5 -> 2021-22 | S116: =CRCP_y4 -> 2015-16 | T116: =CRCP_y5 -> 2016-17 | U116: =FRCP_y1 -> 2017-18 | V116: =FRCP_y2 -> 2018-19 | W116: =FRCP_y3 -> 2019-20 | X116: =FRCP_y4 -> 2020-21 | Y116: =FRCP_y5 -> 2021-22
A117: DRAB1401 | B117: Overhead network assets less than 33kV (wires and poles) | C117: 35 | D117: 35 | E117: 35 | F117: 35 | K117: 35 | L117: 35 | M117: 35 | N117: 35
A118: DRAB1402 | B118: Underground network assets less than 33kV (cables) | C118: 60 | D118: 60 | E118: 60 | F118: 60 | K118: 60 | L118: 60 | M118: 60 | N118: 60
A119: DRAB1403 | B119: Distribution substations including transformers | C119: 40 | D119: 40 | E119: 40 | F119: 40 | K119: 40 | L119: 40 | M119: 40 | N119: 40
A120: DRAB1404 | B120: Overhead network assets 33kV and above (wires and towers / poles etc) | C120: 50 | D120: 50 | E120: 50 | F120: 50 | K120: 50 | L120: 50 | M120: 50 | N120: 50
A121: DRAB1405 | B121: Underground network assets 33kV and above(cables, ducts etc) | C121: 60 | D121: 60 | E121: 60 | F121: 60 | K121: 60 | L121: 60 | M121: 60 | N121: 60
A122: DRAB1406 | B122: Zone substations and transformers | C122: 40 | D122: 40 | E122: 40 | F122: 40 | K122: 40 | L122: 40 | M122: 40 | N122: 40
A123: DRAB1407 | B123: Meters | S123: 15 | T123: 15 | U123: 15 | V123: 15
A124: DRAB1408 | B124: “Other” assets with long lives | C124: 40 | D124: 40 | E124: 39.02 | F124: 39.02 | K124: 36.52518451 | L124: 36.41322488 | M124: 35.57883459 | N124: 35.57883459
A125: DRAB1409 | B125: “Other” assets with short lives | C125: 5.702771249 | D125: 6.345853383 | E125: 6.31 | F125: 6.31 | K125: 5.504438848 | L125: 6.198151031 | M125: 6.31 | N125: 6.31 | S125: 6 | T125: 6 | U125: 6 | V125: 6
B127: Table 3.3.4.2 - Asset Lives – estimated residual service life
A128: DRAB1501 | B128: Overhead network assets less than 33kV (wires and poles) | C128: 18.60238685 | D128: 19.19616267 | E128: 19.21946081 | F128: 19.22677762 | K128: 18.60238685 | L128: 19.19616267 | M128: 19.21946081 | N128: 19.22677762
A129: DRAB1502 | B129: Underground network assets less than 33kV (cables) | C129: 37.66484471 | D129: 38.12736769 | E129: 37.78786056 | F129: 37.43461003 | K129: 37.66484471 | L129: 38.12736769 | M129: 37.78786056 | N129: 37.43461003
A130: DRAB1503 | B130: Distribution substations including transformers | C130: 19.7562682 | D130: 20.41398024 | E130: 20.72728838 | F130: 20.99543325 | K130: 19.7562682 | L130: 20.41398024 | M130: 20.72728838 | N130: 20.99543325
A131: DRAB1504 | B131: Overhead network assets 33kV and above (wires and towers / poles etc) | C131: 26.99728172 | D131: 27.2268959 | E131: 26.57050134 | F131: 25.9415625 | K131: 26.99728172 | L131: 27.2268959 | M131: 26.57050134 | N131: 25.9415625
A132: DRAB1505 | B132: Underground network assets 33kV and above (cables, ducts etc) | C132: 33.33600894 | D132: 33.33600894 | E132: 32.33600894 | F132: 31.33600894 | K132: 33.33600894 | L132: 33.33600894 | M132: 32.33600894 | N132: 31.33600894
A133: DRAB1506 | B133: Zone substations and transformers | C133: 28.0783197 | D133: 28.12871939 | E133: 27.61968422 | F133: 28.23224606 | K133: 28.0783197 | L133: 28.12871939 | M133: 27.61968422 | N133: 28.23224606
A134: DRAB1507 | B134: Meters | S134: 11.62661143 | T134: 11.06196261 | U134: 10.11996359 | V134: 9.119963586
A135: DRAB1508 | B135: “Other” assets with long lives | C135: 20.23446053 | D135: 24.85068546 | E135: 24.8188561 | F135: 24.41158394 | K135: 18.76780833 | L135: 19.28333805 | M135: 18.62238235 | N135: 18.53054799
A136: DRAB1509 | B136: “Other” assets with short lives | C136: 4.203347598 | D136: 5.230958022 | E136: 5.795177123 | F136: 5.482098189 | K136: 4.057162527 | L136: 5.109205319 | M136: 5.550765387 | N136: 5.310286124 | S136: 5.086004955 | T136: 5.158215768 | U136: 4.237901535 | V136: 3.641557248

Sheet 3.4 Operational data
B1: =SheetHeader -> REGULATORY REPORTING STATEMENT
B2: =dms_TradingName -> TasNetworks (D)
B3: =dms_Reg_Year_Span -> 2017-18 to 2018-19
B4: 3.4 OPERATIONAL DATA
D6: Standard control services
C7: Unit of measure | D7: Forecast
D8: =CRCP_y4 -> 2015-16 | E8: =CRCP_y5 -> 2016-17 | F8: =FRCP_y1 -> 2017-18 | G8: =FRCP_y2 -> 2018-19 | H8: =FRCP_y3 -> 2019-20 | I8: =FRCP_y4 -> 2020-21 | J8: =FRCP_y5 -> 2021-22
B10: TABLE 3.4.1 - ENERGY DELIVERY
A11: DOPED01 | B11: Total energy delivered | C11: GWh | D11: 4081.37155 | E11: 4073.986538 | F11: 4038.228484 | G11: 3996.616034
B14: Table 3.4.1.1 Energy grouping - delivery by chargeable quantity
A15: DOPED0201 | B15: Energy Delivery where time of use is not a determinant | C15: GWh | D15: 3011.611248 | E15: 2997.496427 | F15: 2961.314496 | G15: 2921.497392
A16: DOPED0202 | B16: Energy Delivery at On-peak times | C16: GWh | D16: 364.6130578 | E16: 369.8629733 | F16: 366.5320012 | G16: 362.6106968
A17: DOPED0203 | B17: Energy Delivery at Shoulder times | C17: GWh | D17: 219.3047389 | E17: 220.9207196 | F17: 216.626028 | G17: 215.0647112
A18: DOPED0204 | B18: Energy Delivery at Off-peak times | C18: GWh | D18: 394.8473405 | E18: 396.2675166 | F18: 405.6650341 | G18: 410.7762859
A19: DOPED0205 | B19: Controlled load energy deliveries | C19: GWh | D19: 57.13992786 | E19: 56.83797271 | F19: 55.98754367 | G19: 55.08801897
A20: DOPED0206 | B20: Energy Delivery to unmetered supplies | C20: GWh | D20: 33.85523719 | E20: 32.60092861 | F20: 32.10338088 | G20: 31.5789287
B22: Table 3.4.1.2 Energy - received from TNSP and other DNSPs by time of receipt
A23: DOPED0301 | B23: Energy into DNSP network at On-peak times | C23: GWh
A24: DOPED0302 | B24: Energy into DNSP network at Shoulder times | C24: GWh
A25: DOPED0303 | B25: Energy into DNSP network at Off-peak times | C25: GWh
A26: DOPED0304 | B26: Energy received from TNSP and other DNSPs not included in the above categories | C26: GWh | D26: 3979.579197 | E26: 3979.579197 | F26: 3917.235138 | G26: 3865.834326
B28: Table 3.4.1.3 Energy - received into DNSP system from embedded generation by time of receipt
A29: DOPED0401 | B29: Energy into DNSP network at On-peak times from non-residential embedded generation | C29: GWh
A30: DOPED0402 | B30: Energy into DNSP network at Shoulder times from non-residential embedded generation | C30: GWh
A31: DOPED0403 | B31: Energy into DNSP network at Off-peak times from non-residential embedded generation | C31: GWh
A32: DOPED0404 | B32: Energy received from embedded generation not included in above categories from non-residential embedded generation | C32: GWh | D32: 74.59151975 | E32: 79.5970475 | F32: 84.60257525 | G32: 89.608103
A33: DOPED0405 | B33: Energy into DNSP network at On-peak times from residential embedded generation | C33: GWh
A34: DOPED0406 | B34: Energy into DNSP network at Shoulder times from residential embedded generation | C34: GWh
A35: DOPED0407 | B35: Energy into DNSP network at Off-peak times from residential embedded generation | C35: GWh
A36: DOPED0408 | B36: Energy received from embedded generation not included in above categories from residential embedded generation | C36: GWh | D36: 64.15941225 | E36: 68.4648845 | F36: 72.77035675 | G36: 77.075829
B38: Table 3.4.1.4 Energy grouping - customer type or class
A39: DOPED0501 | B39: Residential customers energy deliveries | C39: GWh | D39: 1831.946817 | E39: 1822.265919 | F39: 1795.000558 | G39: 1766.161155
A40: DOPED0502 | B40: Non residential customers not on demand tariffs energy deliveries | C40: GWh | D40: 926.269776 | E40: 936.7911431 | F40: 923.0512395 | G40: 908.060795
A41: DOPED0503 | B41: Non-residential low voltage demand tariff customers energy deliveries | C41: GWh | D41: 509.6973942 | E41: 516.770208 | F41: 526.8223913 | G41: 535.55235
A42: DOPED0504 | B42: Non-residential high voltage demand tariff customers energy deliveries | C42: GWh | D42: 779.4405523 | E42: 765.3942545 | F42: 761.0983603 | G42: 755.1217053
A43: DOPED0505 | B43: Other Customer Class Energy Deliveries | C43: GWh | D43: 33.85523719 | E43: 32.60092861 | F43: 32.10338088 | G43: 31.5789287
B45: TABLE 3.4.3 - SYSTEM DEMAND
B46: Table 3.4.3.1 Annual system maximum demand characteristics at the zone substation level – MW measure
A47: DOPSD0102 | B47: Non–coincident Summated Weather Adjusted System Annual Maximum Demand 10% POE | C47: MW | D47: 266.78 | E47: 277.13 | F47: 280.26 | G47: 284.8 | H47: 289.75 | I47: 294.71 | J47: 299.3
A48: DOPSD0103 | B48: Non–coincident Summated Weather Adjusted System Annual Maximum Demand 50% POE | C48: MW | D48: 259.13 | E48: 269.53 | F48: 272.66 | G48: 277.15 | H48: 282.05 | I48: 287 | J48: 291.53
A49: DOPSD0105 | B49: Coincident Weather Adjusted System Annual Maximum Demand 10% POE | C49: MW | D49: 246.13 | E49: 255.52 | F49: 258.42 | G49: 262.63 | H49: 267.22 | I49: 271.82 | J49: 276.07
A50: DOPSD0106 | B50: Coincident Weather Adjusted System Annual Maximum Demand 50% POE | C50: MW | D50: 239.03 | E50: 248.46 | F50: 251.36 | G50: 255.52 | H50: 260.07 | I50: 264.66 | J50: 268.86
B52: Table 3.4.3.2 Annual system maximum demand characteristics at the transmission connection point – MW measure
A53: DOPSD0108 | B53: Non–coincident Summated Weather Adjusted System Annual Maximum Demand 10% POE | C53: MW | D53: 1077.52 | E53: 1088.55 | F53: 1100.71 | G53: 1118.37 | H53: 1137.58 | I53: 1156.86 | J53: 1174.71
A54: DOPSD0109 | B54: Non–coincident Summated Weather Adjusted System Annual Maximum Demand 50% POE | C54: MW | D54: 1056.23 | E54: 1067.25 | F54: 1079.52 | G54: 1097.08 | H54: 1116.3 | I54: 1135.69 | J54: 1153.43
A55: DOPSD0111 | B55: Coincident Weather Adjusted System Annual Maximum Demand 10% POE | C55: MW | D55: 1004.42 | E55: 1014.18 | F55: 1025.44 | G55: 1041.81 | H55: 1059.62 | I55: 1077.48 | J55: 1094.02
A56: DOPSD0112 | B56: Coincident Weather Adjusted System Annual Maximum Demand 50% POE | C56: MW | D56: 984.43 | E56: 994.19 | F56: 1005.56 | G56: 1021.83 | H56: 1039.63 | I56: 1057.59 | J56: 1074.03
B58: Table 3.4.3.3 Annual system maximum demand characteristics at the zone substation level – MVA measure
A59: DOPSD0202 | B59: Non–coincident Summated Weather Adjusted System Annual Maximum Demand 10% POE | C59: MVA | D59: 273.3401639 | E59: 283.9446721 | F59: 287.1516393 | G59: 291.8032787 | H59: 296.875 | I59: 301.9569672 | J59: 306.6598361
A60: DOPSD0203 | B60: Non–coincident Summated Weather Adjusted System Annual Maximum Demand 50% POE | C60: MVA | D60: 265.5020492 | E60: 276.1577869 | F60: 279.3647541 | G60: 283.9651639 | H60: 288.9856557 | I60: 294.057377 | J60: 298.6987705
A61: DOPSD0205 | B61: Coincident Weather Adjusted System Annual Maximum Demand 10% POE | C61: MVA | D61: 252.182377 | E61: 261.8032787 | F61: 264.7745902 | G61: 269.0881148 | H61: 273.7909836 | I61: 278.5040984 | J61: 282.8586066
A62: DOPSD0206 | B62: Coincident Weather Adjusted System Annual Maximum Demand 50% POE | C62: MVA | D62: 244.9077869 | E62: 254.5696721 | F62: 257.5409836 | G62: 261.8032787 | H62: 266.4651639 | I62: 271.1680328 | J62: 275.4713115
B64: Table 3.4.3.4 Annual system maximum demand characteristics at the transmission connection point – MVA measure
A65: DOPSD0208 | B65: Non–coincident Summated Weather Adjusted System Annual Maximum Demand 10% POE | C65: MVA | D65: 1093.461486 | E65: 1105.208084 | F65: 1117.551687 | G65: 1135.470656 | H65: 1154.95042 | I65: 1174.521903 | J65: 1192.620242
A66: DOPSD0209 | B66: Non–coincident Summated Weather Adjusted System Annual Maximum Demand 50% POE | C66: MVA | D66: 1071.851942 | E66: 1083.588472 | F66: 1096.031215 | G66: 1113.850294 | H66: 1133.351109 | I66: 1153.021893 | J66: 1171.020927
A67: DOPSD0211 | B67: Coincident Weather Adjusted System Annual Maximum Demand 10% POE | C67: MVA | D67: 1019.28 | E67: 1029.7 | F67: 1041.13 | G67: 1057.74 | H67: 1075.8 | I67: 1093.93 | J67: 1110.7
A68: DOPSD0212 | B68: Coincident Weather Adjusted System Annual Maximum Demand 50% POE | C68: MVA | D68: 998.99 | E68: 1009.41 | F68: 1020.94 | G68: 1037.45 | H68: 1055.51 | I68: 1073.73 | J68: 1090.41
B70: Table 3.4.3.5 Power factor conversion between MVA and MW
A71: DOPSD0301 | B71: Average overall network power factor conversion between MVA and MW | C71: Factor | D71: 0.986 | E71: 0.986 | F71: 0.986 | G71: 0.986
A72: DOPSD0302 | B72: Average power factor conversion for low voltage distribution lines | C72: Factor | D72: 0.986 | E72: 0.986 | F72: 0.986 | G72: 0.986
A73: DOPSD0303 | B73: Average power factor conversion for 3.3 kV lines | C73: Factor | D73: 0 | E73: 0 | F73: 0 | G73: 0
A74: DOPSD0304 | B74: Average power factor conversion for 6.6 kV lines | C74: Factor | D74: 0.814 | E74: 0.814 | F74: 0.814 | G74: 0.814
A75: DOPSD0305 | B75: Average power factor conversion for 7.6 kV lines | C75: Factor | D75: 0 | E75: 0 | F75: 0 | G75: 0
A76: DOPSD0306 | B76: Average power factor conversion for 11 kV lines | C76: Factor | D76: 0.986 | E76: 0.986 | F76: 0.986 | G76: 0.986
A77: DOPSD0307 | B77: Average power factor conversion for SWER lines | C77: Factor | D77: 0.989 | E77: 0.989 | F77: 0.989 | G77: 0.989
A78: DOPSD0308 | B78: Average power factor conversion for 22 kV lines | C78: Factor | D78: 0.989 | E78: 0.989 | F78: 0.989 | G78: 0.989
A79: DOPSD0309 | B79: Average power factor conversion for 33 kV lines | C79: Factor | D79: 0.976 | E79: 0.976 | F79: 0.976 | G79: 0.976
A80: DOPSD0310 | B80: Average power factor conversion for 44 kV lines | C80: Factor | D80: 0.943 | E80: 0.943 | F80: 0.943 | G80: 0.943
A81: DOPSD0311 | B81: Average power factor conversion for 66 kV lines | C81: Factor | D81: 0 | E81: 0 | F81: 0 | G81: 0
A82: DOPSD0312 | B82: Average power factor conversion for 110 kV lines | C82: Factor | D82: 0 | E82: 0 | F82: 0 | G82: 0
A83: DOPSD0313 | B83: Average power factor conversion for 132 kV lines | C83: Factor | D83: 0 | E83: 0 | F83: 0 | G83: 0
A84: DOPSD0314 | B84: Average power factor conversion for 220 kV lines | C84: Factor | D84: 0 | E84: 0 | F84: 0 | G84: 0
B86: Table 3.4.3.6 Demand supplied (for customers charged on this basis) – MW measure
A87: DOPSD0401 | B87: Summated Chargeable Contracted Maximum Demand | C87: MW | D87: 0 | E87: 0 | F87: 0 | G87: 0
A88: DOPSD0402 | B88: Summated Chargeable Measured Maximum Demand | C88: MW | D88: 0 | E88: 0 | F88: 10.39720622 | G88: 20.61688988
B89: Table 3.4.3.7 Demand supplied (for customers charged on this basis) – MVA measure
A90: DOPSD0403 | B90: Summated Chargeable Contracted Maximum Demand | C90: MVA | D90: 154.7549798 | E90: 153.8453812 | F90: 153.3716077 | G90: 153.3198872
A91: DOPSD0404 | B91: Summated Chargeable Measured Maximum Demand | C91: MVA | D91: 120.6275468 | E91: 123.5927283 | F91: 124.5666518 | G91: 126.0548504

Sheet 3.5 Physical assets
B1: =SheetHeader -> REGULATORY REPORTING STATEMENT
B2: =dms_TradingName -> TasNetworks (D)
B3: =dms_Reg_Year_Span -> 2017-18 to 2018-19
B4: 3.5 PHYSICAL ASSETS DATA
C7: Unit of measure | D7: Forecast
D8: =CRCP_y4 -> 2015-16 | E8: =CRCP_y5 -> 2016-17 | F8: =FRCP_y1 -> 2017-18 | G8: =FRCP_y2 -> 2018-19 | H8: =FRCP_y3 -> 2019-20 | I8: =FRCP_y4 -> 2020-21 | J8: =FRCP_y5 -> 2021-22
B10: TABLE 3.5.1 - NETWORK CAPACITIES VARIABLES
B11: Circuit length
B12: Table 3.5.1.1 Overhead network length of circuit at each voltage
A13: DPA0101 | B13: Overhead low voltage distribution | C13: km | D13: 4985.372 | E13: 5001.345 | F13: 5017.318 | G13: 5033.291 | H13: 5049.264 | I13: 5065.237 | J13: 5081.21
A14: DPA0102 | B14: Overhead 2.2 kV | C14: km | D14: 0 | E14: 0 | F14: 0 | G14: 0 | H14: 0 | I14: 0 | J14: 0
A15: DPA0103 | B15: Overhead 7.6 kV | C15: km | D15: 6.1304 | E15: 6.138 | F15: 6.1456 | G15: 6.1532 | H15: 6.1608 | I15: 6.1684 | J15: 6.176
A16: DPA0104 | B16: Overhead 11 kV | C16: km | D16: 0 | E16: 0 | F16: 0 | G16: 0 | H16: 0 | I16: 0 | J16: 0
A17: DPA0105 | B17: Overhead SWER | C17: km | D17: 2966.7244 | E17: 2971.683 | F17: 2976.6416 | G17: 2981.6002 | H17: 2986.5588 | I17: 2991.5174 | J17: 2996.476
A18: DPA0106 | B18: Overhead 22 kV | C18: km | D18: 484.2348 | E18: 482.271 | F18: 480.3072 | G18: 478.3434 | H18: 476.3796 | I18: 474.4158 | J18: 472.452
A19: DPA0107 | B19: Overhead 33 kV | C19: km | D19: 11689.7036 | E19: 11771.472 | F19: 11853.2404 | G19: 11935.0088 | H19: 12016.7772 | I19: 12098.5456 | J19: 12180.314
A20: DPA0108 | B20: Overhead 44 kV | C20: km | D20: 87.5828 | E20: 87.601 | F20: 87.6192 | G20: 87.6374 | H20: 87.6556 | I20: 87.6738 | J20: 87.692
A21: DPA0109 | B21: Overhead 66 kV | C21: km | D21: 46.6368 | E21: 46.646 | F21: 46.6552 | G21: 46.6644 | H21: 46.6736 | I21: 46.6828 | J21: 46.692
A22: DPA0110 | B22: Overhead 132 kV | C22: km | D22: 0 | E22: 0 | F22: 0 | G22: 0 | H22: 0 | I22: 0 | J22: 0
A23: DPA0111 | B23: Overhead 6.6kv | C23: km | D23: 0 | E23: 0 | F23: 0 | G23: 0 | H23: 0 | I23: 0 | J23: 0
A24: DPA0112 | B24: Overhead 110kV | C24: km | D24: 0 | E24: 0 | F24: 0 | G24: 0 | H24: 0 | I24: 0 | J24: 0
A25: DPA0113 | B25: Overhead 220kV | C25: km | D25: 0 | E25: 0 | F25: 0 | G25: 0 | H25: 0 | I25: 0 | J25: 0
A26: DPA0114 | B26: Other | C26: km | D26: 0 | E26: 0 | F26: 0 | G26: 0 | H26: 0 | I26: 0 | J26: 0
A27: DPA01 | B27: Total overhead circuit km | C27: km | D27: =SUM(D13:D26) -> 20266.3848 | E27: =SUM(E13:E26) -> 20367.156 | F27: 20467.9272 | G27: 20568.6984 | H27: 20669.4696 | I27: 20770.2408 | J27: 20871.012
B29: Table 3.5.1.2 Underground network circuit length at each voltage
A30: DPA0201 | B30: Underground low voltage distribution | C30: km | D30: 1276.3312 | E30: 1307.039 | F30: 1337.7468 | G30: 1368.4546 | H30: 1399.1624 | I30: 1429.8702 | J30: 1460.578
A31: DPA0202 | B31: Underground 5 kV | C31: km | D31: 0 | E31: 0 | F31: 0 | G31: 0 | H31: 0 | I31: 0 | J31: 0
A32: DPA0203 | B32: Underground 6.6 Kv | C32: km | D32: 0.104 | E32: 0.105 | F32: 0.106 | G32: 0.107 | H32: 0.108 | I32: 0.109 | J32: 0.11
A33: DPA0204 | B33: Underground 7.6 kV | C33: km | D33: 0 | E33: 0 | F33: 0 | G33: 0 | H33: 0 | I33: 0 | J33: 0
A34: DPA0205 | B34: Underground 11 kV | C34: km | D34: 629.2872 | E34: 634.234 | F34: 639.1808 | G34: 644.1276 | H34: 649.0744 | I34: 654.0212 | J34: 658.968
A35: DPA0206 | B35: Underground SWER | C35: km | D35: 5.938 | E35: 5.957 | F35: 5.976 | G35: 5.995 | H35: 6.014 | I35: 6.033 | J35: 6.052
A36: DPA0207 | B36: Underground 22 kV | C36: km | D36: 535.1676 | E36: 543.177 | F36: 551.1864 | G36: 559.1958 | H36: 567.2052 | I36: 575.2146 | J36: 583.224
A37: DPA0208 | B37: Underground 33 kV | C37: km | D37: 70.906 | E37: 72.895 | F37: 74.884 | G37: 76.873 | H37: 78.862 | I37: 80.851 | J37: 82.84
A38: DPA0209 | B38: Underground 66 kV | C38: km | D38: 0 | E38: 0 | F38: 0 | G38: 0 | H38: 0 | I38: 0 | J38: 0
A39: DPA0210 | B39: Underground 110 kV | C39: km | D39: 0 | E39: 0 | F39: 0 | G39: 0 | H39: 0 | I39: 0 | J39: 0
A40: DPA0211 | B40: Underground 132 kV | C40: km | D40: 0 | E40: 0 | F40: 0 | G40: 0 | H40: 0 | I40: 0 | J40: 0
A41: DPA0212 | B41: Other | C41: km | D41: 0 | E41: 0 | F41: 0 | G41: 0 | H41: 0 | I41: 0 | J41: 0
A42: DPA02 | B42: Total underground circuit km | C42: km | D42: =SUM(D30:D41) -> 2517.734 | E42: =SUM(E30:E41) -> 2563.407 | F42: 2609.08 | G42: 2654.753 | H42: 2700.426 | I42: 2746.099 | J42: 2791.772
B44: Circuit Capacity MVA
B45: Table 3.5.1.3 Estimated overhead network weighted average MVA capacity by voltage class
A46: DPA0301 | B46: Overhead low voltage distribution | C46: MVA | D46: 0.134 | E46: 0.134 | F46: 0.134 | G46: 0.134 | H46: 0.134 | I46: 0.134 | J46: 0.134
A47: DPA0302 | B47: Overhead 6.6 kV | C47: MVA | D47: 0.099 | E47: 0.099 | F47: 0.099 | G47: 0.099 | H47: 0.099 | I47: 0.099 | J47: 0.099
A48: DPA0303 | B48: Overhead 7.6 kV | C48: MVA | D48: 0 | E48: 0 | F48: 0 | G48: 0 | H48: 0 | I48: 0 | J48: 0
A49: DPA0304 | B49: Overhead 11 kV | C49: MVA | D49: 4.258 | E49: 4.258 | F49: 4.258 | G49: 4.258 | H49: 4.258 | I49: 4.258 | J49: 4.258
A50: DPA0305 | B50: Overhead SWER | C50: MVA | D50: 0.641 | E50: 0.641 | F50: 0.641 | G50: 0.641 | H50: 0.641 | I50: 0.641 | J50: 0.641
A51: DPA0306 | B51: Overhead 22 kV | C51: MVA | D51: 7.278 | E51: 7.278 | F51: 7.278 | G51: 7.278 | H51: 7.278 | I51: 7.278 | J51: 7.278
A52: DPA0307 | B52: Overhead 33 kV | C52: MVA | D52: 23.161 | E52: 23.161 | F52: 23.161 | G52: 23.161 | H52: 23.161 | I52: 23.161 | J52: 23.161
A53: DPA0308 | B53: Overhead 44 kV | C53: MVA | D53: 29.704 | E53: 29.704 | F53: 29.704 | G53: 29.704 | H53: 29.704 | I53: 29.704 | J53: 29.704
A54: DPA0309 | B54: Overhead 66 kV | C54: MVA | D54: 0 | E54: 0 | F54: 0 | G54: 0 | H54: 0 | I54: 0 | J54: 0
A55: DPA0310 | B55: Overhead 110 kV | C55: MVA | D55: 0 | E55: 0 | F55: 0 | G55: 0 | H55: 0 | I55: 0 | J55: 0
A56: DPA0311 | B56: Overhead 132 kV | C56: MVA | D56: 0 | E56: 0 | F56: 0 | G56: 0 | H56: 0 | I56: 0 | J56: 0
A57: DPA0312 | B57: Overhead 220 kV | C57: MVA | D57: 0 | E57: 0 | F57: 0 | G57: 0 | H57: 0 | I57: 0 | J57: 0
A58: DPA0313 | B58: Other | C58: MVA | D58: 0 | E58: 0 | F58: 0 | G58: 0 | H58: 0 | I58: 0 | J58: 0
B60: Table 3.5.1.4 Estimated underground network weighted average MVA capacity by voltage class
A61: DPA0401 | B61: Underground low voltage distribution | C61: MVA | D61: 0.26 | E61: 0.26 | F61: 0.26 | G61: 0.26 | H61: 0.26 | I61: 0.26 | J61: 0.26
A62: DPA0402 | B62: Underground 5 kV | C62: MVA | D62: 0 | E62: 0 | F62: 0 | G62: 0 | H62: 0 | I62: 0 | J62: 0
A63: DPA0403 | B63: Underground 6.6 kV | C63: MVA | D63: 4.36 | E63: 4.36 | F63: 4.36 | G63: 4.36 | H63: 4.36 | I63: 4.36 | J63: 4.36
A64: DPA0404 | B64: Underground 7.6 kV | C64: MVA | D64: 0 | E64: 0 | F64: 0 | G64: 0 | H64: 0 | I64: 0 | J64: 0
A65: DPA0405 | B65: Underground 11 kV | C65: MVA | D65: 5.904 | E65: 5.904 | F65: 5.904 | G65: 5.904 | H65: 5.904 | I65: 5.904 | J65: 5.904
A66: DPA0406 | B66: Underground SWER | C66: MVA | D66: 0.432 | E66: 0.432 | F66: 0.432 | G66: 0.432 | H66: 0.432 | I66: 0.432 | J66: 0.432
A67: DPA0407 | B67: Underground 12.7 kV | C67: MVA | D67: 0 | E67: 0 | F67: 0 | G67: 0 | H67: 0 | I67: 0 | J67: 0
A68: DPA0408 | B68: Underground 22 kV | C68: MVA | D68: 11.394 | E68: 11.394 | F68: 11.394 | G68: 11.394 | H68: 11.394 | I68: 11.394 | J68: 11.394
A69: DPA0409 | B69: Underground 33 kV | C69: MVA | D69: 25.758 | E69: 25.758 | F69: 25.758 | G69: 25.758 | H69: 25.758 | I69: 25.758 | J69: 25.758
A70: DPA0410 | B70: Underground 66 kV | C70: MVA | D70: 0 | E70: 0 | F70: 0 | G70: 0 | H70: 0 | I70: 0 | J70: 0
A71: DPA0411 | B71: Underground 110 kV | C71: MVA | D71: 0 | E71: 0 | F71: 0 | G71: 0 | H71: 0 | I71: 0 | J71: 0
A72: DPA0412 | B72: Underground 132 kV | C72: MVA | D72: 0 | E72: 0 | F72: 0 | G72: 0 | H72: 0 | I72: 0 | J72: 0
A73: DPA0413 | B73: Other | C73: MVA | D73: 0.476 | E73: 0.476 | F73: 0.476 | G73: 0.476 | H73: 0.476 | I73: 0.476 | J73: 0.476
B75: TABLE 3.5.2 - TRANSFORMER CAPACITIES VARIABLES
B76: Table 3.5.2.1 Distribution transformer total installed capacity
A77: DPA0501 | B77: Distribution transformer capacity owned by utility | C77: MVA | D77: 3681.384464 | E77: 3759.799929 | F77: 3838.215393 | G77: 3916.630857 | H77: 3995.046321 | I77: 4073.461786 | J77: 4151.87725
A78: DPA0502 | B78: Distribution transformer capacity owned by High Voltage Customers | C78: MVA | D78: 182.8922667 | E78: 187.9161091 | F78: 192.9399515 | G78: 197.9637939 | H78: 202.9876364 | I78: 208.0114788 | J78: 213.0353212
A79: DPA0503 | B79: Cold spare capacity included in DPA0501 | C79: MVA | D79: 40.9945 | E79: 40.9945 | F79: 40.9945 | G79: 40.9945 | H79: 40.9945 | I79: 40.9945 | J79: 40.9945
B81: Table 3.5.2.2 Zone substation transformer capacity
A82: DPA0601 | B82: Total installed capacity for first step transformation where there are two steps to reach distribution voltage | C82: MVA | D82: 0 | E82: 0 | F82: 0 | G82: 0 | H82: 0 | I82: 0 | J82: 0
A83: DPA0602 | B83: Total installed capacity for second step transformation where there are two steps to reach distribution voltage | C83: MVA | D83: 0 | E83: 0 | F83: 0 | G83: 0 | H83: 0 | I83: 0 | J83: 0
A84: DPA0603 | B84: Total zone substation transformer capacity where there is only a single step transformation to reach distribution voltage | C84: MVA | D84: 700 | E84: 700 | F84: 700 | G84: 700 | H84: 700 | I84: 700 | J84: 700
A85: DPA0604 | B85: Total zone substation transformer capacity | C85: MVA | D85: 700 | E85: 700 | F85: 700 | G85: 700 | H85: 700 | I85: 700 | J85: 700
A86: DPA0605 | B86: Cold spare capacity of zone substation transformers included in DPA0604 | C86: MVA | D86: 0 | E86: 0 | F86: 0 | G86: 0 | H86: 0 | I86: 0 | J86: 0
B88: TABLE 3.5.3 - PUBLIC LIGHTING
A89: DPA0701 | B89: Public lighting luminaires | C89: 0's | D89: 42878 | E89: 43181 | F89: 43293 | G89: 43662 | H89: 44049 | I89: 44459 | J89: 44917
A90: DPA0702 | B90: Public lighting poles | C90: 0's | D90: 1604 | E90: 0 | F90: 0 | G90: 0 | H90: 0 | I90: 0 | J90: 0

Sheet 3.6 Quality of service
B1: =SheetHeader -> REGULATORY REPORTING STATEMENT
B2: =dms_TradingName -> TasNetworks (D)
B3: =dms_Reg_Year_Span -> 2017-18 to 2018-19
B4: 3.6 QUALITY OF SERVICE DATA
C7: Unit of measure | D7: Forecast
D8: =CRCP_y4 -> 2015-16 | E8: =CRCP_y5 -> 2016-17 | F8: =FRCP_y1 -> 2017-18 | G8: =FRCP_y2 -> 2018-19 | H8: =FRCP_y3 -> 2019-20 | I8: =FRCP_y4 -> 2020-21 | J8: =FRCP_y5 -> 2021-22
B10: TABLE 3.6.2 - ENERGY NOT SUPPLIED
A11: DQS0201 | B11: Energy Not Supplied (planned) | C11: GWh | D11: 0.2731 | E11: 0.2322 | F11: 0.1913 | G11: 0.1504 | H11: 0.1095 | I11: 0.0686 | J11: 0.0277
A12: DQS0202 | B12: Energy Not Supplied (unplanned) | C12: GWh | D12: 1.9568 | E12: 2.1512 | F12: 2.3456 | G12: 2.54 | H12: 2.7344 | I12: 2.9288 | J12: 3.1232
A13: DQS02 | B13: Total | C13: GWh | D13: =SUM(D11:D12) -> 2.2299 | E13: =SUM(E11:E12) -> 2.3834 | F13: 2.5369 | G13: 2.6904 | H13: 2.8439 | I13: 2.9974 | J13: 3.1509
B15: TABLE 3.6.3 - SYSTEM LOSSES
A16: DQS03 | B16: System losses | C16: % | D16: 0.8974165702 | E16: 1.29988501 | F16: 0.892836647 | G16: 0.8903176524
B18: TABLE 3.6.4 - CAPACITY UTILISATION
B19: Overall utilisation | C19: % | D19: 37.92886417 | E19: 39.45111241 | F19: 39.90925059 | G19: 40.56645199

Sheet 3.7 Operating Environment
B1: =SheetHeader -> REGULATORY REPORTING STATEMENT
B2: =dms_TradingName -> TasNetworks (D)
B3: =dms_Reg_Year_Span -> 2017-18 to 2018-19
B4: 3.7 OPERATING ENVIRONMENT FACTORS
C7: Unit of measure | D7: Forecast
D8: =CRCP_y4 -> 2015-16 | E8: =CRCP_y5 -> 2016-17 | F8: =FRCP_y1 -> 2017-18 | G8: =FRCP_y2 -> 2018-19 | H8: =FRCP_y3 -> 2019-20 | I8: =FRCP_y4 -> 2020-21 | J8: =FRCP_y5 -> 2021-22
A10: DOEF01 | B10: TABLE 3.7.1 - DENSITY FACTORS
A11: DOEF0101 | B11: Customer density | C11: Customer / km | D11: 16.09936159 | E11: 16.0611845 | F11: 16.02206481 | G11: 15.98202621
A12: DOEF0102 | B12: Energy density | C12: MWh/customer | D12: 14.30208449 | E12: 14.16157084 | F12: 13.92545401 | G12: 13.67304039
A13: DOEF0103 | B13: Demand density | C13: kVA / customer | D13: 0.9303815383 | E13: 0.9599511501 | F13: 0.9633632796 | G13: 0.9714886602
A15: DOEF02 | B15: TABLE 3.7.2 - TERRAIN FACTORS
A16: DOEF0201 | B16: Rural proportion | C16: % | D16: 0.92398 | E16: 0.92398 | F16: 0.92398 | G16: 0.92398 | H16: 0.92398 | I16: 0.92398 | J16: 0.92398
A17: DOEF0202 | B17: Urban and CBD vegetation maintenance spans | C17: 0's | D17: 4113.172612 | E17: 4156.323915 | F17: 4199.927919 | G17: 4243.989372 | H17: 4288.513074 | I17: 4333.503874 | J17: 4378.966673
A18: DOEF0203 | B18: Rural vegetation maintenance spans | C18: 0's | D18: 22639.03474 | E18: 22876.5409 | F18: 23116.53875 | G18: 23359.05441 | H18: 23604.1143 | I18: 23851.74511 | J18: 24101.97383
A19: DOEF0204 | B19: Total vegetation maintenance spans | C19: 0's | D19: 26752.20735 | E19: 27032.86482 | F19: 27316.46666 | G19: 27603.04378 | H19: 27892.62737 | I19: 28185.24899 | J19: 28480.9405
A20: DOEF0205 | B20: Total number of spans | C20: 0's | D20: 227339 | E20: 229724.014 | F20: 232134.0491 | G20: 234569.3679 | H20: 237030.2357 | I20: 239516.9205 | J20: 242029.693
A21: DOEF0206 | B21: Average urban and CBD vegetation maintenance span cycle | C21: Years | D21: 2.3 | E21: 2.3 | F21: 2.3 | G21: 2.3 | H21: 2.3 | I21: 2.3 | J21: 2.3
A22: DOEF0207 | B22: Average rural vegetation maintenance span cycle | C22: Years | D22: 2.3 | E22: 2.3 | F22: 2.3 | G22: 2.3 | H22: 2.3 | I22: 2.3 | J22: 2.3
A23: DOEF0208 | B23: Average number of trees per urban and CBD vegetation maintenance span | C23: Trees | D23: 16.30959369 | E23: 16.30959369 | F23: 16.30959369 | G23: 16.30959369 | H23: 16.30959369 | I23: 16.30959369 | J23: 16.30959369
A24: DOEF0209 | B24: Average number of trees per rural vegetation maintenance span | C24: Trees | D24: 42.44970667 | E24: 42.44970667 | F24: 42.44970667 | G24: 42.44970667 | H24: 42.44970667 | I24: 42.44970667 | J24: 42.44970667
A25: DOEF0210 | B25: Average number of defects per urban and CBD vegetation maintenance span | C25: Defects | D25: 2.847054393 | E25: 2.847054393 | F25: 2.847054393 | G25: 2.847054393 | H25: 2.847054393 | I25: 2.847054393 | J25: 2.847054393
A26: DOEF0211 | B26: Average number of defects per rural vegetation maintenance span | C26: Defects | D26: 5.813013688 | E26: 5.813013688 | F26: 5.813013688 | G26: 5.813013688 | H26: 5.813013688 | I26: 5.813013688 | J26: 5.813013688
A27: DOEF0212 | B27: Tropical proportion | C27: Spans | D27: 0 | E27: 0 | F27: 0 | G27: 0 | H27: 0 | I27: 0 | J27: 0
A28: DOEF0213 | B28: Standard vehicle access | C28: km | D28: 770.5943754 | E28: 778.6786827 | F28: 786.8478025 | G28: 795.1026246 | H28: 803.444048 | I28: 811.8729814 | J28: 820.3903426
A29: DOEF0214 | B29: Bushfire risk | C29: Spans | D29: 5261.626649 | E29: 5316.826386 | F29: 5372.605223 | G29: 5428.969237 | H29: 5485.924566 | I29: 5543.477413 | J29: 5601.634047
A31: DOEF03 | B31: TABLE 3.7.3 - SERVICE AREA FACTORS
A32: DOEF0301 | B32: Route Line length | C32: km | D32: 17725.48548 | E32: 17911.44358 | F32: 18099.35258 | G32: 18289.23293 | H32: 18481.10531 | I32: 18674.99063 | J32: 18870.91

Sheet 4.1 Public lighting
B1: =SheetHeader -> REGULATORY REPORTING STATEMENT
B2: =dms_TradingName -> TasNetworks (D)
B3: =dms_Reg_Year_Span -> 2017-18 to 2018-19
B4: 4.1 PUBLIC LIGHTING
B7: TABLE 4.1.2 - DESCRIPTOR METRICS ANNUALLY
D8: Unit of Measure | E8: VOLUMES & EXPENDITURE
B9: SERVICE/SERVICE QUALITY | C9: DESCRIPTOR METRIC | E9: =CRCP_y4 -> 2015-16 | F9: =CRCP_y5 -> 2016-17 | G9: =FRCP_y1 -> 2017-18 | H9: =FRCP_y2 -> 2018-19 | I9: =FRCP_y3 -> 2019-20 | J9: =FRCP_y4 -> 2020-21 | K9: =FRCP_y5 -> 2021-22
B10: LIGHT INSTALLATION | C10: Number of lights installed | D10: 0's | E10: 310 | F10: 410 | G10: 410 | H10: 410 | I10: 410 | J10: 410 | K10: 410
C11: Number of poles installed | D11: 0's | E11: 0 | F11: 0 | G11: 0 | H11: 0 | I11: 0 | J11: 0 | K11: 0
C12: Total expenditure | D12: $0's | E12: 553848.4115 | F12: 338560.749 | G12: 338560.749 | H12: 338560.749
B13: LIGHT REPLACEMENT | C13: Number of lights replaced | D13: 0's | E13: 2550 | F13: 4610 | G13: 4610 | H13: 4600 | I13: 2590 | J13: 1580 | K13: 1580
C14: Number of poles replaced | D14: 0's | E14: 35 | F14: 45 | G14: 50 | H14: 50 | I14: 55 | J14: 55 | K14: 60
C15: Total expenditure | D15: $0's | E15: 1012683.22 | F15: 3373463.779 | G15: 3014938.965 | H15: 3009093.57
B16: LIGHT MAINTENANCE | C16: Number of lights maintained | D16: 0's | E16: 10755 | F16: 8135 | G16: 7650 | H16: 7613 | I16: 7675 | J16: 7738 | K16: 7800
C17: Number of poles maintained | D17: 0's | E17: 0 | F17: 0 | G17: 0 | H17: 0 | I17: 0 | J17: 0 | K17: 0
C18: Total expenditure | D18: $0's | E18: 2551136.667 | F18: 2107485.622 | G18: 2047491.413 | H18: 2117205.672
B19: QUALITY OF SUPPLY | C19: Mean days to rectify/replace public lighting assets | D19: days | E19: 9 | F19: 8 | G19: 8 | H19: 8
C20: GSO breaches | D20: 0's | E20: 6 | F20: 12 | G20: 12 | H20: 12
C21: GSL payments | D21: $0's | E21: 0 | F21: 0 | G21: 0 | H21: 0
C22: Customer complaints | D22: 0's | E22: 30 | F22: 30 | G22: 30 | H22: 30
B26: TABLE 4.1.3 - COST METRICS
E27: =CONCATENATE("AVERAGE UNIT COST ($0's, real ",dms_DollarReal, ")") -> AVERAGE UNIT COST ($0's, real June 2017)
C28: LIGHT TYPE | E28: =CRCP_y4 -> 2015-16 | F28: =CRCP_y5 -> 2016-17 | G28: =FRCP_y1 -> 2017-18 | H28: =FRCP_y2 -> 2018-19 | I28: =FRCP_y3 -> 2019-20 | J28: =FRCP_y4 -> 2020-21 | K28: =FRCP_y5 -> 2021-22
B29: LIGHT INSTALLATION | C29: Light type
C31: 250w Sodium | D31: 0 | E31: 923.2172656 | F31: 923.2172656 | G31: 923.2172656 | H31: 923.2172656
C32: 18w LED | D32: 0 | E32: 671.5155526 | F32: 671.5155526 | G32: 671.5155526 | H32: 671.5155526
B84: LIGHT REPLACEMENT | C84: Light type
C86: 250w Sodium | D86: 0 | E86: 731.1875146 | F86: 731.1875146 | G86: 731.1875146 | H86: 731.1875146
C87: 18w LED | D87: 0 | E87: 531.8399106 | F87: 531.8399106 | G87: 531.8399106 | H87: 531.8399106
B144: LIGHT MAINTENANCE | C144: Light type
C146: 250w Sodium | D146: 0 | E146: 431.7363021 | F146: 431.7363021 | G146: 431.7363021 | H146: 431.7363021
C147: 18w LED | D147: 0 | E147: 134.398167 | F147: 134.398167 | G147: 134.398167 | H147: 134.398167

Sheet 4.2 Metering
B1: =SheetHeader -> REGULATORY REPORTING STATEMENT
B2: =dms_TradingName -> TasNetworks (D)
B3: =dms_Reg_Year_Span -> 2017-18 to 2018-19
B4: 4.2 METERING
B7: TABLE 4.2.1 - METERING DESCRIPTOR METRIC | L7: TABLE 4.2.2 - COST METRICS
D8: VOLUMES (0's) | N8: =CONCATENATE("EXPENDITURE ($0's, real ",dms_DollarReal,")") -> EXPENDITURE ($0's, real June 2017) | U8: VOLUMES (0's)
B9: ASSET CATEGORY | C9: ASSET SUBCATEGORY | D9: =CRCP_y4 -> 2015-16 | E9: =CRCP_y5 -> 2016-17 | F9: =FRCP_y1 -> 2017-18 | G9: =FRCP_y2 -> 2018-19 | H9: =FRCP_y3 -> 2019-20 | I9: =FRCP_y4 -> 2020-21 | J9: =FRCP_y5 -> 2021-22 | L9: SERVICE SUBCATEGORY | M9: METER TYPE | N9: =CRCP_y4 -> 2015-16 | O9: =CRCP_y5 -> 2016-17 | P9: =FRCP_y1 -> 2017-18 | Q9: =FRCP_y2 -> 2018-19 | R9: =FRCP_y3 -> 2019-20 | S9: =FRCP_y4 -> 2020-21 | T9: =FRCP_y5 -> 2021-22 | U9: =CRCP_y4 -> 2015-16 | V9: =CRCP_y5 -> 2016-17 | W9: =FRCP_y1 -> 2017-18 | X9: =FRCP_y2 -> 2018-19 | Y9: =FRCP_y3 -> 2019-20 | Z9: =FRCP_y4 -> 2020-21 | AA9: =FRCP_y5 -> 2021-22
B10: Meter Type 4 | C10: Single phase meter population | D10: 0 | E10: 0 | F10: 0 | G10: 0 | H10: 0 | I10: 0 | J10: 0 | L10: Meter purchase | M10: Meter Type 4 | N10: 0 | O10: 0 | P10: 0 | Q10: 0 | R10: 0 | S10: 0 | T10: 0 | U10: 0 | V10: 0 | W10: 0 | X10: 0 | Y10: 0 | Z10: 0 | AA10: 0
C11: Multi phase meter population | D11: 0 | E11: 0 | F11: 0 | G11: 0 | H11: 0 | I11: 0 | J11: 0 | M11: Meter Type 5 | N11: 0 | O11: 0 | P11: 0 | Q11: 0 | R11: 0 | S11: 0 | T11: 0 | U11: 0 | V11: 0 | W11: 0 | X11: 0 | Y11: 0 | Z11: 0 | AA11: 0
C12: Current transformer connected meter population | D12: 0 | E12: 0 | F12: 0 | G12: 0 | H12: 0 | I12: 0 | J12: 0 | M12: Meter Type 6 | N12: 3474067.336 | O12: 3206831.387 | P12: 935325.8212 | Q12: 0 | R12: 0 | S12: 0 | T12: 0 | U12: 13000 | V12: 12000 | W12: 3500 | X12: 0 | Y12: 0 | Z12: 0 | AA12: 0
C13: Direct connect meter population | D13: 0 | E13: 0 | F13: 0 | G13: 0 | H13: 0 | I13: 0 | J13: 0 | L13: Meter testing | M13: Meter Type 4 | N13: 0 | O13: 0 | P13: 0 | Q13: 0 | R13: 0 | S13: 0 | T13: 0 | U13: 0 | V13: 0 | W13: 0 | X13: 0 | Y13: 0 | Z13: 0 | AA13: 0
B14: Meter Type 5 | C14: Single phase meter population | D14: 0 | E14: 0 | F14: 0 | G14: 0 | H14: 0 | I14: 0 | J14: 0 | M14: Meter Type 5 | N14: 0 | O14: 0 | P14: 0 | Q14: 0 | R14: 0 | S14: 0 | T14: 0 | U14: 0 | V14: 0 | W14: 0 | X14: 0 | Y14: 0 | Z14: 0 | AA14: 0
C15: Multi phase meter population | D15: 0 | E15: 0 | F15: 0 | G15: 0 | H15: 0 | I15: 0 | J15: 0 | M15: Meter Type 6 | N15: 859387.3333 | O15: 614836 | P15: 267812 | Q15: 298616.6667 | R15: 135792 | S15: 255867.3333 | T15: 190486 | U15: 1367 | V15: 978 | W15: 426 | X15: 475 | Y15: 216 | Z15: 407 | AA15: 303
C16: Current transformer connected meter population | D16: 0 | E16: 0 | F16: 0 | G16: 0 | H16: 0 | I16: 0 | J16: 0 | L16: Meter investigation | M16: Meter Type 4 | N16: 0 | O16: 0 | P16: 0 | Q16: 0 | R16: 0 | S16: 0 | T16: 0 | U16: 0 | V16: 0 | W16: 0 | X16: 0 | Y16: 0 | Z16: 0 | AA16: 0
C17: Direct connect meter population | D17: 0 | E17: 0 | F17: 0 | G17: 0 | H17: 0 | I17: 0 | J17: 0 | M17: Meter Type 5 | N17: 0 | O17: 0 | P17: 0 | Q17: 0 | R17: 0 | S17: 0 | T17: 0 | U17: 0 | V17: 0 | W17: 0 | X17: 0 | Y17: 0 | Z17: 0 | AA17: 0
B18: Meter Type 6 | C18: Single phase meter population | D18: 387798 | E18: 387423.5 | F18: 382343.5 | G18: 373230.5 | H18: 364117.5 | I18: 355004.5 | J18: 345891.5 | M18: Meter Type 6 | N18: 44895 | O18: 44895 | P18: 44895 | Q18: 43398.5 | R18: 41902 | S18: 40405.5 | T18: 38909 | U18: 750 | V18: 750 | W18: 750 | X18: 725 | Y18: 700 | Z18: 675 | AA18: 650
C19: Multi phase meter population | D19: 35094 | E19: 35141 | F19: 34794 | G19: 33964 | H19: 33134 | I19: 32304 | J19: 31474 | L19: Scheduled meter reading | M19: Meter Type 4 | N19: 0 | O19: 0 | P19: 0 | Q19: 0 | R19: 0 | S19: 0 | T19: 0 | U19: 0 | V19: 0 | W19: 0 | X19: 0 | Y19: 0 | Z19: 0 | AA19: 0
C20: Current transformer connected meter population | D20: 2401 | E20: 2455 | F20: 2430 | G20: 2373 | H20: 2316 | I20: 2259 | J20: 2202 | M20: Meter Type 5 | N20: 0 | O20: 0 | P20: 0 | Q20: 0 | R20: 0 | S20: 0 | T20: 0 | U20: 0 | V20: 0 | W20: 0 | X20: 0 | Y20: 0 | Z20: 0 | AA20: 0
C21: Direct connect meter population | D21: 420491 | E21: 420109.5 | F21: 414707.5 | G21: 404821.5 | H21: 394935.5 | I21: 385049.5 | J21: 375163.5 | M21: Meter Type 6 | N21: 1475002.24 | O21: 1527680.891 | P21: 1580359.542 | Q21: 1527680.891 | R21: 1475002.24 | S21: 1422323.588 | T21: 1369644.937 | U21: 1120000 | V21: 1160000 | W21: 1200000 | X21: 1160000 | Y21: 1120000 | Z21: 1080000 | AA21: 1040000
L22: Special meter reading | M22: Meter Type 4 | N22: 0 | O22: 0 | P22: 0 | Q22: 0 | R22: 0 | S22: 0 | T22: 0 | Y22: 0 | Z22: 0 | AA22: 0
M23: Meter Type 5 | N23: 0 | O23: 0 | P23: 0 | Q23: 0 | R23: 0 | S23: 0 | T23: 0 | U23: 0 | V23: 0 | W23: 0 | X23: 0 | Y23: 0 | Z23: 0 | AA23: 0
M24: Meter Type 6 | N24: 159147.7866 | O24: 156892.4576 | P24: 156892.4576 | Q24: 151662.709 | R24: 146432.9604 | S24: 141203.2118 | T24: 135973.4632 | U24: 8115 | V24: 8000 | W24: 8000 | X24: 8000 | Y24: 8000 | Z24: 8000 | AA24: 8000
L25: New meter installation | M25: Meter Type 4 | N25: 0 | O25: 0 | P25: 0 | Q25: 0 | R25: 0 | S25: 0 | T25: 0 | U25: 0 | V25: 0 | W25: 0 | X25: 0 | Y25: 0 | Z25: 0 | AA25: 0
M26: Meter Type 5 | N26: 0 | O26: 0 | P26: 0 | Q26: 0 | R26: 0 | S26: 0 | T26: 0 | U26: 0 | V26: 0 | W26: 0 | X26: 0 | Y26: 0 | Z26: 0 | AA26: 0
M27: Meter Type 6 | N27: 451866.8571 | O27: 301244.5714 | P27: 150622.2857 | Q27: 0 | R27: 0 | S27: 0 | T27: 0 | U27: 3000 | V27: 2000 | W27: 1000 | X27: 0 | Y27: 0 | Z27: 0 | AA27: 0
L28: Meter replacement | M28: Meter Type 4 | N28: 0 | O28: 0 | P28: 0 | Q28: 0 | R28: 0 | S28: 0 | T28: 0 | U28: 0 | V28: 0 | W28: 0 | X28: 0 | Y28: 0 | Z28: 0 | AA28: 0
M29: Meter Type 5 | N29: 0 | O29: 0 | P29: 0 | Q29: 0 | R29: 0 | S29: 0 | T29: 0 | U29: 0 | V29: 0 | W29: 0 | X29: 0 | Y29: 0 | Z29: 0 | AA29: 0
M30: Meter Type 6 | N30: 1506222.857 | O30: 1506222.857 | P30: 376555.7143 | Q30: 0 | R30: 0 | S30: 0 | T30: 0 | U30: 10000 | V30: 10000 | W30: 2500 | X30: 0 | Y30: 0 | Z30: 0 | AA30: 0
L31: Meter maintenance | M31: Meter Type 4 | N31: 0 | O31: 0 | P31: 0 | Q31: 0 | R31: 0 | S31: 0 | T31: 0 | U31: 0 | V31: 0 | W31: 0 | X31: 0 | Y31: 0 | Z31: 0 | AA31: 0
M32: Meter Type 5 | N32: 0 | O32: 0 | P32: 0 | Q32: 0 | R32: 0 | S32: 0 | T32: 0 | U32: 0 | V32: 0 | W32: 0 | X32: 0 | Y32: 0 | Z32: 0 | AA32: 0
M33: Meter Type 6 | N33: 179580 | O33: 179580 | P33: 333125 | Q33: 327139 | R33: 321153 | S33: 315167 | T33: 309181 | U33: 750 | V33: 750 | W33: 750 | X33: 725 | Y33: 700 | Z33: 675 | AA33: 650
L34: Remote meter reading | M34: Meter Type 4 | N34: 0 | O34: 0 | P34: 0 | Q34: 0 | R34: 0 | S34: 0 | T34: 0 | U34: 0 | V34: 0 | W34: 0 | X34: 0 | Y34: 0 | Z34: 0 | AA34: 0
L35: Remote meter re-configuration | M35: Meter Type 4 | N35: 0 | O35: 0 | P35: 0 | Q35: 0 | R35: 0 | S35: 0 | T35: 0 | U35: 0 | V35: 0 | W35: 0 | X35: 0 | Y35: 0 | Z35: 0 | AA35: 0
L36: Other metering | M36: Meter Type 4
M37: Meter Type 5
M38: Meter Type 6
M39: Meter Type 7
L40: IT infrastructure capex | M40: Meter Type 4
L41: IT infrastructure opex | M41: Meter Type 4
L42: Communications infrastructure capex | M42: Meter Type 4
L43: Communications infrastructure opex | M43: Meter Type 4

Sheet 4.3 Fee-based services
B1: =SheetHeader -> REGULATORY REPORTING STATEMENT
B2: =dms_TradingName -> TasNetworks (D)
B3: =dms_Reg_Year_Span -> 2017-18 to 2018-19
B4: 4.3 ANCILLARY SERVICES - FEE BASED SERVICES
B6: TABLE 4.3.1 - COST METRICS FOR FEE-BASED SERVICES
B7: SERVICE | C7: SERVICE SUBCATEGORY | D7: =CONCATENATE("EXPENDITURE ($0's, real ", dms_DollarReal, ")") -> EXPENDITURE ($0's, real June 2017) | K7: VOLUMES (0's)
D8: =CRCP_y4 -> 2015-16 | E8: =CRCP_y5 -> 2016-17 | F8: =FRCP_y1 -> 2017-18 | G8: =FRCP_y2 -> 2018-19 | H8: =FRCP_y3 -> 2019-20 | I8: =FRCP_y4 -> 2020-21 | J8: =FRCP_y5 -> 2021-22 | K8: =CRCP_y4 -> 2015-16 | L8: =CRCP_y5 -> 2016-17 | M8: =FRCP_y1 -> 2017-18 | N8: =FRCP_y2 -> 2018-19 | O8: =FRCP_y3 -> 2019-20 | P8: =FRCP_y4 -> 2020-21 | Q8: =FRCP_y5 -> 2021-22
B9: Common Fee-Based Services | C9: Energisation
B10: Common Fee-Based Services | C10: De-energisation
B11: Common Fee-Based Services | C11: Re-energisation
B12: Miscellaneous Fee-Based Services | C12: Site visit - no appointment | D12: 1279139.011 | E12: 1279139.011 | F12: 2316508.734 | G12: 2315578.729 | K12: 55812 | L12: 55812 | M12: 52308 | N12: 52287
B13: Miscellaneous Fee-Based Services | C13: Site visit – non-scheduled visit | D13: 60080.35037 | E13: 60080.35037 | F13: 105557.852 | G13: 96897.21739 | K13: 1163 | L13: 1163 | M13: 1036 | N13: 951
B14: Miscellaneous Fee-Based Services | C14: Site visit – same day premium service | D14: 45776.35204 | E14: 45776.35204 | F14: 42997.45504 | G14: 32964.71553 | K14: 343 | L14: 343 | M14: 210 | N14: 161
B15: Miscellaneous Fee-Based Services | C15: Site visit – after hours | D15: 1377.611784 | E15: 1377.611784 | F15: 5124.519636 | G15: 5124.519636 | K15: 4 | L15: 4 | M15: 10 | N15: 10
B16: Miscellaneous Fee-Based Services | C16: Site visit – credit action or site issues | D16: 48069.66366 | E16: 48069.66366 | F16: 142894.6276 | G16: 142801.1102 | K16: 1431 | L16: 1431 | M16: 1528 | N16: 1527
B17: Miscellaneous Fee-Based Services | C17: Site visit - rectification of illegal connection | D17: 418.9899828 | E17: 418.9899828 | F17: 0 | G17: 0 | K17: 4 | L17: 4 | M17: 0 | N17: 0
B18: Miscellaneous Fee-Based Services | C18: Site visit - interval metering | D18: 1515.156834 | E18: 1515.156834 | F18: 3718.740604 | G18: 3807.282047 | K18: 50 | L18: 50 | M18: 42 | N18: 43
B19: Miscellaneous Fee-Based Services | C19: Tariff alteration – single phase | D19: 192017.7683 | E19: 192017.7683 | F19: 551165.0568 | G19: 534078.3673 | K19: 2983 | L19: 2983 | M19: 5774 | N19: 5595
B20: Miscellaneous Fee-Based Services | C20: Tariff alteration – three phase | D20: 110341.2964 | E20: 110341.2964 | F20: 122992.9418 | G20: 125455.2629 | K20: 1257 | L20: 1257 | M20: 999 | N20: 1019
B21: Miscellaneous Fee-Based Services | C21: Adjust time clock | D21: 0 | E21: 0 | F21: 0 | G21: 0 | K21: 0 | L21: 0 | M21: 0 | N21: 0
B22: Miscellaneous Fee-Based Services | C22: Install pulse outputs | D22: 3920.825479 | E22: 3920.825479 | F22: 4072.906375 | G22: 4338.530704 | K22: 67 | L22: 67 | M22: 46 | N22: 49
B23: Miscellaneous Fee-Based Services | C23: Remove meter | D23: 24713.49421 | E23: 24713.49421 | F23: 0 | G23: 0 | K23: 254 | L23: 254 | M23: 0 | N23: 0
B24: Miscellaneous Fee-Based Services | C24: Meter alteration – after hours visit | D24: 280.8899589 | E24: 280.8899589 | F24: 0 | G24: 0 | K24: 1 | L24: 1 | M24: 0 | N24: 0
B25: Miscellaneous Fee-Based Services | C25: Meter alteration Wasted visit | D25: 8778.14609 | E25: 8778.14609 | F25: 27883.84197 | G25: 28431.77773 | K25: 250 | L25: 250 | M25: 458 | N25: 467
B26: Miscellaneous Fee-Based Services | C26: Meter test – single phase | D26: 632.0050866 | E26: 632.0050866 | F26: 1438.608268 | G26: 1438.608268 | K26: 6 | L26: 6 | M26: 10 | N26: 10
B27: Miscellaneous Fee-Based Services | C27: Meter test – multi phase | D27: 421.3367244 | E27: 421.3367244 | F27: 0 | G27: 0 | K27: 2 | L27: 2 | M27: 0 | N27: 0
B28: Miscellaneous Fee-Based Services | C28: Meter test – after hours | D28: 280.8899589 | E28: 280.8899589 | F28: 0 | G28: 0 | K28: 1 | L28: 1 | M28: 0 | N28: 0
B29: Miscellaneous Fee-Based Services | C29: Meter test – wasted visit | D29: 105.3377531 | E29: 105.3377531 | F29: 0 | G29: 0 | K29: 3 | L29: 3 | M29: 0 | N29: 0
B30: Miscellaneous Fee-Based Services | C30: Remove service & meters | D30: 33275.64969 | E30: 33275.64969 | F30: 55606.612 | G30: 55606.612 | K30: 342 | L30: 342 | M30: 310 | N30: 310
B31: Miscellaneous Fee-Based Services | C31: Supply abolishment – wasted visit | D31: 1342.668792 | E31: 1342.668792 | F31: 2400.734341 | G31: 2400.734341 | K31: 23 | L31: 23 | M31: 20 | N31: 20
B32: Miscellaneous Fee-Based Services | C32: Tee-up (initial 30 mins) | D32: 15089.89924 | E32: 15089.89924 | F32: 27176.14051 | G32: 27698.7586 | K32: 323 | L32: 323 | M32: 260 | N32: 265
B33: Miscellaneous Fee-Based Services | C33: Tee-up – no truck – after hours | D33: 148984.6958 | E33: 148984.6958 | F33: 0 | G33: 0 | K33: 319 | L33: 319 | M33: 0 | N33: 0
B34: Miscellaneous Fee-Based Services | C34: Tee-up – wasted visit | D34: 4144.760183 | E34: 4144.760183 | F34: 0 | G34: 0 | K34: 71 | L34: 71 | M34: 0 | N34: 0
B35: Miscellaneous Fee-Based Services | C35: Miscellaneous Service | D35: 140.4431935 | E35: 140.4431935 | F35: 0 | G35: 0 | K35: 3 | L35: 3 | M35: 0 | N35: 0
B36: Miscellaneous Fee-Based Services | C36: Data download | D36: 234.0719891 | E36: 234.0719891 | F36: 0 | G36: 0 | K36: 2 | L36: 2 | M36: 0 | N36: 0
B37: Miscellaneous Fee-Based Services | C37: Alteration to unmetered supply | D37: 351.1258436 | E37: 351.1258436 | F37: 1509.677621 | G37: 1509.677621 | K37: 4 | L37: 4 | M37: 10 | N37: 10
B38: Miscellaneous Fee-Based Services | C38: Miscellaneous service – after hours | D38: 280.8899589 | E38: 280.8899589 | F38: 0 | G38: 0 | K38: 1 | L38: 1 | M38: 0 | N38: 0
B39: Miscellaneous Fee-Based Services | C39: Miscellaneous service – wasted visit | D39: 0 | E39: 0 | F39: 0 | G39: 0 | K39: 0 | L39: 0 | M39: 0 | N39: 0
B40: Miscellaneous Fee-Based Services | C40: Remove meter - single phase | D40: 0 | E40: 0 | F40: 22050.42053 | G40: 22527.70236 | K40: 0 | L40: 0 | M40: 231 | N40: 236
B41: Miscellaneous Fee-Based Services | C41: Remove meter - multi phase | D41: 0 | E41: 0 | F41: 2339.205099 | G41: 2339.205099 | K41: 0 | L41: 0 | M41: 19 | N41: 19
B42: Miscellaneous Fee-Based Services
B43: Miscellaneous Fee-Based Services | C43: Overhead service, single span - single phase | D43: 0 | E43: 0 | F43: 531005.3965 | G43: 541312.1783 | K43: 0 | L43: 0 | M43: 1288 | N43: 1313
B44: Miscellaneous Fee-Based Services | C44: Overhead service, single span - multi phase | D44: 0 | E44: 0 | F44: 67560.52331 | G44: 68756.28478 | K44: 0 | L44: 0 | M44: 113 | N44: 115
B45: Miscellaneous Fee-Based Services | C45: Underground service in turret/cabinet - single phase | D45: 0 | E45: 0 | F45: 103485.9187 | G45: 105445.8793 | K45: 0 | L45: 0 | M45: 792 | N45: 807
B46: Miscellaneous Fee-Based Services | C46: Underground service in turret/cabinet - multi phase | D46: 0 | E46: 0 | F46: 11564.77864 | G46: 11886.02249 | K46: 0 | L46: 0 | M46: 72 | N46: 74
B47: Miscellaneous Fee-Based Services | C47: Underground service with pole mounted fuse - single phase | D47: 0 | E47: 0 | F47: 225266.3232 | G47: 229643.2596 | K47: 0 | L47: 0 | M47: 772 | N47: 787
B48: Miscellaneous Fee-Based Services | C48: Underground service with pole mounted fuse - multi phase | D48: 0 | E48: 0 | F48: 22750.24159 | G48: 23484.12035 | K48: 0 | L48: 0 | M48: 62 | N48: 64
B49: Miscellaneous Fee-Based Services | C49: Basic connection – after hours | D49: 0 | E49: 0 | F49: 1140.573239 | G49: 1140.573239 | K49: 0 | L49: 0 | M49: 1 | N49: 1
B50: Miscellaneous Fee-Based Services | C50: Connection establishment - wasted visit | D50: 0 | E50: 0 | F50: 1127.245377 | G50: 1127.245377 | K50: 0 | L50: 0 | M50: 10 | N50: 10
B51: Miscellaneous Fee-Based Services | C51: 0 | D51: 0 | E51: 0 | F51: 0 | G51: 0 | K51: 0 | L51: 0 | M51: 0 | N51: 0
B52: Miscellaneous Fee-Based Services
B53: Miscellaneous Fee-Based Services | C53: Modify existing connection for micro embedded generation - multi phase | D53: 0 | E53: 0 | F53: 26358.77546 | G53: 26885.95097 | K53: 0 | L53: 0 | M53: 176.4035071 | N53: 179.9315772
B54: Miscellaneous Fee-Based Services | C54: Renewable energy connection - after hours | D54: 0 | E54: 0 | F54: 982.1934747 | G54: 982.1934747 | K54: 0 | L54: 0 | M54: 1 | N54: 1
B55: Miscellaneous Fee-Based Services | C55: Renewable energy - wasted visit - 1 worker | D55: 0 | E55: 0 | F55: 87.18888715 | G55: 87.18888715 | K55: 0 | L55: 0 | M55: 1 | N55: 1
B56: Miscellaneous Fee-Based Services | C56: 0 | D56: 0 | E56: 0 | F56: 0 | G56: 0 | K56: 0 | L56: 0 | M56: 0 | N56: 0
B57: Miscellaneous Fee-Based Services
B58: Miscellaneous Fee-Based Services | C58: Disconnect/reconnect overhead service for facia repairs - multi phase | D58: 0 | E58: 0 | F58: 5677.982286 | G58: 5677.982286 | K58: 0 | L58: 0 | M58: 20 | N58: 20
B59: Miscellaneous Fee-Based Services | C59: Temporary disconnect/reconnect – after hours | D59: 0 | E59: 0 | F59: 1105.022016 | G59: 1105.022016 | K59: 0 | L59: 0 | M59: 1 | N59: 1
B60: Miscellaneous Fee-Based Services | C60: Temporary disconnect/reconnect – wasted visit | D60: 0 | E60: 0 | F60: 135.5504876 | G60: 135.5504876 | K60: 0 | L60: 0 | M60: 1 | N60: 1
B61: Miscellaneous Fee-Based Services | C61: 0 | D61: 0 | E61: 0 | F61: 0 | G61: 0 | K61: 0 | L61: 0 | M61: 0 | N61: 0
B62: Miscellaneous Fee-Based Services
B63: Miscellaneous Fee-Based Services | C63: Connection alteration – overhead multi phase | D63: 0 | E63: 0 | F63: 38610.27954 | G63: 39461.97689 | K63: 0 | L63: 0 | M63: 136 | N63: 139
B64: Miscellaneous Fee-Based Services | C64: Connection of new consumer mains to an existing installation – underground single phase to turret or pole | D64: 0 | E64: 0 | F64: 27510.39606 | G64: 28007.57189 | K64: 0 | L64: 0 | M64: 166 | N64: 169
B65: Miscellaneous Fee-Based Services | C65: Connection of new consumer mains to an existing installation – underground multi phase to turret or pole | D65: 0 | E65: 0 | F65: 22774.67366 | G65: 23174.22934 | K65: 0 | L65: 0 | M65: 114 | N65: 116
B66: Miscellaneous Fee-Based Services | C66: Augment single phase overhead service to multi phase supply | D66: 0 | E66: 0 | F66: 642.3853253 | G66: 642.3853253 | K66: 0 | L66: 0 | M66: 1 | N66: 1
B67: Miscellaneous Fee-Based Services | C67: Augment multi phase overhead service to single phase supply | D67: 0 | E67: 0 | F67: 456.7758586 | G67: 456.7758586 | K67: 0 | L67: 0 | M67: 1 | N67: 1
B68: Miscellaneous Fee-Based Services | C68: Augment single phase overhead service to underground supply (turret) | D68: 0 | E68: 0 | F68: 270.2079031 | G68: 270.2079031 | K68: 0 | L68: 0 | M68: 1 | N68: 1
B69: Miscellaneous Fee-Based Services | C69: Augment multi phase overhead service to underground supply (turret) | D69: 0 | E69: 0 | F69: 329.5473538 | G69: 329.5473538 | K69: 0 | L69: 0 | M69: 1 | N69: 1
B70: Miscellaneous Fee-Based Services | C70: Augment single phase overhead service to underground supply (pole) | D70: 0 | E70: 0 | F70: 336.3003435 | G70: 336.3003435 | K70: 0 | L70: 0 | M70: 1 | N70: 1
B71: Miscellaneous Fee-Based Services | C71: Augment multi phase overhead service to underground supply (pole) | D71: 0 | E71: 0 | F71: 411.4439685 | G71: 411.4439685 | K71: 0 | L71: 0 | M71: 1 | N71: 1
B72: Miscellaneous Fee-Based Services | C72: Basic connection alteration – after hours | D72: 0 | E72: 0 | F72: 1105.022016 | G72: 1105.022016 | K72: 0 | L72: 0 | M72: 1 | N72: 1
B73: Miscellaneous Fee-Based Services | C73: Basic connection wasted visit | D73: 0 | E73: 0 | F73: 26651.6757 | G73: 27164.20792 | K73: 0 | L73: 0 | M73: 208 | N73: 212
B74: Miscellaneous Fee-Based Services | C74: 0 | D74: 0 | E74: 0 | F74: 0 | G74: 0 | K74: 0 | L74: 0 | M74: 0 | N74: 0
B75: Miscellaneous Fee-Based Services
B76: Miscellaneous Fee-Based Services
B77: Miscellaneous Fee-Based Services | C77: Standard Application Fee
B78: Miscellaneous Fee-Based Services | C78: Application Fee
B79: Miscellaneous Fee-Based Services
B80: Miscellaneous Fee-Based Services | C80: Large - Design Audit Fee (small)
B81: Miscellaneous Fee-Based Services | C81: Large - Design Audit Fee (large)
B82: Miscellaneous Fee-Based Services | C82: Large - Design Audit Fee (major)
B83: Miscellaneous Fee-Based Services | C83: Large - Construction Audit Fee (small)
B84: Miscellaneous Fee-Based Services | C84: Large - Construction Audit Fee (large)
B85: Miscellaneous Fee-Based Services | C85: Large - Construction Audit Fee (major)
B86: Miscellaneous Fee-Based Services
B87: Miscellaneous Fee-Based Services | C87: Small - Design Audit Fee (small)
B88: Miscellaneous Fee-Based Services | C88: Small - Design Audit Fee (large)
B89: Miscellaneous Fee-Based Services | C89: Small - Design Audit Fee (major)
B90: Miscellaneous Fee-Based Services | C90: Small - Construction Audit Fee (small)
B91: Miscellaneous Fee-Based Services | C91: Small - Construction Audit Fee (large)
B92: Miscellaneous Fee-Based Services | C92: Small - Construction Audit Fee (major)
B93: Miscellaneous Fee-Based Services
B94: Miscellaneous Fee-Based Services
B95: Miscellaneous Fee-Based Services
B96: Miscellaneous Fee-Based Services
B97: Miscellaneous Fee-Based Services
B98: Miscellaneous Fee-Based Services
B99: Miscellaneous Fee-Based Services
B100: Miscellaneous Fee-Based Services
B101: Miscellaneous Fee-Based Services
B102: Miscellaneous Fee-Based Services
B103: Miscellaneous Fee-Based Services
B104: Miscellaneous Fee-Based Services
B105: Miscellaneous Fee-Based Services
B106: Miscellaneous Fee-Based Services
B107: Miscellaneous Fee-Based Services
B108: Miscellaneous Fee-Based Services
B109: Miscellaneous Fee-Based Services
B110: Miscellaneous Fee-Based Services
B111: Miscellaneous Fee-Based Services
B112: Miscellaneous Fee-Based Services
B113: Miscellaneous Fee-Based Services
B114: Miscellaneous Fee-Based Services
B115: Miscellaneous Fee-Based Services
B116: Miscellaneous Fee-Based Services
B117: Miscellaneous Fee-Based Services
B118: Miscellaneous Fee-Based Services
B119: Miscellaneous Fee-Based Services
B120: Miscellaneous Fee-Based Services
B121: Miscellaneous Fee-Based Services
B122: Miscellaneous Fee-Based Services
B123: Miscellaneous Fee-Based Services
B124: Miscellaneous Fee-Based Services
B125: Miscellaneous Fee-Based Services
B126: Miscellaneous Fee-Based Services
B127: Miscellaneous Fee-Based Services
B128: Miscellaneous Fee-Based Services
B129: Miscellaneous Fee-Based Services
B130: Miscellaneous Fee-Based Services
B131: Miscellaneous Fee-Based Services
B132: Miscellaneous Fee-Based Services
B133: Miscellaneous Fee-Based Services
B134: Miscellaneous Fee-Based Services
B135: Miscellaneous Fee-Based Services
B136: Miscellaneous Fee-Based Services
B137: Miscellaneous Fee-Based Services
B138: Miscellaneous Fee-Based Services
B139: Miscellaneous Fee-Based Services
B140: Miscellaneous Fee-Based Services
B141: Miscellaneous Fee-Based Services
B142: Miscellaneous Fee-Based Services
B143: Miscellaneous Fee-Based Services
B144: Miscellaneous Fee-Based Services
B145: Miscellaneous Fee-Based Services
B146: Miscellaneous Fee-Based Services
B147: Miscellaneous Fee-Based Services
B148: Miscellaneous Fee-Based Services
B149: Miscellaneous Fee-Based Services
B150: Miscellaneous Fee-Based Services
B151: Miscellaneous Fee-Based Services
B152: Miscellaneous Fee-Based Services
B153: Miscellaneous Fee-Based Services
B154: Miscellaneous Fee-Based Services
B155: Miscellaneous Fee-Based Services
B156: Miscellaneous Fee-Based Services
B157: Miscellaneous Fee-Based Services
B158: Miscellaneous Fee-Based Services
B159: Miscellaneous Fee-Based Services
B160: Miscellaneous Fee-Based Services
B161: Miscellaneous Fee-Based Services
B162: Miscellaneous Fee-Based Services
B163: Miscellaneous Fee-Based Services
B164: Miscellaneous Fee-Based Services
B165: Miscellaneous Fee-Based Services
B166: Miscellaneous Fee-Based Services
B167: Miscellaneous Fee-Based Services
B168: Miscellaneous Fee-Based Services
B169: Miscellaneous Fee-Based Services
B170: Miscellaneous Fee-Based Services
B171: Miscellaneous Fee-Based Services
B172: Miscellaneous Fee-Based Services
B173: Miscellaneous Fee-Based Services
B174: Miscellaneous Fee-Based Services
B175: Miscellaneous Fee-Based Services
B176: Miscellaneous Fee-Based Services
B177: Miscellaneous Fee-Based Services
B178: Miscellaneous Fee-Based Services
B179: Miscellaneous Fee-Based Services
B180: Miscellaneous Fee-Based Services
B181: Miscellaneous Fee-Based Services
B182: Miscellaneous Fee-Based Services
B183: Miscellaneous Fee-Based Services
B184: Miscellaneous Fee-Based Services
B185: Miscellaneous Fee-Based Services
B186: Miscellaneous Fee-Based Services
B187: Miscellaneous Fee-Based Services
B188: Miscellaneous Fee-Based Services
B189: Miscellaneous Fee-Based Services
B190: Miscellaneous Fee-Based Services
B191: Miscellaneous Fee-Based Services
B192: Miscellaneous Fee-Based Services
B193: Miscellaneous Fee-Based Services
B194: Miscellaneous Fee-Based Services
B195: Miscellaneous Fee-Based Services
B196: Miscellaneous Fee-Based Services
B197: Miscellaneous Fee-Based Services
B198: Miscellaneous Fee-Based Services
B199: Miscellaneous Fee-Based Services
B200: Miscellaneous Fee-Based Services
B201: Miscellaneous Fee-Based Services
... 278 more rows

Sheet 4.4 Quoted services.
B1: =SheetHeader -> REGULATORY REPORTING STATEMENT
B2: =dms_TradingName -> TasNetworks (D)
B3: =dms_Reg_Year_Span -> 2017-18 to 2018-19
B4: 4.4 ANCILLARY SERVICES - QUOTED SERVICES
B6: TABLE 4.4.1 - COST METRICS FOR QUOTED SERVICES
B7: SERVICE | C7: SERVICE SUBCATEGORY | D7: =CONCATENATE("EXPENDITURE ($0's, real ", dms_DollarReal, ")") -> EXPENDITURE ($0's, real June 2017) | K7: VOLUMES (0's)
D8: =CRCP_y4 -> 2015-16 | E8: =CRCP_y5 -> 2016-17 | F8: =FRCP_y1 -> 2017-18 | G8: =FRCP_y2 -> 2018-19 | H8: =FRCP_y3 -> 2019-20 | I8: =FRCP_y4 -> 2020-21 | J8: =FRCP_y5 -> 2021-22 | K8: =CRCP_y4 -> 2015-16 | L8: =CRCP_y5 -> 2016-17 | M8: =FRCP_y1 -> 2017-18 | N8: =FRCP_y2 -> 2018-19 | O8: =FRCP_y3 -> 2019-20 | P8: =FRCP_y4 -> 2020-21 | Q8: =FRCP_y5 -> 2021-22
B9: Quoted Services | C9: Relocation/Removal - Poles | D9: 932240.5663 | E9: 932240.5663 | F9: 932240.5663 | G9: 932240.5663 | K9: 187 | L9: 187 | M9: 187 | N9: 187
B10: Quoted Services | C10: Relocation/Removal - Substations | D10: 9466.281834 | E10: 9466.281834 | F10: 9466.281834 | G10: 9466.281834 | K10: 1 | L10: 1 | M10: 1 | N10: 1
B11: Quoted Services | C11: Relocation/Removal - Transformers | D11: 42275.73223 | E11: 42275.73223 | F11: 42275.73223 | G11: 42275.73223 | K11: 5 | L11: 5 | M11: 5 | N11: 5
B12: Quoted Services | C12: Relocation/Removal - Overhead | D12: 242481.8826 | E12: 242481.8826 | F12: 242481.8826 | G12: 242481.8826 | K12: 17 | L12: 17 | M12: 17 | N12: 17
B13: Quoted Services | C13: Relocation/Removal - Underground | D13: 387364.7698 | E13: 387364.7698 | F13: 387364.7698 | G13: 387364.7698 | K13: 14 | L13: 14 | M13: 14 | N13: 14
B14: Quoted Services | C14: Services of higher standard - Substation | D14: 63186.47501 | E14: 63186.47501 | F14: 63186.47501 | G14: 63186.47501 | K14: 1 | L14: 1 | M14: 1 | N14: 1
B15: Quoted Services | C15: Services of a non standard nature - Connections | D15: 1374.146404 | E15: 1374.146404 | F15: 1374.146404 | G15: 1374.146404 | K15: 1 | L15: 1 | M15: 1 | N15: 1
B16: Quoted Services | C16: Services of a non standard nature - Underground | D16: 27581.91373 | E16: 27581.91373 | F16: 27581.91373 | G16: 27581.91373 | K16: 1 | L16: 1 | M16: 1 | N16: 1
B17: Quoted Services | C17: Services of a non standard nature - Poles | D17: 38574.40932 | E17: 38574.40932 | F17: 38574.40932 | G17: 38574.40932 | K17: 10 | L17: 10 | M17: 10 | N17: 10
B18: Quoted Services | C18: Services of a non standard nature - Overhead | D18: 13394.39819 | E18: 13394.39819 | F18: 13394.39819 | G18: 13394.39819 | K18: 1 | L18: 1 | M18: 1 | N18: 1
B19: Quoted Services
B20: Quoted Services
B21: Quoted Services
B22: Quoted Services
B23: Quoted Services
B24: Quoted Services
B25: Quoted Services
B26: Quoted Services
B27: Quoted Services
B28: Quoted Services
B29: Quoted Services
B30: Quoted Services
B31: Quoted Services
B32: Quoted Services
B33: Quoted Services
B34: Quoted Services
B35: Quoted Services
B36: Quoted Services
B37: Quoted Services
B38: Quoted Services
B39: Quoted Services
B40: Quoted Services
B41: Quoted Services
B42: Quoted Services
B43: Quoted Services
B44: Quoted Services
B45: Quoted Services
B46: Quoted Services
B47: Quoted Services
B48: Quoted Services
B49: Quoted Services
B50: Quoted Services
B51: Quoted Services
B52: Quoted Services
B53: Quoted Services
B54: Quoted Services
B55: Quoted Services
B56: Quoted Services
B57: Quoted Services
B58: Quoted Services
B59: Quoted Services
B60: Quoted Services
B61: Quoted Services
B62: Quoted Services
B63: Quoted Services
B64: Quoted Services
B65: Quoted Services
B66: Quoted Services
B67: Quoted Services
B68: Quoted Services
B69: Quoted Services
B70: Quoted Services
B71: Quoted Services
B72: Quoted Services
B73: Quoted Services
B74: Quoted Services
B75: Quoted Services
B76: Quoted Services
B77: Quoted Services
B78: Quoted Services
B79: Quoted Services
B80: Quoted Services
B81: Quoted Services
B82: Quoted Services
B83: Quoted Services
B84: Quoted Services
B85: Quoted Services
B86: Quoted Services
B87: Quoted Services
B88: Quoted Services
B89: Quoted Services
B90: Quoted Services
B91: Quoted Services
B92: Quoted Services
B93: Quoted Services
B94: Quoted Services
B95: Quoted Services
B96: Quoted Services
B97: Quoted Services
B98: Quoted Services
B99: Quoted Services
B100: Quoted Services
B101: Quoted Services
B102: Quoted Services
B103: Quoted Services
B104: Quoted Services
B105: Quoted Services
B106: Quoted Services
B107: Quoted Services
B108: Quoted Services
B109: Quoted Services
B110: Quoted Services
B111: Quoted Services
B112: Quoted Services
B113: Quoted Services
B114: Quoted Services
B115: Quoted Services
B116: Quoted Services
B117: Quoted Services
B118: Quoted Services
B119: Quoted Services
B120: Quoted Services
B121: Quoted Services
B122: Quoted Services
B123: Quoted Services
B124: Quoted Services
B125: Quoted Services
B126: Quoted Services
B127: Quoted Services
B128: Quoted Services
B129: Quoted Services
B130: Quoted Services
B131: Quoted Services
B132: Quoted Services
B133: Quoted Services
B134: Quoted Services
B135: Quoted Services
B136: Quoted Services
B137: Quoted Services
B138: Quoted Services
B139: Quoted Services
B140: Quoted Services
B141: Quoted Services
B142: Quoted Services
B143: Quoted Services
B144: Quoted Services
B145: Quoted Services
B146: Quoted Services
B147: Quoted Services
B148: Quoted Services
B149: Quoted Services
B150: Quoted Services
B151: Quoted Services
B152: Quoted Services
B153: Quoted Services
B154: Quoted Services
B155: Quoted Services
B156: Quoted Services
B157: Quoted Services
B158: Quoted Services
B159: Quoted Services
B160: Quoted Services
B161: Quoted Services
B162: Quoted Services
B163: Quoted Services
B164: Quoted Services
B165: Quoted Services
B166: Quoted Services
B167: Quoted Services
B168: Quoted Services
B169: Quoted Services
B170: Quoted Services
B171: Quoted Services
B172: Quoted Services
B173: Quoted Services
B174: Quoted Services
B175: Quoted Services
B176: Quoted Services
B177: Quoted Services
B178: Quoted Services
B179: Quoted Services
B180: Quoted Services
B181: Quoted Services
B182: Quoted Services
B183: Quoted Services
B184: Quoted Services
B185: Quoted Services
B186: Quoted Services
B187: Quoted Services
B188: Quoted Services
B189: Quoted Services
B190: Quoted Services
B191: Quoted Services
B192: Quoted Services
B193: Quoted Services
B194: Quoted Services
B195: Quoted Services
B196: Quoted Services
B197: Quoted Services
B198: Quoted Services
B199: Quoted Services
B200: Quoted Services
B201: Quoted Services
... 270 more rows

Sheet 5.3 MD - Network level
B1: =SheetHeader -> REGULATORY REPORTING STATEMENT
B2: =dms_TradingName -> TasNetworks (D)
B3: =dms_Reg_Year_Span -> 2017-18 to 2018-19
B4: 5.3 MAXIMUM DEMAND AT NETWORK LEVEL
B7: TABLE 5.3.1 - RAW AND WEATHER CORRECTED COINCIDENT MD AT NETWORK LEVEL (SUMMED AT METERED CONNECTION POINT)
F8: Forthcoming Period
C9: UNIT | D9: =CRCP_y4 -> 2015-16 | E9: =CRCP_y5 -> 2016-17 | F9: =FRCP_y1 -> 2017-18 | G9: =FRCP_y2 -> 2018-19 | H9: =FRCP_y3 -> 2019-20 | I9: =FRCP_y4 -> 2020-21 | J9: =FRCP_y5 -> 2021-22
B10: Raw Network Coincident MD | C10: MW
B11: Date MD Occurred
B12: Half hour time period MD occurred
B13: Winter/Summer Peaking | D13: Winter | E13: Winter | F13: Winter | G13: Winter | H13: Winter | I13: Winter | J13: Winter
B14: Embedded Generation | C14: MW | D14: 7.48429 | E14: 7.48429 | F14: 7.48429 | G14: 7.48429 | H14: 7.48429 | I14: 7.48429 | J14: 7.48429
B15: Weather Corrected (50% POE) Network Coincident MD | C15: MW | D15: 1004.42 | E15: 1014.18 | F15: 1025.44 | G15: 1041.81 | H15: 1059.62 | I15: 1077.48 | J15: 1094.02
B16: Weather Corrected (10% POE) Network Coincident MD | C16: MW | D16: 984.43 | E16: 994.19 | F16: 1005.56 | G16: 1021.83 | H16: 1039.63 | I16: 1057.59 | J16: 1074.03

Sheet 5.4 MD & utilisation-Spatial
B1: =SheetHeader -> REGULATORY REPORTING STATEMENT | G1: Worksheet navigation
B2: =dms_TradingName -> TasNetworks (D)
B3: =dms_Reg_Year_Span -> 2017-18 to 2018-19
B4: 5.4 MAXIMUM DEMAND AND UTILISATION AT SPATIAL LEVEL
B7: TABLE 5.4.1 - NON-COINCIDENT & COINCIDENT MAXIMUM DEMAND
I8: Forthcoming Period
B9: NETWORK LEVEL | C9: SUBSTATION | D9: FORECASTING ELEMENTS | E9: UNIT | F9: MAX DEMAND | G9: =CRCP_y4 -> 2015-16 | H9: =CRCP_y5 -> 2016-17 | I9: =FRCP_y1 -> 2017-18 | J9: =FRCP_y2 -> 2018-19 | K9: =FRCP_y3 -> 2019-20 | L9: =FRCP_y4 -> 2020-21 | M9: =FRCP_y5 -> 2021-22
B10: SUBSTRANSMISSION SUBSTATION | C10: <Enter substation name> | D10: Substation Rating | E10: MVA | F10: Non-Coincident
F11: Coincident
D12: Raw Adjusted MD | E12: MW | F12: Non-Coincident
F13: Coincident
D14: Raw Adjusted MD | E14: MVA | F14: Non-Coincident
F15: Coincident
D16: Date MD occurred | F16: Non-Coincident
F17: Coincident
D18: Half hour time period MD occurred | F18: Non-Coincident
F19: Coincident
D20: Winter/Summer Peaking | F20: Non-Coincident
F21: Coincident
D22: Adjustments - Embedded generation | E22: MW | F22: Non-Coincident
F23: Coincident
D24: Weather Corrected 10% POE | E24: MW | F24: Non-Coincident
F25: Coincident
D26: Weather Corrected MD 10% POE | E26: MVA | F26: Non-Coincident
F27: Coincident
D28: Weather Corrected MD 50% POE | E28: MW | F28: Non-Coincident
F29: Coincident
D30: Weather Corrected MD 50% POE | E30: MVA | F30: Non-Coincident
F31: Coincident
C32: <Enter substation name> | D32: Substation Rating | E32: MVA | F32: Non-Coincident
F33: Coincident
D34: Raw Adjusted MD | E34: MW | F34: Non-Coincident
F35: Coincident
D36: Raw Adjusted MD | E36: MVA | F36: Non-Coincident
F37: Coincident
D38: Date MD occurred | F38: Non-Coincident
F39: Coincident
D40: Half hour time period MD occurred | F40: Non-Coincident
F41: Coincident
D42: Winter/Summer Peaking | F42: Non-Coincident
F43: Coincident
D44: Adjustments - Embedded generation | E44: MW | F44: Non-Coincident
F45: Coincident
D46: Weather Corrected 10% POE | E46: MW | F46: Non-Coincident
F47: Coincident
D48: Weather Corrected MD 10% POE | E48: MVA | F48: Non-Coincident
F49: Coincident
D50: Weather Corrected MD 50% POE | E50: MW | F50: Non-Coincident
F51: Coincident
D52: Weather Corrected MD 50% POE | E52: MVA | F52: Non-Coincident
F53: Coincident
C54: <Enter substation name> | D54: Substation Rating | E54: MVA | F54: Non-Coincident
F55: Coincident
D56: Raw Adjusted MD | E56: MW | F56: Non-Coincident
F57: Coincident
D58: Raw Adjusted MD | E58: MVA | F58: Non-Coincident
F59: Coincident
D60: Date MD occurred | F60: Non-Coincident
F61: Coincident
D62: Half hour time period MD occurred | F62: Non-Coincident
F63: Coincident
D64: Winter/Summer Peaking | F64: Non-Coincident
F65: Coincident
D66: Adjustments - Embedded generation | E66: MW | F66: Non-Coincident
F67: Coincident
D68: Weather Corrected 10% POE | E68: MW | F68: Non-Coincident
F69: Coincident
D70: Weather Corrected MD 10% POE | E70: MVA | F70: Non-Coincident
F71: Coincident
D72: Weather Corrected MD 50% POE | E72: MW | F72: Non-Coincident
F73: Coincident
D74: Weather Corrected MD 50% POE | E74: MVA | F74: Non-Coincident
F75: Coincident
C76: <Enter substation name> | D76: Substation Rating | E76: MVA | F76: Non-Coincident
F77: Coincident
D78: Raw Adjusted MD | E78: MW | F78: Non-Coincident
F79: Coincident
D80: Raw Adjusted MD | E80: MVA | F80: Non-Coincident
F81: Coincident
D82: Date MD occurred | F82: Non-Coincident
F83: Coincident
D84: Half hour time period MD occurred | F84: Non-Coincident
F85: Coincident
D86: Winter/Summer Peaking | F86: Non-Coincident
F87: Coincident
D88: Adjustments - Embedded generation | E88: MW | F88: Non-Coincident
F89: Coincident
D90: Weather Corrected 10% POE | E90: MW | F90: Non-Coincident
F91: Coincident
D92: Weather Corrected MD 10% POE | E92: MVA | F92: Non-Coincident
F93: Coincident
D94: Weather Corrected MD 50% POE | E94: MW | F94: Non-Coincident
F95: Coincident
D96: Weather Corrected MD 50% POE | E96: MVA | F96: Non-Coincident
F97: Coincident
C98: <Enter substation name> | D98: Substation Rating | E98: MVA | F98: Non-Coincident
F99: Coincident
D100: Raw Adjusted MD | E100: MW | F100: Non-Coincident
F101: Coincident
D102: Raw Adjusted MD | E102: MVA | F102: Non-Coincident
F103: Coincident
D104: Date MD occurred | F104: Non-Coincident
F105: Coincident
D106: Half hour time period MD occurred | F106: Non-Coincident
F107: Coincident
D108: Winter/Summer Peaking | F108: Non-Coincident
F109: Coincident
D110: Adjustments - Embedded generation | E110: MW | F110: Non-Coincident
F111: Coincident
D112: Weather Corrected 10% POE | E112: MW | F112: Non-Coincident
F113: Coincident
D114: Weather Corrected MD 10% POE | E114: MVA | F114: Non-Coincident
F115: Coincident
D116: Weather Corrected MD 50% POE | E116: MW | F116: Non-Coincident
F117: Coincident
D118: Weather Corrected MD 50% POE | E118: MVA | F118: Non-Coincident
F119: Coincident
C120: <Enter substation name> | D120: Substation Rating | E120: MVA | F120: Non-Coincident
F121: Coincident
D122: Raw Adjusted MD | E122: MW | F122: Non-Coincident
F123: Coincident
D124: Raw Adjusted MD | E124: MVA | F124: Non-Coincident
F125: Coincident
D126: Date MD occurred | F126: Non-Coincident
F127: Coincident
D128: Half hour time period MD occurred | F128: Non-Coincident
F129: Coincident
D130: Winter/Summer Peaking | F130: Non-Coincident
F131: Coincident
D132: Adjustments - Embedded generation | E132: MW | F132: Non-Coincident
F133: Coincident
D134: Weather Corrected 10% POE | E134: MW | F134: Non-Coincident
F135: Coincident
D136: Weather Corrected MD 10% POE | E136: MVA | F136: Non-Coincident
F137: Coincident
D138: Weather Corrected MD 50% POE | E138: MW | F138: Non-Coincident
F139: Coincident
D140: Weather Corrected MD 50% POE | E140: MVA | F140: Non-Coincident
F141: Coincident
C142: <Enter substation name> | D142: Substation Rating | E142: MVA | F142: Non-Coincident
F143: Coincident
D144: Raw Adjusted MD | E144: MW | F144: Non-Coincident
F145: Coincident
D146: Raw Adjusted MD | E146: MVA | F146: Non-Coincident
F147: Coincident
D148: Date MD occurred | F148: Non-Coincident
F149: Coincident
D150: Half hour time period MD occurred | F150: Non-Coincident
F151: Coincident
D152: Winter/Summer Peaking | F152: Non-Coincident
F153: Coincident
D154: Adjustments - Embedded generation | E154: MW | F154: Non-Coincident
F155: Coincident
D156: Weather Corrected 10% POE | E156: MW | F156: Non-Coincident
F157: Coincident
D158: Weather Corrected MD 10% POE | E158: MVA | F158: Non-Coincident
F159: Coincident
D160: Weather Corrected MD 50% POE | E160: MW | F160: Non-Coincident
F161: Coincident
D162: Weather Corrected MD 50% POE | E162: MVA | F162: Non-Coincident
F163: Coincident
C164: <Enter substation name> | D164: Substation Rating | E164: MVA | F164: Non-Coincident
F165: Coincident
D166: Raw Adjusted MD | E166: MW | F166: Non-Coincident
F167: Coincident
D168: Raw Adjusted MD | E168: MVA | F168: Non-Coincident
F169: Coincident
D170: Date MD occurred | F170: Non-Coincident
F171: Coincident
D172: Half hour time period MD occurred | F172: Non-Coincident
F173: Coincident
D174: Winter/Summer Peaking | F174: Non-Coincident
F175: Coincident
D176: Adjustments - Embedded generation | E176: MW | F176: Non-Coincident
F177: Coincident
D178: Weather Corrected 10% POE | E178: MW | F178: Non-Coincident
F179: Coincident
D180: Weather Corrected MD 10% POE | E180: MVA | F180: Non-Coincident
F181: Coincident
D182: Weather Corrected MD 50% POE | E182: MW | F182: Non-Coincident
F183: Coincident
D184: Weather Corrected MD 50% POE | E184: MVA | F184: Non-Coincident
F185: Coincident
C186: <Enter substation name> | D186: Substation Rating | E186: MVA | F186: Non-Coincident
F187: Coincident
D188: Raw Adjusted MD | E188: MW | F188: Non-Coincident
F189: Coincident
D190: Raw Adjusted MD | E190: MVA | F190: Non-Coincident
F191: Coincident
D192: Date MD occurred | F192: Non-Coincident
F193: Coincident
D194: Half hour time period MD occurred | F194: Non-Coincident
F195: Coincident
D196: Winter/Summer Peaking | F196: Non-Coincident
F197: Coincident
D198: Adjustments - Embedded generation | E198: MW | F198: Non-Coincident
F199: Coincident
D200: Weather Corrected 10% POE | E200: MW | F200: Non-Coincident
F201: Coincident
D202: Weather Corrected MD 10% POE | E202: MVA | F202: Non-Coincident
... 10809 more rows

Sheet 6.1 Telephone answering
B1: =SheetHeader -> REGULATORY REPORTING STATEMENT
B2: =dms_TradingName -> TasNetworks (D)
B3: =dms_Reg_Year_Span -> 2017-18 to 2018-19
B4: 6.1 TELEPHONE ANSWERING
B7: TABLE 6.1.1 - TELEPHONE ANSWERING DATA
A8: C10 starts at first day of PRCP_y5 and goes for 5 full years | B8: Date | C8: Total number of calls received | D8: calls to payment lines and automated interactive services | E8: calls abandoned by the customer within 30 seconds of the call being queued for response by a human operator | F8: Sub-total number of calls received | G8: Calls to the fault line answered in 30 seconds
B9: =DATE(VALUE(LEFT(PRCP_y4,2)&RIGHT(PRCP_y4,2)),1,1) -> 2011-01-01 | C9: 0 | E9: 0 | F9: =C9-D9-E9 -> 0 | G9: 0
B10: =B9+1 -> 2011-01-02 | C10: 0 | E10: 0 | F10: 0 | G10: 0
B11: 2011-01-03 | C11: 0 | E11: 0 | F11: 0 | G11: 0
B12: 2011-01-04 | C12: 274 | E12: 0 | F12: 274 | G12: 223
B13: 2011-01-05 | C13: 215 | E13: 1 | F13: 214 | G13: 178
B14: 2011-01-06 | C14: 187 | E14: 0 | F14: 187 | G14: 150
B15: 2011-01-07 | C15: 254 | E15: 0 | F15: 254 | G15: 174
B16: =B15+1 -> 2011-01-08 | C16: 0 | E16: 0 | F16: 0 | G16: 0
B17: 2011-01-09 | C17: 0 | E17: 0 | F17: 0 | G17: 0
B18: 2011-01-10 | C18: 371 | E18: 0 | F18: 371 | G18: 162
B19: 2011-01-11 | C19: 271 | E19: 0 | F19: 271 | G19: 194
B20: 2011-01-12 | C20: 673 | E20: 0 | F20: 673 | G20: 422
B21: 2011-01-13 | C21: 521 | E21: 0 | F21: 521 | G21: 243
B22: 2011-01-14 | C22: 914 | E22: 0 | F22: 914 | G22: 556
B23: 2011-01-15 | C23: 0 | E23: 0 | F23: 0 | G23: 0
B24: 2011-01-16 | C24: 0 | E24: 0 | F24: 0 | G24: 0
B25: 2011-01-17 | C25: 361 | E25: 0 | F25: 361 | G25: 201
B26: 2011-01-18 | C26: 283 | E26: 0 | F26: 283 | G26: 232
B27: 2011-01-19 | C27: 285 | E27: 0 | F27: 285 | G27: 160
B28: 2011-01-20 | C28: 282 | E28: 0 | F28: 282 | G28: 201
B29: 2011-01-21 | C29: 354 | E29: 0 | F29: =C29-D29-E29 -> 354 | G29: 194
B30: 2011-01-22 | C30: 0 | E30: 0 | F30: 0 | G30: 0
B31: 2011-01-23 | C31: 0 | E31: 0 | F31: 0 | G31: 0
B32: 2011-01-24 | C32: 500 | E32: 0 | F32: 500 | G32: 55
B33: 2011-01-25 | C33: 307 | E33: 0 | F33: 307 | G33: 143
B34: 2011-01-26 | C34: 0 | E34: 0 | F34: 0 | G34: 0
B35: 2011-01-27 | C35: 344 | E35: 0 | F35: 344 | G35: 68
B36: 2011-01-28 | C36: 276 | E36: 1 | F36: 275 | G36: 93
B37: 2011-01-29 | C37: 0 | E37: 0 | F37: 0 | G37: 0
B38: 2011-01-30 | C38: 0 | E38: 0 | F38: 0 | G38: 0
B39: 2011-01-31 | C39: 274 | E39: 0 | F39: 274 | G39: 131
B40: 2011-02-01 | C40: 508 | E40: 0 | F40: 508 | G40: 99
B41: 2011-02-02 | C41: 261 | E41: 0 | F41: 261 | G41: 124
B42: 2011-02-03 | C42: 196 | E42: 0 | F42: 196 | G42: 149
B43: 2011-02-04 | C43: 206 | E43: 2 | F43: 204 | G43: 124
B44: 2011-02-05 | C44: 0 | E44: 0 | F44: 0 | G44: 0
B45: 2011-02-06 | C45: 0 | E45: 0 | F45: 0 | G45: 0
B46: 2011-02-07 | C46: 360 | E46: 0 | F46: 360 | G46: 205
B47: 2011-02-08 | C47: 206 | E47: 2 | F47: 204 | G47: 124
B48: 2011-02-09 | C48: 242 | E48: 0 | F48: 242 | G48: 158
B49: 2011-02-10 | C49: 280 | E49: 0 | F49: 280 | G49: 210
B50: 2011-02-11 | C50: 297 | E50: 0 | F50: 297 | G50: 227
B51: 2011-02-12 | C51: 0 | E51: 0 | F51: 0 | G51: 0
B52: 2011-02-13 | C52: 0 | E52: 0 | F52: 0 | G52: 0
B53: 2011-02-14 | C53: 306 | E53: 0 | F53: 306 | G53: 286
B54: 2011-02-15 | C54: 287 | E54: 0 | F54: 287 | G54: 189
B55: 2011-02-16 | C55: 315 | E55: 0 | F55: 315 | G55: 193
B56: 2011-02-17 | C56: 392 | E56: 0 | F56: 392 | G56: 247
B57: 2011-02-18 | C57: 224 | E57: 0 | F57: 224 | G57: 150
B58: 2011-02-19 | C58: 0 | E58: 0 | F58: 0 | G58: 0
B59: 2011-02-20 | C59: 0 | E59: 0 | F59: 0 | G59: 0
B60: 2011-02-21 | C60: 338 | E60: 0 | F60: 338 | G60: 271
B61: 2011-02-22 | C61: 293 | E61: 0 | F61: 293 | G61: 181
B62: 2011-02-23 | C62: 287 | E62: 0 | F62: 287 | G62: 159
B63: 2011-02-24 | C63: 266 | E63: 0 | F63: 266 | G63: 100
B64: 2011-02-25 | C64: 307 | E64: 0 | F64: 307 | G64: 61
B65: 2011-02-26 | C65: 0 | E65: 0 | F65: 0 | G65: 0
B66: 2011-02-27 | C66: 0 | E66: 0 | F66: 0 | G66: 0
B67: 2011-02-28 | C67: 337 | E67: 0 | F67: 337 | G67: 137
B68: 2011-03-01 | C68: 371 | E68: 1 | F68: 370 | G68: 133
B69: 2011-03-02 | C69: 285 | E69: 0 | F69: 285 | G69: 190
B70: 2011-03-03 | C70: 227 | E70: 0 | F70: 227 | G70: 154
B71: 2011-03-04 | C71: 249 | E71: 1 | F71: 248 | G71: 160
B72: 2011-03-05 | C72: 0 | E72: 0 | F72: 0 | G72: 0
B73: 2011-03-06 | C73: 0 | E73: 0 | F73: 0 | G73: 0
B74: 2011-03-07 | C74: 232 | E74: 0 | F74: 232 | G74: 197
B75: 2011-03-08 | C75: 275 | E75: 0 | F75: 275 | G75: 216
B76: 2011-03-09 | C76: 267 | E76: 0 | F76: 267 | G76: 136
B77: 2011-03-10 | C77: 185 | E77: 0 | F77: 185 | G77: 166
B78: 2011-03-11 | C78: 186 | E78: 0 | F78: 186 | G78: 121
B79: 2011-03-12 | C79: 0 | E79: 0 | F79: 0 | G79: 0
B80: =B79+1 -> 2011-03-13 | C80: 0 | E80: 0 | F80: 0 | G80: 0
B81: 2011-03-14 | C81: 0 | E81: 0 | F81: 0 | G81: 0
B82: 2011-03-15 | C82: 250 | E82: 1 | F82: 249 | G82: 205
B83: 2011-03-16 | C83: 194 | E83: 0 | F83: 194 | G83: 142
B84: 2011-03-17 | C84: 257 | E84: 1 | F84: 256 | G84: 162
B85: 2011-03-18 | C85: 235 | E85: 0 | F85: 235 | G85: 198
B86: 2011-03-19 | C86: 0 | E86: 0 | F86: 0 | G86: 0
B87: 2011-03-20 | C87: 0 | E87: 0 | F87: 0 | G87: 0
B88: 2011-03-21 | C88: 253 | E88: 0 | F88: 253 | G88: 202
B89: 2011-03-22 | C89: 520 | E89: 0 | F89: 520 | G89: 359
B90: 2011-03-23 | C90: 1442 | E90: 0 | F90: 1442 | G90: 681
B91: 2011-03-24 | C91: 571 | E91: 2 | F91: 569 | G91: 415
B92: 2011-03-25 | C92: 256 | E92: 0 | F92: 256 | G92: 144
B93: 2011-03-26 | C93: 0 | E93: 0 | F93: =C93-D93-E93 -> 0 | G93: 0
B94: 2011-03-27 | C94: 0 | E94: 0 | F94: 0 | G94: 0
B95: 2011-03-28 | C95: 305 | E95: 2 | F95: 303 | G95: 283
B96: 2011-03-29 | C96: 294 | E96: 0 | F96: 294 | G96: 219
B97: 2011-03-30 | C97: 324 | E97: 0 | F97: 324 | G97: 235
B98: 2011-03-31 | C98: 293 | E98: 0 | F98: 293 | G98: 269
B99: 2011-04-01 | C99: 234 | E99: 2 | F99: 232 | G99: 215
B100: 2011-04-02 | C100: 0 | E100: 0 | F100: 0 | G100: 0
B101: 2011-04-03 | C101: 0 | E101: 0 | F101: 0 | G101: 0
B102: 2011-04-04 | C102: 267 | E102: 0 | F102: 267 | G102: 211
B103: 2011-04-05 | C103: 258 | E103: 0 | F103: 258 | G103: 181
B104: 2011-04-06 | C104: 206 | E104: 0 | F104: 206 | G104: 184
B105: 2011-04-07 | C105: 219 | E105: 0 | F105: 219 | G105: 202
B106: 2011-04-08 | C106: 221 | E106: 0 | F106: 221 | G106: 141
B107: 2011-04-09 | C107: 0 | E107: 0 | F107: 0 | G107: 0
B108: 2011-04-10 | C108: 0 | E108: 0 | F108: 0 | G108: 0
B109: 2011-04-11 | C109: 296 | E109: 0 | F109: 296 | G109: 229
B110: 2011-04-12 | C110: 572 | E110: 0 | F110: 572 | G110: 323
B111: 2011-04-13 | C111: 304 | E111: 0 | F111: 304 | G111: 241
B112: 2011-04-14 | C112: 231 | E112: 0 | F112: 231 | G112: 194
B113: 2011-04-15 | C113: 220 | E113: 0 | F113: 220 | G113: 208
B114: 2011-04-16 | C114: 0 | E114: 0 | F114: 0 | G114: 0
B115: 2011-04-17 | C115: 0 | E115: 0 | F115: 0 | G115: 0
B116: 2011-04-18 | C116: 233 | E116: 0 | F116: 233 | G116: 200
B117: 2011-04-19 | C117: 196 | E117: 0 | F117: 196 | G117: 153
B118: 2011-04-20 | C118: 222 | E118: 0 | F118: 222 | G118: 150
B119: 2011-04-21 | C119: 241 | E119: 1 | F119: 240 | G119: 147
B120: 2011-04-22 | C120: 0 | E120: 0 | F120: 0 | G120: 0
B121: 2011-04-23 | C121: 0 | E121: 0 | F121: 0 | G121: 0
B122: 2011-04-24 | C122: 0 | E122: 0 | F122: 0 | G122: 0
B123: 2011-04-25 | C123: 0 | E123: 0 | F123: 0 | G123: 0
B124: 2011-04-26 | C124: 0 | E124: 0 | F124: 0 | G124: 0
B125: 2011-04-27 | C125: 281 | E125: 0 | F125: 281 | G125: 75
B126: 2011-04-28 | C126: 211 | E126: 1 | F126: 210 | G126: 107
B127: 2011-04-29 | C127: 277 | E127: 0 | F127: 277 | G127: 105
B128: 2011-04-30 | C128: 0 | E128: 0 | F128: 0 | G128: 0
B129: 2011-05-01 | C129: 0 | E129: 0 | F129: 0 | G129: 0
B130: 2011-05-02 | C130: 233 | E130: 0 | F130: 233 | G130: 168
B131: 2011-05-03 | C131: 283 | E131: 0 | F131: 283 | G131: 188
B132: 2011-05-04 | C132: 515 | E132: 2 | F132: 513 | G132: 232
B133: 2011-05-05 | C133: 284 | E133: 0 | F133: 284 | G133: 223
B134: 2011-05-06 | C134: 260 | E134: 3 | F134: 257 | G134: 224
B135: 2011-05-07 | C135: 0 | E135: 0 | F135: 0 | G135: 0
B136: 2011-05-08 | C136: 0 | E136: 0 | F136: 0 | G136: 0
B137: 2011-05-09 | C137: 231 | E137: 0 | F137: 231 | G137: 108
B138: 2011-05-10 | C138: 255 | E138: 0 | F138: 255 | G138: 230
B139: 2011-05-11 | C139: 266 | E139: 0 | F139: 266 | G139: 210
B140: 2011-05-12 | C140: 301 | E140: 0 | F140: 301 | G140: 185
B141: 2011-05-13 | C141: 212 | E141: 1 | F141: 211 | G141: 164
B142: 2011-05-14 | C142: 0 | E142: 0 | F142: 0 | G142: 0
B143: 2011-05-15 | C143: 0 | E143: 0 | F143: 0 | G143: 0
B144: =B143+1 -> 2011-05-16 | C144: 273 | E144: 0 | F144: 273 | G144: 115
B145: 2011-05-17 | C145: 303 | E145: 1 | F145: 302 | G145: 196
B146: 2011-05-18 | C146: 188 | E146: 0 | F146: 188 | G146: 93
B147: 2011-05-19 | C147: 194 | E147: 0 | F147: 194 | G147: 128
B148: 2011-05-20 | C148: 199 | E148: 3 | F148: 196 | G148: 177
B149: 2011-05-21 | C149: 0 | E149: 0 | F149: 0 | G149: 0
B150: 2011-05-22 | C150: 0 | E150: 0 | F150: 0 | G150: 0
B151: 2011-05-23 | C151: 258 | E151: 0 | F151: 258 | G151: 168
B152: 2011-05-24 | C152: 217 | E152: 0 | F152: 217 | G152: 142
B153: 2011-05-25 | C153: 204 | E153: 0 | F153: 204 | G153: 147
B154: 2011-05-26 | C154: 199 | E154: 0 | F154: 199 | G154: 144
B155: 2011-05-27 | C155: 225 | E155: 0 | F155: 225 | G155: 142
B156: 2011-05-28 | C156: 0 | E156: 0 | F156: 0 | G156: 0
B157: 2011-05-29 | C157: 0 | E157: 0 | F157: =C157-D157-E157 -> 0 | G157: 0
B158: 2011-05-30 | C158: 342 | E158: 1 | F158: 341 | G158: 67
B159: 2011-05-31 | C159: 225 | E159: 0 | F159: 225 | G159: 77
B160: 2011-06-01 | C160: 257 | E160: 3 | F160: 254 | G160: 104
B161: 2011-06-02 | C161: 215 | E161: 0 | F161: 215 | G161: 128
B162: 2011-06-03 | C162: 201 | E162: 0 | F162: 201 | G162: 63
B163: 2011-06-04 | C163: 0 | E163: 0 | F163: 0 | G163: 0
B164: 2011-06-05 | C164: 0 | E164: 0 | F164: 0 | G164: 0
B165: 2011-06-06 | C165: 283 | E165: 1 | F165: 282 | G165: 67
B166: 2011-06-07 | C166: 395 | E166: 0 | F166: 395 | G166: 134
B167: 2011-06-08 | C167: 1193 | E167: 0 | F167: 1193 | G167: 291
B168: 2011-06-09 | C168: 598 | E168: 0 | F168: 598 | G168: 185
B169: 2011-06-10 | C169: 310 | E169: 0 | F169: 310 | G169: 114
B170: 2011-06-11 | C170: 0 | E170: 0 | F170: 0 | G170: 0
B171: 2011-06-12 | C171: 0 | E171: 0 | F171: 0 | G171: 0
B172: 2011-06-13 | C172: 0 | E172: 0 | F172: 0 | G172: 0
B173: 2011-06-14 | C173: 372 | E173: 0 | F173: 372 | G173: 212
B174: 2011-06-15 | C174: 303 | E174: 1 | F174: 302 | G174: 227
B175: 2011-06-16 | C175: 284 | E175: 0 | F175: 284 | G175: 140
B176: 2011-06-17 | C176: 310 | E176: 0 | F176: 310 | G176: 156
B177: 2011-06-18 | C177: 0 | E177: 0 | F177: 0 | G177: 0
B178: 2011-06-19 | C178: 0 | E178: 0 | F178: 0 | G178: 0
B179: 2011-06-20 | C179: 670 | E179: 4 | F179: 666 | G179: 129
B180: 2011-06-21 | C180: 511 | E180: 0 | F180: 511 | G180: 133
B181: 2011-06-22 | C181: 230 | E181: 1 | F181: 229 | G181: 94
B182: 2011-06-23 | C182: 253 | E182: 0 | F182: 253 | G182: 145
B183: 2011-06-24 | C183: 224 | E183: 0 | F183: 224 | G183: 153
B184: 2011-06-25 | C184: 0 | E184: 0 | F184: 0 | G184: 0
B185: 2011-06-26 | C185: 0 | E185: 0 | F185: 0 | G185: 0
B186: 2011-06-27 | C186: 242 | E186: 0 | F186: 242 | G186: 72
B187: 2011-06-28 | C187: 229 | E187: 0 | F187: 229 | G187: 31
B188: 2011-06-29 | C188: 276 | E188: 1 | F188: 275 | G188: 108
B189: 2011-06-30 | C189: 178 | E189: 0 | F189: 178 | G189: 89
B190: 2011-07-01 | C190: 220 | E190: 0 | F190: 220 | G190: 103
B191: 2011-07-02 | C191: 0 | E191: 0 | F191: 0 | G191: 0
B192: 2011-07-03 | C192: 0 | E192: 0 | F192: 0 | G192: 0
B193: 2011-07-04 | C193: 522 | E193: 0 | F193: 522 | G193: 263
B194: 2011-07-05 | C194: 422 | E194: 0 | F194: 422 | G194: 302
B195: 2011-07-06 | C195: 268 | E195: 0 | F195: 268 | G195: 169
B196: 2011-07-07 | C196: 306 | E196: 1 | F196: 305 | G196: 182
B197: 2011-07-08 | C197: 520 | E197: 0 | F197: 520 | G197: 263
B198: 2011-07-09 | C198: 0 | E198: 0 | F198: 0 | G198: 0
B199: 2011-07-10 | C199: 0 | E199: 0 | F199: 0 | G199: 0
B200: 2011-07-11 | C200: 600 | E200: 0 | F200: 600 | G200: 250
B201: 2011-07-12 | C201: 599 | E201: 0 | F201: 599 | G201: 366
B202: 2011-07-13 | C202: 296 | E202: 0 | F202: 296 | G202: 200
... 1632 more rows

Sheet 6.2 Reliability & Cust serv
B1: =SheetHeader -> REGULATORY REPORTING STATEMENT
B2: =dms_TradingName -> TasNetworks (D)
B3: =dms_Reg_Year_Span -> 2017-18 to 2018-19
B4: 6.2 RELIABILITY AND CUSTOMER SERVICE PERFORMANCE
B6: Instructions
B7: This regulatory template requires the input of performance Historicals and proposed targets for the forthcoming regulatory control period under the STPIS.
B8: =CONCATENATE("Performance targets for some parameters may cross feeder classifications in tables 6.2.1, 6.2.2 and 6.2.3. However, where a single target for the whole network is prescribed, this should be entered in the ""whole network (system)"" cell. ",dms_TradingName," must define each of the parameters which apply to it. If common definitions exist for the parameter, please attach a reference to the definition.") -> Performance targets for some parameters may cross feeder classifications in tables 6.2.1, 6.2.2 and 6.2.3. However, where a single target for the whole network is prescribed, this should be entered in the "whole network (system)" cell. TasNetworks (D) must define each of the parameters which apply to it. If common definitions exist for the parameter, please attach a reference to the definition.
B9: =CONCATENATE(dms_TradingName," should insert ""n/a"" against parameters which do not apply to it. Do not delete inapplicable fields.") -> TasNetworks (D) should insert "n/a" against parameters which do not apply to it. Do not delete inapplicable fields.
B10: =CONCATENATE("If parts of this template are unsuitable to record any of the requested information ",dms_TradingName," must provide this information in an alternative format, within it's accompanying regulatory proposal and indicate the section of the regulatory proposal containing the information in the 'addressed at chapter/section of regulatory proposal' column.") -> If parts of this template are unsuitable to record any of the requested information TasNetworks (D) must provide this information in an alternative format, within it's accompanying regulatory proposal and indicate the section of the regulatory proposal containing the information in the 'addressed at chapter/section of regulatory proposal' column.
B11: =CONCATENATE(dms_TradingName," must provide detail of historical unplanned minutes off supply, unplanned interruptions, momentary interruptions, customer numbers "&"and customer service in accordance with tables 6.2.1, 6.2.2, 6.2.4 and 6.2.5. "&"Table 6.2.3 is not compulsory - those businesses who want to "&" include MAIFI in the s-factor calcuation may make such a proposal and submit the relevant MAIFI information "&"necessary to establish the MAIFI targets, including the estimated performance for 2015.") -> TasNetworks (D) must provide detail of historical unplanned minutes off supply, unplanned interruptions, momentary interruptions, customer numbers and customer service in accordance with tables 6.2.1, 6.2.2, 6.2.4 and 6.2.5. Table 6.2.3 is not compulsory - those businesses who want to include MAIFI in the s-factor calcuation may make such a proposal and submit the relevant MAIFI information necessary to establish the MAIFI targets, including the estimated performance for 2015.
B12: Definitions of parameters under the AER's STPIS apply. Where exclusions apply, data provided below must exclude all events outlined under clause 3.3 of the AER's STPIS.
B14: TABLE 6.2.1 - UNPLANNED MINUTES OFF SUPPLY (SAIDI) - Historical, target and proposed reliability
D15: Historical | I15: Target | J15: Proposed target
B16: SAIDI | D16: =PRCP_y5 -> 2011-12 | E16: =CRCP_y1 -> 2012-13 | F16: =CRCP_y2 -> 2013-14 | G16: =CRCP_y3 -> 2014-15 | H16: =CRCP_y4 -> 2015-16 | I16: =CRCP_y5 -> 2016-17 | J16: =FRCP_y1 -> 2017-18 | K16: =FRCP_y2 -> 2018-19 | L16: =FRCP_y3 -> 2019-20 | M16: =FRCP_y4 -> 2020-21 | N16: =FRCP_y5 -> 2021-22
B17: Total sustained minutes off supply | C17: Critical Infrastructure | I17: 14.09545252
C18: High density commercial | I18: 39.02593703
C19: Urban | I19: 127.0191153
C20: High density rural | I20: 633.0410039
C21: Low density rural | I21: 832.7207972
C22: Total | D22: =IFERROR((D17*(D$88/D$93))+(D18*(D$89/D$93))+(D19*(D$90/D$93))+(D20*(D$91/D$93))+(D21*(D$92/D$93)),"") ->  | E22: =IFERROR((E17*(E$88/E$93))+(E18*(E$89/E$93))+(E19*(E$90/E$93))+(E20*(E$91/E$93))+(E21*(E$92/E$93)),"") -> 
B23: Total value of excluded events* *see 3.3 of STPIS | C23: Critical Infrastructure | I23: 2.503531098
C24: High density commercial | I24: 10.86233023
C25: Urban | I25: 46.03014521
C26: High density rural | I26: 389.134886
C27: Lower density rural | I27: 415.4713351
C28: Total | D28: =IFERROR((D23*(D$88/D$93))+(D24*(D$89/D$93))+(D25*(D$90/D$93))+(D26*(D$91/D$93)+(D27*(D$92/D$93))),"") ->  | E28: =IFERROR((E23*(E$88/E$93))+(E24*(E$89/E$93))+(E25*(E$90/E$93))+(E26*(E$91/E$93)+(E27*(E$92/E$93))),"") -> 
B29: Total sustained minutes off supply after removing excluded events | C29: Critical Infrastructure | I29: 11.59192142 | J29: 23.89968841 | K29: 23.89968841
C30: High density commercial | I30: 28.1636068 | J30: 26.067644 | K30: 26.067644
C31: Urban and regional centres | I31: 80.98897007 | J31: 82.58934419 | K31: 82.58934419
C32: High density rural | I32: 243.906118 | J32: 242.0146513 | K32: 242.0146513
C33: Lower density rural | I33: 417.2494621 | J33: 430.0871975 | K33: 430.0871975
C34: Total | D34: =IFERROR(D22-D28,"") ->  | E34: =IFERROR(E22-E28,"") ->  | F34: =IFERROR(F22-F28,"") -> 
B37: TABLE 6.2.2 - UNPLANNED INTERRUPTIONS TO SUPPLY (SAIFI) - Historical,taget and proposed reliability
D38: Historical | I38: Target | J38: Proposed target
B39: SAIFI | D39: =PRCP_y5 -> 2011-12 | E39: =CRCP_y1 -> 2012-13 | F39: =CRCP_y2 -> 2013-14 | G39: =CRCP_y3 -> 2014-15 | H39: =CRCP_y4 -> 2015-16 | I39: =CRCP_y5 -> 2016-17 | J39: =FRCP_y1 -> 2017-18 | K39: =FRCP_y2 -> 2018-19 | L39: =FRCP_y3 -> 2019-20 | M39: =FRCP_y4 -> 2020-21 | N39: =FRCP_y5 -> 2021-22
B40: Total sustained customer interruptions | C40: Critical Infrastructure | I40: 0.1757169982
C41: High density commercial | I41: 0.3508099145
C42: Urban | I42: 1.211763201
C43: High density rural | I43: 3.166469813
C44: Lower density rural | I44: 4.490070351
C45: Total | D45: =IFERROR((D40*(D$88/D$93))+(D41*(D$89/D$93))+(D42*(D$90/D$93))+(D43*(D$91/D$93))+(D44*(D$92/D$93)),"") ->  | E45: =IFERROR((E40*(E$88/E$93))+(E41*(E$89/E$93))+(E42*(E$90/E$93))+(E43*(E$91/E$93))+(E44*(E$92/E$93)),"") -> 
B46: Total value of excluded events* *see 3.3 of STPIS | C46: Critical Infrastructure | I46: 0.01227897791
C47: High density commercial | I47: 0.05467669341
C48: Urban | I48: 0.2548504308
C49: High density rural | I49: 0.7295175581
C50: Lower density rural | I50: 1.017336772
C51: Total | D51: =IFERROR((D46*(D$88/D$93))+(D47*(D$89/D$93))+(D48*(D$90/D$93))+(D49*(D$91/D$93))+(D50*(D$92/D$93)),"") ->  | E51: =IFERROR((E46*(E$88/E$93))+(E47*(E$89/E$93))+(E48*(E$90/E$93))+(E49*(E$91/E$93))+(E50*(E$92/E$93)),"") -> 
B52: Total sustained customer interruptions after removing excluded events | C52: Critical Infrastructure | I52: 0.1634380202 | J52: 0.2928466804 | K52: 0.2928466804
C53: High density commercial | I53: 0.2961332211 | J53: 0.3030216772 | K53: 0.3030216772
C54: Urban | I54: 0.9569127701 | J54: 1.026720794 | K54: 1.026720794
C55: High density rural | I55: 2.436952255 | J55: 2.548275436 | K55: 2.548275436
C56: Lower density rural | I56: 3.472733579 | J56: 3.377705118 | K56: 3.377705118
C57: Total | D57: =IFERROR(D45-D51,"") ->  | E57: =IFERROR(E45-E51,"") ->  | F57: =IFERROR(F45-F51,"") -> 
B60: Table 6.2.3 - UNPLANNED MOMENTARY INTERRUPTIONS TO SUPPLY (MAIFI) - Historical, target and proposed reliability
D61: Historical | H61: Forecast
B62: MAIFI | D62: =PRCP_y5 -> 2011-12 | E62: =CRCP_y1 -> 2012-13 | F62: =CRCP_y2 -> 2013-14 | G62: =CRCP_y3 -> 2014-15 | H62: =CRCP_y4 -> 2015-16 | I62: =CRCP_y5 -> 2016-17 | J62: =FRCP_y1 -> 2017-18 | K62: =FRCP_y2 -> 2018-19 | L62: =FRCP_y3 -> 2019-20 | M62: =FRCP_y4 -> 2020-21 | N62: =FRCP_y5 -> 2021-22
B63: Total sustained customer interruptions | C63: Critical Infrastructure
C64: High density commercial
C65: Urban
C66: High density rural
C67: Lower density rural
C68: Total | D68: =SUM(D63:D67) -> 0 | E68: =SUM(E63:E67) -> 0 | F68: 0 | G68: 0 | H68: 0 | I68: 0 | J68: 0 | K68: 0 | L68: 0 | M68: 0 | N68: 0
B69: Total value of excluded events* *see 3.3 of STPIS | C69: Critical Infrastructure
C70: High density commercial
C71: Urban
C72: High density rural
C73: Lower density rural
C74: Total | D74: =SUM(D69:D73) -> 0 | E74: =SUM(E69:E73) -> 0 | F74: 0 | G74: 0 | H74: 0 | I74: 0 | J74: 0 | K74: 0 | L74: 0 | M74: 0 | N74: 0
B75: Total sustained customer interruptions after removing excluded events | C75: Critical Infrastructure
C76: High density commercial
C77: Urban
C78: High density rural
C79: Lower density rural
C80: Total | D80: =SUM(D75:D79) -> 0 | E80: =SUM(E75:E79) -> 0 | F80: =SUM(F75:F79) -> 0 | G80: =SUM(G75:G79) -> 0 | H80: =SUM(H75:H79) -> 0 | I80: =SUM(I75:I79) -> 0 | J80: =SUM(J75:J79) -> 0 | K80: =SUM(K75:K79) -> 0 | L80: =SUM(L75:L79) -> 0 | M80: =SUM(M75:M79) -> 0 | N80: =SUM(N75:N79) -> 0
B83: TABLE 6.2.4 - CUSTOMER NUMBERS
B84: The number of distribution customers is calculated as the average of the number of customers at the beginning of the reporting period and the number of customers at the end of the reporting period.
D86: Historical | H86: Forecast
B87: Average customer numbers | D87: =PRCP_y5 -> 2011-12 | E87: =CRCP_y1 -> 2012-13 | F87: =CRCP_y2 -> 2013-14 | G87: =CRCP_y3 -> 2014-15 | H87: =CRCP_y4 -> 2015-16 | I87: =CRCP_y5 -> 2016-17 | J87: =FRCP_y1 -> 2017-18 | K87: =FRCP_y2 -> 2018-19 | L87: =FRCP_y3 -> 2019-20 | M87: =FRCP_y4 -> 2020-21 | N87: =FRCP_y5 -> 2021-22
C88: Critical Infrastructure;
C89: High density commercial
C90: Urban
C91: High density rural
C92: Lower density rural
C93: Total | D93: =SUM(D88:D92) -> 0 | E93: =SUM(E88:E92) -> 0 | F93: 0 | G93: 0 | H93: 0 | I93: 0 | J93: 0 | K93: 0 | L93: 0 | M93: 0 | N93: 0
B95: TABLE 6.2.5 - CUSTOMER SERVICE
B96: The AER's definition of calls answered within 30 seconds is as follows: Calls to the fault line answered in 30 seconds where the time to answer a call is measured from when the call enters the telephone system of the call centre (including that time when it may be ringing unanswered by any response) and the caller speaks with a human operator, but excluding the time that the caller is connected to an automated interactive service that provides substantive information. This measure does not apply to: - calls to payment lines and automated interactive services; - calls abandoned by the customer within 30 seconds of the call being queued for response by a human operator. Where the time in which a telephone call is abandoned is not measured, then an estimate of the number of calls abandoned within 30 seconds will be determined by taking 20 per cent of all calls abandoned. Note: Being placed in a queuing system (automated or otherwise) does not constitute a response. 'Calls answered within 30 seconds' and 'Calls received' should be calculated excluding calls abandoned within 30 seconds of being queued for a human operator; and calls to payment lines and automated interactive services.
D98: Historical | I98: Target | J98: Proposed target
B99: Customer service | D99: =PRCP_y5 -> 2011-12 | E99: =CRCP_y1 -> 2012-13 | F99: =CRCP_y2 -> 2013-14 | G99: =CRCP_y3 -> 2014-15 | H99: =CRCP_y4 -> 2015-16 | I99: =CRCP_y5 -> 2016-17 | J99: =FRCP_y1 -> 2017-18 | K99: =FRCP_y2 -> 2018-19 | L99: =FRCP_y3 -> 2019-20 | M99: =FRCP_y4 -> 2020-21 | N99: =FRCP_y5 -> 2021-22
B100: Number of calls received | I100: 67600 | J100: 67600 | K100: 67600
B101: Number of calls answered within 30 seconds | I101: 51400 | J101: 51400 | K101: 51400
B102: Percentage of calls answered within 30 seconds | D102: =IFERROR((D101/D100),"") ->  | E102: =IFERROR((E101/E100),"") ->  | F102: =IFERROR((F101/F100),"") ->  | I102: 0.7603550296 | J102: 0.7603550296 | K102: 0.7603550296

Sheet 7.1 Policies and Procedures
B1: =SheetHeader -> REGULATORY REPORTING STATEMENT
B2: =dms_TradingName -> TasNetworks (D)
B3: =dms_Reg_Year_Span -> 2017-18 to 2018-19
B4: 7.1 PLANS, POLICIES, PROCEDURES AND STRATEGIES
B6: Instructions
B7: List and provide a brief description of key internal plans, policies, procedures or strategies that are used to plan and conduct day to day operations and that have been relied upon in the development of the regulatory proposal. Identify any internal plans, policies, procedures and strategies that have changed in the current regulatory control period or that are expected to change before the next regulatory control period where the change has been identified as a step change.
B11: TABLE 7.1.1 - PLANS, POLICIES, PROCEDURES AND STRATEGIES
C13: Brief description | D13: Relevance to regulatory proposal | E13: Expenditure impact
C14: Description of the plan, policy, procedure or strategy. | D14: Identify the element of the proposal/supporting documents that the policy, plan, procedure or strategy is relevant to e.g. replacement capex, capacity utilisation thresholds, opex | E14: Is this policy, plan or procedure identified in the response to section 4 'Step Changes' of the notice (yes or no)?
B15: Corporate
B16: See attachments to the Regulatory Proposal
B19: Governance framework
B20: See attachments to the Regulatory Proposal
B37: Accounting policies, procedures and methodologies (including a capitalisation policy, depreciation policy and an approved expenditure allocation methodology)
B38: See attachments to the Regulatory Proposal
B41: Asset management plan or equivalent documentation
B42: Asset Management Policies
B43: See attachments to the Regulatory Proposal
B45: Asset Management Strategies
B46: See attachments to the Regulatory Proposal
B50: Asset Management Plans
B51: See attachments to the Regulatory Proposal
B74: Capital expenditure policies and procedures (including capex approval policies and procedures and replacement policy)
B75: See attachments to the Regulatory Proposal
B76: Internal standards for network planning, design, maintenance and operation
B77: See attachments to the Regulatory Proposal
B156: Procurement and contracting out policies
B157: See attachments to the Regulatory Proposal
B158: Information technology policies or strategies
B159: See attachments to the Regulatory Proposal
B195: Demand management policies or strategies
B196: See attachments to the Regulatory Proposal
B199: Self insurance guidelines or policy
B200: See attachments to the Regulatory Proposal
B201: Land and easement acquisition polices
B202: See attachments to the Regulatory Proposal
B205: Asset security plans and policies
B206: <insert relevant policy, plan, strategy etc>
B207: See attachments to the Regulatory Proposal
B217: Disaster recovery policy
B218: See attachments to the Regulatory Proposal

Sheet 7.2 Contingent projects
B1: =SheetHeader -> REGULATORY REPORTING STATEMENT
B2: =dms_TradingName -> TasNetworks (D)
B3: =dms_Reg_Year_Span -> 2017-18 to 2018-19
B4: 7.2 CONTINGENT PROJECTS
B6: TABLE 7.2.1 - PROPOSED CONTINGENT PROJECTS FOR THE FORTHCOMING REGULATORY CONTROL PERIOD
B8: Proposed contingent project name | C8: Proposed contingent capital expenditure ($0's, nominal) | D8: Proposed trigger events | E8: =CONCATENATE("Proposed annual revenue requirement for ", FRCP_y1, " ($0's, nominal)") -> Proposed annual revenue requirement for 2017-18 ($0's, nominal) | F8: =CONCATENATE("5% of the annual revenue requirement for ",FRCP_y1,"") -> 5% of the annual revenue requirement for 2017-18
F9: =+E9*0.05 -> 0
E10: =+$E$9 -> 0 | F10: =+E10*0.05 -> 0
E11: =+$E$9 -> 0 | F11: 0
E12: 0 | F12: 0
E13: 0 | F13: 0
E14: 0 | F14: 0
E15: 0 | F15: 0
E16: 0 | F16: 0
E17: 0 | F17: 0
E18: 0 | F18: 0
E19: 0 | F19: 0
E20: 0 | F20: 0
E21: 0 | F21: 0
E22: 0 | F22: 0
E23: 0 | F23: 0
E24: 0 | F24: 0
E25: 0 | F25: 0
E26: 0 | F26: 0
E27: 0 | F27: 0
E28: 0 | F28: 0
E29: 0 | F29: 0
E30: 0 | F30: 0
E31: 0 | F31: 0
E32: 0 | F32: 0
E33: 0 | F33: 0
E34: 0 | F34: 0
E35: 0 | F35: 0
E36: 0 | F36: 0
E37: 0 | F37: 0
E38: 0 | F38: 0
E39: 0 | F39: 0
E40: 0 | F40: 0
E41: 0 | F41: 0
E42: 0 | F42: 0
E43: 0 | F43: 0
E44: 0 | F44: 0
E45: 0 | F45: 0
E46: 0 | F46: 0

Sheet 7.3 Obligations
B1: =SheetHeader -> REGULATORY REPORTING STATEMENT
B2: =dms_TradingName -> TasNetworks (D)
B3: =dms_Reg_Year_Span -> 2017-18 to 2018-19
B4: 7.3 OBLIGATIONS, REQUIREMENTS & STANDARDS
B6: Instructions
B7: Outline those obligations and requirements that have been relied upon in the development of the regulatory proposal.
B11: TABLE 7.3.1 - OBLIGATIONS OR REQUIREMENTS
C12: Brief description | D12: Relevance to regulatory proposal | E12: Expenditure impact | F12: EE Additional Data (not required by the AER)
C13: Description of relevant obligations or requirements within the instrument (e.g. safety obligations, reliability targets) | D13: Identify what element of the proposal/supporting documents the obligation or requirement is relevant to e.g. replacement capex, capacity utilisation thresholds, opex | E13: Is the obligation or requirement identified in the response to section 4 'Step Changes' of the notice (yes or no)? | F13: Location (cut and paste location into browser)
B14: Legislation
B15: See Asset Management Plans
B226: Licences
B227: See Asset Management Plans
B231: Rules
B232: See Asset Management Plans
B236: Orders
B237: See Asset Management Plans
B238: Codes
B239: See Asset Management Plans
B254: Guidelines
B255: See Asset Management Plans
B293: Default agreements
B295: Other
B296: See Asset Management Plans

Sheet 7.4 Shared Assets
B1: =SheetHeader -> REGULATORY REPORTING STATEMENT
B2: =dms_TradingName -> TasNetworks (D)
B3: =dms_Reg_Year_Span -> 2017-18 to 2018-19
B4: 7.4 SHARED ASSETS
B6: TABLE 7.4.1 - TOTAL UNREGULATED REVENUE EARNED WITH SHARED ASSETS
B7: Name of shared asset unregulated service | C7: Description of shared assets used to provide the service | D7: Shared asset unregulated revenue ($0's, nominal) | M7: =CONCATENATE("Shared asset unregulated revenue ($0's, real ", dms_DollarReal,")") -> Shared asset unregulated revenue ($0's, real June 2017)
D8: =PRCP_y1 -> 2007-08 | E8: =PRCP_y2 -> 2008-09 | F8: =PRCP_y3 -> 2009-10 | G8: =PRCP_y4 -> 2010-11 | H8: =PRCP_y5 -> 2011-12 | I8: =CRCP_y1 -> 2012-13 | J8: =CRCP_y2 -> 2013-14 | K8: =CRCP_y3 -> 2014-15 | L8: =CRCP_y4 -> 2015-16 | M8: =CRCP_y4 -> 2015-16 | N8: TOTAL | O8: =CRCP_y5 -> 2016-17 | P8: =FRCP_y1 -> 2017-18 | Q8: =FRCP_y2 -> 2018-19 | R8: =FRCP_y3 -> 2019-20 | S8: =FRCP_y4 -> 2020-21 | T8: =FRCP_y5 -> 2021-22 | U8: =CONCATENATE("Total ",CRCP_y5, " to ", dms_FRCP_FinalYear_Num) -> Total 2016-17 to 2018-19
B9: NBN Co Permit Charges as per FAA | C9: Distribution poles | I9: 245213 | J9: 361030 | K9: 533180 | L9: 601375 | M9: 624114 | N9: =SUM(D9:M9) -> 2364912 | O9: 624114 | P9: 624114 | Q9: 624114 | U9: =SUM(O9:T9) -> 1872342
N10: =SUM(D10:M10) -> 0 | U10: =SUM(O10:T10) -> 0
N11: 0 | U11: 0
N12: 0 | U12: 0
N13: 0 | U13: 0
N14: 0 | U14: 0
N15: 0 | U15: 0
N16: 0 | U16: 0
N17: 0 | U17: 0
N18: 0 | U18: 0
N19: 0 | U19: 0
N20: =SUM(D20:M20) -> 0 | U20: 0
N21: =SUM(D21:M21) -> 0 | U21: 0
N22: =SUM(D22:M22) -> 0 | U22: 0
N23: =SUM(D23:M23) -> 0 | U23: 0
B25: TABLE 7.4.2 - SHARED ASSET UNREGULATED SERVICES - APPORTIONMENT METHODOLOGY
B26: Name of shared asset unregulated service for which revenues were apportioned | C26: Apportionment methodology
B28: NBN Co Permit Charges as per FAA | C28: None - income was directly invoiced.

Sheet 7.5 EBSS
B1: REGULATORY REPORTING STATEMENT
B2: =dms_TradingName -> TasNetworks (D)
B3: =dms_Reg_Year_Span -> 2017-18 to 2018-19
B4: 7.5 EBSS
B6: Intstructions
B7: =CONCATENATE(dms_TradingName," is required to populate all input cells (yellow) in table 7.5.1 presented below. Efficiency gains are calculated using the formulae below. Adjusted target and actual amounts are used to calculate the carry-over amounts.") -> TasNetworks (D) is required to populate all input cells (yellow) in table 7.5.1 presented below. Efficiency gains are calculated using the formulae below. Adjusted target and actual amounts are used to calculate the carry-over amounts.
B8: For the first application of the scheme, the efficiency carry forward amount for the first year of the regulatory period is expressed mathematically as: E1 = F1 – A1 where A1 is the actual operating cost for year 1 and F1 is the regulatory target operating cost for that year. For savings that arose in the second to fifth year of the regulatory period, the efficiency carry forward amount is calculated as: Et = (Ft – At) – (Ft-1 – At-1), where: Et is the efficiency benefit/loss in year t; At, At-1 is the actual operating cost for the years t and t-1 respectively; and Ft, Ft-1 is the forecast operating cost for the years t and t-1 respectively Because the revenue determination will occur prior to the completion of the current period, opex for the final year will be estimated as follows: A5 = F5 – (F4 – A4)
B12: Actual and estimated inflation
C13: Actual | M13: Estimated
C14: =IF(dms_RPT="financial",VALUE(LEFT(D14,4)-1)&"-"&TEXT(VALUE(MID(D14,3,2)),"0#"),VALUE(LEFT(D14,4)+1)) -> 2005-06 | D14: =IF(dms_RPT="financial",VALUE(LEFT(E14,4)-1)&"-"&TEXT(VALUE(MID(E14,3,2)),"0#"),VALUE(LEFT(E14,4)+1)) -> 2006-07 | E14: =PRCP_y1 -> 2007-08 | F14: =PRCP_y2 -> 2008-09 | G14: =PRCP_y3 -> 2009-10 | H14: =PRCP_y4 -> 2010-11 | I14: =PRCP_y5 -> 2011-12 | J14: =CRCP_y1 -> 2012-13 | K14: =CRCP_y2 -> 2013-14 | L14: =CRCP_y3 -> 2014-15 | M14: =CRCP_y4 -> 2015-16 | N14: =CRCP_y5 -> 2016-17
B15: ABS CPI index - September (old base) | D15: 155.7 | E15: 158.6 | F15: 166.5 | G15: 168.6 | H15: 173.3 | I15: 179.4
B16: ABS CPI index - September (rebased index in Sep 2012), | I16: 99.8 | J16: 101.8 | K16: 104 | L16: 106.4 | M16: =L16*(1+0.025) -> 109.06 | N16: =M16*(1+0.025) -> 111.7865
B17: Inflation rate (per cent) | E17: =E15/D15-1 -> 0.01862556198 | F17: 0.04981084489 | G17: 0.01261261261 | H17: 0.02787663108 | I17: 0.03519907675 | J17: =+J16/I16-1 -> 0.02004008016 | K17: =+K16/J16-1 -> 0.02161100196 | L17: 0.02307692308 | M17: 0.025 | N17: 0.025
B18: =CONCATENATE("Reconstructed cumulative index (",CRCP_y5,"=1)") -> Reconstructed cumulative index (2016-17=1) | D18: =E18/(1+E17) -> 0.7748316573 | E18: =F18/(1+F17) -> 0.7892633324 | F18: 0.8285772058 | G18: 0.8390277291 | H18: 0.8624169956 | I18: 0.8927732776 | J18: 0.9106645257 | K18: 0.9303448985 | L18: 0.9518143962 | M18: 0.9756097561 | N18: 1
B22: TABLE 7.5.1 - The carryover amounts that arise from applying the EBSS during the 2012-13 to 2016-17 regulatory control period
B24: Table 7.5.1.1 - Opex allowance applicable to EBSS (EBSS target)
C25: =IF(dms_RPT="financial",("$m, real June "&(LEFT(PRCP_y5,2)&RIGHT(PRCP_y5,2))),("$m, real December "&(PRCP_y5))) -> $m, real June 2012 | K25: $m, real June 2017
C26: Previous period | E26: Current regulatory control period | K26: Previous period | M26: Current regulatory control period
C27: =PRCP_y4 -> 2010-11 | D27: =PRCP_y5 -> 2011-12 | E27: =CRCP_y1 -> 2012-13 | F27: =CRCP_y2 -> 2013-14 | G27: =CRCP_y3 -> 2014-15 | H27: =CRCP_y4 -> 2015-16 | I27: =CRCP_y5 -> 2016-17 | K27: =PRCP_y4 -> 2010-11 | L27: =PRCP_y5 -> 2011-12 | M27: =CRCP_y1 -> 2012-13 | N27: =CRCP_y2 -> 2013-14 | O27: =CRCP_y3 -> 2014-15 | P27: =CRCP_y4 -> 2015-16 | Q27: =CRCP_y5 -> 2016-17
B28: Total opex allowance | E28: 72.88582021 | F28: 71.87818878 | G28: 72.66815509 | H28: 72.52632362 | I28: 71.9360612 | M28: =+E28/$I$18 -> 81.63978699 | N28: =+F28/$I$18 -> 80.51113377 | O28: =+G28/$I$18 -> 81.39597914 | P28: =+H28/$I$18 -> 81.23711298 | Q28: =+I28/$I$18 -> 80.57595697
B29: Approved excludable costs - allowance
B30: Debt raising costs | E30: 0.8113478019 | F30: 0.8236508828 | G30: 0.8351895757 | H30: 0.8444732054 | I30: 0.8541997047 | M30: =-E30/$I$18 -> -0.9087949004 | N30: -0.9225756453 | O30: -0.9355001954 | P30: -0.9458988374 | Q30: -0.95679354
B31: Guaranteed Service Level (GSL) payments | E31: 1.418441943 | F31: 1.418441943 | G31: 1.418441943 | H31: 1.418441943 | I31: 1.418441943 | M31: -1.588804211 | N31: -1.588804211 | O31: -1.588804211 | P31: -1.588804211 | Q31: -1.588804211
B32: Superannuation costs for defined benefits schemes | E32: 0 | F32: 0 | G32: 0 | H32: 0 | I32: 0 | M32: 0 | N32: 0 | O32: 0 | P32: 0 | Q32: 0
B33: Demand management incentive allowance (DMIA) | E33: 0 | F33: 0 | G33: 0 | H33: 0 | I33: 0 | M33: 0 | N33: 0 | O33: 0 | P33: 0 | Q33: 0
B34: Non-network alternatives | E34: 0.4138233274 | F34: 0.4455744779 | G34: 0.5408279292 | H34: 0.694291823 | I34: 0.7895452743 | M34: -0.4635256653 | N34: -0.4990902943 | O34: -0.6057841814 | P34: -0.7776798885 | Q34: -0.8843737756
B35: Electrical safety inspection levy payments | E35: 2.812477597 | F35: 2.837679942 | G35: 2.82601078 | H35: 2.801681458 | I35: 2.799285492 | M35: -3.150270811 | N35: -3.178500088 | O35: -3.165429399 | P35: -3.138177999 | Q35: -3.135494265
B36: National Energy Market (NEM) levy payments | E36: 0.3250237611 | F36: 0.3279361892 | G36: 0.3265877167 | H36: 0.3237760711 | I36: 0.3234991832 | M36: -0.3640608083 | N36: -0.3673230342 | O36: -0.3658126032 | P36: -0.3626632642 | Q36: -0.3623531207
B37: NEM and retail contestability opex | E37: 1.545932823 | F37: 1.555891212 | G37: 1.559515738 | H37: 1.559023986 | I37: 1.561518588 | M37: -1.73160741 | N37: -1.742761853 | O37: -1.746821704 | P37: -1.746270889 | Q37: -1.749065107
B38: Capitalisation policy changes | M38: 0 | N38: 0 | O38: 0 | P38: 0 | Q38: 0
B39: Forecast opex for EBSS purposes | E39: =E28-SUM(E30:E37)+E38 -> 65.55877296 | F39: =F28-SUM(F30:F37)+F38 -> 64.46901414 | G39: 65.1615814 | H39: 64.88463513 | I39: 64.18957102 | K39: =+SUM(K28:K38) -> 0 | L39: 0 | M39: 73.43272318 | N39: 72.21207864 | O39: 72.98782685 | P39: 72.67761789 | Q39: 71.89907295
B41: Table 7.5.1.2 - Actual and estimated opex applicable to EBSS
C42: $m, Actual | K42: $m, real June 2017
C43: Previous period | E43: Current regulatory control period | K43: Previous period | M43: Current regulatory control period
C44: =PRCP_y4 -> 2010-11 | D44: =PRCP_y5 -> 2011-12 | E44: =CRCP_y1 -> 2012-13 | F44: =CRCP_y2 -> 2013-14 | G44: =CRCP_y3 -> 2014-15 | H44: =CRCP_y4 -> 2015-16 | I44: =CRCP_y5 -> 2016-17 | K44: =PRCP_y4 -> 2010-11 | L44: =PRCP_y5 -> 2011-12 | M44: =CRCP_y1 -> 2012-13 | N44: =CRCP_y2 -> 2013-14 | O44: =CRCP_y3 -> 2014-15 | P44: =CRCP_y4 -> 2015-16 | Q44: =CRCP_y5 -> 2016-17
B45: Total opex | E45: 70.73720542 | F45: 74.15129455 | G45: 64.14836639 | H45: 62.27519639 | M45: =+E45/J$18*(1+J$17)^0.5 -> 78.45093021 | N45: =+F45/K$18*(1+K$17)^0.5 -> 80.55964385 | O45: =+G45/L$18*(1+L$17)^0.5 -> 68.1690868 | P45: =+H45/M$18*(1+M$17)^0.5 -> 64.62505175
B46: Approved excludable costs
B47: =B30 -> Debt raising costs | E47: 0 | F47: 0 | G47: 0 | H47: 0 | M47: =-E47/J$18*(1+J$17)^0.5 -> 0 | N47: 0 | O47: 0 | P47: 0
B48: Guaranteed Service Level (GSL) payments | E48: 1.98354749 | F48: 2.952885 | G48: 3.39874751 | H48: 1.52557751 | M48: -2.199848648 | N48: -3.208081064 | O48: -3.611775748 | P48: -1.583142748
B49: Superannuation costs for defined benefits schemes | G49: 0 | H49: 0 | M49: 0 | N49: 0 | O49: 0 | P49: 0
B50: Demand management incentive allowance (DMIA) | E50: 0.137 | F50: 0.04971738 | G50: 0.090952 | H50: 0.0932258 | M50: -0.1519395257 | N50: -0.05401408634 | O50: -0.09665273071 | P50: -0.0967435271
B51: =B34 -> Non-network alternatives | E51: 0.02155201144 | F51: 0.0007243996155 | G51: 0 | H51: 0 | M51: -0.02390220727 | N51: -0.0007870041296 | O51: 0 | P51: 0
B52: =B35 -> Electrical safety inspection levy payments | E52: 3.386437822 | F52: 2.964769676 | G52: 1.912101874 | H52: 1.959904421 | M52: -3.75572085 | N52: -3.220992845 | O52: -2.031949462 | P52: -2.033858293
B53: =B36 -> National Energy Market (NEM) levy payments | E53: 0.4483997593 | F53: 0.4298511818 | G53: 0.3901754385 | H53: 0.3999298245 | M53: -0.4972966915 | N53: -0.467000048 | O53: -0.4146310316 | P53: -0.4150205395
B54: =B37 -> NEM and retail contestability opex | E54: 1.073085873 | F54: 1.61923677 | G54: 1.151420024 | H54: 1.180205525 | M54: -1.190103347 | N54: -1.759175457 | O54: -1.223589251 | P54: -1.224738701
B55: Opex associated with approved cost pass through | M55: 0 | N55: 0 | O55: 0 | P55: 0
B56: =B38 -> Capitalisation policy changes | M56: 0 | N56: 0 | O56: 0 | P56: 0
B57: Movements in provisions related to opex | E57: 1.248090118 | F57: -1.318232291 | G57: -3.661621733 | H57: 0 | M57: -1.38419139 | N57: 1.432157382 | O57: 3.891126521 | P57: 0
B58: Actual opex for EBSS purposes | E58: =+E45-SUM(E47:E57) -> 62.43909235 | F58: =+F45-SUM(F47:F57) -> 67.45234244 | G58: =+G45-SUM(G47:G57) -> 60.86659128 | H58: =+H45-SUM(H47:H57) -> 57.11635331 | K58: =K45+SUM(K47:K57) -> 0 | L58: 0 | M58: 69.24792755 | N58: 73.28175073 | O58: 64.6816151 | P58: 59.27154794 | Q58: =+Q39-(P39-P58) -> 58.49300301
K60: =CONCATENATE("Incremental gain ($m, ",CRCP_y5,")") -> Incremental gain ($m, 2016-17)
M61: =IF(dms_EBSS_status="No",(M39-M58)-(L39-L58)+(K39-K58),(M39-M58)) -> 4.184795634 | N61: =(N39-N58)-(M39-M58) -> -5.254467715 | O61: =(O39-O58)-(N39-N58) -> 9.375883836 | P61: =(P39-P58)-(O39-O58) -> 5.099858189 | Q61: =(Q39-Q58)-(P39-P58) -> 0
K63: Carryover
M64: Current regulatory control period | R64: Forthcoming regulatory control period
M65: =CONCATENATE("$m, real ", dms_DollarReal) -> $m, real June 2017
